Workbook

Sheet ГОЛОВНА
B9: ЗМІСТ | K9: Рівеньзнижки
K10: (введітьзначення)
B12: Alpha1,ALPHA2,MAGHA3 | D12: ='ALPHA, MAGNA'!G2 -> Регульовані циркуляційні насоси для систем опалення | F12: ПОШУК | K12: DH | L12: 0
B13: UPS,UPD | D13: ='UPS, UPSD'!G2 -> Циркуляційні насоси для систем опалення | K13: DC | L13: 0
B14: Comfort,UP,UPN,Solar | D14: ='Comfort, UP, UP N, Solar'!G2 -> Циркуляційні насоси для систем гарячого водопостачання | K14: CB | L14: 0
B15: MQ, Scala, JP, Hydrojet, SB, SBA | D15: ='MQ, JP, Scala, SB, SBA, UPA'!G2 -> Насоси і насосні установки для систем водопостачання | K15: CW | L15: 0
B16: SQ, SQE, SP, SP-NE, SPE | D16: ='SQ, SQE, SP, SP-NE'!G12 -> Глибинні насоси та пакети постійного тиску | K16: DD | L16: 0
B17: Unilift AP, KP, Sololift2 | D17: ='Sololift, Unilift AP, KP'!G13 -> Дренажні та каналізаційні насоси та насосні станції | K17: WW | L17: 0
B18: SEG, AutoADAPT | D18: ='SEG, AutoADAPT'!G2 -> Каналізаційні насоси з ріжучим механізмом | K18: WS | L18: 0
B19: Multilift | D19: =Multilift!G2 -> Компактні каналізаційні станції для встановлення у приміщенні | K19: GI | L19: 0
B20: SE, SL | D20: Каналізаційні насоси
B21: DP, EF | D21: ='DP, EF'!G2 -> Дренажні насоси
B22: TP (E), TPD (E) | D22: ='TP (E), TPD (E)'!G2 -> Ін-лайн насоси для систем опалення та кондиціонування
B23: NB (E), NK (E) | D23: ='NB (E), NK (E)'!G2 -> Насоси для водопостачання, пожежогасіння та промисловості
B24: LS | D24: =LS!G2 -> Насоси для систем водопостачання | H24: Ціни зазначено в Євро без ПДВ.
B25: MTR | D25: =MTR!G2 -> Напівзанурені насоси | H25: УВАГА! Грундфос залишає за собою право змінювати ціни на продукцію. Актуальна ціна продажу та строки поставки зазначені в Комерційних пропозиціях та Рахунках-Специфікаціях. У випадку, якщо Ви не змогли знайти потрібну Вам модель насоса\аксесуара\т.п. - зверніться до Вашого торгового представника Грундфос.
B26: CM (E), CMB (E) | D26: ='CM (E), CMB (E)'!G2 -> Самовсмоктуючі насоси для систем водопостачання
B27: CR (E), CRI (E),CRN (E) | D27: ='CR (E), CRI (E),CRN (E)'!G2 -> Насоси для водопостачання, пожежогасіння та промисловості
B28: HYDRO Boosters | D28: ='HYDRO Boosters'!G2 -> Станції підвищення тиску
B29: Controls | D29: =Шафи!G2 -> Шафи керування
B30: Dosing | D30: =Dosing!G2 -> Дозатори
B31: GT | D31: Мембранні баки

Sheet ALPHA, MAGNA
A1: АРТИКУЛ | B1: НАЙМЕНУВАННЯ (УКР) | C1: PRICE GROUP | D1: ДОСТАВКА | E1: ДОДАТКОВО | F1: ЦІНА (ЕВРО БЕЗ ПДВ) | G1: ЦІНА ЗІ ЗНИЖКОЮ | H1: НА ГОЛОВНУ
A2: ALPHA2, ALPHA2 L | G2: Регульовані циркуляційні насоси для систем опалення
A3: 99160550 | B3: =VLOOKUP(A3,'DATA (2)'!A:E,2,FALSE) -> Циркуляційний насос ALPHA1 L 15-40 130 1 | C3: DH | D3: S | F3: =VLOOKUP(A3,'DATA (2)'!A:E,5,FALSE) -> 164.33 | G3: =IFERROR(F3*(1-VLOOKUP(C3,ГОЛОВНА!K:L,2,0)), "-") -> 164.33
A4: 99160574 | B4: =VLOOKUP(A4,'DATA (2)'!A:E,2,FALSE) -> Циркуляційний насос ALPHA1 L 15-60 130 1 | C4: DH | D4: S | F4: =VLOOKUP(A4,'DATA (2)'!A:E,5,FALSE) -> 188.98 | G4: =IFERROR(F4*(1-VLOOKUP(C4,ГОЛОВНА!K:L,2,0)), "-") -> 188.98
A5: 99160578 | B5: =VLOOKUP(A5,'DATA (2)'!A:E,2,FALSE) -> Циркуляційний насос ALPHA1 L 25-40 130 1 | C5: DH | D5: S | F5: =VLOOKUP(A5,'DATA (2)'!A:E,5,FALSE) -> 151.78 | G5: =IFERROR(F5*(1-VLOOKUP(C5,ГОЛОВНА!K:L,2,0)), "-") -> 151.78
A6: 99160579 | B6: =VLOOKUP(A6,'DATA (2)'!A:E,2,FALSE) -> Циркуляційний насос ALPHA1 L 25-40 180 1 | C6: DH | D6: S | F6: =VLOOKUP(A6,'DATA (2)'!A:E,5,FALSE) -> 151.76 | G6: =IFERROR(F6*(1-VLOOKUP(C6,ГОЛОВНА!K:L,2,0)), "-") -> 151.76
A7: 99160583 | B7: =VLOOKUP(A7,'DATA (2)'!A:E,2,FALSE) -> Циркуляційний насос ALPHA1 L 25-60 130 1 | C7: DH | D7: S | F7: =VLOOKUP(A7,'DATA (2)'!A:E,5,FALSE) -> 174.58 | G7: =IFERROR(F7*(1-VLOOKUP(C7,ГОЛОВНА!K:L,2,0)), "-") -> 174.58
A8: 99160584 | B8: =VLOOKUP(A8,'DATA (2)'!A:E,2,FALSE) -> Циркуляційний насос ALPHA1 L 25-60 180 1 | C8: DH | D8: S | F8: =VLOOKUP(A8,'DATA (2)'!A:E,5,FALSE) -> 174.54 | G8: =IFERROR(F8*(1-VLOOKUP(C8,ГОЛОВНА!K:L,2,0)), "-") -> 174.54
A9: 99160587 | B9: =VLOOKUP(A9,'DATA (2)'!A:E,2,FALSE) -> Циркуляційний насос ALPHA1 L 32-40 180 1 | C9: DH | D9: S | F9: =VLOOKUP(A9,'DATA (2)'!A:E,5,FALSE) -> 166.96 | G9: =IFERROR(F9*(1-VLOOKUP(C9,ГОЛОВНА!K:L,2,0)), "-") -> 166.96
A10: 99160590 | B10: =VLOOKUP(A10,'DATA (2)'!A:E,2,FALSE) -> Циркуляційний насос ALPHA1 L 32-60 180 1 | C10: DH | D10: S | F10: =VLOOKUP(A10,'DATA (2)'!A:E,5,FALSE) -> 184.16 | G10: =IFERROR(F10*(1-VLOOKUP(C10,ГОЛОВНА!K:L,2,0)), "-") -> 184.16
A11: 99199591 | B11: =VLOOKUP(A11,'DATA (2)'!A:E,2,FALSE) -> Цирк.насос ALPHA1 25-40 N 180 1x230V 50 | C11: DH | F11: =VLOOKUP(A11,'DATA (2)'!A:E,5,FALSE) -> 362.54 | G11: =IFERROR(F11*(1-VLOOKUP(C11,ГОЛОВНА!K:L,2,0)), "-") -> 362.54
A12: 99199593 | B12: =VLOOKUP(A12,'DATA (2)'!A:E,2,FALSE) -> Цирк.насос ALPHA1 25-60 N 180 1x230V 50 | C12: DH | F12: =VLOOKUP(A12,'DATA (2)'!A:E,5,FALSE) -> 416.61 | G12: =IFERROR(F12*(1-VLOOKUP(C12,ГОЛОВНА!K:L,2,0)), "-") -> 416.61
A13: 95047561 | B13: =VLOOKUP(A13,'DATA (2)'!A:E,2,FALSE) -> Циркуляційний насос ALPHA2 L 25-40 130 1 | C13: DH | E13: до розпродажу залишків | F13: =VLOOKUP(A13,'DATA (2)'!A:E,5,FALSE) -> 151.78 | G13: =IFERROR(F13*(1-VLOOKUP(C13,ГОЛОВНА!K:L,2,0)), "-") -> 151.78
A14: 95047562 | B14: =VLOOKUP(A14,'DATA (2)'!A:E,2,FALSE) -> Циркуляційний насос ALPHA2 L 25-40 180 1 | C14: DH | E14: до розпродажу залишків | F14: =VLOOKUP(A14,'DATA (2)'!A:E,5,FALSE) -> 151.76 | G14: =IFERROR(F14*(1-VLOOKUP(C14,ГОЛОВНА!K:L,2,0)), "-") -> 151.76
A15: 95047563 | B15: =VLOOKUP(A15,'DATA (2)'!A:E,2,FALSE) -> Циркуляційний насос ALPHA2 L 25-60 130 1 | C15: DH | E15: до розпродажу залишків | F15: =VLOOKUP(A15,'DATA (2)'!A:E,5,FALSE) -> 172.79 | G15: =IFERROR(F15*(1-VLOOKUP(C15,ГОЛОВНА!K:L,2,0)), "-") -> 172.79
A16: 95047564 | B16: =VLOOKUP(A16,'DATA (2)'!A:E,2,FALSE) -> Циркуляційний насос ALPHA2 L 25-60 180 1 | C16: DH | E16: до розпродажу залишків | F16: =VLOOKUP(A16,'DATA (2)'!A:E,5,FALSE) -> 174.54 | G16: =IFERROR(F16*(1-VLOOKUP(C16,ГОЛОВНА!K:L,2,0)), "-") -> 174.54
A17: 95047565 | B17: =VLOOKUP(A17,'DATA (2)'!A:E,2,FALSE) -> Циркуляційний насос ALPHA2 L 32-40 180 1 | C17: DH | E17: до розпродажу залишків | F17: =VLOOKUP(A17,'DATA (2)'!A:E,5,FALSE) -> 166.96 | G17: =IFERROR(F17*(1-VLOOKUP(C17,ГОЛОВНА!K:L,2,0)), "-") -> 166.96
A18: 95047566 | B18: =VLOOKUP(A18,'DATA (2)'!A:E,2,FALSE) -> Циркуляційний насос ALPHA2 L 32-60 180 1 | C18: DH | E18: до розпродажу залишків | F18: =VLOOKUP(A18,'DATA (2)'!A:E,5,FALSE) -> 184.16 | G18: =IFERROR(F18*(1-VLOOKUP(C18,ГОЛОВНА!K:L,2,0)), "-") -> 184.16
A19: 97660453 | B19: =VLOOKUP(A19,'DATA (2)'!A:E,2,FALSE) -> Циркуляційний насос ALPHA2 20-40 N 150 1 | C19: DH | F19: =VLOOKUP(A19,'DATA (2)'!A:E,5,FALSE) -> 365.17 | G19: =IFERROR(F19*(1-VLOOKUP(C19,ГОЛОВНА!K:L,2,0)), "-") -> 365.17
A20: 97660456 | B20: =VLOOKUP(A20,'DATA (2)'!A:E,2,FALSE) -> Циркуляційний насос ALPHA2 20-60 N 150 1 | C20: DH | F20: =VLOOKUP(A20,'DATA (2)'!A:E,5,FALSE) -> 419.95 | G20: =IFERROR(F20*(1-VLOOKUP(C20,ГОЛОВНА!K:L,2,0)), "-") -> 419.95
A21: 98094952 | B21: =VLOOKUP(A21,'DATA (2)'!A:E,2,FALSE) -> Циркуляційний насос ALPHA2L 20-45N | C21: DH | F21: =VLOOKUP(A21,'DATA (2)'!A:E,5,FALSE) -> 287.1 | G21: =IFERROR(F21*(1-VLOOKUP(C21,ГОЛОВНА!K:L,2,0)), "-") -> 287.1
A22: 98288707 | B22: =VLOOKUP(A22,'DATA (2)'!A:E,2,FALSE) -> Циркуляційний насос ALPHA2 L 25-60 N 180 | C22: DH | F22: =VLOOKUP(A22,'DATA (2)'!A:E,5,FALSE) -> 297.09 | G22: =IFERROR(F22*(1-VLOOKUP(C22,ГОЛОВНА!K:L,2,0)), "-") -> 297.09
A23: 99160592 | B23: =VLOOKUP(A23,'DATA (2)'!A:E,2,FALSE) -> Циркуляційний насос ALPHA1 L 25-40 N 180 | C23: DH | F23: =VLOOKUP(A23,'DATA (2)'!A:E,5,FALSE) -> 252.54 | G23: =IFERROR(F23*(1-VLOOKUP(C23,ГОЛОВНА!K:L,2,0)), "-") -> 252.54
A24: 99160595 | B24: =VLOOKUP(A24,'DATA (2)'!A:E,2,FALSE) -> Циркуляційний насос ALPHA1 L 20-40 N 150 | C24: DH | F24: =VLOOKUP(A24,'DATA (2)'!A:E,5,FALSE) -> 250.24 | G24: =IFERROR(F24*(1-VLOOKUP(C24,ГОЛОВНА!K:L,2,0)), "-") -> 250.24
A25: 99411272 | B25: =VLOOKUP(A25,'DATA (2)'!A:E,2,FALSE) -> Циркул.насос ALPHA2 25-40 N 130 1x230V | C25: DH | F25: =VLOOKUP(A25,'DATA (2)'!A:E,5,FALSE) -> 378.87 | G25: =IFERROR(F25*(1-VLOOKUP(C25,ГОЛОВНА!K:L,2,0)), "-") -> 378.87
A26: 99411286 | B26: =VLOOKUP(A26,'DATA (2)'!A:E,2,FALSE) -> Циркул.насос ALPHA2 25-50 N 130 1x230V | C26: DH | F26: =VLOOKUP(A26,'DATA (2)'!A:E,5,FALSE) -> 416.77 | G26: =IFERROR(F26*(1-VLOOKUP(C26,ГОЛОВНА!K:L,2,0)), "-") -> 416.77
A27: 99411287 | B27: =VLOOKUP(A27,'DATA (2)'!A:E,2,FALSE) -> Циркул.насос ALPHA2 25-60 N 130 1x230V | C27: DH | D27: S | F27: =VLOOKUP(A27,'DATA (2)'!A:E,5,FALSE) -> 435.7 | G27: =IFERROR(F27*(1-VLOOKUP(C27,ГОЛОВНА!K:L,2,0)), "-") -> 435.7
A28: 99411289 | B28: =VLOOKUP(A28,'DATA (2)'!A:E,2,FALSE) -> Циркул.насос ALPHA2 25-80 N 130 1x230V | C28: DH | F28: =VLOOKUP(A28,'DATA (2)'!A:E,5,FALSE) -> 546.36 | G28: =IFERROR(F28*(1-VLOOKUP(C28,ГОЛОВНА!K:L,2,0)), "-") -> 546.36
A29: 99411365 | B29: =VLOOKUP(A29,'DATA (2)'!A:E,2,FALSE) -> Циркул.насос ALPHA2 25-40 N 180 1x230V | C29: DH | D29: S | F29: =VLOOKUP(A29,'DATA (2)'!A:E,5,FALSE) -> 378.87 | G29: =IFERROR(F29*(1-VLOOKUP(C29,ГОЛОВНА!K:L,2,0)), "-") -> 378.87
A30: 99411371 | B30: =VLOOKUP(A30,'DATA (2)'!A:E,2,FALSE) -> Циркул.насос ALPHA2 25-50 N 180 1x230V | C30: DH | F30: =VLOOKUP(A30,'DATA (2)'!A:E,5,FALSE) -> 416.77 | G30: =IFERROR(F30*(1-VLOOKUP(C30,ГОЛОВНА!K:L,2,0)), "-") -> 416.77
A31: 99411424 | B31: =VLOOKUP(A31,'DATA (2)'!A:E,2,FALSE) -> Циркул.насос ALPHA2 25-60 N 180 1x230V | C31: DH | D31: S | F31: =VLOOKUP(A31,'DATA (2)'!A:E,5,FALSE) -> 435.7 | G31: =IFERROR(F31*(1-VLOOKUP(C31,ГОЛОВНА!K:L,2,0)), "-") -> 435.7
A32: 99411428 | B32: =VLOOKUP(A32,'DATA (2)'!A:E,2,FALSE) -> Циркул.насос ALPHA2 25-80 N 180 1x230V | C32: DH | F32: =VLOOKUP(A32,'DATA (2)'!A:E,5,FALSE) -> 542.57 | G32: =IFERROR(F32*(1-VLOOKUP(C32,ГОЛОВНА!K:L,2,0)), "-") -> 542.57
A33: 99411448 | B33: =VLOOKUP(A33,'DATA (2)'!A:E,2,FALSE) -> Цирк.насос ALPHA2 32-60 N 180 1x230V | C33: DH | F33: =VLOOKUP(A33,'DATA (2)'!A:E,5,FALSE) -> 499.88 | G33: =IFERROR(F33*(1-VLOOKUP(C33,ГОЛОВНА!K:L,2,0)), "-") -> 499.88
A34: 98989297 | B34: =VLOOKUP(A34,'DATA (2)'!A:E,2,FALSE) -> Циркуляційний насос ALPHA Solar 25-145 1 | C34: DH | F34: =VLOOKUP(A34,'DATA (2)'!A:E,5,FALSE) -> 284.75 | G34: =IFERROR(F34*(1-VLOOKUP(C34,ГОЛОВНА!K:L,2,0)), "-") -> 284.75
A35: 98989298 | B35: =VLOOKUP(A35,'DATA (2)'!A:E,2,FALSE) -> Циркуляційний насос ALPHA Solar 15-75 13 | C35: DH | F35: =VLOOKUP(A35,'DATA (2)'!A:E,5,FALSE) -> 256.28 | G35: =IFERROR(F35*(1-VLOOKUP(C35,ГОЛОВНА!K:L,2,0)), "-") -> 256.28
A36: 98989299 | B36: =VLOOKUP(A36,'DATA (2)'!A:E,2,FALSE) -> Циркуляційний насос ALPHA Solar 25-75 13 | C36: DH | F36: =VLOOKUP(A36,'DATA (2)'!A:E,5,FALSE) -> 265.77 | G36: =IFERROR(F36*(1-VLOOKUP(C36,ГОЛОВНА!K:L,2,0)), "-") -> 265.77
A37: 98989300 | B37: =VLOOKUP(A37,'DATA (2)'!A:E,2,FALSE) -> Циркуляційний насос ALPHA Solar 25-75 18 | C37: DH | F37: =VLOOKUP(A37,'DATA (2)'!A:E,5,FALSE) -> 265.77 | G37: =IFERROR(F37*(1-VLOOKUP(C37,ГОЛОВНА!K:L,2,0)), "-") -> 265.77
A38: 99411107 | B38: =VLOOKUP(A38,'DATA (2)'!A:E,2,FALSE) -> Циркул.насос ALPHA2 15-40 130 1x230V 50H | C38: DH | D38: S | F38: =VLOOKUP(A38,'DATA (2)'!A:E,5,FALSE) -> 223.18 | G38: =IFERROR(F38*(1-VLOOKUP(C38,ГОЛОВНА!K:L,2,0)), "-") -> 223.18
A39: 99411113 | B39: =VLOOKUP(A39,'DATA (2)'!A:E,2,FALSE) -> Циркул.насос ALPHA2 15-50 130 1x230V 50H | C39: DH | F39: =VLOOKUP(A39,'DATA (2)'!A:E,5,FALSE) -> 245.5 | G39: =IFERROR(F39*(1-VLOOKUP(C39,ГОЛОВНА!K:L,2,0)), "-") -> 245.5
A40: 99411114 | B40: =VLOOKUP(A40,'DATA (2)'!A:E,2,FALSE) -> Циркул.насос ALPHA2 15-60 130 1x230V 50H | C40: DH | D40: S | F40: =VLOOKUP(A40,'DATA (2)'!A:E,5,FALSE) -> 256.63 | G40: =IFERROR(F40*(1-VLOOKUP(C40,ГОЛОВНА!K:L,2,0)), "-") -> 256.63
A41: 99411116 | B41: =VLOOKUP(A41,'DATA (2)'!A:E,2,FALSE) -> Циркул.насос ALPHA2 15-80 130 1x230V 50H | C41: DH | D41: S | F41: =VLOOKUP(A41,'DATA (2)'!A:E,5,FALSE) -> 290.55 | G41: =IFERROR(F41*(1-VLOOKUP(C41,ГОЛОВНА!K:L,2,0)), "-") -> 290.55
A42: 99411143 | B42: =VLOOKUP(A42,'DATA (2)'!A:E,2,FALSE) -> Циркул.насос ALPHA2 25-40 130 1x230V 50H | C42: DH | D42: S | F42: =VLOOKUP(A42,'DATA (2)'!A:E,5,FALSE) -> 199.37 | G42: =IFERROR(F42*(1-VLOOKUP(C42,ГОЛОВНА!K:L,2,0)), "-") -> 199.37
A43: 99411146 | B43: =VLOOKUP(A43,'DATA (2)'!A:E,2,FALSE) -> Циркул.насос ALPHA2 25-50 130 1x230V 50H | C43: DH | F43: =VLOOKUP(A43,'DATA (2)'!A:E,5,FALSE) -> 223.19 | G43: =IFERROR(F43*(1-VLOOKUP(C43,ГОЛОВНА!K:L,2,0)), "-") -> 223.19
A44: 99411150 | B44: =VLOOKUP(A44,'DATA (2)'!A:E,2,FALSE) -> Циркул.насос ALPHA2 25-60 130 1x230V 50H | C44: DH | F44: =VLOOKUP(A44,'DATA (2)'!A:E,5,FALSE) -> 230.39 | G44: =IFERROR(F44*(1-VLOOKUP(C44,ГОЛОВНА!K:L,2,0)), "-") -> 230.39
A45: 99411163 | B45: =VLOOKUP(A45,'DATA (2)'!A:E,2,FALSE) -> Циркул.насос ALPHA2 25-80 130 1x230V 50H | C45: DH | F45: =VLOOKUP(A45,'DATA (2)'!A:E,5,FALSE) -> 287.14 | G45: =IFERROR(F45*(1-VLOOKUP(C45,ГОЛОВНА!K:L,2,0)), "-") -> 287.14
A46: 99411165 | B46: =VLOOKUP(A46,'DATA (2)'!A:E,2,FALSE) -> Циркул.насос ALPHA2 25-40 180 1x230V 50H | C46: DH | D46: S | F46: =VLOOKUP(A46,'DATA (2)'!A:E,5,FALSE) -> 200.54 | G46: =IFERROR(F46*(1-VLOOKUP(C46,ГОЛОВНА!K:L,2,0)), "-") -> 200.54
A47: 99411173 | B47: =VLOOKUP(A47,'DATA (2)'!A:E,2,FALSE) -> Циркул.насос ALPHA2 25-50 180 1x230V 50H | C47: DH | F47: =VLOOKUP(A47,'DATA (2)'!A:E,5,FALSE) -> 223.19 | G47: =IFERROR(F47*(1-VLOOKUP(C47,ГОЛОВНА!K:L,2,0)), "-") -> 223.19
A48: 99411175 | B48: =VLOOKUP(A48,'DATA (2)'!A:E,2,FALSE) -> Циркуляційний насос ALPHA2 25-60 180 1x2 | C48: DH | D48: S | F48: =VLOOKUP(A48,'DATA (2)'!A:E,5,FALSE) -> 227.96 | G48: =IFERROR(F48*(1-VLOOKUP(C48,ГОЛОВНА!K:L,2,0)), "-") -> 227.96
A49: 99411178 | B49: =VLOOKUP(A49,'DATA (2)'!A:E,2,FALSE) -> Циркул.насос ALPHA2 25-80 180 1x230V 50H | C49: DH | D49: S | F49: =VLOOKUP(A49,'DATA (2)'!A:E,5,FALSE) -> 285.49 | G49: =IFERROR(F49*(1-VLOOKUP(C49,ГОЛОВНА!K:L,2,0)), "-") -> 285.49
A50: 99411207 | B50: =VLOOKUP(A50,'DATA (2)'!A:E,2,FALSE) -> Циркул.насос ALPHA2 32-40 180 1x230V 50H | C50: DH | D50: S | F50: =VLOOKUP(A50,'DATA (2)'!A:E,5,FALSE) -> 223.18 | G50: =IFERROR(F50*(1-VLOOKUP(C50,ГОЛОВНА!K:L,2,0)), "-") -> 223.18
A51: 99411215 | B51: =VLOOKUP(A51,'DATA (2)'!A:E,2,FALSE) -> Циркул.насос ALPHA2 32-50 180 1x230V 50H | C51: DH | F51: =VLOOKUP(A51,'DATA (2)'!A:E,5,FALSE) -> 245.5 | G51: =IFERROR(F51*(1-VLOOKUP(C51,ГОЛОВНА!K:L,2,0)), "-") -> 245.5
A52: 99411221 | B52: =VLOOKUP(A52,'DATA (2)'!A:E,2,FALSE) -> Циркул.насос ALPHA2 32-60 180 1x230V 50H | C52: DH | D52: S | F52: =VLOOKUP(A52,'DATA (2)'!A:E,5,FALSE) -> 253.64 | G52: =IFERROR(F52*(1-VLOOKUP(C52,ГОЛОВНА!K:L,2,0)), "-") -> 253.64
A53: 99411263 | B53: =VLOOKUP(A53,'DATA (2)'!A:E,2,FALSE) -> Цирк.насос ALPHA2 32-80 180 1x230V 50Hz | C53: DH | D53: S | F53: =VLOOKUP(A53,'DATA (2)'!A:E,5,FALSE) -> 309.44 | G53: =IFERROR(F53*(1-VLOOKUP(C53,ГОЛОВНА!K:L,2,0)), "-") -> 309.44
A54: 99371948 | B54: =VLOOKUP(A54,'DATA (2)'!A:E,2,FALSE) -> Циркул.насос ALPHA3 15-40 130 1x230V 50H | C54: DH | F54: =VLOOKUP(A54,'DATA (2)'!A:E,5,FALSE) -> 289.97 | G54: =IFERROR(F54*(1-VLOOKUP(C54,ГОЛОВНА!K:L,2,0)), "-") -> 289.97
A55: 99371950 | B55: =VLOOKUP(A55,'DATA (2)'!A:E,2,FALSE) -> Циркул.насос ALPHA3 15-60 130 1x230V 50H | C55: DH | F55: =VLOOKUP(A55,'DATA (2)'!A:E,5,FALSE) -> 333.47 | G55: =IFERROR(F55*(1-VLOOKUP(C55,ГОЛОВНА!K:L,2,0)), "-") -> 333.47
A56: 99371951 | B56: =VLOOKUP(A56,'DATA (2)'!A:E,2,FALSE) -> Циркул.насос ALPHA3 15-80 130 1x230V 50H | C56: DH | F56: =VLOOKUP(A56,'DATA (2)'!A:E,5,FALSE) -> 373.49 | G56: =IFERROR(F56*(1-VLOOKUP(C56,ГОЛОВНА!K:L,2,0)), "-") -> 373.49
A57: 99371952 | B57: =VLOOKUP(A57,'DATA (2)'!A:E,2,FALSE) -> Цирк.насос ALPHA3 25-40 130 1x230V 50Hz | C57: DH | D57: FT | F57: =VLOOKUP(A57,'DATA (2)'!A:E,5,FALSE) -> 263.61 | G57: =IFERROR(F57*(1-VLOOKUP(C57,ГОЛОВНА!K:L,2,0)), "-") -> 263.61
A58: 99371954 | B58: =VLOOKUP(A58,'DATA (2)'!A:E,2,FALSE) -> Цирк.насос ALPHA3 25-60 130 1x230V 50Hz | C58: DH | D58: FT | F58: =VLOOKUP(A58,'DATA (2)'!A:E,5,FALSE) -> 303.17 | G58: =IFERROR(F58*(1-VLOOKUP(C58,ГОЛОВНА!K:L,2,0)), "-") -> 303.17
A59: 99371955 | B59: =VLOOKUP(A59,'DATA (2)'!A:E,2,FALSE) -> Цирк.насос ALPHA3 25-80 130 1x230V | C59: DH | F59: =VLOOKUP(A59,'DATA (2)'!A:E,5,FALSE) -> 333.47 | G59: =IFERROR(F59*(1-VLOOKUP(C59,ГОЛОВНА!K:L,2,0)), "-") -> 333.47
A60: 99371956 | B60: =VLOOKUP(A60,'DATA (2)'!A:E,2,FALSE) -> Циркуляційний насос ALPHA3 25-40 180 1x2 | C60: DH | D60: FT | F60: =VLOOKUP(A60,'DATA (2)'!A:E,5,FALSE) -> 263.63 | G60: =IFERROR(F60*(1-VLOOKUP(C60,ГОЛОВНА!K:L,2,0)), "-") -> 263.63
A61: 99371959 | B61: =VLOOKUP(A61,'DATA (2)'!A:E,2,FALSE) -> Циркуляц.насос ALPHA3 25-60 180 1x230V 5 | C61: DH | D61: FT | F61: =VLOOKUP(A61,'DATA (2)'!A:E,5,FALSE) -> 303.17 | G61: =IFERROR(F61*(1-VLOOKUP(C61,ГОЛОВНА!K:L,2,0)), "-") -> 303.17
A62: 99371961 | B62: =VLOOKUP(A62,'DATA (2)'!A:E,2,FALSE) -> Циркул.насос ALPHA3 25-80 180 1x230V 50H | C62: DH | D62: FT | F62: =VLOOKUP(A62,'DATA (2)'!A:E,5,FALSE) -> 373.49 | G62: =IFERROR(F62*(1-VLOOKUP(C62,ГОЛОВНА!K:L,2,0)), "-") -> 373.49
A63: 99371962 | B63: =VLOOKUP(A63,'DATA (2)'!A:E,2,FALSE) -> ALPHA3 32-40 180 1x230V 50Hz 6H | C63: DH | F63: =VLOOKUP(A63,'DATA (2)'!A:E,5,FALSE) -> 289.97 | G63: =IFERROR(F63*(1-VLOOKUP(C63,ГОЛОВНА!K:L,2,0)), "-") -> 289.97
A64: 99371964 | B64: =VLOOKUP(A64,'DATA (2)'!A:E,2,FALSE) -> Цирк.наcoc ALPHA3 32-60 180 1x230V 50Hz | C64: DH | F64: =VLOOKUP(A64,'DATA (2)'!A:E,5,FALSE) -> 333.47 | G64: =IFERROR(F64*(1-VLOOKUP(C64,ГОЛОВНА!K:L,2,0)), "-") -> 333.47
A65: 99371965 | B65: =VLOOKUP(A65,'DATA (2)'!A:E,2,FALSE) -> Циркул.насос ALPHA3 32-80 180 1x230V 50H | C65: DH | D65: FT | F65: =VLOOKUP(A65,'DATA (2)'!A:E,5,FALSE) -> 373.49 | G65: =IFERROR(F65*(1-VLOOKUP(C65,ГОЛОВНА!K:L,2,0)), "-") -> 373.49
A67: MAGNA3, MAGNA1 | G67: Регулюємі циркуляційні насоси для систем опалення
A68: 99224456 | B68: =VLOOKUP(A68,'DATA (2)'!A:E,2,FALSE) -> Циркуляційний насос MAGNA1 25-100 180 1X | C68: CB | E68: PN16 | F68: =VLOOKUP(A68,'DATA (2)'!A:E,5,FALSE) -> 696.43 | G68: =IFERROR(F68*(1-VLOOKUP(C68,ГОЛОВНА!K:L,2,0)), "-") -> 696.43
A69: 99224457 | B69: =VLOOKUP(A69,'DATA (2)'!A:E,2,FALSE) -> Циркуляційний насос MAGNA1 25-120 180 1X | C69: CB | E69: PN16 | F69: =VLOOKUP(A69,'DATA (2)'!A:E,5,FALSE) -> 783.49 | G69: =IFERROR(F69*(1-VLOOKUP(C69,ГОЛОВНА!K:L,2,0)), "-") -> 783.49
A70: 99224458 | B70: =VLOOKUP(A70,'DATA (2)'!A:E,2,FALSE) -> Циркуляційний насос MAGNA1 32-40 180 1X2 | C70: CB | E70: PN16 | F70: =VLOOKUP(A70,'DATA (2)'!A:E,5,FALSE) -> 570.66 | G70: =IFERROR(F70*(1-VLOOKUP(C70,ГОЛОВНА!K:L,2,0)), "-") -> 570.66
A71: 99224459 | B71: =VLOOKUP(A71,'DATA (2)'!A:E,2,FALSE) -> Циркуляційний насос MAGNA1 32-60 180 1X2 | C71: CB | E71: PN16 | F71: =VLOOKUP(A71,'DATA (2)'!A:E,5,FALSE) -> 667.41 | G71: =IFERROR(F71*(1-VLOOKUP(C71,ГОЛОВНА!K:L,2,0)), "-") -> 667.41
A72: 99224460 | B72: =VLOOKUP(A72,'DATA (2)'!A:E,2,FALSE) -> Циркуляційний насос MAGNA1 32-80 180 1X2 | C72: CB | E72: PN16 | F72: =VLOOKUP(A72,'DATA (2)'!A:E,5,FALSE) -> 696.43 | G72: =IFERROR(F72*(1-VLOOKUP(C72,ГОЛОВНА!K:L,2,0)), "-") -> 696.43
A73: 99224462 | B73: =VLOOKUP(A73,'DATA (2)'!A:E,2,FALSE) -> Циркуляційний насос MAGNA1 32-100 F 220 | C73: CB | E73: PN16 | F73: =VLOOKUP(A73,'DATA (2)'!A:E,5,FALSE) -> 889.88 | G73: =IFERROR(F73*(1-VLOOKUP(C73,ГОЛОВНА!K:L,2,0)), "-") -> 889.88
A74: 99224463 | B74: =VLOOKUP(A74,'DATA (2)'!A:E,2,FALSE) -> Циркуляційний насос MAGNA1 32-120 F 220 | C74: CB | E74: PN16 | F74: =VLOOKUP(A74,'DATA (2)'!A:E,5,FALSE) -> 991.77 | G74: =IFERROR(F74*(1-VLOOKUP(C74,ГОЛОВНА!K:L,2,0)), "-") -> 991.77
A75: 99224464 | B75: =VLOOKUP(A75,'DATA (2)'!A:E,2,FALSE) -> Циркуляційний насос MAGNA1 40-40 F 220 1 | C75: CB | E75: PN16 | F75: =VLOOKUP(A75,'DATA (2)'!A:E,5,FALSE) -> 783.49 | G75: =IFERROR(F75*(1-VLOOKUP(C75,ГОЛОВНА!K:L,2,0)), "-") -> 783.49
A76: 99224465 | B76: =VLOOKUP(A76,'DATA (2)'!A:E,2,FALSE) -> Циркуляційний насос MAGNA1 40-60 F 220 1 | C76: CB | E76: PN16 | F76: =VLOOKUP(A76,'DATA (2)'!A:E,5,FALSE) -> 860.86 | G76: =IFERROR(F76*(1-VLOOKUP(C76,ГОЛОВНА!K:L,2,0)), "-") -> 860.86
A77: 99224466 | B77: =VLOOKUP(A77,'DATA (2)'!A:E,2,FALSE) -> Циркуляційний насос MAGNA1 40-80 F 220 1 | C77: CB | E77: PN16 | F77: =VLOOKUP(A77,'DATA (2)'!A:E,5,FALSE) -> 991.77 | G77: =IFERROR(F77*(1-VLOOKUP(C77,ГОЛОВНА!K:L,2,0)), "-") -> 991.77
A78: 99224467 | B78: =VLOOKUP(A78,'DATA (2)'!A:E,2,FALSE) -> Циркуляційний насос MAGNA1 40-100 F 220 | C78: CB | E78: PN16 | F78: =VLOOKUP(A78,'DATA (2)'!A:E,5,FALSE) -> 1093.73 | G78: =IFERROR(F78*(1-VLOOKUP(C78,ГОЛОВНА!K:L,2,0)), "-") -> 1093.73
A79: 99224468 | B79: =VLOOKUP(A79,'DATA (2)'!A:E,2,FALSE) -> Циркуляційний насос MAGNA1 40-120 F 250 | C79: CB | E79: PN16 | F79: =VLOOKUP(A79,'DATA (2)'!A:E,5,FALSE) -> 1214.23 | G79: =IFERROR(F79*(1-VLOOKUP(C79,ГОЛОВНА!K:L,2,0)), "-") -> 1214.23
A80: 99224469 | B80: =VLOOKUP(A80,'DATA (2)'!A:E,2,FALSE) -> Циркуляційний насос MAGNA1 40-150 F 250 | C80: CB | E80: PN16 | F80: =VLOOKUP(A80,'DATA (2)'!A:E,5,FALSE) -> 1483.04 | G80: =IFERROR(F80*(1-VLOOKUP(C80,ГОЛОВНА!K:L,2,0)), "-") -> 1483.04
A81: 99224470 | B81: =VLOOKUP(A81,'DATA (2)'!A:E,2,FALSE) -> Циркуляційний насос MAGNA1 40-180 F 250 | C81: CB | E81: PN16 | F81: =VLOOKUP(A81,'DATA (2)'!A:E,5,FALSE) -> 1705.47 | G81: =IFERROR(F81*(1-VLOOKUP(C81,ГОЛОВНА!K:L,2,0)), "-") -> 1705.47
A82: 99224471 | B82: =VLOOKUP(A82,'DATA (2)'!A:E,2,FALSE) -> Циркуляційний насос MAGNA1 50-60 F 240 1 | C82: CB | E82: PN16 | F82: =VLOOKUP(A82,'DATA (2)'!A:E,5,FALSE) -> 1288.38 | G82: =IFERROR(F82*(1-VLOOKUP(C82,ГОЛОВНА!K:L,2,0)), "-") -> 1288.38
A83: 99224472 | B83: =VLOOKUP(A83,'DATA (2)'!A:E,2,FALSE) -> Циркуляційний насос MAGNA1 50-80 F 240 1 | C83: CB | E83: PN16 | F83: =VLOOKUP(A83,'DATA (2)'!A:E,5,FALSE) -> 1418.15 | G83: =IFERROR(F83*(1-VLOOKUP(C83,ГОЛОВНА!K:L,2,0)), "-") -> 1418.15
A84: 99224473 | B84: =VLOOKUP(A84,'DATA (2)'!A:E,2,FALSE) -> Циркуляційний насос MAGNA1 50-100 F 280 | C84: CB | E84: PN16 | F84: =VLOOKUP(A84,'DATA (2)'!A:E,5,FALSE) -> 1501.56 | G84: =IFERROR(F84*(1-VLOOKUP(C84,ГОЛОВНА!K:L,2,0)), "-") -> 1501.56
A85: 99224474 | B85: =VLOOKUP(A85,'DATA (2)'!A:E,2,FALSE) -> Циркуляційний насос MAGNA1 50-120 F 280 | C85: CB | E85: PN16 | F85: =VLOOKUP(A85,'DATA (2)'!A:E,5,FALSE) -> 1584.99 | G85: =IFERROR(F85*(1-VLOOKUP(C85,ГОЛОВНА!K:L,2,0)), "-") -> 1584.99
A86: 99224475 | B86: =VLOOKUP(A86,'DATA (2)'!A:E,2,FALSE) -> Циркуляційний насос MAGNA1 50-150 F 280 | C86: CB | E86: PN16 | F86: =VLOOKUP(A86,'DATA (2)'!A:E,5,FALSE) -> 1825.99 | G86: =IFERROR(F86*(1-VLOOKUP(C86,ГОЛОВНА!K:L,2,0)), "-") -> 1825.99
A87: 99224476 | B87: =VLOOKUP(A87,'DATA (2)'!A:E,2,FALSE) -> Циркуляційний насос MAGNA1 50-180 F 280 | C87: CB | E87: PN16 | F87: =VLOOKUP(A87,'DATA (2)'!A:E,5,FALSE) -> 2141.11 | G87: =IFERROR(F87*(1-VLOOKUP(C87,ГОЛОВНА!K:L,2,0)), "-") -> 2141.11
A88: 99224477 | B88: =VLOOKUP(A88,'DATA (2)'!A:E,2,FALSE) -> Циркуляційний насос MAGNA1 65-40 F 340 1 | C88: CB | E88: PN16 | F88: =VLOOKUP(A88,'DATA (2)'!A:E,5,FALSE) -> 1371.8 | G88: =IFERROR(F88*(1-VLOOKUP(C88,ГОЛОВНА!K:L,2,0)), "-") -> 1371.8
A89: 99224479 | B89: =VLOOKUP(A89,'DATA (2)'!A:E,2,FALSE) -> Циркуляційний насос MAGNA1 65-80 F 340 1 | C89: CB | E89: PN16 | F89: =VLOOKUP(A89,'DATA (2)'!A:E,5,FALSE) -> 1705.47 | G89: =IFERROR(F89*(1-VLOOKUP(C89,ГОЛОВНА!K:L,2,0)), "-") -> 1705.47
A90: 99224480 | B90: =VLOOKUP(A90,'DATA (2)'!A:E,2,FALSE) -> Циркуляційний насос MAGNA1 65-100 F 340 | C90: CB | E90: PN16 | F90: =VLOOKUP(A90,'DATA (2)'!A:E,5,FALSE) -> 1798.18 | G90: =IFERROR(F90*(1-VLOOKUP(C90,ГОЛОВНА!K:L,2,0)), "-") -> 1798.18
A91: 99224481 | B91: =VLOOKUP(A91,'DATA (2)'!A:E,2,FALSE) -> Циркуляційний насос MAGNA1 65-120 F 340 | C91: CB | E91: PN16 | F91: =VLOOKUP(A91,'DATA (2)'!A:E,5,FALSE) -> 1927.94 | G91: =IFERROR(F91*(1-VLOOKUP(C91,ГОЛОВНА!K:L,2,0)), "-") -> 1927.94
A92: 99224482 | B92: =VLOOKUP(A92,'DATA (2)'!A:E,2,FALSE) -> Циркуляційний насос MAGNA1 65-150 F 340 | C92: CB | E92: PN16 | F92: =VLOOKUP(A92,'DATA (2)'!A:E,5,FALSE) -> 2224.54 | G92: =IFERROR(F92*(1-VLOOKUP(C92,ГОЛОВНА!K:L,2,0)), "-") -> 2224.54
A93: 99224483 | B93: =VLOOKUP(A93,'DATA (2)'!A:E,2,FALSE) -> Циркуляційний насос MAGNA1 80-60 F 360 1 | C93: CB | E93: PN16 | F93: =VLOOKUP(A93,'DATA (2)'!A:E,5,FALSE) -> 1807.44 | G93: =IFERROR(F93*(1-VLOOKUP(C93,ГОЛОВНА!K:L,2,0)), "-") -> 1807.44
A94: 99224484 | B94: =VLOOKUP(A94,'DATA (2)'!A:E,2,FALSE) -> Циркуляційний насос MAGNA1 80-80 F 360 1 | C94: CB | E94: PN16 | F94: =VLOOKUP(A94,'DATA (2)'!A:E,5,FALSE) -> 1946.47 | G94: =IFERROR(F94*(1-VLOOKUP(C94,ГОЛОВНА!K:L,2,0)), "-") -> 1946.47
A95: 99224485 | B95: =VLOOKUP(A95,'DATA (2)'!A:E,2,FALSE) -> Циркуляційний насос MAGNA1 80-100 F 360 | C95: CB | E95: PN16 | F95: =VLOOKUP(A95,'DATA (2)'!A:E,5,FALSE) -> 2122.58 | G95: =IFERROR(F95*(1-VLOOKUP(C95,ГОЛОВНА!K:L,2,0)), "-") -> 2122.58
A96: 99224486 | B96: =VLOOKUP(A96,'DATA (2)'!A:E,2,FALSE) -> Циркуляційний насос MAGNA1 80-120 F 360 | C96: CB | E96: PN16 | F96: =VLOOKUP(A96,'DATA (2)'!A:E,5,FALSE) -> 2382.11 | G96: =IFERROR(F96*(1-VLOOKUP(C96,ГОЛОВНА!K:L,2,0)), "-") -> 2382.11
A97: 99224487 | B97: =VLOOKUP(A97,'DATA (2)'!A:E,2,FALSE) -> Циркуляційний насос MAGNA1 100-40 F 450 | C97: CB | E97: PN16 | F97: =VLOOKUP(A97,'DATA (2)'!A:E,5,FALSE) -> 1927.94 | G97: =IFERROR(F97*(1-VLOOKUP(C97,ГОЛОВНА!K:L,2,0)), "-") -> 1927.94
A98: 99224488 | B98: =VLOOKUP(A98,'DATA (2)'!A:E,2,FALSE) -> Циркуляційний насос MAGNA1 100-60 F 450 | C98: CB | E98: PN16 | F98: =VLOOKUP(A98,'DATA (2)'!A:E,5,FALSE) -> 2104.06 | G98: =IFERROR(F98*(1-VLOOKUP(C98,ГОЛОВНА!K:L,2,0)), "-") -> 2104.06
A99: 99224489 | B99: =VLOOKUP(A99,'DATA (2)'!A:E,2,FALSE) -> Циркуляційний насос MAGNA1 100-80 F 450 | C99: CB | E99: PN16 | F99: =VLOOKUP(A99,'DATA (2)'!A:E,5,FALSE) -> 2280.15 | G99: =IFERROR(F99*(1-VLOOKUP(C99,ГОЛОВНА!K:L,2,0)), "-") -> 2280.15
A100: 99224490 | B100: =VLOOKUP(A100,'DATA (2)'!A:E,2,FALSE) -> Циркуляційний насос MAGNA1 100-100 F 450 | C100: CB | E100: PN16 | F100: =VLOOKUP(A100,'DATA (2)'!A:E,5,FALSE) -> 2484.05 | G100: =IFERROR(F100*(1-VLOOKUP(C100,ГОЛОВНА!K:L,2,0)), "-") -> 2484.05
A101: 99224491 | B101: =VLOOKUP(A101,'DATA (2)'!A:E,2,FALSE) -> Циркуляційний насос MAGNA1 D 32-40 180 1 | C101: CB | E101: PN16 | F101: =VLOOKUP(A101,'DATA (2)'!A:E,5,FALSE) -> 1056.16 | G101: =IFERROR(F101*(1-VLOOKUP(C101,ГОЛОВНА!K:L,2,0)), "-") -> 1056.16
A102: 99224492 | B102: =VLOOKUP(A102,'DATA (2)'!A:E,2,FALSE) -> Циркуляційний насос MAGNA1 D 32-60 180 1 | C102: CB | E102: PN16 | F102: =VLOOKUP(A102,'DATA (2)'!A:E,5,FALSE) -> 1235.18 | G102: =IFERROR(F102*(1-VLOOKUP(C102,ГОЛОВНА!K:L,2,0)), "-") -> 1235.18
A103: 99224494 | B103: =VLOOKUP(A103,'DATA (2)'!A:E,2,FALSE) -> Циркуляційний насос MAGNA1 D 32-100 180 | C103: CB | E103: PN16 | F103: =VLOOKUP(A103,'DATA (2)'!A:E,5,FALSE) -> 1414.17 | G103: =IFERROR(F103*(1-VLOOKUP(C103,ГОЛОВНА!K:L,2,0)), "-") -> 1414.17
A104: 99224496 | B104: =VLOOKUP(A104,'DATA (2)'!A:E,2,FALSE) -> Циркуляційний насос MAGNA1 D 32-120 F 22 | C104: CB | E104: PN16 | F104: =VLOOKUP(A104,'DATA (2)'!A:E,5,FALSE) -> 1835.47 | G104: =IFERROR(F104*(1-VLOOKUP(C104,ГОЛОВНА!K:L,2,0)), "-") -> 1835.47
A105: 99224497 | B105: =VLOOKUP(A105,'DATA (2)'!A:E,2,FALSE) -> Циркуляційний насос MAGNA1 D 40-40 F 220 | C105: CB | E105: PN16 | F105: =VLOOKUP(A105,'DATA (2)'!A:E,5,FALSE) -> 1450.02 | G105: =IFERROR(F105*(1-VLOOKUP(C105,ГОЛОВНА!K:L,2,0)), "-") -> 1450.02
A106: 99224498 | B106: =VLOOKUP(A106,'DATA (2)'!A:E,2,FALSE) -> Циркуляційний насос MAGNA1 D 40-60 F 220 | C106: CB | E106: PN16 | F106: =VLOOKUP(A106,'DATA (2)'!A:E,5,FALSE) -> 1591.03 | G106: =IFERROR(F106*(1-VLOOKUP(C106,ГОЛОВНА!K:L,2,0)), "-") -> 1591.03
A107: 99224499 | B107: =VLOOKUP(A107,'DATA (2)'!A:E,2,FALSE) -> Циркуляційний насос MAGNA1 D 40-80 F 220 | C107: CB | E107: PN16 | F107: =VLOOKUP(A107,'DATA (2)'!A:E,5,FALSE) -> 1835.46 | G107: =IFERROR(F107*(1-VLOOKUP(C107,ГОЛОВНА!K:L,2,0)), "-") -> 1835.46
A108: 99224500 | B108: =VLOOKUP(A108,'DATA (2)'!A:E,2,FALSE) -> Циркуляційний насос MAGNA1 D 40-100 F 22 | C108: CB | E108: PN16 | F108: =VLOOKUP(A108,'DATA (2)'!A:E,5,FALSE) -> 2024.17 | G108: =IFERROR(F108*(1-VLOOKUP(C108,ГОЛОВНА!K:L,2,0)), "-") -> 2024.17
A109: 99224501 | B109: =VLOOKUP(A109,'DATA (2)'!A:E,2,FALSE) -> Циркуляційний насос MAGNA1 D 40-120 F 25 | C109: CB | E109: PN16 | F109: =VLOOKUP(A109,'DATA (2)'!A:E,5,FALSE) -> 2247.14 | G109: =IFERROR(F109*(1-VLOOKUP(C109,ГОЛОВНА!K:L,2,0)), "-") -> 2247.14
A110: 99224502 | B110: =VLOOKUP(A110,'DATA (2)'!A:E,2,FALSE) -> Циркуляційний насос MAGNA1 D 40-150 F 25 | C110: CB | E110: PN16 | F110: =VLOOKUP(A110,'DATA (2)'!A:E,5,FALSE) -> 2744.61 | G110: =IFERROR(F110*(1-VLOOKUP(C110,ГОЛОВНА!K:L,2,0)), "-") -> 2744.61
A111: 99224503 | B111: =VLOOKUP(A111,'DATA (2)'!A:E,2,FALSE) -> Циркуляційний насос MAGNA1 D 40-180 F 25 | C111: CB | E111: PN16 | F111: =VLOOKUP(A111,'DATA (2)'!A:E,5,FALSE) -> 3156.31 | G111: =IFERROR(F111*(1-VLOOKUP(C111,ГОЛОВНА!K:L,2,0)), "-") -> 3156.31
A112: 99224504 | B112: =VLOOKUP(A112,'DATA (2)'!A:E,2,FALSE) -> Циркуляційний насос MAGNA1 D 50-60 F 240 | C112: CB | E112: PN16 | F112: =VLOOKUP(A112,'DATA (2)'!A:E,5,FALSE) -> 2384.37 | G112: =IFERROR(F112*(1-VLOOKUP(C112,ГОЛОВНА!K:L,2,0)), "-") -> 2384.37
A113: 99224505 | B113: =VLOOKUP(A113,'DATA (2)'!A:E,2,FALSE) -> Циркуляційний насос MAGNA1 D 50-80 F 240 | C113: CB | E113: PN16 | F113: =VLOOKUP(A113,'DATA (2)'!A:E,5,FALSE) -> 2624.55 | G113: =IFERROR(F113*(1-VLOOKUP(C113,ГОЛОВНА!K:L,2,0)), "-") -> 2624.55
A114: 99224506 | B114: =VLOOKUP(A114,'DATA (2)'!A:E,2,FALSE) -> Циркуляційний насос MAGNA1 D 50-100 F 28 | C114: CB | E114: PN16 | F114: =VLOOKUP(A114,'DATA (2)'!A:E,5,FALSE) -> 2778.92 | G114: =IFERROR(F114*(1-VLOOKUP(C114,ГОЛОВНА!K:L,2,0)), "-") -> 2778.92
A115: 99224507 | B115: =VLOOKUP(A115,'DATA (2)'!A:E,2,FALSE) -> Циркуляційний насос MAGNA1 D 50-120 F 28 | C115: CB | E115: PN16 | F115: =VLOOKUP(A115,'DATA (2)'!A:E,5,FALSE) -> 2933.3 | G115: =IFERROR(F115*(1-VLOOKUP(C115,ГОЛОВНА!K:L,2,0)), "-") -> 2933.3
A116: 99224508 | B116: =VLOOKUP(A116,'DATA (2)'!A:E,2,FALSE) -> Циркуляційний насос MAGNA1 D 50-150 F 28 | C116: CB | E116: PN16 | F116: =VLOOKUP(A116,'DATA (2)'!A:E,5,FALSE) -> 3379.3 | G116: =IFERROR(F116*(1-VLOOKUP(C116,ГОЛОВНА!K:L,2,0)), "-") -> 3379.3
A117: 99224509 | B117: =VLOOKUP(A117,'DATA (2)'!A:E,2,FALSE) -> Циркуляційний насос MAGNA1 D 50-180 F 28 | C117: CB | E117: PN16 | F117: =VLOOKUP(A117,'DATA (2)'!A:E,5,FALSE) -> 3962.54 | G117: =IFERROR(F117*(1-VLOOKUP(C117,ГОЛОВНА!K:L,2,0)), "-") -> 3962.54
A118: 99224510 | B118: =VLOOKUP(A118,'DATA (2)'!A:E,2,FALSE) -> Циркуляційний насос MAGNA1 D 65-40 F 340 | C118: CB | E118: PN16 | F118: =VLOOKUP(A118,'DATA (2)'!A:E,5,FALSE) -> 2538.76 | G118: =IFERROR(F118*(1-VLOOKUP(C118,ГОЛОВНА!K:L,2,0)), "-") -> 2538.76
A119: 99224511 | B119: =VLOOKUP(A119,'DATA (2)'!A:E,2,FALSE) -> Циркуляційний насос MAGNA1 D 65-60 F 340 | C119: CB | E119: PN16 | F119: =VLOOKUP(A119,'DATA (2)'!A:E,5,FALSE) -> 2899 | G119: =IFERROR(F119*(1-VLOOKUP(C119,ГОЛОВНА!K:L,2,0)), "-") -> 2899
A120: 99224512 | B120: =VLOOKUP(A120,'DATA (2)'!A:E,2,FALSE) -> Циркуляційний насос MAGNA1 D 65-80 F 340 | C120: CB | E120: PN16 | F120: =VLOOKUP(A120,'DATA (2)'!A:E,5,FALSE) -> 3156.31 | G120: =IFERROR(F120*(1-VLOOKUP(C120,ГОЛОВНА!K:L,2,0)), "-") -> 3156.31
A121: 99224513 | B121: =VLOOKUP(A121,'DATA (2)'!A:E,2,FALSE) -> Циркуляційний насос MAGNA1 D 65-100 F 34 | C121: CB | E121: PN16 | F121: =VLOOKUP(A121,'DATA (2)'!A:E,5,FALSE) -> 3327.84 | G121: =IFERROR(F121*(1-VLOOKUP(C121,ГОЛОВНА!K:L,2,0)), "-") -> 3327.84
A122: 99224514 | B122: =VLOOKUP(A122,'DATA (2)'!A:E,2,FALSE) -> Циркуляційний насос MAGNA1 D 65-120 F 34 | C122: CB | E122: PN16 | F122: =VLOOKUP(A122,'DATA (2)'!A:E,5,FALSE) -> 3567.99 | G122: =IFERROR(F122*(1-VLOOKUP(C122,ГОЛОВНА!K:L,2,0)), "-") -> 3567.99
A123: 99224515 | B123: =VLOOKUP(A123,'DATA (2)'!A:E,2,FALSE) -> Циркуляційний насос MAGNA1 D 65-150 F 34 | C123: CB | E123: PN16 | F123: =VLOOKUP(A123,'DATA (2)'!A:E,5,FALSE) -> 4116.92 | G123: =IFERROR(F123*(1-VLOOKUP(C123,ГОЛОВНА!K:L,2,0)), "-") -> 4116.92
A124: 99224516 | B124: =VLOOKUP(A124,'DATA (2)'!A:E,2,FALSE) -> Циркуляційний насос MAGNA1 D 80-60 F 360 | C124: CB | E124: PN16 | F124: =VLOOKUP(A124,'DATA (2)'!A:E,5,FALSE) -> 3344.99 | G124: =IFERROR(F124*(1-VLOOKUP(C124,ГОЛОВНА!K:L,2,0)), "-") -> 3344.99
A125: 99224517 | B125: =VLOOKUP(A125,'DATA (2)'!A:E,2,FALSE) -> Циркуляційний насос MAGNA1 D 80-80 F 360 | C125: CB | E125: PN16 | F125: =VLOOKUP(A125,'DATA (2)'!A:E,5,FALSE) -> 3602.3 | G125: =IFERROR(F125*(1-VLOOKUP(C125,ГОЛОВНА!K:L,2,0)), "-") -> 3602.3
A126: 99224518 | B126: =VLOOKUP(A126,'DATA (2)'!A:E,2,FALSE) -> Циркуляційний насос MAGNA1 D 80-100 F 36 | C126: CB | E126: PN16 | F126: =VLOOKUP(A126,'DATA (2)'!A:E,5,FALSE) -> 3928.23 | G126: =IFERROR(F126*(1-VLOOKUP(C126,ГОЛОВНА!K:L,2,0)), "-") -> 3928.23
A127: 99224519 | B127: =VLOOKUP(A127,'DATA (2)'!A:E,2,FALSE) -> Циркуляційний насос MAGNA1 D 80-120 F 36 | C127: CB | E127: PN16 | F127: =VLOOKUP(A127,'DATA (2)'!A:E,5,FALSE) -> 4408.51 | G127: =IFERROR(F127*(1-VLOOKUP(C127,ГОЛОВНА!K:L,2,0)), "-") -> 4408.51
A128: 99224520 | B128: =VLOOKUP(A128,'DATA (2)'!A:E,2,FALSE) -> Циркуляційний насос MAGNA1 D 100-40 F 45 | C128: CB | E128: PN16 | F128: =VLOOKUP(A128,'DATA (2)'!A:E,5,FALSE) -> 3567.99 | G128: =IFERROR(F128*(1-VLOOKUP(C128,ГОЛОВНА!K:L,2,0)), "-") -> 3567.99
A129: 99224521 | B129: =VLOOKUP(A129,'DATA (2)'!A:E,2,FALSE) -> Циркуляційний насос MAGNA1 D 100-60 F 45 | C129: CB | E129: PN16 | F129: =VLOOKUP(A129,'DATA (2)'!A:E,5,FALSE) -> 3893.9 | G129: =IFERROR(F129*(1-VLOOKUP(C129,ГОЛОВНА!K:L,2,0)), "-") -> 3893.9
A130: 99224522 | B130: =VLOOKUP(A130,'DATA (2)'!A:E,2,FALSE) -> Циркуляційний насос MAGNA1 D 100-80 F 45 | C130: CB | E130: PN16 | F130: =VLOOKUP(A130,'DATA (2)'!A:E,5,FALSE) -> 4219.83 | G130: =IFERROR(F130*(1-VLOOKUP(C130,ГОЛОВНА!K:L,2,0)), "-") -> 4219.83
A131: 99224523 | B131: =VLOOKUP(A131,'DATA (2)'!A:E,2,FALSE) -> Циркуляційний насос MAGNA1 D 100-100 F 4 | C131: CB | E131: PN16 | F131: =VLOOKUP(A131,'DATA (2)'!A:E,5,FALSE) -> 4597.21 | G131: =IFERROR(F131*(1-VLOOKUP(C131,ГОЛОВНА!K:L,2,0)), "-") -> 4597.21
A132: 99224524 | B132: =VLOOKUP(A132,'DATA (2)'!A:E,2,FALSE) -> Циркуляційний насос MAGNA1 D 100-120 F 4 | C132: CB | E132: PN16 | F132: =VLOOKUP(A132,'DATA (2)'!A:E,5,FALSE) -> 5214.75 | G132: =IFERROR(F132*(1-VLOOKUP(C132,ГОЛОВНА!K:L,2,0)), "-") -> 5214.75
A133: 99224598 | B133: =VLOOKUP(A133,'DATA (2)'!A:E,2,FALSE) -> Циркуляційний насос MAGNA1 32-40 F 220 1 | C133: CB | E133: PN16 | F133: =VLOOKUP(A133,'DATA (2)'!A:E,5,FALSE) -> 628.73 | G133: =IFERROR(F133*(1-VLOOKUP(C133,ГОЛОВНА!K:L,2,0)), "-") -> 628.73
A134: 99224600 | B134: =VLOOKUP(A134,'DATA (2)'!A:E,2,FALSE) -> Циркуляційний насос MAGNA1 D 32-40 F 220 | C134: CB | E134: PN16 | F134: =VLOOKUP(A134,'DATA (2)'!A:E,5,FALSE) -> 1163.55 | G134: =IFERROR(F134*(1-VLOOKUP(C134,ГОЛОВНА!K:L,2,0)), "-") -> 1163.55
A135: 99224602 | B135: =VLOOKUP(A135,'DATA (2)'!A:E,2,FALSE) -> Циркуляційний насос MAGNA1 32-60 F 220 1 | C135: CB | E135: PN16 | F135: =VLOOKUP(A135,'DATA (2)'!A:E,5,FALSE) -> 735.15 | G135: =IFERROR(F135*(1-VLOOKUP(C135,ГОЛОВНА!K:L,2,0)), "-") -> 735.15
A136: 99224604 | B136: =VLOOKUP(A136,'DATA (2)'!A:E,2,FALSE) -> Циркуляційний насос MAGNA1 D 32-60 F 220 | C136: CB | E136: PN16 | F136: =VLOOKUP(A136,'DATA (2)'!A:E,5,FALSE) -> 1360.49 | G136: =IFERROR(F136*(1-VLOOKUP(C136,ГОЛОВНА!K:L,2,0)), "-") -> 1360.49
A137: 99224606 | B137: =VLOOKUP(A137,'DATA (2)'!A:E,2,FALSE) -> Циркуляційний насос MAGNA1 32-80 F 220 1 | C137: CB | E137: PN16 | F137: =VLOOKUP(A137,'DATA (2)'!A:E,5,FALSE) -> 773.83 | G137: =IFERROR(F137*(1-VLOOKUP(C137,ГОЛОВНА!K:L,2,0)), "-") -> 773.83
A138: 99224608 | B138: =VLOOKUP(A138,'DATA (2)'!A:E,2,FALSE) -> Циркуляційний насос MAGNA1 D 32-80 F 220 | C138: CB | E138: PN16 | F138: =VLOOKUP(A138,'DATA (2)'!A:E,5,FALSE) -> 1432.08 | G138: =IFERROR(F138*(1-VLOOKUP(C138,ГОЛОВНА!K:L,2,0)), "-") -> 1432.08
A139: 99224610 | B139: =VLOOKUP(A139,'DATA (2)'!A:E,2,FALSE) -> Циркуляційний насос MAGNA1 100-120 F 450 | C139: CB | E139: PN16 | F139: =VLOOKUP(A139,'DATA (2)'!A:E,5,FALSE) -> 2817.74 | G139: =IFERROR(F139*(1-VLOOKUP(C139,ГОЛОВНА!K:L,2,0)), "-") -> 2817.74
A140: 99224611 | B140: =VLOOKUP(A140,'DATA (2)'!A:E,2,FALSE) -> Циркуляційний насос MAGNA1 32-120 180 1X | C140: CB | E140: PN16 | F140: =VLOOKUP(A140,'DATA (2)'!A:E,5,FALSE) -> 827.02 | G140: =IFERROR(F140*(1-VLOOKUP(C140,ГОЛОВНА!K:L,2,0)), "-") -> 827.02
A141: 99231362 | B141: =VLOOKUP(A141,'DATA (2)'!A:E,2,FALSE) -> Циркуляційний насос MAGNA1 D 50-40 F 240 | C141: CB | E141: PN16 | F141: =VLOOKUP(A141,'DATA (2)'!A:E,5,FALSE) -> 2024.17 | G141: =IFERROR(F141*(1-VLOOKUP(C141,ГОЛОВНА!K:L,2,0)), "-") -> 2024.17
A142: 99231368 | B142: =VLOOKUP(A142,'DATA (2)'!A:E,2,FALSE) -> Циркуляційний насос MAGNA1 D 80-40 F 360 | C142: CB | E142: PN16 | F142: =VLOOKUP(A142,'DATA (2)'!A:E,5,FALSE) -> 3036.23 | G142: =IFERROR(F142*(1-VLOOKUP(C142,ГОЛОВНА!K:L,2,0)), "-") -> 3036.23
A143: 99221291 | B143: =VLOOKUP(A143,'DATA (2)'!A:E,2,FALSE) -> Циркуляційний насос MAGNA1 40-40 F 220 1 | C143: CB | E143: PN6/10 | F143: =VLOOKUP(A143,'DATA (2)'!A:E,5,FALSE) -> 669.87 | G143: =IFERROR(F143*(1-VLOOKUP(C143,ГОЛОВНА!K:L,2,0)), "-") -> 669.87
A144: 99224454 | B144: =VLOOKUP(A144,'DATA (2)'!A:E,2,FALSE) -> Циркуляційний насос MAGNA1 25-60 180 1X2 | C144: CB | E144: PN16 | F144: =VLOOKUP(A144,'DATA (2)'!A:E,5,FALSE) -> 551.55 | G144: =IFERROR(F144*(1-VLOOKUP(C144,ГОЛОВНА!K:L,2,0)), "-") -> 551.55
A145: 99221256 | B145: =VLOOKUP(A145,'DATA (2)'!A:E,2,FALSE) -> Циркуляційний насос MAGNA1 32-100 N 180 | C145: CB | E145: PN6/10 | F145: =VLOOKUP(A145,'DATA (2)'!A:E,5,FALSE) -> 1012.65 | G145: =IFERROR(F145*(1-VLOOKUP(C145,ГОЛОВНА!K:L,2,0)), "-") -> 1012.65
A146: 99221253 | B146: =VLOOKUP(A146,'DATA (2)'!A:E,2,FALSE) -> Циркуляційний насос MAGNA1 32-40 N 180 1 | C146: CB | E146: PN6/10 | F146: =VLOOKUP(A146,'DATA (2)'!A:E,5,FALSE) -> 756.3 | G146: =IFERROR(F146*(1-VLOOKUP(C146,ГОЛОВНА!K:L,2,0)), "-") -> 756.3
A147: 99221234 | B147: =VLOOKUP(A147,'DATA (2)'!A:E,2,FALSE) -> Циркуляційний насос MAGNA1 32-60 180 1x2 | C147: CB | E147: PN6/14 | F147: =VLOOKUP(A147,'DATA (2)'!A:E,5,FALSE) -> 570.63 | G147: =IFERROR(F147*(1-VLOOKUP(C147,ГОЛОВНА!K:L,2,0)), "-") -> 570.63
A148: 99221265 | B148: =VLOOKUP(A148,'DATA (2)'!A:E,2,FALSE) -> Циркуляційний насос MAGNA1 32-40 F N 220 | C148: CB | E148: PN6/10 | F148: =VLOOKUP(A148,'DATA (2)'!A:E,5,FALSE) -> 833.18 | G148: =IFERROR(F148*(1-VLOOKUP(C148,ГОЛОВНА!K:L,2,0)), "-") -> 833.18
A149: 99224453 | B149: =VLOOKUP(A149,'DATA (2)'!A:E,2,FALSE) -> Циркуляційний насос MAGNA1 25-40 180 1X2 | C149: CB | E149: PN16 | F149: =VLOOKUP(A149,'DATA (2)'!A:E,5,FALSE) -> 464.43 | G149: =IFERROR(F149*(1-VLOOKUP(C149,ГОЛОВНА!K:L,2,0)), "-") -> 464.43
A150: 99221226 | B150: =VLOOKUP(A150,'DATA (2)'!A:E,2,FALSE) -> Циркуляційний насос MAGNA1 25-100 N 180 | C150: CB | E150: PN10 | F150: =VLOOKUP(A150,'DATA (2)'!A:E,5,FALSE) -> 922.9 | G150: =IFERROR(F150*(1-VLOOKUP(C150,ГОЛОВНА!K:L,2,0)), "-") -> 922.9
A151: 99224461 | B151: =VLOOKUP(A151,'DATA (2)'!A:E,2,FALSE) -> Циркуляційний насос MAGNA1 32-100 180 1X | C151: CB | E151: PN16 | F151: =VLOOKUP(A151,'DATA (2)'!A:E,5,FALSE) -> 764.38 | G151: =IFERROR(F151*(1-VLOOKUP(C151,ГОЛОВНА!K:L,2,0)), "-") -> 764.38
A152: 99221237 | B152: =VLOOKUP(A152,'DATA (2)'!A:E,2,FALSE) -> Циркуляційний насос MAGNA1 32-100 F 220 | C152: CB | D152: FT | E152: PN6/10 | F152: =VLOOKUP(A152,'DATA (2)'!A:E,5,FALSE) -> 760.81 | G152: =IFERROR(F152*(1-VLOOKUP(C152,ГОЛОВНА!K:L,2,0)), "-") -> 760.81
A153: 99221233 | B153: =VLOOKUP(A153,'DATA (2)'!A:E,2,FALSE) -> Циркуляційний насос MAGNA1 32-40 180 1x2 | C153: CB | E153: PN6/20 | F153: =VLOOKUP(A153,'DATA (2)'!A:E,5,FALSE) -> 487.9 | G153: =IFERROR(F153*(1-VLOOKUP(C153,ГОЛОВНА!K:L,2,0)), "-") -> 487.9
A154: 99221271 | B154: =VLOOKUP(A154,'DATA (2)'!A:E,2,FALSE) -> Циркуляційний насос MAGNA1 32-60 F N 220 | C154: CB | E154: PN6/10 | F154: =VLOOKUP(A154,'DATA (2)'!A:E,5,FALSE) -> 974.18 | G154: =IFERROR(F154*(1-VLOOKUP(C154,ГОЛОВНА!K:L,2,0)), "-") -> 974.18
A155: 99224455 | B155: =VLOOKUP(A155,'DATA (2)'!A:E,2,FALSE) -> Циркуляційний насос MAGNA1 25-80 180 1X2 | C155: CB | E155: PN16 | F155: =VLOOKUP(A155,'DATA (2)'!A:E,5,FALSE) -> 628.93 | G155: =IFERROR(F155*(1-VLOOKUP(C155,ГОЛОВНА!K:L,2,0)), "-") -> 628.93
A156: 99221277 | B156: =VLOOKUP(A156,'DATA (2)'!A:E,2,FALSE) -> Циркуляційний насос MAGNA1 32-80 F N 220 | C156: CB | E156: PN6/10 | F156: =VLOOKUP(A156,'DATA (2)'!A:E,5,FALSE) -> 1025.45 | G156: =IFERROR(F156*(1-VLOOKUP(C156,ГОЛОВНА!K:L,2,0)), "-") -> 1025.45
A157: 99221223 | B157: =VLOOKUP(A157,'DATA (2)'!A:E,2,FALSE) -> Циркуляційний насос MAGNA1 25-40 N 180 1 | C157: CB | E157: PN6/24 | F157: =VLOOKUP(A157,'DATA (2)'!A:E,5,FALSE) -> 615.26 | G157: =IFERROR(F157*(1-VLOOKUP(C157,ГОЛОВНА!K:L,2,0)), "-") -> 615.26
A158: 99221292 | B158: =VLOOKUP(A158,'DATA (2)'!A:E,2,FALSE) -> Циркуляційний насос MAGNA1 40-60 F 220 1 | C158: CB | D158: FT | E158: PN6/10 | F158: =VLOOKUP(A158,'DATA (2)'!A:E,5,FALSE) -> 736.01 | G158: =IFERROR(F158*(1-VLOOKUP(C158,ГОЛОВНА!K:L,2,0)), "-") -> 736.01
A159: 99221254 | B159: =VLOOKUP(A159,'DATA (2)'!A:E,2,FALSE) -> Циркуляційний насос MAGNA1 32-60 N 180 1 | C159: CB | E159: PN10 | F159: =VLOOKUP(A159,'DATA (2)'!A:E,5,FALSE) -> 884.44 | G159: =IFERROR(F159*(1-VLOOKUP(C159,ГОЛОВНА!K:L,2,0)), "-") -> 884.44
A160: 99221224 | B160: =VLOOKUP(A160,'DATA (2)'!A:E,2,FALSE) -> Циркуляційний насос MAGNA1 25-60 N 180 1 | C160: CB | E160: PN10 | F160: =VLOOKUP(A160,'DATA (2)'!A:E,5,FALSE) -> 730.64 | G160: =IFERROR(F160*(1-VLOOKUP(C160,ГОЛОВНА!K:L,2,0)), "-") -> 730.64
A161: 99221227 | B161: =VLOOKUP(A161,'DATA (2)'!A:E,2,FALSE) -> Циркуляційний насос MAGNA1 25-120 N 180 | C161: CB | E161: PN10 | F161: =VLOOKUP(A161,'DATA (2)'!A:E,5,FALSE) -> 1038.26 | G161: =IFERROR(F161*(1-VLOOKUP(C161,ГОЛОВНА!K:L,2,0)), "-") -> 1038.26
A162: 99221299 | B162: =VLOOKUP(A162,'DATA (2)'!A:E,2,FALSE) -> Циркуляційний насос MAGNA1 40-40 F N 220 | C162: CB | E162: PN6/10 | F162: =VLOOKUP(A162,'DATA (2)'!A:E,5,FALSE) -> 1038.26 | G162: =IFERROR(F162*(1-VLOOKUP(C162,ГОЛОВНА!K:L,2,0)), "-") -> 1038.26
A163: 99221255 | B163: =VLOOKUP(A163,'DATA (2)'!A:E,2,FALSE) -> Циркуляційний насос MAGNA1 32-80 N 180 1 | C163: CB | E163: PN10 | F163: =VLOOKUP(A163,'DATA (2)'!A:E,5,FALSE) -> 922.89 | G163: =IFERROR(F163*(1-VLOOKUP(C163,ГОЛОВНА!K:L,2,0)), "-") -> 922.89
A164: 99221300 | B164: =VLOOKUP(A164,'DATA (2)'!A:E,2,FALSE) -> Циркуляційний насос MAGNA1 40-60 F N 220 | C164: CB | E164: PN6/10 | F164: =VLOOKUP(A164,'DATA (2)'!A:E,5,FALSE) -> 1140.81 | G164: =IFERROR(F164*(1-VLOOKUP(C164,ГОЛОВНА!K:L,2,0)), "-") -> 1140.81
A165: 99221257 | B165: =VLOOKUP(A165,'DATA (2)'!A:E,2,FALSE) -> Циркуляційний насос MAGNA1 32-100 F N 22 | C165: CB | E165: PN6/10 | F165: =VLOOKUP(A165,'DATA (2)'!A:E,5,FALSE) -> 1179.26 | G165: =IFERROR(F165*(1-VLOOKUP(C165,ГОЛОВНА!K:L,2,0)), "-") -> 1179.26
A166: 99221374 | B166: =VLOOKUP(A166,'DATA (2)'!A:E,2,FALSE) -> Циркуляційний насос MAGNA1 65-120 F 340 | C166: CB | D166: FT | E166: PN6/10 | F166: =VLOOKUP(A166,'DATA (2)'!A:E,5,FALSE) -> 1680.34 | G166: =IFERROR(F166*(1-VLOOKUP(C166,ГОЛОВНА!K:L,2,0)), "-") -> 1680.34
A167: 99221305 | B167: =VLOOKUP(A167,'DATA (2)'!A:E,2,FALSE) -> Циркуляційний насос MAGNA1 40-120 F 250 | C167: CB | D167: FT | E167: PN6/10 | F167: =VLOOKUP(A167,'DATA (2)'!A:E,5,FALSE) -> 1055.27 | G167: =IFERROR(F167*(1-VLOOKUP(C167,ГОЛОВНА!K:L,2,0)), "-") -> 1055.27
A168: 99221289 | B168: =VLOOKUP(A168,'DATA (2)'!A:E,2,FALSE) -> Циркуляційний насос MAGNA1 32-120 F N 22 | C168: CB | E168: PN6/10 | F168: =VLOOKUP(A168,'DATA (2)'!A:E,5,FALSE) -> 1320.4 | G168: =IFERROR(F168*(1-VLOOKUP(C168,ГОЛОВНА!K:L,2,0)), "-") -> 1320.4
A169: 99221442 | B169: =VLOOKUP(A169,'DATA (2)'!A:E,2,FALSE) -> Циркуляційний насос MAGNA1 100-120 F 450 | C169: CB | E169: PN6 | F169: =VLOOKUP(A169,'DATA (2)'!A:E,5,FALSE) -> 2412.31 | G169: =IFERROR(F169*(1-VLOOKUP(C169,ГОЛОВНА!K:L,2,0)), "-") -> 2412.31
A170: 99221447 | B170: =VLOOKUP(A170,'DATA (2)'!A:E,2,FALSE) -> Циркуляційний насос MAGNA1 100-120 F 450 | C170: CB | E170: PN10 | F170: =VLOOKUP(A170,'DATA (2)'!A:E,5,FALSE) -> 2532.94 | G170: =IFERROR(F170*(1-VLOOKUP(C170,ГОЛОВНА!K:L,2,0)), "-") -> 2532.94
A171: 99221446 | B171: =VLOOKUP(A171,'DATA (2)'!A:E,2,FALSE) -> Циркуляційний насос MAGNA1 100-100 F 450 | C171: CB | E171: PN10 | F171: =VLOOKUP(A171,'DATA (2)'!A:E,5,FALSE) -> 2231.99 | G171: =IFERROR(F171*(1-VLOOKUP(C171,ГОЛОВНА!K:L,2,0)), "-") -> 2231.99
A172: 99221441 | B172: =VLOOKUP(A172,'DATA (2)'!A:E,2,FALSE) -> Циркуляційний насос MAGNA1 100-100 F 450 | C172: CB | E172: PN6 | F172: =VLOOKUP(A172,'DATA (2)'!A:E,5,FALSE) -> 2125.69 | G172: =IFERROR(F172*(1-VLOOKUP(C172,ГОЛОВНА!K:L,2,0)), "-") -> 2125.69
A173: 99224478 | B173: =VLOOKUP(A173,'DATA (2)'!A:E,2,FALSE) -> Циркуляційний насос MAGNA1 65-60 F 340 1 | C173: CB | E173: PN16 | F173: =VLOOKUP(A173,'DATA (2)'!A:E,5,FALSE) -> 1568.12 | G173: =IFERROR(F173*(1-VLOOKUP(C173,ГОЛОВНА!K:L,2,0)), "-") -> 1568.12
A174: 99221413 | B174: =VLOOKUP(A174,'DATA (2)'!A:E,2,FALSE) -> Циркуляційний насос MAGNA1 80-120 F 360 | C174: CB | E174: PN10 | F174: =VLOOKUP(A174,'DATA (2)'!A:E,5,FALSE) -> 2140.06 | G174: =IFERROR(F174*(1-VLOOKUP(C174,ГОЛОВНА!K:L,2,0)), "-") -> 2140.06
A175: 99221440 | B175: =VLOOKUP(A175,'DATA (2)'!A:E,2,FALSE) -> Циркуляційний насос MAGNA1 100-80 F 450 | C175: CB | E175: PN6 | F175: =VLOOKUP(A175,'DATA (2)'!A:E,5,FALSE) -> 1950.55 | G175: =IFERROR(F175*(1-VLOOKUP(C175,ГОЛОВНА!K:L,2,0)), "-") -> 1950.55
A176: 99221445 | B176: =VLOOKUP(A176,'DATA (2)'!A:E,2,FALSE) -> Циркуляційний насос MAGNA1 100-80 F 450 | C176: CB | E176: PN10 | F176: =VLOOKUP(A176,'DATA (2)'!A:E,5,FALSE) -> 2048.07 | G176: =IFERROR(F176*(1-VLOOKUP(C176,ГОЛОВНА!K:L,2,0)), "-") -> 2048.07
A177: 99221399 | B177: =VLOOKUP(A177,'DATA (2)'!A:E,2,FALSE) -> Циркуляційний насос MAGNA1 65-150 F N 34 | C177: CB | E177: PN6/10 | F177: =VLOOKUP(A177,'DATA (2)'!A:E,5,FALSE) -> 2949.34 | G177: =IFERROR(F177*(1-VLOOKUP(C177,ГОЛОВНА!K:L,2,0)), "-") -> 2949.34
A178: 99221338 | B178: =VLOOKUP(A178,'DATA (2)'!A:E,2,FALSE) -> Циркуляційний насос MAGNA1 50-180 F 280 | C178: CB | D178: FT | E178: PN6/10 | F178: =VLOOKUP(A178,'DATA (2)'!A:E,5,FALSE) -> 1831.15 | G178: =IFERROR(F178*(1-VLOOKUP(C178,ГОЛОВНА!K:L,2,0)), "-") -> 1831.15
A179: 99221363 | B179: =VLOOKUP(A179,'DATA (2)'!A:E,2,FALSE) -> Циркуляційний насос MAGNA1 50-180 F N 28 | C179: CB | E179: PN6/10 | F179: =VLOOKUP(A179,'DATA (2)'!A:E,5,FALSE) -> 2838.27 | G179: =IFERROR(F179*(1-VLOOKUP(C179,ГОЛОВНА!K:L,2,0)), "-") -> 2838.27
A180: 99221412 | B180: =VLOOKUP(A180,'DATA (2)'!A:E,2,FALSE) -> Циркуляційний насос MAGNA1 80-100 F 360 | C180: CB | E180: PN10 | F180: =VLOOKUP(A180,'DATA (2)'!A:E,5,FALSE) -> 1905.96 | G180: =IFERROR(F180*(1-VLOOKUP(C180,ГОЛОВНА!K:L,2,0)), "-") -> 1905.96
A181: 99221408 | B181: =VLOOKUP(A181,'DATA (2)'!A:E,2,FALSE) -> Циркуляційний насос MAGNA1 80-100 F 360 | C181: CB | E181: PN6 | F181: =VLOOKUP(A181,'DATA (2)'!A:E,5,FALSE) -> 1815.21 | G181: =IFERROR(F181*(1-VLOOKUP(C181,ГОЛОВНА!K:L,2,0)), "-") -> 1815.21
A182: 99221444 | B182: =VLOOKUP(A182,'DATA (2)'!A:E,2,FALSE) -> Циркуляційний насос MAGNA1 100-60 F 450 | C182: CB | E182: PN10 | F182: =VLOOKUP(A182,'DATA (2)'!A:E,5,FALSE) -> 1889.25 | G182: =IFERROR(F182*(1-VLOOKUP(C182,ГОЛОВНА!K:L,2,0)), "-") -> 1889.25
A183: 99221439 | B183: =VLOOKUP(A183,'DATA (2)'!A:E,2,FALSE) -> Циркуляційний насос MAGNA1 100-60 F 450 | C183: CB | E183: PN6 | F183: =VLOOKUP(A183,'DATA (2)'!A:E,5,FALSE) -> 1799.26 | G183: =IFERROR(F183*(1-VLOOKUP(C183,ГОЛОВНА!K:L,2,0)), "-") -> 1799.26
A184: 99221411 | B184: =VLOOKUP(A184,'DATA (2)'!A:E,2,FALSE) -> Циркуляційний насос MAGNA1 80-80 F 360 1 | C184: CB | E184: PN10 | F184: =VLOOKUP(A184,'DATA (2)'!A:E,5,FALSE) -> 1747.15 | G184: =IFERROR(F184*(1-VLOOKUP(C184,ГОЛОВНА!K:L,2,0)), "-") -> 1747.15
A185: 99221323 | B185: =VLOOKUP(A185,'DATA (2)'!A:E,2,FALSE) -> Циркуляційний насос MAGNA1 40-80 F N 220 | C185: CB | E185: PN6/10 | F185: =VLOOKUP(A185,'DATA (2)'!A:E,5,FALSE) -> 1314.11 | G185: =IFERROR(F185*(1-VLOOKUP(C185,ГОЛОВНА!K:L,2,0)), "-") -> 1314.11
A186: 99221407 | B186: =VLOOKUP(A186,'DATA (2)'!A:E,2,FALSE) -> Циркуляційний насос MAGNA1 80-80 F 360 1 | C186: CB | E186: PN6 | F186: =VLOOKUP(A186,'DATA (2)'!A:E,5,FALSE) -> 1663.93 | G186: =IFERROR(F186*(1-VLOOKUP(C186,ГОЛОВНА!K:L,2,0)), "-") -> 1663.93
A187: 99221324 | B187: =VLOOKUP(A187,'DATA (2)'!A:E,2,FALSE) -> Циркуляційний насос MAGNA1 40-100 F N 22 | C187: CB | E187: PN6/10 | F187: =VLOOKUP(A187,'DATA (2)'!A:E,5,FALSE) -> 1449.17 | G187: =IFERROR(F187*(1-VLOOKUP(C187,ГОЛОВНА!K:L,2,0)), "-") -> 1449.17
A188: 99221438 | B188: =VLOOKUP(A188,'DATA (2)'!A:E,2,FALSE) -> Циркуляційний насос MAGNA1 100-40 F 450 | C188: CB | E188: PN6 | F188: =VLOOKUP(A188,'DATA (2)'!A:E,5,FALSE) -> 1648.02 | G188: =IFERROR(F188*(1-VLOOKUP(C188,ГОЛОВНА!K:L,2,0)), "-") -> 1648.02
A189: 99221398 | B189: =VLOOKUP(A189,'DATA (2)'!A:E,2,FALSE) -> Циркуляційний насос MAGNA1 65-120 F N 34 | C189: CB | E189: PN6/10 | F189: =VLOOKUP(A189,'DATA (2)'!A:E,5,FALSE) -> 2554.43 | G189: =IFERROR(F189*(1-VLOOKUP(C189,ГОЛОВНА!K:L,2,0)), "-") -> 2554.43
A190: 99221443 | B190: =VLOOKUP(A190,'DATA (2)'!A:E,2,FALSE) -> Циркуляційний насос MAGNA1 100-40 F 450 | C190: CB | E190: PN10 | F190: =VLOOKUP(A190,'DATA (2)'!A:E,5,FALSE) -> 1730.42 | G190: =IFERROR(F190*(1-VLOOKUP(C190,ГОЛОВНА!K:L,2,0)), "-") -> 1730.42
A191: 99221337 | B191: =VLOOKUP(A191,'DATA (2)'!A:E,2,FALSE) -> Циркуляційний насос MAGNA1 50-150 F 280 | C191: CB | D191: FT | E191: PN6/10 | F191: =VLOOKUP(A191,'DATA (2)'!A:E,5,FALSE) -> 1560.45 | G191: =IFERROR(F191*(1-VLOOKUP(C191,ГОЛОВНА!K:L,2,0)), "-") -> 1560.45
A192: 99221362 | B192: =VLOOKUP(A192,'DATA (2)'!A:E,2,FALSE) -> Циркуляційний насос MAGNA1 50-150 F N 28 | C192: CB | E192: PN6/10 | F192: =VLOOKUP(A192,'DATA (2)'!A:E,5,FALSE) -> 2418.68 | G192: =IFERROR(F192*(1-VLOOKUP(C192,ГОЛОВНА!K:L,2,0)), "-") -> 2418.68
A193: 99221410 | B193: =VLOOKUP(A193,'DATA (2)'!A:E,2,FALSE) -> Циркуляційний насос MAGNA1 80-60 F 360 1 | C193: CB | E193: PN10 | F193: =VLOOKUP(A193,'DATA (2)'!A:E,5,FALSE) -> 1621.75 | G193: =IFERROR(F193*(1-VLOOKUP(C193,ГОЛОВНА!K:L,2,0)), "-") -> 1621.75
A194: 99221406 | B194: =VLOOKUP(A194,'DATA (2)'!A:E,2,FALSE) -> Циркуляційний насос MAGNA1 80-60 F 360 1 | C194: CB | E194: PN6 | F194: =VLOOKUP(A194,'DATA (2)'!A:E,5,FALSE) -> 1544.5 | G194: =IFERROR(F194*(1-VLOOKUP(C194,ГОЛОВНА!K:L,2,0)), "-") -> 1544.5
A195: 99221397 | B195: =VLOOKUP(A195,'DATA (2)'!A:E,2,FALSE) -> Циркуляційний насос MAGNA1 65-100 F N 34 | C195: CB | E195: PN6/10 | F195: =VLOOKUP(A195,'DATA (2)'!A:E,5,FALSE) -> 2381.66 | G195: =IFERROR(F195*(1-VLOOKUP(C195,ГОЛОВНА!K:L,2,0)), "-") -> 2381.66
A196: 99221327 | B196: =VLOOKUP(A196,'DATA (2)'!A:E,2,FALSE) -> Циркуляційний насос MAGNA1 40-180 F N 25 | C196: CB | E196: PN6/10 | F196: =VLOOKUP(A196,'DATA (2)'!A:E,5,FALSE) -> 2258.28 | G196: =IFERROR(F196*(1-VLOOKUP(C196,ГОЛОВНА!K:L,2,0)), "-") -> 2258.28
A197: 99221396 | B197: =VLOOKUP(A197,'DATA (2)'!A:E,2,FALSE) -> Циркуляційний насос MAGNA1 65-80 F N 340 | C197: CB | E197: PN6/10 | F197: =VLOOKUP(A197,'DATA (2)'!A:E,5,FALSE) -> 2258.28 | G197: =IFERROR(F197*(1-VLOOKUP(C197,ГОЛОВНА!K:L,2,0)), "-") -> 2258.28
A198: 99221307 | B198: =VLOOKUP(A198,'DATA (2)'!A:E,2,FALSE) -> Циркуляційний насос MAGNA1 40-180 F 250 | C198: CB | D198: FT | E198: PN6/10 | F198: =VLOOKUP(A198,'DATA (2)'!A:E,5,FALSE) -> 1456.94 | G198: =IFERROR(F198*(1-VLOOKUP(C198,ГОЛОВНА!K:L,2,0)), "-") -> 1456.94
A199: 99221372 | B199: =VLOOKUP(A199,'DATA (2)'!A:E,2,FALSE) -> Циркуляційний насос MAGNA1 65-80 F 340 1 | C199: CB | D199: FT | E199: PN6/10 | F199: =VLOOKUP(A199,'DATA (2)'!A:E,5,FALSE) -> 1456.94 | G199: =IFERROR(F199*(1-VLOOKUP(C199,ГОЛОВНА!K:L,2,0)), "-") -> 1456.94
A200: 99221361 | B200: =VLOOKUP(A200,'DATA (2)'!A:E,2,FALSE) -> Циркуляційний насос MAGNA1 50-120 F N 28 | C200: CB | E200: PN6/10 | F200: =VLOOKUP(A200,'DATA (2)'!A:E,5,FALSE) -> 2097.85 | G200: =IFERROR(F200*(1-VLOOKUP(C200,ГОЛОВНА!K:L,2,0)), "-") -> 2097.85
A201: 99221395 | B201: =VLOOKUP(A201,'DATA (2)'!A:E,2,FALSE) -> Циркуляційний насос MAGNA1 65-60 F N 340 | C201: CB | E201: PN6/10 | F201: =VLOOKUP(A201,'DATA (2)'!A:E,5,FALSE) -> 2073.16 | G201: =IFERROR(F201*(1-VLOOKUP(C201,ГОЛОВНА!K:L,2,0)), "-") -> 2073.16
... 275 more rows

Sheet UPS, UPSD
A1: АРТИКУЛ | B1: НАЙМЕНУВАННЯ (УКР) | C1: PRICE GROUP | D1: ДОСТАВКА | E1: ДОДАТКОВО | F1: ЦІНА (ЕВРО БЕЗ ПДВ) | G1: ЦІНА ЗІ ЗНИЖКОЮ | H1: НА ГОЛОВНУ
A2: UPS, UPSD серія 100 | G2: Циркуляційні насоси для систем опалення
A3: 52588336 | B3: =VLOOKUP(A3,'DATA (2)'!A:F,2,FALSE) -> Циркуляційний насос UPS25-120 180 1x230B | C3: =VLOOKUP(A3,'DATA (2)'!A:F,4,FALSE) -> DH | F3: =VLOOKUP(A3,'DATA (2)'!A:F,5,FALSE) -> 288.75 | G3: =IFERROR(F3*(1-VLOOKUP(C3,ГОЛОВНА!K:L,2,0)), "-") -> 288.75
A4: 95906404 | B4: =VLOOKUP(A4,'DATA (2)'!A:F,2,FALSE) -> Циркуляційний насос UPS25-55 180 1x230B | C4: =VLOOKUP(A4,'DATA (2)'!A:F,4,FALSE) -> DH | D4: S | F4: =VLOOKUP(A4,'DATA (2)'!A:F,5,FALSE) -> 213.17 | G4: =IFERROR(F4*(1-VLOOKUP(C4,ГОЛОВНА!K:L,2,0)), "-") -> 213.17
A5: 95906429 | B5: =VLOOKUP(A5,'DATA (2)'!A:F,2,FALSE) -> Циркуляційний насос UPS25-80 180 1x230V | C5: =VLOOKUP(A5,'DATA (2)'!A:F,4,FALSE) -> DH | D5: S | F5: =VLOOKUP(A5,'DATA (2)'!A:F,5,FALSE) -> 216.54 | G5: =IFERROR(F5*(1-VLOOKUP(C5,ГОЛОВНА!K:L,2,0)), "-") -> 216.54
A6: 95906409 | B6: =VLOOKUP(A6,'DATA (2)'!A:F,2,FALSE) -> Циркуляційний насос UPS32-55 180 1x230V | C6: =VLOOKUP(A6,'DATA (2)'!A:F,4,FALSE) -> DH | D6: S | F6: =VLOOKUP(A6,'DATA (2)'!A:F,5,FALSE) -> 278.83 | G6: =IFERROR(F6*(1-VLOOKUP(C6,ГОЛОВНА!K:L,2,0)), "-") -> 278.83
A7: 95906442 | B7: =VLOOKUP(A7,'DATA (2)'!A:F,2,FALSE) -> Циркуляційний насос UPS32-80 180 | C7: =VLOOKUP(A7,'DATA (2)'!A:F,4,FALSE) -> DH | D7: S | F7: =VLOOKUP(A7,'DATA (2)'!A:F,5,FALSE) -> 321.91 | G7: =IFERROR(F7*(1-VLOOKUP(C7,ГОЛОВНА!K:L,2,0)), "-") -> 321.91
A8: 95906413 | B8: =VLOOKUP(A8,'DATA (2)'!A:F,2,FALSE) -> Циркуляційний насос UPSD32-50 180 1x230V | C8: =VLOOKUP(A8,'DATA (2)'!A:F,4,FALSE) -> DH | F8: =VLOOKUP(A8,'DATA (2)'!A:F,5,FALSE) -> 427.01 | G8: =IFERROR(F8*(1-VLOOKUP(C8,ГОЛОВНА!K:L,2,0)), "-") -> 427.01
A9: 95906455 | B9: =VLOOKUP(A9,'DATA (2)'!A:F,2,FALSE) -> Циркуляційний насос UPSD 32-80 180 | C9: =VLOOKUP(A9,'DATA (2)'!A:F,4,FALSE) -> DH | F9: =VLOOKUP(A9,'DATA (2)'!A:F,5,FALSE) -> 559.63 | G9: =IFERROR(F9*(1-VLOOKUP(C9,ГОЛОВНА!K:L,2,0)), "-") -> 559.63
A10: 59502503 | B10: =VLOOKUP(A10,'DATA (2)'!A:F,2,FALSE) -> Циркуляційний насос UPS15 -20 130 1x230V | C10: =VLOOKUP(A10,'DATA (2)'!A:F,4,FALSE) -> DH | F10: =VLOOKUP(A10,'DATA (2)'!A:F,5,FALSE) -> 131.43 | G10: =IFERROR(F10*(1-VLOOKUP(C10,ГОЛОВНА!K:L,2,0)), "-") -> 131.43
A11: 59503000 | B11: =VLOOKUP(A11,'DATA (2)'!A:F,2,FALSE) -> Циркуляційний насос UPS15-30 130 1x230B | C11: =VLOOKUP(A11,'DATA (2)'!A:F,4,FALSE) -> DH | F11: =VLOOKUP(A11,'DATA (2)'!A:F,5,FALSE) -> 131.43 | G11: =IFERROR(F11*(1-VLOOKUP(C11,ГОЛОВНА!K:L,2,0)), "-") -> 131.43
A12: 96281368 | B12: =VLOOKUP(A12,'DATA (2)'!A:F,2,FALSE) -> Циркуляційний насос UPS15-40 130 1x230В | C12: =VLOOKUP(A12,'DATA (2)'!A:F,4,FALSE) -> DH | F12: =VLOOKUP(A12,'DATA (2)'!A:F,5,FALSE) -> 119.01 | G12: =IFERROR(F12*(1-VLOOKUP(C12,ГОЛОВНА!K:L,2,0)), "-") -> 119.01
A13: 96281418 | B13: =VLOOKUP(A13,'DATA (2)'!A:F,2,FALSE) -> Циркуляційний насос UPS15-50 130 1x230В | C13: =VLOOKUP(A13,'DATA (2)'!A:F,4,FALSE) -> DH | F13: =VLOOKUP(A13,'DATA (2)'!A:F,5,FALSE) -> 125.22 | G13: =IFERROR(F13*(1-VLOOKUP(C13,ГОЛОВНА!K:L,2,0)), "-") -> 125.22
A14: 96281471 | B14: =VLOOKUP(A14,'DATA (2)'!A:F,2,FALSE) -> Циркуляційний насос UPS15-60 130 1х230В | C14: =VLOOKUP(A14,'DATA (2)'!A:F,4,FALSE) -> DH | D14: S | F14: =VLOOKUP(A14,'DATA (2)'!A:F,5,FALSE) -> 136.61 | G14: =IFERROR(F14*(1-VLOOKUP(C14,ГОЛОВНА!K:L,2,0)), "-") -> 136.61
A15: 96281371 | B15: =VLOOKUP(A15,'DATA (2)'!A:F,2,FALSE) -> Циркуляційний насос UPS20-40 130 1x230В | C15: =VLOOKUP(A15,'DATA (2)'!A:F,4,FALSE) -> DH | F15: =VLOOKUP(A15,'DATA (2)'!A:F,5,FALSE) -> 109.71 | G15: =IFERROR(F15*(1-VLOOKUP(C15,ГОЛОВНА!K:L,2,0)), "-") -> 109.71
A16: 96281420 | B16: =VLOOKUP(A16,'DATA (2)'!A:F,2,FALSE) -> Циркуляційний насос UPS 20-50 130 1x230B | C16: =VLOOKUP(A16,'DATA (2)'!A:F,4,FALSE) -> DH | F16: =VLOOKUP(A16,'DATA (2)'!A:F,5,FALSE) -> 122.21 | G16: =IFERROR(F16*(1-VLOOKUP(C16,ГОЛОВНА!K:L,2,0)), "-") -> 122.21
A17: 96281472 | B17: =VLOOKUP(A17,'DATA (2)'!A:F,2,FALSE) -> Циркуляційний насос UPS20-60 130 1x230В | C17: =VLOOKUP(A17,'DATA (2)'!A:F,4,FALSE) -> DH | F17: =VLOOKUP(A17,'DATA (2)'!A:F,5,FALSE) -> 127.21 | G17: =IFERROR(F17*(1-VLOOKUP(C17,ГОЛОВНА!K:L,2,0)), "-") -> 127.21
A18: 96913106 | B18: =VLOOKUP(A18,'DATA (2)'!A:F,2,FALSE) -> Циркуляційний насос UPS20-60 N 150 1x230 | C18: =VLOOKUP(A18,'DATA (2)'!A:F,4,FALSE) -> DH | F18: =VLOOKUP(A18,'DATA (2)'!A:F,5,FALSE) -> 279.96 | G18: =IFERROR(F18*(1-VLOOKUP(C18,ГОЛОВНА!K:L,2,0)), "-") -> 279.96
A19: 96913096 | B19: =VLOOKUP(A19,'DATA (2)'!A:F,2,FALSE) -> Циркуляційний насос UPS20-60N 150 1x240 | C19: =VLOOKUP(A19,'DATA (2)'!A:F,4,FALSE) -> DH | F19: =VLOOKUP(A19,'DATA (2)'!A:F,5,FALSE) -> 269.37 | G19: =IFERROR(F19*(1-VLOOKUP(C19,ГОЛОВНА!K:L,2,0)), "-") -> 269.37
A20: 59542500 | B20: =VLOOKUP(A20,'DATA (2)'!A:F,2,FALSE) -> Циркуляційний насос UPS25-20 180 1x230V | C20: =VLOOKUP(A20,'DATA (2)'!A:F,4,FALSE) -> DH | F20: =VLOOKUP(A20,'DATA (2)'!A:F,5,FALSE) -> 119 | G20: =IFERROR(F20*(1-VLOOKUP(C20,ГОЛОВНА!K:L,2,0)), "-") -> 119
A21: 59543000 | B21: =VLOOKUP(A21,'DATA (2)'!A:F,2,FALSE) -> Циркуляційний насос UPS25-30 180 1x230B | C21: =VLOOKUP(A21,'DATA (2)'!A:F,4,FALSE) -> DH | F21: =VLOOKUP(A21,'DATA (2)'!A:F,5,FALSE) -> 119 | G21: =IFERROR(F21*(1-VLOOKUP(C21,ГОЛОВНА!K:L,2,0)), "-") -> 119
A22: 99150118 | B22: =VLOOKUP(A22,'DATA (2)'!A:F,2,FALSE) -> Циркуляційний насос UPS25-40 130 1x230В | C22: =VLOOKUP(A22,'DATA (2)'!A:F,4,FALSE) -> DH | F22: =VLOOKUP(A22,'DATA (2)'!A:F,5,FALSE) -> 69.7 | G22: =IFERROR(F22*(1-VLOOKUP(C22,ГОЛОВНА!K:L,2,0)), "-") -> 69.7
A23: 96281376 | B23: =VLOOKUP(A23,'DATA (2)'!A:F,2,FALSE) -> Циркуляційний насос UPS25-40 130 1x230В | C23: =VLOOKUP(A23,'DATA (2)'!A:F,4,FALSE) -> DH | F23: =VLOOKUP(A23,'DATA (2)'!A:F,5,FALSE) -> 83.35 | G23: =IFERROR(F23*(1-VLOOKUP(C23,ГОЛОВНА!K:L,2,0)), "-") -> 83.35
A24: 99309921 | B24: =VLOOKUP(A24,'DATA (2)'!A:F,2,FALSE) -> Циркуляційний насос UPS25-40 180 1x230В | C24: =VLOOKUP(A24,'DATA (2)'!A:F,4,FALSE) -> DH | F24: =VLOOKUP(A24,'DATA (2)'!A:F,5,FALSE) -> 69.53 | G24: =IFERROR(F24*(1-VLOOKUP(C24,ГОЛОВНА!K:L,2,0)), "-") -> 69.53
A25: 98367575 | B25: =VLOOKUP(A25,'DATA (2)'!A:F,2,FALSE) -> Насос UPS25-40 180 1x230V з к-том G1½x1 | C25: =VLOOKUP(A25,'DATA (2)'!A:F,4,FALSE) -> DH | F25: =VLOOKUP(A25,'DATA (2)'!A:F,5,FALSE) -> 69.92 | G25: =IFERROR(F25*(1-VLOOKUP(C25,ГОЛОВНА!K:L,2,0)), "-") -> 69.92
A26: 59544505 | B26: =VLOOKUP(A26,'DATA (2)'!A:F,2,FALSE) -> Циркуляційний насос UPS25-40 K 180 1x230 | C26: =VLOOKUP(A26,'DATA (2)'!A:F,4,FALSE) -> DH | F26: =VLOOKUP(A26,'DATA (2)'!A:F,5,FALSE) -> 144.87 | G26: =IFERROR(F26*(1-VLOOKUP(C26,ГОЛОВНА!K:L,2,0)), "-") -> 144.87
A27: 96913060 | B27: =VLOOKUP(A27,'DATA (2)'!A:F,2,FALSE) -> Циркуляційний насос UPS25-40 N 180 1x230 | C27: =VLOOKUP(A27,'DATA (2)'!A:F,4,FALSE) -> DH | D27: S | F27: =VLOOKUP(A27,'DATA (2)'!A:F,5,FALSE) -> 183.46 | G27: =IFERROR(F27*(1-VLOOKUP(C27,ГОЛОВНА!K:L,2,0)), "-") -> 183.46
A28: 96281424 | B28: =VLOOKUP(A28,'DATA (2)'!A:F,2,FALSE) -> Циркуляційний насос UPS25-50 130 1x230В | C28: =VLOOKUP(A28,'DATA (2)'!A:F,4,FALSE) -> DH | F28: =VLOOKUP(A28,'DATA (2)'!A:F,5,FALSE) -> 113.83 | G28: =IFERROR(F28*(1-VLOOKUP(C28,ГОЛОВНА!K:L,2,0)), "-") -> 113.83
A29: 96281432 | B29: =VLOOKUP(A29,'DATA (2)'!A:F,2,FALSE) -> Циркуляційний насос UPS25-50 180 1x230В | C29: =VLOOKUP(A29,'DATA (2)'!A:F,4,FALSE) -> DH | D29: S | F29: =VLOOKUP(A29,'DATA (2)'!A:F,5,FALSE) -> 113.83 | G29: =IFERROR(F29*(1-VLOOKUP(C29,ГОЛОВНА!K:L,2,0)), "-") -> 113.83
A30: 99150120 | B30: =VLOOKUP(A30,'DATA (2)'!A:F,2,FALSE) -> Циркуляційний насос UPS25-60 130 1x230В | C30: =VLOOKUP(A30,'DATA (2)'!A:F,4,FALSE) -> DH | F30: =VLOOKUP(A30,'DATA (2)'!A:F,5,FALSE) -> 75.69 | G30: =IFERROR(F30*(1-VLOOKUP(C30,ГОЛОВНА!K:L,2,0)), "-") -> 75.69
A31: 96281476 | B31: =VLOOKUP(A31,'DATA (2)'!A:F,2,FALSE) -> Циркуляційний насос UPS25-60 130 1x230В | C31: =VLOOKUP(A31,'DATA (2)'!A:F,4,FALSE) -> DH | F31: =VLOOKUP(A31,'DATA (2)'!A:F,5,FALSE) -> 124.18 | G31: =IFERROR(F31*(1-VLOOKUP(C31,ГОЛОВНА!K:L,2,0)), "-") -> 124.18
A32: 99309993 | B32: =VLOOKUP(A32,'DATA (2)'!A:F,2,FALSE) -> Циркуляційний насос UPS25-60 180 1x230В | C32: =VLOOKUP(A32,'DATA (2)'!A:F,4,FALSE) -> DH | F32: =VLOOKUP(A32,'DATA (2)'!A:F,5,FALSE) -> 73.5 | G32: =IFERROR(F32*(1-VLOOKUP(C32,ГОЛОВНА!K:L,2,0)), "-") -> 73.5
A33: 98368443 | B33: =VLOOKUP(A33,'DATA (2)'!A:F,2,FALSE) -> Насос UPS25-60 180 1x230V з к-том G1½x1 | C33: =VLOOKUP(A33,'DATA (2)'!A:F,4,FALSE) -> DH | F33: =VLOOKUP(A33,'DATA (2)'!A:F,5,FALSE) -> 82.93 | G33: =IFERROR(F33*(1-VLOOKUP(C33,ГОЛОВНА!K:L,2,0)), "-") -> 82.93
A34: 96913090 | B34: =VLOOKUP(A34,'DATA (2)'!A:F,2,FALSE) -> Циркуляц. насос UPS25-60 N 180 | C34: =VLOOKUP(A34,'DATA (2)'!A:F,4,FALSE) -> DH | F34: =VLOOKUP(A34,'DATA (2)'!A:F,5,FALSE) -> 254.53 | G34: =IFERROR(F34*(1-VLOOKUP(C34,ГОЛОВНА!K:L,2,0)), "-") -> 254.53
A35: 96913085 | B35: =VLOOKUP(A35,'DATA (2)'!A:F,2,FALSE) -> Циркуляційний насос UPS25-60 N 180 1x230 | C35: =VLOOKUP(A35,'DATA (2)'!A:F,4,FALSE) -> DH | D35: S | F35: =VLOOKUP(A35,'DATA (2)'!A:F,5,FALSE) -> 242.21 | G35: =IFERROR(F35*(1-VLOOKUP(C35,ГОЛОВНА!K:L,2,0)), "-") -> 242.21
A36: 96913058 | B36: =VLOOKUP(A36,'DATA (2)'!A:F,2,FALSE) -> Циркуляційний насос UPS25-60 N 180 3x400 | C36: =VLOOKUP(A36,'DATA (2)'!A:F,4,FALSE) -> DH | F36: =VLOOKUP(A36,'DATA (2)'!A:F,5,FALSE) -> 381.79 | G36: =IFERROR(F36*(1-VLOOKUP(C36,ГОЛОВНА!K:L,2,0)), "-") -> 381.79
A37: 96621356 | B37: =VLOOKUP(A37,'DATA (2)'!A:F,2,FALSE) -> Циркуляційний насос UPS 25-70 130 1x230V | C37: =VLOOKUP(A37,'DATA (2)'!A:F,4,FALSE) -> DH | F37: =VLOOKUP(A37,'DATA (2)'!A:F,5,FALSE) -> 139.71 | G37: =IFERROR(F37*(1-VLOOKUP(C37,ГОЛОВНА!K:L,2,0)), "-") -> 139.71
A38: 96621354 | B38: =VLOOKUP(A38,'DATA (2)'!A:F,2,FALSE) -> Циркуляційний насос UPS25-70 180 1x230В | C38: =VLOOKUP(A38,'DATA (2)'!A:F,4,FALSE) -> DH | D38: S | F38: =VLOOKUP(A38,'DATA (2)'!A:F,5,FALSE) -> 114.03 | G38: =IFERROR(F38*(1-VLOOKUP(C38,ГОЛОВНА!K:L,2,0)), "-") -> 114.03
A39: 59583000 | B39: =VLOOKUP(A39,'DATA (2)'!A:F,2,FALSE) -> Циркуляційний насос UPS32-30 180 1x230V | C39: =VLOOKUP(A39,'DATA (2)'!A:F,4,FALSE) -> DH | F39: =VLOOKUP(A39,'DATA (2)'!A:F,5,FALSE) -> 137.31 | G39: =IFERROR(F39*(1-VLOOKUP(C39,ГОЛОВНА!K:L,2,0)), "-") -> 137.31
A40: 98368439 | B40: =VLOOKUP(A40,'DATA (2)'!A:F,2,FALSE) -> Насос UPS32-40 180 1x230V з к-том G2x1¼ | C40: =VLOOKUP(A40,'DATA (2)'!A:F,4,FALSE) -> DH | D40: S | F40: =VLOOKUP(A40,'DATA (2)'!A:F,5,FALSE) -> 88.95 | G40: =IFERROR(F40*(1-VLOOKUP(C40,ГОЛОВНА!K:L,2,0)), "-") -> 88.95
A41: 96281435 | B41: =VLOOKUP(A41,'DATA (2)'!A:F,2,FALSE) -> Циркуляційний насос UPS32-50 180 1x230В | C41: =VLOOKUP(A41,'DATA (2)'!A:F,4,FALSE) -> DH | F41: =VLOOKUP(A41,'DATA (2)'!A:F,5,FALSE) -> 132.12 | G41: =IFERROR(F41*(1-VLOOKUP(C41,ГОЛОВНА!K:L,2,0)), "-") -> 132.12
A42: 98368440 | B42: =VLOOKUP(A42,'DATA (2)'!A:F,2,FALSE) -> Насос UPS32-60 180 1x230V з к-том G2x1¼ | C42: =VLOOKUP(A42,'DATA (2)'!A:F,4,FALSE) -> DH | D42: S | F42: =VLOOKUP(A42,'DATA (2)'!A:F,5,FALSE) -> 106.35 | G42: =IFERROR(F42*(1-VLOOKUP(C42,ГОЛОВНА!K:L,2,0)), "-") -> 106.35
A43: 96621355 | B43: =VLOOKUP(A43,'DATA (2)'!A:F,2,FALSE) -> Циркуляційний насос UPS32-70 180 1x230В | C43: =VLOOKUP(A43,'DATA (2)'!A:F,4,FALSE) -> DH | D43: S | F43: =VLOOKUP(A43,'DATA (2)'!A:F,5,FALSE) -> 129.2 | G43: =IFERROR(F43*(1-VLOOKUP(C43,ГОЛОВНА!K:L,2,0)), "-") -> 129.2
A44: 95906448 | B44: =VLOOKUP(A44,'DATA (2)'!A:F,2,FALSE) -> Циркуляційний насос UPS32-80 N 180 1x230 | C44: =VLOOKUP(A44,'DATA (2)'!A:F,4,FALSE) -> DH | D44: S | F44: =VLOOKUP(A44,'DATA (2)'!A:F,5,FALSE) -> 493.29 | G44: =IFERROR(F44*(1-VLOOKUP(C44,ГОЛОВНА!K:L,2,0)), "-") -> 493.29
A45: 59514517 | B45: =VLOOKUP(A45,'DATA (2)'!A:F,2,FALSE) -> Циркуляційний насос UPS20-40 K 130 1x230 | C45: =VLOOKUP(A45,'DATA (2)'!A:F,4,FALSE) -> DH | F45: =VLOOKUP(A45,'DATA (2)'!A:F,5,FALSE) -> 109.08 | G45: =IFERROR(F45*(1-VLOOKUP(C45,ГОЛОВНА!K:L,2,0)), "-") -> 109.08
A46: 95906439 | B46: =VLOOKUP(A46,'DATA (2)'!A:F,2,FALSE) -> Циркуляційний насос UPS25-80 N 180 1x230 | C46: =VLOOKUP(A46,'DATA (2)'!A:F,4,FALSE) -> DH | F46: =VLOOKUP(A46,'DATA (2)'!A:F,5,FALSE) -> 409.22 | G46: =IFERROR(F46*(1-VLOOKUP(C46,ГОЛОВНА!K:L,2,0)), "-") -> 409.22
A47: 95906408 | B47: =VLOOKUP(A47,'DATA (2)'!A:F,2,FALSE) -> Циркуляційний насос UPS25-55 N 180 1x230 | C47: =VLOOKUP(A47,'DATA (2)'!A:F,4,FALSE) -> DH | F47: =VLOOKUP(A47,'DATA (2)'!A:F,5,FALSE) -> 341.69 | G47: =IFERROR(F47*(1-VLOOKUP(C47,ГОЛОВНА!K:L,2,0)), "-") -> 341.69
A49: UPS, серія 200, | G49: Циркуляційні насоси для систем опалення і кондиціонування
A50: 96401837 | B50: =VLOOKUP(A50,'DATA (2)'!A:F,2,FALSE) -> Циркуляційний насос UPS32-120 F 1x230-24 | C50: =VLOOKUP(A50,'DATA (2)'!A:F,4,FALSE) -> CB | D50: S | F50: =VLOOKUP(A50,'DATA (2)'!A:F,5,FALSE) -> 432.13 | G50: =IFERROR(F50*(1-VLOOKUP(C50,ГОЛОВНА!K:L,2,0)), "-") -> 432.13
A51: 96401839 | B51: =VLOOKUP(A51,'DATA (2)'!A:F,2,FALSE) -> Циркуляційний насос UPS32-120 F 3x400-41 | C51: =VLOOKUP(A51,'DATA (2)'!A:F,4,FALSE) -> CB | D51: S | F51: =VLOOKUP(A51,'DATA (2)'!A:F,5,FALSE) -> 392.86 | G51: =IFERROR(F51*(1-VLOOKUP(C51,ГОЛОВНА!K:L,2,0)), "-") -> 392.86
A52: 96401844 | B52: =VLOOKUP(A52,'DATA (2)'!A:F,2,FALSE) -> Циркуляційний насос UPS32-120 F B 1x230- | C52: =VLOOKUP(A52,'DATA (2)'!A:F,4,FALSE) -> CB | F52: =VLOOKUP(A52,'DATA (2)'!A:F,5,FALSE) -> 1140.1 | G52: =IFERROR(F52*(1-VLOOKUP(C52,ГОЛОВНА!K:L,2,0)), "-") -> 1140.1
A53: 96401846 | B53: =VLOOKUP(A53,'DATA (2)'!A:F,2,FALSE) -> Циркуляційний насос UPS32-120 F B 3x400- | C53: =VLOOKUP(A53,'DATA (2)'!A:F,4,FALSE) -> CB | F53: =VLOOKUP(A53,'DATA (2)'!A:F,5,FALSE) -> 1036.64 | G53: =IFERROR(F53*(1-VLOOKUP(C53,ГОЛОВНА!K:L,2,0)), "-") -> 1036.64
A54: 96401771 | B54: =VLOOKUP(A54,'DATA (2)'!A:F,2,FALSE) -> Циркуляційний насос UPS32-60 F 1x230-240 | C54: =VLOOKUP(A54,'DATA (2)'!A:F,4,FALSE) -> CB | D54: S | F54: =VLOOKUP(A54,'DATA (2)'!A:F,5,FALSE) -> 471.31 | G54: =IFERROR(F54*(1-VLOOKUP(C54,ГОЛОВНА!K:L,2,0)), "-") -> 471.31
A55: 96401777 | B55: =VLOOKUP(A55,'DATA (2)'!A:F,2,FALSE) -> Циркуляційний насос UPS32-60 F 3x400-415 | C55: =VLOOKUP(A55,'DATA (2)'!A:F,4,FALSE) -> CB | D55: S | F55: =VLOOKUP(A55,'DATA (2)'!A:F,5,FALSE) -> 440.49 | G55: =IFERROR(F55*(1-VLOOKUP(C55,ГОЛОВНА!K:L,2,0)), "-") -> 440.49
A56: 96401797 | B56: =VLOOKUP(A56,'DATA (2)'!A:F,2,FALSE) -> Циркуляційний насос UPS32-60 F B 1x230-2 | C56: =VLOOKUP(A56,'DATA (2)'!A:F,4,FALSE) -> CB | F56: =VLOOKUP(A56,'DATA (2)'!A:F,5,FALSE) -> 969.25 | G56: =IFERROR(F56*(1-VLOOKUP(C56,ГОЛОВНА!K:L,2,0)), "-") -> 969.25
A57: 96401808 | B57: =VLOOKUP(A57,'DATA (2)'!A:F,2,FALSE) -> Циркуляційний насос UPS32-60 F B 3x400-4 | C57: =VLOOKUP(A57,'DATA (2)'!A:F,4,FALSE) -> CB | F57: =VLOOKUP(A57,'DATA (2)'!A:F,5,FALSE) -> 881.13 | G57: =IFERROR(F57*(1-VLOOKUP(C57,ГОЛОВНА!K:L,2,0)), "-") -> 881.13
A58: 96401942 | B58: =VLOOKUP(A58,'DATA (2)'!A:F,2,FALSE) -> Циркуляційний насос UPS40-120 F 1x230-24 | C58: =VLOOKUP(A58,'DATA (2)'!A:F,4,FALSE) -> CB | D58: S | F58: =VLOOKUP(A58,'DATA (2)'!A:F,5,FALSE) -> 665.07 | G58: =IFERROR(F58*(1-VLOOKUP(C58,ГОЛОВНА!K:L,2,0)), "-") -> 665.07
A59: 96401949 | B59: =VLOOKUP(A59,'DATA (2)'!A:F,2,FALSE) -> Циркуляційний насос UPS40-120 F B 1x230- | C59: =VLOOKUP(A59,'DATA (2)'!A:F,4,FALSE) -> CB | F59: =VLOOKUP(A59,'DATA (2)'!A:F,5,FALSE) -> 1330.11 | G59: =IFERROR(F59*(1-VLOOKUP(C59,ГОЛОВНА!K:L,2,0)), "-") -> 1330.11
A60: 96401951 | B60: =VLOOKUP(A60,'DATA (2)'!A:F,2,FALSE) -> Циркуляційний насос UPS40-120 F B 3x400- | C60: =VLOOKUP(A60,'DATA (2)'!A:F,4,FALSE) -> CB | F60: =VLOOKUP(A60,'DATA (2)'!A:F,5,FALSE) -> 1209.21 | G60: =IFERROR(F60*(1-VLOOKUP(C60,ГОЛОВНА!K:L,2,0)), "-") -> 1209.21
A61: 96401944 | B61: =VLOOKUP(A61,'DATA (2)'!A:F,2,FALSE) -> Циркуляційний насос UPS40-120 F 3x400-41 | C61: =VLOOKUP(A61,'DATA (2)'!A:F,4,FALSE) -> CB | D61: S | F61: =VLOOKUP(A61,'DATA (2)'!A:F,5,FALSE) -> 604.64 | G61: =IFERROR(F61*(1-VLOOKUP(C61,ГОЛОВНА!K:L,2,0)), "-") -> 604.64
A62: 96401977 | B62: =VLOOKUP(A62,'DATA (2)'!A:F,2,FALSE) -> Циркуляційний насос UPS40-180 F 1x230-24 | C62: =VLOOKUP(A62,'DATA (2)'!A:F,4,FALSE) -> CB | D62: S | F62: =VLOOKUP(A62,'DATA (2)'!A:F,5,FALSE) -> 757.12 | G62: =IFERROR(F62*(1-VLOOKUP(C62,ГОЛОВНА!K:L,2,0)), "-") -> 757.12
A63: 96401979 | B63: =VLOOKUP(A63,'DATA (2)'!A:F,2,FALSE) -> Циркуляційний насос UPS40-180 F 3x400-41 | C63: =VLOOKUP(A63,'DATA (2)'!A:F,4,FALSE) -> CB | D63: S | F63: =VLOOKUP(A63,'DATA (2)'!A:F,5,FALSE) -> 695.32 | G63: =IFERROR(F63*(1-VLOOKUP(C63,ГОЛОВНА!K:L,2,0)), "-") -> 695.32
A64: 96401983 | B64: =VLOOKUP(A64,'DATA (2)'!A:F,2,FALSE) -> Циркуляційний насос UPS40-180 F B 1x230- | C64: =VLOOKUP(A64,'DATA (2)'!A:F,4,FALSE) -> CB | F64: =VLOOKUP(A64,'DATA (2)'!A:F,5,FALSE) -> 1529.65 | G64: =IFERROR(F64*(1-VLOOKUP(C64,ГОЛОВНА!K:L,2,0)), "-") -> 1529.65
A65: 96401985 | B65: =VLOOKUP(A65,'DATA (2)'!A:F,2,FALSE) -> Циркуляційний насос UPS40-180 F B 3x400- | C65: =VLOOKUP(A65,'DATA (2)'!A:F,4,FALSE) -> CB | F65: =VLOOKUP(A65,'DATA (2)'!A:F,5,FALSE) -> 1390.58 | G65: =IFERROR(F65*(1-VLOOKUP(C65,ГОЛОВНА!K:L,2,0)), "-") -> 1390.58
A66: 96430299 | B66: =VLOOKUP(A66,'DATA (2)'!A:F,2,FALSE) -> Циркуляційний насос UPS40-185 F 1x230-24 | C66: =VLOOKUP(A66,'DATA (2)'!A:F,4,FALSE) -> CB | D66: S | F66: =VLOOKUP(A66,'DATA (2)'!A:F,5,FALSE) -> 831.34 | G66: =IFERROR(F66*(1-VLOOKUP(C66,ГОЛОВНА!K:L,2,0)), "-") -> 831.34
A67: 96430296 | B67: =VLOOKUP(A67,'DATA (2)'!A:F,2,FALSE) -> Циркуляційний насос UPS40-185 F 3x400-41 | C67: =VLOOKUP(A67,'DATA (2)'!A:F,4,FALSE) -> CB | D67: S | F67: =VLOOKUP(A67,'DATA (2)'!A:F,5,FALSE) -> 748.13 | G67: =IFERROR(F67*(1-VLOOKUP(C67,ГОЛОВНА!K:L,2,0)), "-") -> 748.13
A68: 96401915 | B68: =VLOOKUP(A68,'DATA (2)'!A:F,2,FALSE) -> Циркуляційний насос UPS40-60/2 F 1x230-2 | C68: =VLOOKUP(A68,'DATA (2)'!A:F,4,FALSE) -> CB | D68: S | F68: =VLOOKUP(A68,'DATA (2)'!A:F,5,FALSE) -> 559.62 | G68: =IFERROR(F68*(1-VLOOKUP(C68,ГОЛОВНА!K:L,2,0)), "-") -> 559.62
A69: 96401917 | B69: =VLOOKUP(A69,'DATA (2)'!A:F,2,FALSE) -> Циркуляційний насос UPS40-60/2 F 3x400-4 | C69: =VLOOKUP(A69,'DATA (2)'!A:F,4,FALSE) -> CB | D69: S | F69: =VLOOKUP(A69,'DATA (2)'!A:F,5,FALSE) -> 508.73 | G69: =IFERROR(F69*(1-VLOOKUP(C69,ГОЛОВНА!K:L,2,0)), "-") -> 508.73
A70: 96401921 | B70: =VLOOKUP(A70,'DATA (2)'!A:F,2,FALSE) -> Циркуляційний насос UPS40-60/2 F B 1x230 | C70: =VLOOKUP(A70,'DATA (2)'!A:F,4,FALSE) -> CB | F70: =VLOOKUP(A70,'DATA (2)'!A:F,5,FALSE) -> 1130.64 | G70: =IFERROR(F70*(1-VLOOKUP(C70,ГОЛОВНА!K:L,2,0)), "-") -> 1130.64
A71: 96401923 | B71: =VLOOKUP(A71,'DATA (2)'!A:F,2,FALSE) -> Циркуляційний насос UPS40-60/2 F B 3x400 | C71: =VLOOKUP(A71,'DATA (2)'!A:F,4,FALSE) -> CB | F71: =VLOOKUP(A71,'DATA (2)'!A:F,5,FALSE) -> 1027.85 | G71: =IFERROR(F71*(1-VLOOKUP(C71,ГОЛОВНА!K:L,2,0)), "-") -> 1027.85
A72: 96402101 | B72: =VLOOKUP(A72,'DATA (2)'!A:F,2,FALSE) -> Циркуляційний насос UPS50-120 F 1x230-24 | C72: =VLOOKUP(A72,'DATA (2)'!A:F,4,FALSE) -> CB | D72: S | F72: =VLOOKUP(A72,'DATA (2)'!A:F,5,FALSE) -> 807.58 | G72: =IFERROR(F72*(1-VLOOKUP(C72,ГОЛОВНА!K:L,2,0)), "-") -> 807.58
A73: 96402103 | B73: =VLOOKUP(A73,'DATA (2)'!A:F,2,FALSE) -> Циркуляційний насос UPS50-120 F 3x400-41 | C73: =VLOOKUP(A73,'DATA (2)'!A:F,4,FALSE) -> CB | D73: S | F73: =VLOOKUP(A73,'DATA (2)'!A:F,5,FALSE) -> 734.16 | G73: =IFERROR(F73*(1-VLOOKUP(C73,ГОЛОВНА!K:L,2,0)), "-") -> 734.16
A74: 96402108 | B74: =VLOOKUP(A74,'DATA (2)'!A:F,2,FALSE) -> Циркуляційний насос UPS50-120 F B 1x230- | C74: =VLOOKUP(A74,'DATA (2)'!A:F,4,FALSE) -> CB | F74: =VLOOKUP(A74,'DATA (2)'!A:F,5,FALSE) -> 1615.16 | G74: =IFERROR(F74*(1-VLOOKUP(C74,ГОЛОВНА!K:L,2,0)), "-") -> 1615.16
A75: 96402110 | B75: =VLOOKUP(A75,'DATA (2)'!A:F,2,FALSE) -> Циркуляційний насос UPS50-120 F B 3x400- | C75: =VLOOKUP(A75,'DATA (2)'!A:F,4,FALSE) -> CB | F75: =VLOOKUP(A75,'DATA (2)'!A:F,5,FALSE) -> 1468.34 | G75: =IFERROR(F75*(1-VLOOKUP(C75,ГОЛОВНА!K:L,2,0)), "-") -> 1468.34
A76: 96402134 | B76: =VLOOKUP(A76,'DATA (2)'!A:F,2,FALSE) -> Циркуляційний насос UPS50-180 F 1x230-24 | C76: =VLOOKUP(A76,'DATA (2)'!A:F,4,FALSE) -> CB | D76: S | F76: =VLOOKUP(A76,'DATA (2)'!A:F,5,FALSE) -> 928.73 | G76: =IFERROR(F76*(1-VLOOKUP(C76,ГОЛОВНА!K:L,2,0)), "-") -> 928.73
A77: 96402136 | B77: =VLOOKUP(A77,'DATA (2)'!A:F,2,FALSE) -> Циркуляційний насос UPS50-180 F 3x400-41 | C77: =VLOOKUP(A77,'DATA (2)'!A:F,4,FALSE) -> CB | D77: S | F77: =VLOOKUP(A77,'DATA (2)'!A:F,5,FALSE) -> 844.31 | G77: =IFERROR(F77*(1-VLOOKUP(C77,ГОЛОВНА!K:L,2,0)), "-") -> 844.31
A78: 96402140 | B78: =VLOOKUP(A78,'DATA (2)'!A:F,2,FALSE) -> Циркуляційний насос UPS50-180 F B 1x230- | C78: =VLOOKUP(A78,'DATA (2)'!A:F,4,FALSE) -> CB | F78: =VLOOKUP(A78,'DATA (2)'!A:F,5,FALSE) -> 1857.44 | G78: =IFERROR(F78*(1-VLOOKUP(C78,ГОЛОВНА!K:L,2,0)), "-") -> 1857.44
A79: 96402142 | B79: =VLOOKUP(A79,'DATA (2)'!A:F,2,FALSE) -> Циркуляційний насос UPS50-180 F B 3x400- | C79: =VLOOKUP(A79,'DATA (2)'!A:F,4,FALSE) -> CB | F79: =VLOOKUP(A79,'DATA (2)'!A:F,5,FALSE) -> 1688.59 | G79: =IFERROR(F79*(1-VLOOKUP(C79,ГОЛОВНА!K:L,2,0)), "-") -> 1688.59
A80: 96430300 | B80: =VLOOKUP(A80,'DATA (2)'!A:F,2,FALSE) -> Циркуляційний насос UPS50-185 F 1x230-24 | C80: =VLOOKUP(A80,'DATA (2)'!A:F,4,FALSE) -> CB | F80: =VLOOKUP(A80,'DATA (2)'!A:F,5,FALSE) -> 1009.96 | G80: =IFERROR(F80*(1-VLOOKUP(C80,ГОЛОВНА!K:L,2,0)), "-") -> 1009.96
A81: 96430297 | B81: =VLOOKUP(A81,'DATA (2)'!A:F,2,FALSE) -> Циркуляційний насос UPS50-185 F 3x400-41 | C81: =VLOOKUP(A81,'DATA (2)'!A:F,4,FALSE) -> CB | D81: S | F81: =VLOOKUP(A81,'DATA (2)'!A:F,5,FALSE) -> 918.13 | G81: =IFERROR(F81*(1-VLOOKUP(C81,ГОЛОВНА!K:L,2,0)), "-") -> 918.13
A82: 96402053 | B82: =VLOOKUP(A82,'DATA (2)'!A:F,2,FALSE) -> Циркуляційний насос UPS50-60/2 F 1x230-2 | C82: =VLOOKUP(A82,'DATA (2)'!A:F,4,FALSE) -> CB | D82: S | F82: =VLOOKUP(A82,'DATA (2)'!A:F,5,FALSE) -> 686.44 | G82: =IFERROR(F82*(1-VLOOKUP(C82,ГОЛОВНА!K:L,2,0)), "-") -> 686.44
A83: 96402055 | B83: =VLOOKUP(A83,'DATA (2)'!A:F,2,FALSE) -> Циркуляційний насос UPS50-60/2 F 3x400-4 | C83: =VLOOKUP(A83,'DATA (2)'!A:F,4,FALSE) -> CB | D83: S | F83: =VLOOKUP(A83,'DATA (2)'!A:F,5,FALSE) -> 624.05 | G83: =IFERROR(F83*(1-VLOOKUP(C83,ГОЛОВНА!K:L,2,0)), "-") -> 624.05
A84: 96402064 | B84: =VLOOKUP(A84,'DATA (2)'!A:F,2,FALSE) -> Циркуляційний насос UPS50-60/2 F B 1x230 | C84: =VLOOKUP(A84,'DATA (2)'!A:F,4,FALSE) -> CB | F84: =VLOOKUP(A84,'DATA (2)'!A:F,5,FALSE) -> 1372.89 | G84: =IFERROR(F84*(1-VLOOKUP(C84,ГОЛОВНА!K:L,2,0)), "-") -> 1372.89
A85: 96402072 | B85: =VLOOKUP(A85,'DATA (2)'!A:F,2,FALSE) -> Циркуляційний насос UPS50-60/2 F B 3x400 | C85: =VLOOKUP(A85,'DATA (2)'!A:F,4,FALSE) -> CB | F85: =VLOOKUP(A85,'DATA (2)'!A:F,5,FALSE) -> 1248.08 | G85: =IFERROR(F85*(1-VLOOKUP(C85,ГОЛОВНА!K:L,2,0)), "-") -> 1248.08
A86: 96402278 | B86: =VLOOKUP(A86,'DATA (2)'!A:F,2,FALSE) -> Циркуляційний насос UPS65-120 F 1x230-24 | C86: =VLOOKUP(A86,'DATA (2)'!A:F,4,FALSE) -> CB | F86: =VLOOKUP(A86,'DATA (2)'!A:F,5,FALSE) -> 950.1 | G86: =IFERROR(F86*(1-VLOOKUP(C86,ГОЛОВНА!K:L,2,0)), "-") -> 950.1
A87: 96402280 | B87: =VLOOKUP(A87,'DATA (2)'!A:F,2,FALSE) -> Циркуляційний насос UPS65-120 F 3x400-41 | C87: =VLOOKUP(A87,'DATA (2)'!A:F,4,FALSE) -> CB | D87: S | F87: =VLOOKUP(A87,'DATA (2)'!A:F,5,FALSE) -> 863.72 | G87: =IFERROR(F87*(1-VLOOKUP(C87,ГОЛОВНА!K:L,2,0)), "-") -> 863.72
A88: 96402285 | B88: =VLOOKUP(A88,'DATA (2)'!A:F,2,FALSE) -> Циркуляційний насос UPS65-120 F B 1x230- | C88: =VLOOKUP(A88,'DATA (2)'!A:F,4,FALSE) -> CB | F88: =VLOOKUP(A88,'DATA (2)'!A:F,5,FALSE) -> 1900.19 | G88: =IFERROR(F88*(1-VLOOKUP(C88,ГОЛОВНА!K:L,2,0)), "-") -> 1900.19
A89: 96402287 | B89: =VLOOKUP(A89,'DATA (2)'!A:F,2,FALSE) -> Циркуляційний насос UPS65-120 F B 3x400- | C89: =VLOOKUP(A89,'DATA (2)'!A:F,4,FALSE) -> CB | F89: =VLOOKUP(A89,'DATA (2)'!A:F,5,FALSE) -> 1727.46 | G89: =IFERROR(F89*(1-VLOOKUP(C89,ГОЛОВНА!K:L,2,0)), "-") -> 1727.46
A90: 96402316 | B90: =VLOOKUP(A90,'DATA (2)'!A:F,2,FALSE) -> Циркуляційний насос UPS65-180 F 3x400-41 | C90: =VLOOKUP(A90,'DATA (2)'!A:F,4,FALSE) -> CB | D90: S | F90: =VLOOKUP(A90,'DATA (2)'!A:F,5,FALSE) -> 983.05 | G90: =IFERROR(F90*(1-VLOOKUP(C90,ГОЛОВНА!K:L,2,0)), "-") -> 983.05
A91: 96402320 | B91: =VLOOKUP(A91,'DATA (2)'!A:F,2,FALSE) -> Циркуляційний насос UPS65-180 F B 3x400- | C91: =VLOOKUP(A91,'DATA (2)'!A:F,4,FALSE) -> CB | F91: =VLOOKUP(A91,'DATA (2)'!A:F,5,FALSE) -> 1986.58 | G91: =IFERROR(F91*(1-VLOOKUP(C91,ГОЛОВНА!K:L,2,0)), "-") -> 1986.58
A92: 96430298 | B92: =VLOOKUP(A92,'DATA (2)'!A:F,2,FALSE) -> Циркуляційний насос UPS65-185 F 3x400-41 | C92: =VLOOKUP(A92,'DATA (2)'!A:F,4,FALSE) -> CB | D92: S | F92: =VLOOKUP(A92,'DATA (2)'!A:F,5,FALSE) -> 1079.65 | G92: =IFERROR(F92*(1-VLOOKUP(C92,ГОЛОВНА!K:L,2,0)), "-") -> 1079.65
A93: 96402258 | B93: =VLOOKUP(A93,'DATA (2)'!A:F,2,FALSE) -> Циркуляційний насос UPS65-60/2 F 1x230-2 | C93: =VLOOKUP(A93,'DATA (2)'!A:F,4,FALSE) -> CB | F93: =VLOOKUP(A93,'DATA (2)'!A:F,5,FALSE) -> 807.58 | G93: =IFERROR(F93*(1-VLOOKUP(C93,ГОЛОВНА!K:L,2,0)), "-") -> 807.58
A94: 96402260 | B94: =VLOOKUP(A94,'DATA (2)'!A:F,2,FALSE) -> Циркуляційний насос UPS65-60/2 F 3x400-4 | C94: =VLOOKUP(A94,'DATA (2)'!A:F,4,FALSE) -> CB | D94: S | F94: =VLOOKUP(A94,'DATA (2)'!A:F,5,FALSE) -> 734.16 | G94: =IFERROR(F94*(1-VLOOKUP(C94,ГОЛОВНА!K:L,2,0)), "-") -> 734.16
A95: 96402262 | B95: =VLOOKUP(A95,'DATA (2)'!A:F,2,FALSE) -> Циркуляційний насос UPS65-60/2 F B 1x230 | C95: =VLOOKUP(A95,'DATA (2)'!A:F,4,FALSE) -> CB | F95: =VLOOKUP(A95,'DATA (2)'!A:F,5,FALSE) -> 1615.16 | G95: =IFERROR(F95*(1-VLOOKUP(C95,ГОЛОВНА!K:L,2,0)), "-") -> 1615.16
A96: 96402264 | B96: =VLOOKUP(A96,'DATA (2)'!A:F,2,FALSE) -> Циркуляційний насос UPS65-60/2 F B 3x400 | C96: =VLOOKUP(A96,'DATA (2)'!A:F,4,FALSE) -> CB | F96: =VLOOKUP(A96,'DATA (2)'!A:F,5,FALSE) -> 1468.34 | G96: =IFERROR(F96*(1-VLOOKUP(C96,ГОЛОВНА!K:L,2,0)), "-") -> 1468.34
A97: 96402441 | B97: =VLOOKUP(A97,'DATA (2)'!A:F,2,FALSE) -> Циркуляційний насос UPS80-120 F 3x400-41 | C97: =VLOOKUP(A97,'DATA (2)'!A:F,4,FALSE) -> CB | D97: S | F97: =VLOOKUP(A97,'DATA (2)'!A:F,5,FALSE) -> 1111.51 | G97: =IFERROR(F97*(1-VLOOKUP(C97,ГОЛОВНА!K:L,2,0)), "-") -> 1111.51
A98: 96402440 | B98: =VLOOKUP(A98,'DATA (2)'!A:F,2,FALSE) -> Циркуляційний насос UPS80-120 F 3x400-41 | C98: =VLOOKUP(A98,'DATA (2)'!A:F,4,FALSE) -> CB | D98: S | F98: =VLOOKUP(A98,'DATA (2)'!A:F,5,FALSE) -> 1079.65 | G98: =IFERROR(F98*(1-VLOOKUP(C98,ГОЛОВНА!K:L,2,0)), "-") -> 1079.65
A99: 96402445 | B99: =VLOOKUP(A99,'DATA (2)'!A:F,2,FALSE) -> Циркуляційний насос UPS80-120 F B 3x400- | C99: =VLOOKUP(A99,'DATA (2)'!A:F,4,FALSE) -> CB | F99: =VLOOKUP(A99,'DATA (2)'!A:F,5,FALSE) -> 2245.7 | G99: =IFERROR(F99*(1-VLOOKUP(C99,ГОЛОВНА!K:L,2,0)), "-") -> 2245.7
A100: 96404924 | B100: =VLOOKUP(A100,'DATA (2)'!A:F,2,FALSE) -> Циркуляційний насос UPS80-120 FB 3x400-4 | C100: =VLOOKUP(A100,'DATA (2)'!A:F,4,FALSE) -> CB | F100: =VLOOKUP(A100,'DATA (2)'!A:F,5,FALSE) -> 2159.33 | G100: =IFERROR(F100*(1-VLOOKUP(C100,ГОЛОВНА!K:L,2,0)), "-") -> 2159.33
A101: 96402392 | B101: =VLOOKUP(A101,'DATA (2)'!A:F,2,FALSE) -> Циркуляційний насос UPS80-60 F 3x400-415 | C101: =VLOOKUP(A101,'DATA (2)'!A:F,4,FALSE) -> CB | F101: =VLOOKUP(A101,'DATA (2)'!A:F,5,FALSE) -> 1055.94 | G101: =IFERROR(F101*(1-VLOOKUP(C101,ГОЛОВНА!K:L,2,0)), "-") -> 1055.94
A102: 96402391 | B102: =VLOOKUP(A102,'DATA (2)'!A:F,2,FALSE) -> Циркуляційний насос UPS80-60 F 3x400-415 | C102: =VLOOKUP(A102,'DATA (2)'!A:F,4,FALSE) -> CB | F102: =VLOOKUP(A102,'DATA (2)'!A:F,5,FALSE) -> 1015.33 | G102: =IFERROR(F102*(1-VLOOKUP(C102,ГОЛОВНА!K:L,2,0)), "-") -> 1015.33
A103: 96402401 | B103: =VLOOKUP(A103,'DATA (2)'!A:F,2,FALSE) -> Циркуляційний насос UPS80-60 F B 3x400-4 | C103: =VLOOKUP(A103,'DATA (2)'!A:F,4,FALSE) -> CB | F103: =VLOOKUP(A103,'DATA (2)'!A:F,5,FALSE) -> 2133.4 | G103: =IFERROR(F103*(1-VLOOKUP(C103,ГОЛОВНА!K:L,2,0)), "-") -> 2133.4
A104: 96404916 | B104: =VLOOKUP(A104,'DATA (2)'!A:F,2,FALSE) -> Циркуляційний насос UPS80-60 FB 3x400-41 | C104: =VLOOKUP(A104,'DATA (2)'!A:F,4,FALSE) -> CB | F104: =VLOOKUP(A104,'DATA (2)'!A:F,5,FALSE) -> 2051.34 | G104: =IFERROR(F104*(1-VLOOKUP(C104,ГОЛОВНА!K:L,2,0)), "-") -> 2051.34
A105: 95906500 | B105: =VLOOKUP(A105,'DATA (2)'!A:F,2,FALSE) -> Циркуляційний насос UPS32-100 180 1x230V | C105: =VLOOKUP(A105,'DATA (2)'!A:F,4,FALSE) -> DH | D105: S | F105: =VLOOKUP(A105,'DATA (2)'!A:F,5,FALSE) -> 388.05 | G105: =IFERROR(F105*(1-VLOOKUP(C105,ГОЛОВНА!K:L,2,0)), "-") -> 388.05
A106: 95906480 | B106: =VLOOKUP(A106,'DATA (2)'!A:F,2,FALSE) -> Циркуляційний насос UPS25-100 180 1x230 | C106: =VLOOKUP(A106,'DATA (2)'!A:F,4,FALSE) -> DH | D106: S | F106: =VLOOKUP(A106,'DATA (2)'!A:F,5,FALSE) -> 396.9 | G106: =IFERROR(F106*(1-VLOOKUP(C106,ГОЛОВНА!K:L,2,0)), "-") -> 396.9
A107: 95906489 | B107: =VLOOKUP(A107,'DATA (2)'!A:F,2,FALSE) -> Циркуляційний насос UPS32 -100 N 180 1x2 | C107: =VLOOKUP(A107,'DATA (2)'!A:F,4,FALSE) -> DH | D107: S | F107: =VLOOKUP(A107,'DATA (2)'!A:F,5,FALSE) -> 597.28 | G107: =IFERROR(F107*(1-VLOOKUP(C107,ГОЛОВНА!K:L,2,0)), "-") -> 597.28
A108: 95906415 | B108: =VLOOKUP(A108,'DATA (2)'!A:F,2,FALSE) -> Циркуляційний насос UPS32-50 F 220 1x230 | C108: =VLOOKUP(A108,'DATA (2)'!A:F,4,FALSE) -> DH | F108: =VLOOKUP(A108,'DATA (2)'!A:F,5,FALSE) -> 335.54 | G108: =IFERROR(F108*(1-VLOOKUP(C108,ГОЛОВНА!K:L,2,0)), "-") -> 335.54
A109: 95906458 | B109: =VLOOKUP(A109,'DATA (2)'!A:F,2,FALSE) -> Циркуляційний насос UPS32-80 F 220 1x230 | C109: =VLOOKUP(A109,'DATA (2)'!A:F,4,FALSE) -> DH | D109: S | F109: =VLOOKUP(A109,'DATA (2)'!A:F,5,FALSE) -> 402.61 | G109: =IFERROR(F109*(1-VLOOKUP(C109,ГОЛОВНА!K:L,2,0)), "-") -> 402.61
A110: 95906486 | B110: =VLOOKUP(A110,'DATA (2)'!A:F,2,FALSE) -> Циркуляційний насос UPS40 -100 F 250 1x2 | C110: =VLOOKUP(A110,'DATA (2)'!A:F,4,FALSE) -> DH | F110: =VLOOKUP(A110,'DATA (2)'!A:F,5,FALSE) -> 484.68 | G110: =IFERROR(F110*(1-VLOOKUP(C110,ГОЛОВНА!K:L,2,0)), "-") -> 484.68
A111: 95906420 | B111: =VLOOKUP(A111,'DATA (2)'!A:F,2,FALSE) -> Циркуляційний насос UPS40-50 F 250 1x230 | C111: =VLOOKUP(A111,'DATA (2)'!A:F,4,FALSE) -> DH | F111: =VLOOKUP(A111,'DATA (2)'!A:F,5,FALSE) -> 356.07 | G111: =IFERROR(F111*(1-VLOOKUP(C111,ГОЛОВНА!K:L,2,0)), "-") -> 356.07
A112: 95906422 | B112: =VLOOKUP(A112,'DATA (2)'!A:F,2,FALSE) -> Циркуляційний насос UPS40-50 FN 250 1x23 | C112: =VLOOKUP(A112,'DATA (2)'!A:F,4,FALSE) -> DH | F112: =VLOOKUP(A112,'DATA (2)'!A:F,5,FALSE) -> 662.19 | G112: =IFERROR(F112*(1-VLOOKUP(C112,ГОЛОВНА!K:L,2,0)), "-") -> 662.19
A113: 95906462 | B113: =VLOOKUP(A113,'DATA (2)'!A:F,2,FALSE) -> Циркуляційний насос UPS40-80 F 250 1x230 | C113: =VLOOKUP(A113,'DATA (2)'!A:F,4,FALSE) -> DH | D113: S | F113: =VLOOKUP(A113,'DATA (2)'!A:F,5,FALSE) -> 426.75 | G113: =IFERROR(F113*(1-VLOOKUP(C113,ГОЛОВНА!K:L,2,0)), "-") -> 426.75
A114: 95906753 | B114: =VLOOKUP(A114,'DATA (2)'!A:F,2,FALSE) -> Циркуляційний насос UPS40-80 FN 250 1x23 | C114: =VLOOKUP(A114,'DATA (2)'!A:F,4,FALSE) -> DH | F114: =VLOOKUP(A114,'DATA (2)'!A:F,5,FALSE) -> 778.98 | G114: =IFERROR(F114*(1-VLOOKUP(C114,ГОЛОВНА!K:L,2,0)), "-") -> 778.98
A118: Здвоєнні насоси UPS, UPSD серія 200 | G118: Циркуляційні насоси для систем опалення і кондиціонування
A119: 96408893 | B119: =VLOOKUP(A119,'DATA (2)'!A:F,2,FALSE) -> Циркуляційний насос UPSD32-120 F 1x230-2 | C119: =VLOOKUP(A119,'DATA (2)'!A:F,4,FALSE) -> CB | F119: =VLOOKUP(A119,'DATA (2)'!A:F,5,FALSE) -> 1055.31 | G119: =IFERROR(F119*(1-VLOOKUP(C119,ГОЛОВНА!K:L,2,0)), "-") -> 1055.31
A120: 96401841 | B120: =VLOOKUP(A120,'DATA (2)'!A:F,2,FALSE) -> Циркуляційний насос UPSD32-120 F 1x230-2 | C120: =VLOOKUP(A120,'DATA (2)'!A:F,4,FALSE) -> CB | F120: =VLOOKUP(A120,'DATA (2)'!A:F,5,FALSE) -> 1112.37 | G120: =IFERROR(F120*(1-VLOOKUP(C120,ГОЛОВНА!K:L,2,0)), "-") -> 1112.37
A121: 96408961 | B121: =VLOOKUP(A121,'DATA (2)'!A:F,2,FALSE) -> Циркуляційний насос UPSD32-120 F 3x400-4 | C121: =VLOOKUP(A121,'DATA (2)'!A:F,4,FALSE) -> CB | F121: =VLOOKUP(A121,'DATA (2)'!A:F,5,FALSE) -> 959.37 | G121: =IFERROR(F121*(1-VLOOKUP(C121,ГОЛОВНА!K:L,2,0)), "-") -> 959.37
A122: 96401843 | B122: =VLOOKUP(A122,'DATA (2)'!A:F,2,FALSE) -> Циркуляційний насос UPSD32-120 F 3x400-4 | C122: =VLOOKUP(A122,'DATA (2)'!A:F,4,FALSE) -> CB | F122: =VLOOKUP(A122,'DATA (2)'!A:F,5,FALSE) -> 1011.21 | G122: =IFERROR(F122*(1-VLOOKUP(C122,ГОЛОВНА!K:L,2,0)), "-") -> 1011.21
A123: 96408898 | B123: =VLOOKUP(A123,'DATA (2)'!A:F,2,FALSE) -> Циркуляційний насос UPSD32-60 F 1x230-24 | C123: =VLOOKUP(A123,'DATA (2)'!A:F,4,FALSE) -> CB | F123: =VLOOKUP(A123,'DATA (2)'!A:F,5,FALSE) -> 897.01 | G123: =IFERROR(F123*(1-VLOOKUP(C123,ГОЛОВНА!K:L,2,0)), "-") -> 897.01
A124: 96401783 | B124: =VLOOKUP(A124,'DATA (2)'!A:F,2,FALSE) -> Циркуляційний насос UPSD32-60 F 1x230-24 | C124: =VLOOKUP(A124,'DATA (2)'!A:F,4,FALSE) -> CB | F124: =VLOOKUP(A124,'DATA (2)'!A:F,5,FALSE) -> 945.5 | G124: =IFERROR(F124*(1-VLOOKUP(C124,ГОЛОВНА!K:L,2,0)), "-") -> 945.5
A125: 96408900 | B125: =VLOOKUP(A125,'DATA (2)'!A:F,2,FALSE) -> Циркуляційний насос UPSD32-60 F | C125: =VLOOKUP(A125,'DATA (2)'!A:F,4,FALSE) -> CB | F125: =VLOOKUP(A125,'DATA (2)'!A:F,5,FALSE) -> 815.49 | G125: =IFERROR(F125*(1-VLOOKUP(C125,ГОЛОВНА!K:L,2,0)), "-") -> 815.49
A126: 96401792 | B126: =VLOOKUP(A126,'DATA (2)'!A:F,2,FALSE) -> Циркуляційний насос UPSD32 -60 F 3x400-4 | C126: =VLOOKUP(A126,'DATA (2)'!A:F,4,FALSE) -> CB | F126: =VLOOKUP(A126,'DATA (2)'!A:F,5,FALSE) -> 859.56 | G126: =IFERROR(F126*(1-VLOOKUP(C126,ГОЛОВНА!K:L,2,0)), "-") -> 859.56
A127: 96408901 | B127: =VLOOKUP(A127,'DATA (2)'!A:F,2,FALSE) -> Циркуляційний насос UPSD40-120 F 1x230-2 | C127: =VLOOKUP(A127,'DATA (2)'!A:F,4,FALSE) -> CB | F127: =VLOOKUP(A127,'DATA (2)'!A:F,5,FALSE) -> 1231.2 | G127: =IFERROR(F127*(1-VLOOKUP(C127,ГОЛОВНА!K:L,2,0)), "-") -> 1231.2
A128: 96401946 | B128: =VLOOKUP(A128,'DATA (2)'!A:F,2,FALSE) -> Циркуляційний насос UPSD40-120 F 1x230-2 | C128: =VLOOKUP(A128,'DATA (2)'!A:F,4,FALSE) -> CB | F128: =VLOOKUP(A128,'DATA (2)'!A:F,5,FALSE) -> 1297.74 | G128: =IFERROR(F128*(1-VLOOKUP(C128,ГОЛОВНА!K:L,2,0)), "-") -> 1297.74
A129: 96408903 | B129: =VLOOKUP(A129,'DATA (2)'!A:F,2,FALSE) -> Циркуляційний насос UPSD40-120 F 3x400-4 | C129: =VLOOKUP(A129,'DATA (2)'!A:F,4,FALSE) -> CB | F129: =VLOOKUP(A129,'DATA (2)'!A:F,5,FALSE) -> 1119.27 | G129: =IFERROR(F129*(1-VLOOKUP(C129,ГОЛОВНА!K:L,2,0)), "-") -> 1119.27
A130: 96401948 | B130: =VLOOKUP(A130,'DATA (2)'!A:F,2,FALSE) -> Циркуляційний насос UPSD40-120 F | C130: =VLOOKUP(A130,'DATA (2)'!A:F,4,FALSE) -> CB | F130: =VLOOKUP(A130,'DATA (2)'!A:F,5,FALSE) -> 1179.79 | G130: =IFERROR(F130*(1-VLOOKUP(C130,ГОЛОВНА!K:L,2,0)), "-") -> 1179.79
A131: 96408907 | B131: =VLOOKUP(A131,'DATA (2)'!A:F,2,FALSE) -> Циркуляційний насос UPSD40-60 F 1x230-24 | C131: =VLOOKUP(A131,'DATA (2)'!A:F,4,FALSE) -> CB | F131: =VLOOKUP(A131,'DATA (2)'!A:F,5,FALSE) -> 1046.52 | G131: =IFERROR(F131*(1-VLOOKUP(C131,ГОЛОВНА!K:L,2,0)), "-") -> 1046.52
A132: 96401918 | B132: =VLOOKUP(A132,'DATA (2)'!A:F,2,FALSE) -> Циркуляційний насос UPSD40-60 F 1x230-24 | C132: =VLOOKUP(A132,'DATA (2)'!A:F,4,FALSE) -> CB | F132: =VLOOKUP(A132,'DATA (2)'!A:F,5,FALSE) -> 1103.09 | G132: =IFERROR(F132*(1-VLOOKUP(C132,ГОЛОВНА!K:L,2,0)), "-") -> 1103.09
A133: 96408909 | B133: =VLOOKUP(A133,'DATA (2)'!A:F,2,FALSE) -> Циркуляційний насос UPSD40-60 F 3x400-41 | C133: =VLOOKUP(A133,'DATA (2)'!A:F,4,FALSE) -> CB | F133: =VLOOKUP(A133,'DATA (2)'!A:F,5,FALSE) -> 951.38 | G133: =IFERROR(F133*(1-VLOOKUP(C133,ГОЛОВНА!K:L,2,0)), "-") -> 951.38
A134: 96401920 | B134: =VLOOKUP(A134,'DATA (2)'!A:F,2,FALSE) -> Циркуляційний насос UPSD40-60/2 F 3x400 | C134: =VLOOKUP(A134,'DATA (2)'!A:F,4,FALSE) -> CB | F134: =VLOOKUP(A134,'DATA (2)'!A:F,5,FALSE) -> 1002.81 | G134: =IFERROR(F134*(1-VLOOKUP(C134,ГОЛОВНА!K:L,2,0)), "-") -> 1002.81
A135: 96408910 | B135: =VLOOKUP(A135,'DATA (2)'!A:F,2,FALSE) -> Циркуляційний насос UPSD50-120 F 1x230-2 | C135: =VLOOKUP(A135,'DATA (2)'!A:F,4,FALSE) -> CB | F135: =VLOOKUP(A135,'DATA (2)'!A:F,5,FALSE) -> 1495.02 | G135: =IFERROR(F135*(1-VLOOKUP(C135,ГОЛОВНА!K:L,2,0)), "-") -> 1495.02
A136: 96402105 | B136: =VLOOKUP(A136,'DATA (2)'!A:F,2,FALSE) -> Циркуляційний насос UPSD 50-120 F 1x230- | C136: =VLOOKUP(A136,'DATA (2)'!A:F,4,FALSE) -> CB | F136: =VLOOKUP(A136,'DATA (2)'!A:F,5,FALSE) -> 1575.83 | G136: =IFERROR(F136*(1-VLOOKUP(C136,ГОЛОВНА!K:L,2,0)), "-") -> 1575.83
A137: 96408912 | B137: =VLOOKUP(A137,'DATA (2)'!A:F,2,FALSE) -> Циркуляційний насос UPSD50-120 F 3x400-4 | C137: =VLOOKUP(A137,'DATA (2)'!A:F,4,FALSE) -> CB | D137: S | F137: =VLOOKUP(A137,'DATA (2)'!A:F,5,FALSE) -> 1359.11 | G137: =IFERROR(F137*(1-VLOOKUP(C137,ГОЛОВНА!K:L,2,0)), "-") -> 1359.11
A138: 96402107 | B138: =VLOOKUP(A138,'DATA (2)'!A:F,2,FALSE) -> Циркуляційний насос UPSD50-120 F 3x400-4 | C138: =VLOOKUP(A138,'DATA (2)'!A:F,4,FALSE) -> CB | F138: =VLOOKUP(A138,'DATA (2)'!A:F,5,FALSE) -> 1432.58 | G138: =IFERROR(F138*(1-VLOOKUP(C138,ГОЛОВНА!K:L,2,0)), "-") -> 1432.58
A139: 96408913 | B139: =VLOOKUP(A139,'DATA (2)'!A:F,2,FALSE) -> Циркуляційний насос UPSD50-180 F 1x230-2 | C139: =VLOOKUP(A139,'DATA (2)'!A:F,4,FALSE) -> CB | F139: =VLOOKUP(A139,'DATA (2)'!A:F,5,FALSE) -> 1719.27 | G139: =IFERROR(F139*(1-VLOOKUP(C139,ГОЛОВНА!K:L,2,0)), "-") -> 1719.27
A140: 96402137 | B140: =VLOOKUP(A140,'DATA (2)'!A:F,2,FALSE) -> Циркуляційний насос UPSD50-180 F 1x230-2 | C140: =VLOOKUP(A140,'DATA (2)'!A:F,4,FALSE) -> CB | F140: =VLOOKUP(A140,'DATA (2)'!A:F,5,FALSE) -> 1812.23 | G140: =IFERROR(F140*(1-VLOOKUP(C140,ГОЛОВНА!K:L,2,0)), "-") -> 1812.23
A141: 96408915 | B141: =VLOOKUP(A141,'DATA (2)'!A:F,2,FALSE) -> Циркуляційний насос UPSD50-180 F 3x400-4 | C141: =VLOOKUP(A141,'DATA (2)'!A:F,4,FALSE) -> CB | D141: S | F141: =VLOOKUP(A141,'DATA (2)'!A:F,5,FALSE) -> 1562.99 | G141: =IFERROR(F141*(1-VLOOKUP(C141,ГОЛОВНА!K:L,2,0)), "-") -> 1562.99
A142: 96402139 | B142: =VLOOKUP(A142,'DATA (2)'!A:F,2,FALSE) -> Циркуляційний насос UPSD50-180 F 3x400-4 | C142: =VLOOKUP(A142,'DATA (2)'!A:F,4,FALSE) -> CB | F142: =VLOOKUP(A142,'DATA (2)'!A:F,5,FALSE) -> 1647.48 | G142: =IFERROR(F142*(1-VLOOKUP(C142,ГОЛОВНА!K:L,2,0)), "-") -> 1647.48
A143: 96408919 | B143: =VLOOKUP(A143,'DATA (2)'!A:F,2,FALSE) -> Циркуляційний насос UPSD50-60/2 F 1x230- | C143: =VLOOKUP(A143,'DATA (2)'!A:F,4,FALSE) -> CB | F143: =VLOOKUP(A143,'DATA (2)'!A:F,5,FALSE) -> 1270.77 | G143: =IFERROR(F143*(1-VLOOKUP(C143,ГОЛОВНА!K:L,2,0)), "-") -> 1270.77
A144: 96402057 | B144: =VLOOKUP(A144,'DATA (2)'!A:F,2,FALSE) -> Циркуляційний насос UPSD50-60/2 F 1x230- | C144: =VLOOKUP(A144,'DATA (2)'!A:F,4,FALSE) -> CB | F144: =VLOOKUP(A144,'DATA (2)'!A:F,5,FALSE) -> 1339.48 | G144: =IFERROR(F144*(1-VLOOKUP(C144,ГОЛОВНА!K:L,2,0)), "-") -> 1339.48
A145: 96408921 | B145: =VLOOKUP(A145,'DATA (2)'!A:F,2,FALSE) -> Циркуляційний насос UPSD50-60/2 F | C145: =VLOOKUP(A145,'DATA (2)'!A:F,4,FALSE) -> CB | F145: =VLOOKUP(A145,'DATA (2)'!A:F,5,FALSE) -> 1155.25 | G145: =IFERROR(F145*(1-VLOOKUP(C145,ГОЛОВНА!K:L,2,0)), "-") -> 1155.25
A146: 96402060 | B146: =VLOOKUP(A146,'DATA (2)'!A:F,2,FALSE) -> Циркуляційний насос UPSD50-60/2 F 3x400- | C146: =VLOOKUP(A146,'DATA (2)'!A:F,4,FALSE) -> CB | F146: =VLOOKUP(A146,'DATA (2)'!A:F,5,FALSE) -> 1217.68 | G146: =IFERROR(F146*(1-VLOOKUP(C146,ГОЛОВНА!K:L,2,0)), "-") -> 1217.68
A147: 96408925 | B147: =VLOOKUP(A147,'DATA (2)'!A:F,2,FALSE) -> Циркуляційний насос UPSD65-120 F 1x230-2 | C147: =VLOOKUP(A147,'DATA (2)'!A:F,4,FALSE) -> CB | F147: =VLOOKUP(A147,'DATA (2)'!A:F,5,FALSE) -> 1758.84 | G147: =IFERROR(F147*(1-VLOOKUP(C147,ГОЛОВНА!K:L,2,0)), "-") -> 1758.84
A148: 96402282 | B148: =VLOOKUP(A148,'DATA (2)'!A:F,2,FALSE) -> Циркуляційний насос UPSD65-120 F 1x230-2 | C148: =VLOOKUP(A148,'DATA (2)'!A:F,4,FALSE) -> CB | F148: =VLOOKUP(A148,'DATA (2)'!A:F,5,FALSE) -> 1853.93 | G148: =IFERROR(F148*(1-VLOOKUP(C148,ГОЛОВНА!K:L,2,0)), "-") -> 1853.93
A149: 96408927 | B149: =VLOOKUP(A149,'DATA (2)'!A:F,2,FALSE) -> Циркуляційний насос UPSD65-120 F 3x400-4 | C149: =VLOOKUP(A149,'DATA (2)'!A:F,4,FALSE) -> CB | F149: =VLOOKUP(A149,'DATA (2)'!A:F,5,FALSE) -> 1598.98 | G149: =IFERROR(F149*(1-VLOOKUP(C149,ГОЛОВНА!K:L,2,0)), "-") -> 1598.98
A150: 96402284 | B150: =VLOOKUP(A150,'DATA (2)'!A:F,2,FALSE) -> Циркуляційний насос UPSD65-120 F 3x400-4 | C150: =VLOOKUP(A150,'DATA (2)'!A:F,4,FALSE) -> CB | F150: =VLOOKUP(A150,'DATA (2)'!A:F,5,FALSE) -> 1685.39 | G150: =IFERROR(F150*(1-VLOOKUP(C150,ГОЛОВНА!K:L,2,0)), "-") -> 1685.39
A151: 96408929 | B151: =VLOOKUP(A151,'DATA (2)'!A:F,2,FALSE) -> Циркуляційний насос UPSD65-180 F 3x400-4 | C151: =VLOOKUP(A151,'DATA (2)'!A:F,4,FALSE) -> CB | F151: =VLOOKUP(A151,'DATA (2)'!A:F,5,FALSE) -> 1838.81 | G151: =IFERROR(F151*(1-VLOOKUP(C151,ГОЛОВНА!K:L,2,0)), "-") -> 1838.81
A152: 96402318 | B152: =VLOOKUP(A152,'DATA (2)'!A:F,2,FALSE) -> Циркуляційний насос UPSD65-180 F 3x400-4 | C152: =VLOOKUP(A152,'DATA (2)'!A:F,4,FALSE) -> CB | D152: S | F152: =VLOOKUP(A152,'DATA (2)'!A:F,5,FALSE) -> 1938.2 | G152: =IFERROR(F152*(1-VLOOKUP(C152,ГОЛОВНА!K:L,2,0)), "-") -> 1938.2
A153: 96408933 | B153: =VLOOKUP(A153,'DATA (2)'!A:F,2,FALSE) -> Циркуляційний насос UPSD65-60/2 1x230-24 | C153: =VLOOKUP(A153,'DATA (2)'!A:F,4,FALSE) -> CB | F153: =VLOOKUP(A153,'DATA (2)'!A:F,5,FALSE) -> 1495.02 | G153: =IFERROR(F153*(1-VLOOKUP(C153,ГОЛОВНА!K:L,2,0)), "-") -> 1495.02
A154: 96408935 | B154: =VLOOKUP(A154,'DATA (2)'!A:F,2,FALSE) -> Циркуляційний насос UPSD65-60/2 3x400-41 | C154: =VLOOKUP(A154,'DATA (2)'!A:F,4,FALSE) -> CB | F154: =VLOOKUP(A154,'DATA (2)'!A:F,5,FALSE) -> 1359.11 | G154: =IFERROR(F154*(1-VLOOKUP(C154,ГОЛОВНА!K:L,2,0)), "-") -> 1359.11
A155: 96404983 | B155: =VLOOKUP(A155,'DATA (2)'!A:F,2,FALSE) -> Циркуляційний насос UPSD65-60/2 F 3x400- | C155: =VLOOKUP(A155,'DATA (2)'!A:F,4,FALSE) -> CB | F155: =VLOOKUP(A155,'DATA (2)'!A:F,5,FALSE) -> 1432.58 | G155: =IFERROR(F155*(1-VLOOKUP(C155,ГОЛОВНА!K:L,2,0)), "-") -> 1432.58
A156: 96408943 | B156: =VLOOKUP(A156,'DATA (2)'!A:F,2,FALSE) -> Циркуляційний насос UPSD80-120 F 3x400-4 | C156: =VLOOKUP(A156,'DATA (2)'!A:F,4,FALSE) -> CB | F156: =VLOOKUP(A156,'DATA (2)'!A:F,5,FALSE) -> 2078.64 | G156: =IFERROR(F156*(1-VLOOKUP(C156,ГОЛОВНА!K:L,2,0)), "-") -> 2078.64
A157: 96403132 | B157: =VLOOKUP(A157,'DATA (2)'!A:F,2,FALSE) -> Циркуляційний насос UPSD80-120F 3x400-41 | C157: =VLOOKUP(A157,'DATA (2)'!A:F,4,FALSE) -> CB | F157: =VLOOKUP(A157,'DATA (2)'!A:F,5,FALSE) -> 2191.01 | G157: =IFERROR(F157*(1-VLOOKUP(C157,ГОЛОВНА!K:L,2,0)), "-") -> 2191.01
A158: 96408944 | B158: =VLOOKUP(A158,'DATA (2)'!A:F,2,FALSE) -> Циркуляційний насос UPSD80-120 F 3x400-4 | C158: =VLOOKUP(A158,'DATA (2)'!A:F,4,FALSE) -> CB | F158: =VLOOKUP(A158,'DATA (2)'!A:F,5,FALSE) -> 1998.69 | G158: =IFERROR(F158*(1-VLOOKUP(C158,ГОЛОВНА!K:L,2,0)), "-") -> 1998.69
A159: 96403131 | B159: =VLOOKUP(A159,'DATA (2)'!A:F,2,FALSE) -> Циркуляційний насос UPSD80-120 F 3x400-4 | C159: =VLOOKUP(A159,'DATA (2)'!A:F,4,FALSE) -> CB | F159: =VLOOKUP(A159,'DATA (2)'!A:F,5,FALSE) -> 2106.74 | G159: =IFERROR(F159*(1-VLOOKUP(C159,ГОЛОВНА!K:L,2,0)), "-") -> 2106.74
A160: 96408951 | B160: =VLOOKUP(A160,'DATA (2)'!A:F,2,FALSE) -> Циркуляційний насос UPSD80-60 F 3x400-41 | C160: =VLOOKUP(A160,'DATA (2)'!A:F,4,FALSE) -> CB | F160: =VLOOKUP(A160,'DATA (2)'!A:F,5,FALSE) -> 1974.72 | G160: =IFERROR(F160*(1-VLOOKUP(C160,ГОЛОВНА!K:L,2,0)), "-") -> 1974.72
A161: 96402398 | B161: =VLOOKUP(A161,'DATA (2)'!A:F,2,FALSE) -> Циркуляційний насос UPSD80-60 F 3x400-41 | C161: =VLOOKUP(A161,'DATA (2)'!A:F,4,FALSE) -> CB | F161: =VLOOKUP(A161,'DATA (2)'!A:F,5,FALSE) -> 2081.45 | G161: =IFERROR(F161*(1-VLOOKUP(C161,ГОЛОВНА!K:L,2,0)), "-") -> 2081.45
A162: 96408952 | B162: =VLOOKUP(A162,'DATA (2)'!A:F,2,FALSE) -> Циркуляційний насос UPSD80-60 F 3x400-41 | C162: =VLOOKUP(A162,'DATA (2)'!A:F,4,FALSE) -> CB | F162: =VLOOKUP(A162,'DATA (2)'!A:F,5,FALSE) -> 1898.77 | G162: =IFERROR(F162*(1-VLOOKUP(C162,ГОЛОВНА!K:L,2,0)), "-") -> 1898.77
A163: 96402397 | B163: =VLOOKUP(A163,'DATA (2)'!A:F,2,FALSE) -> Циркуляційний насос UPSD80-60 F 3x400-41 | C163: =VLOOKUP(A163,'DATA (2)'!A:F,4,FALSE) -> CB | F163: =VLOOKUP(A163,'DATA (2)'!A:F,5,FALSE) -> 2001.38 | G163: =IFERROR(F163*(1-VLOOKUP(C163,ГОЛОВНА!K:L,2,0)), "-") -> 2001.38
A164: 95906484 | B164: =VLOOKUP(A164,'DATA (2)'!A:F,2,FALSE) -> Циркуляційний насос UPSD 32-100 F 220 1x | C164: =VLOOKUP(A164,'DATA (2)'!A:F,4,FALSE) -> DH | F164: =VLOOKUP(A164,'DATA (2)'!A:F,5,FALSE) -> 952.4 | G164: =IFERROR(F164*(1-VLOOKUP(C164,ГОЛОВНА!K:L,2,0)), "-") -> 952.4
A165: 95906416 | B165: =VLOOKUP(A165,'DATA (2)'!A:F,2,FALSE) -> Циркуляційний насос UPSD32-50 F 220 1x23 | C165: =VLOOKUP(A165,'DATA (2)'!A:F,4,FALSE) -> DH | F165: =VLOOKUP(A165,'DATA (2)'!A:F,5,FALSE) -> 480.36 | G165: =IFERROR(F165*(1-VLOOKUP(C165,ГОЛОВНА!K:L,2,0)), "-") -> 480.36
A166: 95906459 | B166: =VLOOKUP(A166,'DATA (2)'!A:F,2,FALSE) -> Циркуляційний насос UPSD32-80 F220 | C166: =VLOOKUP(A166,'DATA (2)'!A:F,4,FALSE) -> DH | F166: =VLOOKUP(A166,'DATA (2)'!A:F,5,FALSE) -> 579.62 | G166: =IFERROR(F166*(1-VLOOKUP(C166,ГОЛОВНА!K:L,2,0)), "-") -> 579.62
A167: 95906423 | B167: =VLOOKUP(A167,'DATA (2)'!A:F,2,FALSE) -> Циркуляційний насос UPSD40-50 F 250 1x23 | C167: =VLOOKUP(A167,'DATA (2)'!A:F,4,FALSE) -> DH | F167: =VLOOKUP(A167,'DATA (2)'!A:F,5,FALSE) -> 674.82 | G167: =IFERROR(F167*(1-VLOOKUP(C167,ГОЛОВНА!K:L,2,0)), "-") -> 674.82
A168: 95906465 | B168: =VLOOKUP(A168,'DATA (2)'!A:F,2,FALSE) -> Циркуляційний насос UPSD40-80 F 250 1x23 | C168: =VLOOKUP(A168,'DATA (2)'!A:F,4,FALSE) -> DH | F168: =VLOOKUP(A168,'DATA (2)'!A:F,5,FALSE) -> 752.71 | G168: =IFERROR(F168*(1-VLOOKUP(C168,ГОЛОВНА!K:L,2,0)), "-") -> 752.71
G169: =IFERROR(F169*(1-VLOOKUP(C169,ГОЛОВНА!K:L,2,0)), "-") -> -
B170: Аксесуари | G170: =IFERROR(F170*(1-VLOOKUP(C170,ГОЛОВНА!K:L,2,0)), "-") -> -
A171: 505821 | B171: =VLOOKUP(A171,'DATA (2)'!A:F,2,FALSE) -> Комплект теплоізоляції до UPS 25/32-30/4 | C171: =VLOOKUP(A171,'DATA (2)'!A:F,4,FALSE) -> CB | F171: =VLOOKUP(A171,'DATA (2)'!A:F,5,FALSE) -> 16.71 | G171: =IFERROR(F171*(1-VLOOKUP(C171,ГОЛОВНА!K:L,2,0)), "-") -> 16.71
A172: 519801 | B172: =VLOOKUP(A172,'DATA (2)'!A:F,2,FALSE) -> К-кт з'єднувальних елементів G1 1/4""-22 | C172: =VLOOKUP(A172,'DATA (2)'!A:F,4,FALSE) -> CB | F172: =VLOOKUP(A172,'DATA (2)'!A:F,5,FALSE) -> 27.89 | G172: =IFERROR(F172*(1-VLOOKUP(C172,ГОЛОВНА!K:L,2,0)), "-") -> 27.89
A173: 519802 | B173: =VLOOKUP(A173,'DATA (2)'!A:F,2,FALSE) -> Елемент з'єднувальний з кульк-м клап-м G | C173: =VLOOKUP(A173,'DATA (2)'!A:F,4,FALSE) -> CB | F173: =VLOOKUP(A173,'DATA (2)'!A:F,5,FALSE) -> 27.89 | G173: =IFERROR(F173*(1-VLOOKUP(C173,ГОЛОВНА!K:L,2,0)), "-") -> 27.89
A174: 519805 | B174: =VLOOKUP(A174,'DATA (2)'!A:F,2,FALSE) -> З'єднувальний елемент G 1 1/2 x Rp 3/4 | C174: =VLOOKUP(A174,'DATA (2)'!A:F,4,FALSE) -> CB | F174: =VLOOKUP(A174,'DATA (2)'!A:F,5,FALSE) -> 25.34 | G174: =IFERROR(F174*(1-VLOOKUP(C174,ГОЛОВНА!K:L,2,0)), "-") -> 25.34
A175: 519806 | B175: =VLOOKUP(A175,'DATA (2)'!A:F,2,FALSE) -> З’єднув. елемент з кульк. клапаном G 1 1 | C175: =VLOOKUP(A175,'DATA (2)'!A:F,4,FALSE) -> CB | F175: =VLOOKUP(A175,'DATA (2)'!A:F,5,FALSE) -> 25.84 | G175: =IFERROR(F175*(1-VLOOKUP(C175,ГОЛОВНА!K:L,2,0)), "-") -> 25.84
A176: 519807 | B176: =VLOOKUP(A176,'DATA (2)'!A:F,2,FALSE) -> Комплект з'єднань з кульк овим клапаном | C176: =VLOOKUP(A176,'DATA (2)'!A:F,4,FALSE) -> CB | F176: =VLOOKUP(A176,'DATA (2)'!A:F,5,FALSE) -> 30.46 | G176: =IFERROR(F176*(1-VLOOKUP(C176,ГОЛОВНА!K:L,2,0)), "-") -> 30.46
A177: 99672022 | B177: =VLOOKUP(A177,'DATA (2)'!A:F,2,FALSE) -> Комплект з'єднань G1 1/2"Rp1" | C177: =VLOOKUP(A177,'DATA (2)'!A:F,4,FALSE) -> CB | F177: =VLOOKUP(A177,'DATA (2)'!A:F,5,FALSE) -> 12.39 | G177: =IFERROR(F177*(1-VLOOKUP(C177,ГОЛОВНА!K:L,2,0)), "-") -> 12.39
A178: 529972 | B178: =VLOOKUP(A178,'DATA (2)'!A:F,2,FALSE) -> Комплект зєднань G11/2"x1" | C178: =VLOOKUP(A178,'DATA (2)'!A:F,4,FALSE) -> CB | F178: =VLOOKUP(A178,'DATA (2)'!A:F,5,FALSE) -> 12.78 | G178: =IFERROR(F178*(1-VLOOKUP(C178,ГОЛОВНА!K:L,2,0)), "-") -> 12.78
A179: 529982 | B179: =VLOOKUP(A179,'DATA (2)'!A:F,2,FALSE) -> Комплект з'єднань 3/4' | C179: =VLOOKUP(A179,'DATA (2)'!A:F,4,FALSE) -> CB | F179: =VLOOKUP(A179,'DATA (2)'!A:F,5,FALSE) -> 29.86 | G179: =IFERROR(F179*(1-VLOOKUP(C179,ГОЛОВНА!K:L,2,0)), "-") -> 29.86
A180: 529983 | B180: =VLOOKUP(A180,'DATA (2)'!A:F,2,FALSE) -> Комплект з'єднань G 1 1/4 "x Rp 1", лату | C180: =VLOOKUP(A180,'DATA (2)'!A:F,4,FALSE) -> CB | F180: =VLOOKUP(A180,'DATA (2)'!A:F,5,FALSE) -> 50.92 | G180: =IFERROR(F180*(1-VLOOKUP(C180,ГОЛОВНА!K:L,2,0)), "-") -> 50.92
A181: 539702 | B181: =VLOOKUP(A181,'DATA (2)'!A:F,2,FALSE) -> Фланці сталеві приварювальні, DN 40 | C181: =VLOOKUP(A181,'DATA (2)'!A:F,4,FALSE) -> CB | F181: =VLOOKUP(A181,'DATA (2)'!A:F,5,FALSE) -> 60.1 | G181: =IFERROR(F181*(1-VLOOKUP(C181,ГОЛОВНА!K:L,2,0)), "-") -> 60.1
A182: 539703 | B182: =VLOOKUP(A182,'DATA (2)'!A:F,2,FALSE) -> Комплект різьбових фланці PN10 UPS32 1 1 | C182: =VLOOKUP(A182,'DATA (2)'!A:F,4,FALSE) -> CB | F182: =VLOOKUP(A182,'DATA (2)'!A:F,5,FALSE) -> 59.74 | G182: =IFERROR(F182*(1-VLOOKUP(C182,ГОЛОВНА!K:L,2,0)), "-") -> 59.74
A183: 539704 | B183: =VLOOKUP(A183,'DATA (2)'!A:F,2,FALSE) -> Фланцы стальные приварные DN 32 | C183: =VLOOKUP(A183,'DATA (2)'!A:F,4,FALSE) -> CB | F183: =VLOOKUP(A183,'DATA (2)'!A:F,5,FALSE) -> 76.23 | G183: =IFERROR(F183*(1-VLOOKUP(C183,ГОЛОВНА!K:L,2,0)), "-") -> 76.23
A184: 549802 | B184: =VLOOKUP(A184,'DATA (2)'!A:F,2,FALSE) -> Фланцы стальные приварные DN 50 | C184: =VLOOKUP(A184,'DATA (2)'!A:F,4,FALSE) -> CB | F184: =VLOOKUP(A184,'DATA (2)'!A:F,5,FALSE) -> 69.69 | G184: =IFERROR(F184*(1-VLOOKUP(C184,ГОЛОВНА!K:L,2,0)), "-") -> 69.69
A185: 559802 | B185: =VLOOKUP(A185,'DATA (2)'!A:F,2,FALSE) -> Фланцы стальные приварные DN 65 | C185: =VLOOKUP(A185,'DATA (2)'!A:F,4,FALSE) -> CB | F185: =VLOOKUP(A185,'DATA (2)'!A:F,5,FALSE) -> 111.91 | G185: =IFERROR(F185*(1-VLOOKUP(C185,ГОЛОВНА!K:L,2,0)), "-") -> 111.91
A186: 95906254 | B186: =VLOOKUP(A186,'DATA (2)'!A:F,2,FALSE) -> Блок тривоги до UPS XX 100 | C186: =VLOOKUP(A186,'DATA (2)'!A:F,4,FALSE) -> CB | F186: =VLOOKUP(A186,'DATA (2)'!A:F,5,FALSE) -> 129.18 | G186: =IFERROR(F186*(1-VLOOKUP(C186,ГОЛОВНА!K:L,2,0)), "-") -> 129.18
A187: 95906653 | B187: =VLOOKUP(A187,'DATA (2)'!A:F,2,FALSE) -> Теплоізолятор для UPS XX- 100 | C187: =VLOOKUP(A187,'DATA (2)'!A:F,4,FALSE) -> CB | F187: =VLOOKUP(A187,'DATA (2)'!A:F,5,FALSE) -> 46.11 | G187: =IFERROR(F187*(1-VLOOKUP(C187,ГОЛОВНА!K:L,2,0)), "-") -> 46.11
A188: 95906655 | B188: =VLOOKUP(A188,'DATA (2)'!A:F,2,FALSE) -> Термоізоляція до насосів серії UPS | C188: =VLOOKUP(A188,'DATA (2)'!A:F,4,FALSE) -> CB | F188: =VLOOKUP(A188,'DATA (2)'!A:F,5,FALSE) -> 26.47 | G188: =IFERROR(F188*(1-VLOOKUP(C188,ГОЛОВНА!K:L,2,0)), "-") -> 26.47
A189: 96433906 | B189: =VLOOKUP(A189,'DATA (2)'!A:F,2,FALSE) -> Фланец для удаления возду ха | C189: =VLOOKUP(A189,'DATA (2)'!A:F,4,FALSE) -> CB | F189: =VLOOKUP(A189,'DATA (2)'!A:F,5,FALSE) -> 22.98 | G189: =IFERROR(F189*(1-VLOOKUP(C189,ГОЛОВНА!K:L,2,0)), "-") -> 22.98
A190: 96406992 | B190: =VLOOKUP(A190,'DATA (2)'!A:F,2,FALSE) -> Реле часу TS 3/T з 24 годинною шкалою | C190: =VLOOKUP(A190,'DATA (2)'!A:F,4,FALSE) -> CB | F190: =VLOOKUP(A190,'DATA (2)'!A:F,5,FALSE) -> 64.24 | G190: =IFERROR(F190*(1-VLOOKUP(C190,ГОЛОВНА!K:L,2,0)), "-") -> 64.24
A191: 525156 | B191: =VLOOKUP(A191,'DATA (2)'!A:F,2,FALSE) -> Комплект з'єднань G1 1/4" x Rp 3/4" | C191: =VLOOKUP(A191,'DATA (2)'!A:F,4,FALSE) -> DH | F191: =VLOOKUP(A191,'DATA (2)'!A:F,5,FALSE) -> 13.92 | G191: =IFERROR(F191*(1-VLOOKUP(C191,ГОЛОВНА!K:L,2,0)), "-") -> 13.92
B195: Примітка:
A196: S | B196: - складська позиція (зазвичай є на скаді)
A197: FT | B197: - швидка поставка (зазвичай до 3-х тижнів)

Sheet Comfort, UP, UP N, Solar
A1: АРТИКУЛ | B1: НАЙМЕНУВАННЯ (УКР) | C1: PRICE GROUP | D1: ДОСТАВКА | E1: ДОДАТКОВО | F1: ЦІНА (ЕВРО БЕЗ ПДВ) | G1: ЦІНА ЗІ ЗНИЖКОЮ | H1: НА ГОЛОВНУ
A2: Comfort, UP, UPS, Solar | G2: Циркуляційні насоси для систем гарячого водопостачання
A3: 97916771 | B3: =VLOOKUP(A3,'DATA (2)'!A:F,2,FALSE) -> Циркуляційний насос COMFORT15-14B PM | C3: =VLOOKUP(A3,'DATA (2)'!A:F,4,FALSE) -> DH | D3: S | E3: реле часу 98465228 | F3: =VLOOKUP(A3,'DATA (2)'!A:F,5,FALSE) -> 115.4 | G3: =IFERROR(F3*(1-VLOOKUP(C3,ГОЛОВНА!K:L,2,0)), "-") -> 115.4
A4: 97916757 | B4: =VLOOKUP(A4,'DATA (2)'!A:F,2,FALSE) -> Циркуляційний насос COMFORT15-14BA PM | C4: =VLOOKUP(A4,'DATA (2)'!A:F,4,FALSE) -> DH | D4: S | F4: =VLOOKUP(A4,'DATA (2)'!A:F,5,FALSE) -> 189.22 | G4: =IFERROR(F4*(1-VLOOKUP(C4,ГОЛОВНА!K:L,2,0)), "-") -> 189.22
A5: 59640506 | B5: =VLOOKUP(A5,'DATA (2)'!A:F,2,FALSE) -> Циркуляційний насос UP20-07 N 150 1x230B | C5: =VLOOKUP(A5,'DATA (2)'!A:F,4,FALSE) -> DH | F5: =VLOOKUP(A5,'DATA (2)'!A:F,5,FALSE) -> 203.92 | G5: =IFERROR(F5*(1-VLOOKUP(C5,ГОЛОВНА!K:L,2,0)), "-") -> 203.92
A6: 97916772 | B6: =VLOOKUP(A6,'DATA (2)'!A:F,2,FALSE) -> Циркуляційний насос COMFORT 15-14 BX PM | C6: =VLOOKUP(A6,'DATA (2)'!A:F,4,FALSE) -> DH | D6: S | E6: реле часу 98465228 | F6: =VLOOKUP(A6,'DATA (2)'!A:F,5,FALSE) -> 134.91 | G6: =IFERROR(F6*(1-VLOOKUP(C6,ГОЛОВНА!K:L,2,0)), "-") -> 134.91
A7: 97916749 | B7: =VLOOKUP(A7,'DATA (2)'!A:F,2,FALSE) -> Циркуляційний насос COMFORT15-14BXA PM | C7: =VLOOKUP(A7,'DATA (2)'!A:F,4,FALSE) -> DH | D7: S | F7: =VLOOKUP(A7,'DATA (2)'!A:F,5,FALSE) -> 213.73 | G7: =IFERROR(F7*(1-VLOOKUP(C7,ГОЛОВНА!K:L,2,0)), "-") -> 213.73
A8: 59641500 | B8: =VLOOKUP(A8,'DATA (2)'!A:F,2,FALSE) -> Циркуляційний насос UP20-15 N 150 1x230B | C8: =VLOOKUP(A8,'DATA (2)'!A:F,4,FALSE) -> DH | F8: =VLOOKUP(A8,'DATA (2)'!A:F,5,FALSE) -> 203.92 | G8: =IFERROR(F8*(1-VLOOKUP(C8,ГОЛОВНА!K:L,2,0)), "-") -> 203.92
A9: 59643500 | B9: =VLOOKUP(A9,'DATA (2)'!A:F,2,FALSE) -> Циркуляційний насос UP20-30 N 150 1x230B | C9: =VLOOKUP(A9,'DATA (2)'!A:F,4,FALSE) -> DH | F9: =VLOOKUP(A9,'DATA (2)'!A:F,5,FALSE) -> 226.58 | G9: =IFERROR(F9*(1-VLOOKUP(C9,ГОЛОВНА!K:L,2,0)), "-") -> 226.58
A10: 95906472 | B10: =VLOOKUP(A10,'DATA (2)'!A:F,2,FALSE) -> Циркуляційний насос UP20-45 N 150 1x230B | C10: =VLOOKUP(A10,'DATA (2)'!A:F,4,FALSE) -> DH | D10: S | F10: =VLOOKUP(A10,'DATA (2)'!A:F,5,FALSE) -> 258.41 | G10: =IFERROR(F10*(1-VLOOKUP(C10,ГОЛОВНА!K:L,2,0)), "-") -> 258.41
A11: 95906408 | B11: =VLOOKUP(A11,'DATA (2)'!A:F,2,FALSE) -> Циркуляційний насос UPS25-55 N 180 1x230 | C11: =VLOOKUP(A11,'DATA (2)'!A:F,4,FALSE) -> DH | F11: =VLOOKUP(A11,'DATA (2)'!A:F,5,FALSE) -> 341.69 | G11: =IFERROR(F11*(1-VLOOKUP(C11,ГОЛОВНА!K:L,2,0)), "-") -> 341.69
A12: 95906439 | B12: =VLOOKUP(A12,'DATA (2)'!A:F,2,FALSE) -> Циркуляційний насос UPS25-80 N 180 1x230 | C12: =VLOOKUP(A12,'DATA (2)'!A:F,4,FALSE) -> DH | D12: S | F12: =VLOOKUP(A12,'DATA (2)'!A:F,5,FALSE) -> 409.22 | G12: =IFERROR(F12*(1-VLOOKUP(C12,ГОЛОВНА!K:L,2,0)), "-") -> 409.22
A13: 95906448 | B13: =VLOOKUP(A13,'DATA (2)'!A:F,2,FALSE) -> Циркуляційний насос UPS32-80 N 180 1x230 | C13: =VLOOKUP(A13,'DATA (2)'!A:F,4,FALSE) -> DH | D13: S | F13: =VLOOKUP(A13,'DATA (2)'!A:F,5,FALSE) -> 493.29 | G13: =IFERROR(F13*(1-VLOOKUP(C13,ГОЛОВНА!K:L,2,0)), "-") -> 493.29
A14: 99812350 | B14: =VLOOKUP(A14,'DATA (2)'!A:F,2,FALSE) -> Цирк.насос COMFORT 15-14 BDT PM | C14: =VLOOKUP(A14,'DATA (2)'!A:F,4,FALSE) -> DH | D14: S | F14: =VLOOKUP(A14,'DATA (2)'!A:F,5,FALSE) -> 153.29 | G14: =IFERROR(F14*(1-VLOOKUP(C14,ГОЛОВНА!K:L,2,0)), "-") -> 153.29
A15: 99831281 | B15: =VLOOKUP(A15,'DATA (2)'!A:F,2,FALSE) -> Цирк.насос COMFORT 15-14 BXDT PM | C15: =VLOOKUP(A15,'DATA (2)'!A:F,4,FALSE) -> DH | D15: S | F15: =VLOOKUP(A15,'DATA (2)'!A:F,5,FALSE) -> 176.58 | G15: =IFERROR(F15*(1-VLOOKUP(C15,ГОЛОВНА!K:L,2,0)), "-") -> 176.58
B17: Аксесуари
A18: 98465228 | B18: =VLOOKUP(A18,'DATA (2)'!A:F,2,FALSE) -> Модуль керування з реле часу TS4/T | C18: =VLOOKUP(A18,'DATA (2)'!A:F,4,FALSE) -> CB | F18: =VLOOKUP(A18,'DATA (2)'!A:F,5,FALSE) -> 51.55 | G18: =IFERROR(F18*(1-VLOOKUP(C18,ГОЛОВНА!K:L,2,0)), "-") -> 51.55
A19: 505821 | B19: =VLOOKUP(A19,'DATA (2)'!A:F,2,FALSE) -> Комплект теплоізоляції до UPS 25/32-30/4 | C19: =VLOOKUP(A19,'DATA (2)'!A:F,4,FALSE) -> CB | F19: =VLOOKUP(A19,'DATA (2)'!A:F,5,FALSE) -> 16.71 | G19: =IFERROR(F19*(1-VLOOKUP(C19,ГОЛОВНА!K:L,2,0)), "-") -> 16.71
A20: 519801 | B20: =VLOOKUP(A20,'DATA (2)'!A:F,2,FALSE) -> К-кт з'єднувальних елементів G1 1/4""-22 | C20: =VLOOKUP(A20,'DATA (2)'!A:F,4,FALSE) -> CB | F20: =VLOOKUP(A20,'DATA (2)'!A:F,5,FALSE) -> 27.89 | G20: =IFERROR(F20*(1-VLOOKUP(C20,ГОЛОВНА!K:L,2,0)), "-") -> 27.89
A21: 519802 | B21: =VLOOKUP(A21,'DATA (2)'!A:F,2,FALSE) -> Елемент з'єднувальний з кульк-м клап-м G | C21: =VLOOKUP(A21,'DATA (2)'!A:F,4,FALSE) -> CB | F21: =VLOOKUP(A21,'DATA (2)'!A:F,5,FALSE) -> 27.89 | G21: =IFERROR(F21*(1-VLOOKUP(C21,ГОЛОВНА!K:L,2,0)), "-") -> 27.89
A22: 519805 | B22: =VLOOKUP(A22,'DATA (2)'!A:F,2,FALSE) -> З'єднувальний елемент G 1 1/2 x Rp 3/4 | C22: =VLOOKUP(A22,'DATA (2)'!A:F,4,FALSE) -> CB | F22: =VLOOKUP(A22,'DATA (2)'!A:F,5,FALSE) -> 25.34 | G22: =IFERROR(F22*(1-VLOOKUP(C22,ГОЛОВНА!K:L,2,0)), "-") -> 25.34
A23: 519806 | B23: =VLOOKUP(A23,'DATA (2)'!A:F,2,FALSE) -> З’єднув. елемент з кульк. клапаном G 1 1 | C23: =VLOOKUP(A23,'DATA (2)'!A:F,4,FALSE) -> CB | F23: =VLOOKUP(A23,'DATA (2)'!A:F,5,FALSE) -> 25.84 | G23: =IFERROR(F23*(1-VLOOKUP(C23,ГОЛОВНА!K:L,2,0)), "-") -> 25.84
A24: 519807 | B24: =VLOOKUP(A24,'DATA (2)'!A:F,2,FALSE) -> Комплект з'єднань з кульк овим клапаном | C24: =VLOOKUP(A24,'DATA (2)'!A:F,4,FALSE) -> CB | F24: =VLOOKUP(A24,'DATA (2)'!A:F,5,FALSE) -> 30.46 | G24: =IFERROR(F24*(1-VLOOKUP(C24,ГОЛОВНА!K:L,2,0)), "-") -> 30.46
A25: 529922 | B25: =VLOOKUP(A25,'DATA (2)'!A:F,2,FALSE) -> Комплект з'єднань G1 1/2"Rp1" | C25: =VLOOKUP(A25,'DATA (2)'!A:F,4,FALSE) -> CB | F25: =VLOOKUP(A25,'DATA (2)'!A:F,5,FALSE) -> 12.39 | G25: =IFERROR(F25*(1-VLOOKUP(C25,ГОЛОВНА!K:L,2,0)), "-") -> 12.39
A26: 529972 | B26: =VLOOKUP(A26,'DATA (2)'!A:F,2,FALSE) -> Комплект зєднань G11/2"x1" | C26: =VLOOKUP(A26,'DATA (2)'!A:F,4,FALSE) -> CB | F26: =VLOOKUP(A26,'DATA (2)'!A:F,5,FALSE) -> 12.78 | G26: =IFERROR(F26*(1-VLOOKUP(C26,ГОЛОВНА!K:L,2,0)), "-") -> 12.78
A27: 529982 | B27: =VLOOKUP(A27,'DATA (2)'!A:F,2,FALSE) -> Комплект з'єднань 3/4' | C27: =VLOOKUP(A27,'DATA (2)'!A:F,4,FALSE) -> CB | F27: =VLOOKUP(A27,'DATA (2)'!A:F,5,FALSE) -> 29.86 | G27: =IFERROR(F27*(1-VLOOKUP(C27,ГОЛОВНА!K:L,2,0)), "-") -> 29.86
A28: 529983 | B28: =VLOOKUP(A28,'DATA (2)'!A:F,2,FALSE) -> Комплект з'єднань G 1 1/4 "x Rp 1", лату | C28: =VLOOKUP(A28,'DATA (2)'!A:F,4,FALSE) -> CB | F28: =VLOOKUP(A28,'DATA (2)'!A:F,5,FALSE) -> 50.92 | G28: =IFERROR(F28*(1-VLOOKUP(C28,ГОЛОВНА!K:L,2,0)), "-") -> 50.92
A29: 539702 | B29: =VLOOKUP(A29,'DATA (2)'!A:F,2,FALSE) -> Фланці сталеві приварювальні, DN 40 | C29: =VLOOKUP(A29,'DATA (2)'!A:F,4,FALSE) -> CB | F29: =VLOOKUP(A29,'DATA (2)'!A:F,5,FALSE) -> 60.1 | G29: =IFERROR(F29*(1-VLOOKUP(C29,ГОЛОВНА!K:L,2,0)), "-") -> 60.1
A30: 539703 | B30: =VLOOKUP(A30,'DATA (2)'!A:F,2,FALSE) -> Комплект різьбових фланці PN10 UPS32 1 1 | C30: =VLOOKUP(A30,'DATA (2)'!A:F,4,FALSE) -> CB | F30: =VLOOKUP(A30,'DATA (2)'!A:F,5,FALSE) -> 59.74 | G30: =IFERROR(F30*(1-VLOOKUP(C30,ГОЛОВНА!K:L,2,0)), "-") -> 59.74
A31: 539704 | B31: =VLOOKUP(A31,'DATA (2)'!A:F,2,FALSE) -> Фланцы стальные приварные DN 32 | C31: =VLOOKUP(A31,'DATA (2)'!A:F,4,FALSE) -> CB | F31: =VLOOKUP(A31,'DATA (2)'!A:F,5,FALSE) -> 76.23 | G31: =IFERROR(F31*(1-VLOOKUP(C31,ГОЛОВНА!K:L,2,0)), "-") -> 76.23
A32: 549802 | B32: =VLOOKUP(A32,'DATA (2)'!A:F,2,FALSE) -> Фланцы стальные приварные DN 50 | C32: =VLOOKUP(A32,'DATA (2)'!A:F,4,FALSE) -> CB | F32: =VLOOKUP(A32,'DATA (2)'!A:F,5,FALSE) -> 69.69 | G32: =IFERROR(F32*(1-VLOOKUP(C32,ГОЛОВНА!K:L,2,0)), "-") -> 69.69
A33: 559802 | B33: =VLOOKUP(A33,'DATA (2)'!A:F,2,FALSE) -> Фланцы стальные приварные DN 65 | C33: =VLOOKUP(A33,'DATA (2)'!A:F,4,FALSE) -> CB | F33: =VLOOKUP(A33,'DATA (2)'!A:F,5,FALSE) -> 111.91 | G33: =IFERROR(F33*(1-VLOOKUP(C33,ГОЛОВНА!K:L,2,0)), "-") -> 111.91
A34: 95906254 | B34: =VLOOKUP(A34,'DATA (2)'!A:F,2,FALSE) -> Блок тривоги до UPS XX 100 | C34: =VLOOKUP(A34,'DATA (2)'!A:F,4,FALSE) -> CB | F34: =VLOOKUP(A34,'DATA (2)'!A:F,5,FALSE) -> 129.18 | G34: =IFERROR(F34*(1-VLOOKUP(C34,ГОЛОВНА!K:L,2,0)), "-") -> 129.18
A35: 95906653 | B35: =VLOOKUP(A35,'DATA (2)'!A:F,2,FALSE) -> Теплоізолятор для UPS XX- 100 | C35: =VLOOKUP(A35,'DATA (2)'!A:F,4,FALSE) -> CB | F35: =VLOOKUP(A35,'DATA (2)'!A:F,5,FALSE) -> 46.11 | G35: =IFERROR(F35*(1-VLOOKUP(C35,ГОЛОВНА!K:L,2,0)), "-") -> 46.11
A36: 95906655 | B36: =VLOOKUP(A36,'DATA (2)'!A:F,2,FALSE) -> Термоізоляція до насосів серії UPS | C36: =VLOOKUP(A36,'DATA (2)'!A:F,4,FALSE) -> CB | F36: =VLOOKUP(A36,'DATA (2)'!A:F,5,FALSE) -> 26.47 | G36: =IFERROR(F36*(1-VLOOKUP(C36,ГОЛОВНА!K:L,2,0)), "-") -> 26.47
A37: 96433906 | B37: =VLOOKUP(A37,'DATA (2)'!A:F,2,FALSE) -> Фланец для удаления возду ха | C37: =VLOOKUP(A37,'DATA (2)'!A:F,4,FALSE) -> CB | F37: =VLOOKUP(A37,'DATA (2)'!A:F,5,FALSE) -> 22.98 | G37: =IFERROR(F37*(1-VLOOKUP(C37,ГОЛОВНА!K:L,2,0)), "-") -> 22.98
B40: Примітка:
A41: S | B41: - складська позиція (зазвичай є на скаді)
A42: FT | B42: - швидка поставка (зазвичай до 3-х тижнів)

Sheet MQ, JP, Scala, SB, SBA, UPA
A1: АРТИКУЛ | B1: НАЙМЕНУВАННЯ (УКР) | C1: PRICE GROUP | D1: ДОСТАВКА | E1: ПРИМІТКИ | F1: ЦІНА (ЕВРО БЕЗ ПДВ) | G1: ЦІНА ЗІ ЗНИЖКОЮ | H1: НА ГОЛОВНУ
A2: MQ, JP, Hydrojet | G2: Насоси і насосні установки для систем водопостачання
A3: 96515412 | B3: =VLOOKUP(A3,'DATA (2)'!A:F,2,FALSE) -> Насосна установка MQ3-35 A-O-A-BVBP, 1x2 | C3: =VLOOKUP(A3,'DATA (2)'!A:F,4,FALSE) -> DC | D3: S | F3: =VLOOKUP(A3,'DATA (2)'!A:F,5,FALSE) -> 342.85 | G3: =IFERROR(F3*(1-VLOOKUP(C3,ГОЛОВНА!K:L,2,0)), "-") -> 342.85
A4: 96515415 | B4: =VLOOKUP(A4,'DATA (2)'!A:F,2,FALSE) -> Насосна установка MQ3-45 A-O-A-BVBP, 1x2 | C4: =VLOOKUP(A4,'DATA (2)'!A:F,4,FALSE) -> DC | D4: S | F4: =VLOOKUP(A4,'DATA (2)'!A:F,5,FALSE) -> 358.78 | G4: =IFERROR(F4*(1-VLOOKUP(C4,ГОЛОВНА!K:L,2,0)), "-") -> 358.78
A5: 98562862 | B5: =VLOOKUP(A5,'DATA (2)'!A:F,2,FALSE) -> Насосна установка SCALA2 3-45 AKCCDE 1x2 | C5: =VLOOKUP(A5,'DATA (2)'!A:F,4,FALSE) -> DC | D5: S | F5: =VLOOKUP(A5,'DATA (2)'!A:F,5,FALSE) -> 428.48 | G5: =IFERROR(F5*(1-VLOOKUP(C5,ГОЛОВНА!K:L,2,0)), "-") -> 428.48
A6: 99530404 | B6: =VLOOKUP(A6,'DATA (2)'!A:F,2,FALSE) -> Насосна установка SCALA1 3-35 1x230V 50H | C6: =VLOOKUP(A6,'DATA (2)'!A:F,4,FALSE) -> DC | D6: S | F6: =VLOOKUP(A6,'DATA (2)'!A:F,5,FALSE) -> 352.59 | G6: =IFERROR(F6*(1-VLOOKUP(C6,ГОЛОВНА!K:L,2,0)), "-") -> 352.59
A7: 99530405 | B7: =VLOOKUP(A7,'DATA (2)'!A:F,2,FALSE) -> Насосна установка SCALA1 3-45 1x230V 50H | C7: =VLOOKUP(A7,'DATA (2)'!A:F,4,FALSE) -> DC | D7: S | F7: =VLOOKUP(A7,'DATA (2)'!A:F,5,FALSE) -> 389.71 | G7: =IFERROR(F7*(1-VLOOKUP(C7,ГОЛОВНА!K:L,2,0)), "-") -> 389.71
A8: 99530407 | B8: =VLOOKUP(A8,'DATA (2)'!A:F,2,FALSE) -> Насосна установка SCALA1 5-55 1x230V 50H | C8: =VLOOKUP(A8,'DATA (2)'!A:F,4,FALSE) -> DC | D8: S | F8: =VLOOKUP(A8,'DATA (2)'!A:F,5,FALSE) -> 445.38 | G8: =IFERROR(F8*(1-VLOOKUP(C8,ГОЛОВНА!K:L,2,0)), "-") -> 445.38
A9: 99725165 | B9: =VLOOKUP(A9,'DATA (2)'!A:F,2,FALSE) -> Комплект для підключення SCALA1 Twin | C9: =VLOOKUP(A9,'DATA (2)'!A:F,4,FALSE) -> DC | D9: S | F9: =VLOOKUP(A9,'DATA (2)'!A:F,5,FALSE) -> 278.33 | G9: =IFERROR(F9*(1-VLOOKUP(C9,ГОЛОВНА!K:L,2,0)), "-") -> 278.33
A10: 99725183 | B10: =VLOOKUP(A10,'DATA (2)'!A:F,2,FALSE) -> Вхідний фільтр Scala 250micron Rp1xRp1 | C10: =VLOOKUP(A10,'DATA (2)'!A:F,4,FALSE) -> DC | D10: S | F10: =VLOOKUP(A10,'DATA (2)'!A:F,5,FALSE) -> 37.11 | G10: =IFERROR(F10*(1-VLOOKUP(C10,ГОЛОВНА!K:L,2,0)), "-") -> 37.11
A11: 99463874 | B11: =VLOOKUP(A11,'DATA (2)'!A:F,2,FALSE) -> Насос.установка JP 3-42 PT-H 1x230V 1,5м | C11: =VLOOKUP(A11,'DATA (2)'!A:F,4,FALSE) -> DC | D11: S | E11: Об'єм баку 20 л | F11: =VLOOKUP(A11,'DATA (2)'!A:F,5,FALSE) -> 248.85 | G11: =IFERROR(F11*(1-VLOOKUP(C11,ГОЛОВНА!K:L,2,0)), "-") -> 248.85
A12: 99463875 | B12: =VLOOKUP(A12,'DATA (2)'!A:F,2,FALSE) -> Насос.установка JP 4-47 PT-H 1x230V 1,5м | C12: =VLOOKUP(A12,'DATA (2)'!A:F,4,FALSE) -> DC | D12: S | E12: Об'єм баку 20 л | F12: =VLOOKUP(A12,'DATA (2)'!A:F,5,FALSE) -> 260.62 | G12: =IFERROR(F12*(1-VLOOKUP(C12,ГОЛОВНА!K:L,2,0)), "-") -> 260.62
A13: 99594664 | B13: =VLOOKUP(A13,'DATA (2)'!A:F,2,FALSE) -> Насос.установка JP 4-47 PT-H 60L, 230V | C13: =VLOOKUP(A13,'DATA (2)'!A:F,4,FALSE) -> DC | E13: Об'єм баку 60 л | F13: =VLOOKUP(A13,'DATA (2)'!A:F,5,FALSE) -> 354.38 | G13: =IFERROR(F13*(1-VLOOKUP(C13,ГОЛОВНА!K:L,2,0)), "-") -> 354.38
A14: 99463876 | B14: =VLOOKUP(A14,'DATA (2)'!A:F,2,FALSE) -> Насос.установка JP 4-54 PT-H 1x230 1,5м | C14: =VLOOKUP(A14,'DATA (2)'!A:F,4,FALSE) -> DC | D14: S | E14: Об'єм баку 20 л | F14: =VLOOKUP(A14,'DATA (2)'!A:F,5,FALSE) -> 272.39 | G14: =IFERROR(F14*(1-VLOOKUP(C14,ГОЛОВНА!K:L,2,0)), "-") -> 272.39
A15: 99463877 | B15: =VLOOKUP(A15,'DATA (2)'!A:F,2,FALSE) -> Насос.установка JP 5-48 PT-H 1x230V 1,5м | C15: =VLOOKUP(A15,'DATA (2)'!A:F,4,FALSE) -> DC | D15: S | E15: Об'єм баку 20 л | F15: =VLOOKUP(A15,'DATA (2)'!A:F,5,FALSE) -> 289.21 | G15: =IFERROR(F15*(1-VLOOKUP(C15,ГОЛОВНА!K:L,2,0)), "-") -> 289.21
A16: 99594666 | B16: =VLOOKUP(A16,'DATA (2)'!A:F,2,FALSE) -> Насос.установка JP 5-48 PT-H 60L, 230V | C16: =VLOOKUP(A16,'DATA (2)'!A:F,4,FALSE) -> DC | E16: Об'єм баку 60 л | F16: =VLOOKUP(A16,'DATA (2)'!A:F,5,FALSE) -> 384.54 | G16: =IFERROR(F16*(1-VLOOKUP(C16,ГОЛОВНА!K:L,2,0)), "-") -> 384.54
A17: 99515135 | B17: =VLOOKUP(A17,'DATA (2)'!A:F,2,FALSE) -> Насос.установка JP 3-42 PM1 1x230 1,5м | C17: =VLOOKUP(A17,'DATA (2)'!A:F,4,FALSE) -> DC | D17: S | F17: =VLOOKUP(A17,'DATA (2)'!A:F,5,FALSE) -> 260.62 | G17: =IFERROR(F17*(1-VLOOKUP(C17,ГОЛОВНА!K:L,2,0)), "-") -> 260.62
A18: 99515137 | B18: =VLOOKUP(A18,'DATA (2)'!A:F,2,FALSE) -> Насос.установка JP 4-54 PM1 1x230 1,5м | C18: =VLOOKUP(A18,'DATA (2)'!A:F,4,FALSE) -> DC | D18: S | F18: =VLOOKUP(A18,'DATA (2)'!A:F,5,FALSE) -> 289.21 | G18: =IFERROR(F18*(1-VLOOKUP(C18,ГОЛОВНА!K:L,2,0)), "-") -> 289.21
A19: 99458766 | B19: =VLOOKUP(A19,'DATA (2)'!A:F,2,FALSE) -> Насос водопост JP 3-42 1x230 1,5м SCHUKO | C19: =VLOOKUP(A19,'DATA (2)'!A:F,4,FALSE) -> DC | D19: S | F19: =VLOOKUP(A19,'DATA (2)'!A:F,5,FALSE) -> 158.88 | G19: =IFERROR(F19*(1-VLOOKUP(C19,ГОЛОВНА!K:L,2,0)), "-") -> 158.88
A20: 99458767 | B20: =VLOOKUP(A20,'DATA (2)'!A:F,2,FALSE) -> Насос водопостJP 4-47 1x230 1,5м SCHUKO | C20: =VLOOKUP(A20,'DATA (2)'!A:F,4,FALSE) -> DC | D20: S | F20: =VLOOKUP(A20,'DATA (2)'!A:F,5,FALSE) -> 184.95 | G20: =IFERROR(F20*(1-VLOOKUP(C20,ГОЛОВНА!K:L,2,0)), "-") -> 184.95
A21: 99458768 | B21: =VLOOKUP(A21,'DATA (2)'!A:F,2,FALSE) -> Насос водопост JP 4-54 1x230 1,5м SCHUKO | C21: =VLOOKUP(A21,'DATA (2)'!A:F,4,FALSE) -> DC | D21: S | F21: =VLOOKUP(A21,'DATA (2)'!A:F,5,FALSE) -> 192.33 | G21: =IFERROR(F21*(1-VLOOKUP(C21,ГОЛОВНА!K:L,2,0)), "-") -> 192.33
A22: 99458769 | B22: =VLOOKUP(A22,'DATA (2)'!A:F,2,FALSE) -> Насос водопост JP 5-48 1x230 1,5м SCHUKO | C22: =VLOOKUP(A22,'DATA (2)'!A:F,4,FALSE) -> DC | D22: S | F22: =VLOOKUP(A22,'DATA (2)'!A:F,5,FALSE) -> 201.77 | G22: =IFERROR(F22*(1-VLOOKUP(C22,ГОЛОВНА!K:L,2,0)), "-") -> 201.77
A24: SB, SBA | G24: Насоси і насосні установки для систем водопостачання
A25: 97686699 | B25: =VLOOKUP(A25,'DATA (2)'!A:F,2,FALSE) -> Насос для колодязів SB3-25 A 1x230V 50Hz | C25: =VLOOKUP(A25,'DATA (2)'!A:F,4,FALSE) -> DC | F25: =VLOOKUP(A25,'DATA (2)'!A:F,5,FALSE) -> 271.51 | G25: =IFERROR(F25*(1-VLOOKUP(C25,ГОЛОВНА!K:L,2,0)), "-") -> 271.51
A26: 97686701 | B26: =VLOOKUP(A26,'DATA (2)'!A:F,2,FALSE) -> Насос для колодязів SB 3-35 A 1x220-240V | C26: =VLOOKUP(A26,'DATA (2)'!A:F,4,FALSE) -> DC | F26: =VLOOKUP(A26,'DATA (2)'!A:F,5,FALSE) -> 291.61 | G26: =IFERROR(F26*(1-VLOOKUP(C26,ГОЛОВНА!K:L,2,0)), "-") -> 291.61
A27: 97686703 | B27: =VLOOKUP(A27,'DATA (2)'!A:F,2,FALSE) -> Насос для колодязів SB3-35 AW 1x230V 50H | C27: =VLOOKUP(A27,'DATA (2)'!A:F,4,FALSE) -> DC | F27: =VLOOKUP(A27,'DATA (2)'!A:F,5,FALSE) -> 372.08 | G27: =IFERROR(F27*(1-VLOOKUP(C27,ГОЛОВНА!K:L,2,0)), "-") -> 372.08
A28: 97686705 | B28: =VLOOKUP(A28,'DATA (2)'!A:F,2,FALSE) -> Насос для колодязів SB 3-45 A 1x22 | C28: =VLOOKUP(A28,'DATA (2)'!A:F,4,FALSE) -> DC | D28: S | F28: =VLOOKUP(A28,'DATA (2)'!A:F,5,FALSE) -> 321.8 | G28: =IFERROR(F28*(1-VLOOKUP(C28,ГОЛОВНА!K:L,2,0)), "-") -> 321.8
A29: 97686707 | B29: =VLOOKUP(A29,'DATA (2)'!A:F,2,FALSE) -> Насос для колодязів SB3-45 AW 1x220-240V | C29: =VLOOKUP(A29,'DATA (2)'!A:F,4,FALSE) -> DC | F29: =VLOOKUP(A29,'DATA (2)'!A:F,5,FALSE) -> 392.19 | G29: =IFERROR(F29*(1-VLOOKUP(C29,ГОЛОВНА!K:L,2,0)), "-") -> 392.19
A30: 97904043 | B30: =VLOOKUP(A30,'DATA (2)'!A:F,2,FALSE) -> Насос для колодязів SB Booster 3-45AW,PM | C30: =VLOOKUP(A30,'DATA (2)'!A:F,4,FALSE) -> DC | F30: =VLOOKUP(A30,'DATA (2)'!A:F,5,FALSE) -> 462.56 | G30: =IFERROR(F30*(1-VLOOKUP(C30,ГОЛОВНА!K:L,2,0)), "-") -> 462.56
A31: 97896286 | B31: =VLOOKUP(A31,'DATA (2)'!A:F,2,FALSE) -> Насос для колодязів SBA3-35 A 1x220-240V | C31: =VLOOKUP(A31,'DATA (2)'!A:F,4,FALSE) -> DC | F31: =VLOOKUP(A31,'DATA (2)'!A:F,5,FALSE) -> 366.25 | G31: =IFERROR(F31*(1-VLOOKUP(C31,ГОЛОВНА!K:L,2,0)), "-") -> 366.25
A32: 97896288 | B32: =VLOOKUP(A32,'DATA (2)'!A:F,2,FALSE) -> Насос для колодязів SBA3-35 AW 1x220-240 | C32: =VLOOKUP(A32,'DATA (2)'!A:F,4,FALSE) -> DC | F32: =VLOOKUP(A32,'DATA (2)'!A:F,5,FALSE) -> 452.52 | G32: =IFERROR(F32*(1-VLOOKUP(C32,ГОЛОВНА!K:L,2,0)), "-") -> 452.52
A33: 97896290 | B33: =VLOOKUP(A33,'DATA (2)'!A:F,2,FALSE) -> Насос для колодязів SBA 3-45 A 1x220-240 | C33: =VLOOKUP(A33,'DATA (2)'!A:F,4,FALSE) -> DC | D33: S | F33: =VLOOKUP(A33,'DATA (2)'!A:F,5,FALSE) -> 384.55 | G33: =IFERROR(F33*(1-VLOOKUP(C33,ГОЛОВНА!K:L,2,0)), "-") -> 384.55
A34: 97896312 | B34: =VLOOKUP(A34,'DATA (2)'!A:F,2,FALSE) -> Насос для колодязів SBA3-45 AW 1x220-240 | C34: =VLOOKUP(A34,'DATA (2)'!A:F,4,FALSE) -> DC | F34: =VLOOKUP(A34,'DATA (2)'!A:F,5,FALSE) -> 467.79 | G34: =IFERROR(F34*(1-VLOOKUP(C34,ГОЛОВНА!K:L,2,0)), "-") -> 467.79
A36: UPA | G36: Насоси для підвищення тиску
A37: 99547009 | B37: =VLOOKUP(A37,'DATA (2)'!A:F,2,FALSE) -> Насос підвищ.тиску UPA 15-90 230В Schuko | C37: =VLOOKUP(A37,'DATA (2)'!A:F,4,FALSE) -> DC | D37: S | F37: =VLOOKUP(A37,'DATA (2)'!A:F,5,FALSE) -> 98.33 | G37: =IFERROR(F37*(1-VLOOKUP(C37,ГОЛОВНА!K:L,2,0)), "-") -> 98.33
A38: 99539041 | B38: =VLOOKUP(A38,'DATA (2)'!A:F,2,FALSE) -> Насос підвищ.тиску UPA 15-90N 230V Schuk | C38: =VLOOKUP(A38,'DATA (2)'!A:F,4,FALSE) -> DC | D38: S | F38: =VLOOKUP(A38,'DATA (2)'!A:F,5,FALSE) -> 189.29 | G38: =IFERROR(F38*(1-VLOOKUP(C38,ГОЛОВНА!K:L,2,0)), "-") -> 189.29
A39: 99553575 | B39: =VLOOKUP(A39,'DATA (2)'!A:F,2,FALSE) -> Насос підвищ.тиску UPA 15-120 230V Schuk | C39: =VLOOKUP(A39,'DATA (2)'!A:F,4,FALSE) -> DC | D39: S | F39: =VLOOKUP(A39,'DATA (2)'!A:F,5,FALSE) -> 137.26 | G39: =IFERROR(F39*(1-VLOOKUP(C39,ГОЛОВНА!K:L,2,0)), "-") -> 137.26
B41: Аксесуари
A42: 96848670 | B42: =VLOOKUP(A42,'DATA (2)'!A:F,2,FALSE) -> Реле тиску PM 1 15 1x230V 50Hz | C42: =VLOOKUP(A42,'DATA (2)'!A:F,4,FALSE) -> DC | F42: =VLOOKUP(A42,'DATA (2)'!A:F,5,FALSE) -> 91.37 | G42: =IFERROR(F42*(1-VLOOKUP(C42,ГОЛОВНА!K:L,2,0)), "-") -> 91.37
A43: 96848693 | B43: =VLOOKUP(A43,'DATA (2)'!A:F,2,FALSE) -> Реле тиску PM 1 15 1x230V 50/60Hz | C43: =VLOOKUP(A43,'DATA (2)'!A:F,4,FALSE) -> DC | D43: S | F43: =VLOOKUP(A43,'DATA (2)'!A:F,5,FALSE) -> 91.37 | G43: =IFERROR(F43*(1-VLOOKUP(C43,ГОЛОВНА!K:L,2,0)), "-") -> 91.37
A44: 96848722 | B44: =VLOOKUP(A44,'DATA (2)'!A:F,2,FALSE) -> Реле тиску PM 1 22 1x230V 50/60Hz | C44: =VLOOKUP(A44,'DATA (2)'!A:F,4,FALSE) -> DC | D44: S | F44: =VLOOKUP(A44,'DATA (2)'!A:F,5,FALSE) -> 91.37 | G44: =IFERROR(F44*(1-VLOOKUP(C44,ГОЛОВНА!K:L,2,0)), "-") -> 91.37
A45: 96848738 | B45: =VLOOKUP(A45,'DATA (2)'!A:F,2,FALSE) -> Реле тиску PM 2 AD 1x230V 50Hz | C45: =VLOOKUP(A45,'DATA (2)'!A:F,4,FALSE) -> DC | F45: =VLOOKUP(A45,'DATA (2)'!A:F,5,FALSE) -> 157.55 | G45: =IFERROR(F45*(1-VLOOKUP(C45,ГОЛОВНА!K:L,2,0)), "-") -> 157.55
A46: 96848740 | B46: =VLOOKUP(A46,'DATA (2)'!A:F,2,FALSE) -> Реле тиску PM 2 AD 1x230V 50/60Hz | C46: =VLOOKUP(A46,'DATA (2)'!A:F,4,FALSE) -> DC | D46: S | F46: =VLOOKUP(A46,'DATA (2)'!A:F,5,FALSE) -> 157.55 | G46: =IFERROR(F46*(1-VLOOKUP(C46,ГОЛОВНА!K:L,2,0)), "-") -> 157.55
A47: 91760166 | B47: =VLOOKUP(A47,'DATA (2)'!A:F,2,FALSE) -> Датчик протоку для UPA120 | C47: =VLOOKUP(A47,'DATA (2)'!A:F,4,FALSE) -> DH | F47: =VLOOKUP(A47,'DATA (2)'!A:F,5,FALSE) -> 24.01 | G47: =IFERROR(F47*(1-VLOOKUP(C47,ГОЛОВНА!K:L,2,0)), "-") -> 24.01
B50: Примітка:
A51: S | B51: - складська позиція (зазвичай є на скаді)
A52: FT | B52: - швидка поставка (зазвичай до 3-х тижнів)

Sheet Basic Line
A1: АРТИКУЛ | B1: НАЙМЕНУВАННЯ (УКР) | C1: PRICE GROUP | D1: ДОСТАВКА (ТИЖНІВ) | E1: ДОДАТКОВО | F1: ЦІНА (ЕВРО БЕЗ ПДВ) | G1: ЦІНА ЗІ ЗНИЖКОЮ | H1: НА ГОЛОВНУ
A2: JPBASIC, JPBASIC PT, PF BASIC | G2: Насоси і насосні установки для систем водопостачання
A3: 98904963 | B3: =VLOOKUP(A3,'DATA (2)'!A:F,2,FALSE) -> Насос водопостач NS 3-40 1x230V 50Hz IT | C3: DC | F3: =VLOOKUP(A3,'DATA (2)'!A:F,5,FALSE) -> 173.38 | G3: =IFERROR(F3*(1-VLOOKUP(C3,ГОЛОВНА!K:L,2,0)), "-") -> 173.38
A4: 98904964 | B4: =VLOOKUP(A4,'DATA (2)'!A:F,2,FALSE) -> Насос водопостач NS 4-23 1x230V 50Hz IT | C4: =VLOOKUP(A3,'DATA (2)'!A:F,4,FALSE) -> DC | F4: =VLOOKUP(A4,'DATA (2)'!A:F,5,FALSE) -> 125.89 | G4: =IFERROR(F4*(1-VLOOKUP(C4,ГОЛОВНА!K:L,2,0)), "-") -> 125.89
A5: 98904967 | B5: =VLOOKUP(A5,'DATA (2)'!A:F,2,FALSE) -> Насос водопостач NS 5-50 1x230V 50Hz CN | C5: =VLOOKUP(A4,'DATA (2)'!A:F,4,FALSE) -> DC | F5: =VLOOKUP(A5,'DATA (2)'!A:F,5,FALSE) -> 282.46 | G5: =IFERROR(F5*(1-VLOOKUP(C5,ГОЛОВНА!K:L,2,0)), "-") -> 282.46
A6: 98904968 | B6: =VLOOKUP(A6,'DATA (2)'!A:F,2,FALSE) -> Насос водопостач NS 5-60 1x230V 50Hz IT | C6: =VLOOKUP(A5,'DATA (2)'!A:F,4,FALSE) -> DC | F6: =VLOOKUP(A6,'DATA (2)'!A:F,5,FALSE) -> 306.56 | G6: =IFERROR(F6*(1-VLOOKUP(C6,ГОЛОВНА!K:L,2,0)), "-") -> 306.56
A7: 98904970 | B7: =VLOOKUP(A7,'DATA (2)'!A:F,2,FALSE) -> Насос водопостач NS 6-40 1x230V 50Hz IT | C7: =VLOOKUP(A6,'DATA (2)'!A:F,4,FALSE) -> DC | F7: =VLOOKUP(A7,'DATA (2)'!A:F,5,FALSE) -> 273.03 | G7: =IFERROR(F7*(1-VLOOKUP(C7,ГОЛОВНА!K:L,2,0)), "-") -> 273.03
A8: 98904981 | B8: =VLOOKUP(A8,'DATA (2)'!A:F,2,FALSE) -> Насос водопостач NS 13-18 1x230V 50Hz IT | C8: =VLOOKUP(A7,'DATA (2)'!A:F,4,FALSE) -> DC | F8: =VLOOKUP(A8,'DATA (2)'!A:F,5,FALSE) -> 159.03 | G8: =IFERROR(F8*(1-VLOOKUP(C8,ГОЛОВНА!K:L,2,0)), "-") -> 159.03
A9: 98904982 | B9: =VLOOKUP(A9,'DATA (2)'!A:F,2,FALSE) -> Насос водопостач NS 30-18 1x230V 50Hz IT | C9: =VLOOKUP(A8,'DATA (2)'!A:F,4,FALSE) -> DC | F9: =VLOOKUP(A9,'DATA (2)'!A:F,5,FALSE) -> 269 | G9: =IFERROR(F9*(1-VLOOKUP(C9,ГОЛОВНА!K:L,2,0)), "-") -> 269
A10: 98907044 | B10: =VLOOKUP(A10,'DATA (2)'!A:F,2,FALSE) -> Насос водопостач NS 30-30 3x400V 50Hz IT | C10: =VLOOKUP(A9,'DATA (2)'!A:F,4,FALSE) -> DC | F10: =VLOOKUP(A10,'DATA (2)'!A:F,5,FALSE) -> 459.01 | G10: =IFERROR(F10*(1-VLOOKUP(C10,ГОЛОВНА!K:L,2,0)), "-") -> 459.01
A11: 98907045 | B11: =VLOOKUP(A11,'DATA (2)'!A:F,2,FALSE) -> Насос водопостач NS 30-36 3x400V 50Hz IT | C11: =VLOOKUP(A10,'DATA (2)'!A:F,4,FALSE) -> DC | F11: =VLOOKUP(A11,'DATA (2)'!A:F,5,FALSE) -> 467.39 | G11: =IFERROR(F11*(1-VLOOKUP(C11,ГОЛОВНА!K:L,2,0)), "-") -> 467.39
A12: 98863989 | B12: =VLOOKUP(A12,'DATA (2)'!A:F,2,FALSE) -> Насос для брудн води KPC 300 A 1x220 50H | C12: =VLOOKUP(A11,'DATA (2)'!A:F,4,FALSE) -> DC | D12: S | F12: =VLOOKUP(A12,'DATA (2)'!A:F,5,FALSE) -> 132.59 | G12: =IFERROR(F12*(1-VLOOKUP(C12,ГОЛОВНА!K:L,2,0)), "-") -> 132.59
A13: 98864015 | B13: =VLOOKUP(A13,'DATA (2)'!A:F,2,FALSE) -> Насос для брудн води KPC 600 A 1x220 50H | C13: =VLOOKUP(A12,'DATA (2)'!A:F,4,FALSE) -> DC | D13: S | F13: =VLOOKUP(A13,'DATA (2)'!A:F,5,FALSE) -> 170.21 | G13: =IFERROR(F13*(1-VLOOKUP(C13,ГОЛОВНА!K:L,2,0)), "-") -> 170.21
B16: Примітка:
A17: S | B17: - складська позиція (зазвичай є на скаді)
A18: FT | B18: - швидка поставка (зазвичай до 3-х тижнів)

Sheet SQ, SQE, SP, SP-NE
A1: АРТИКУЛ | B1: НАЙМЕНУВАННЯ (УКР) | C1: PRICE GROUP | D1: ДОСТАВКА | E1: ДОДАТКОВО | F1: ЦІНА (ЕВРО БЕЗ ПДВ) | G1: ЦІНА ЗІ ЗНИЖКОЮ | H1: НА ГОЛОВНУ
A2: SQE | G2: Пакети постійного тиску
A3: 96160961 | B3: =VLOOKUP(A3,'DATA (2)'!A:F,2,FALSE) -> Глиб.насос SQE2-70 +60м+пакет пост.тиску | C3: =VLOOKUP(A3,'DATA (2)'!A:F,4,FALSE) -> DC | F3: =VLOOKUP(A3,'DATA (2)'!A:F,5,FALSE) -> 1711.5 | G3: =IFERROR(F3*(1-VLOOKUP(C3,ГОЛОВНА!K:L,2,0)), "-") -> 1711.5
A4: 96160962 | B4: =VLOOKUP(A4,'DATA (2)'!A:F,2,FALSE) -> Комплект пост. тиску SQE2-85+90m.3x2.5mm | C4: =VLOOKUP(A4,'DATA (2)'!A:F,4,FALSE) -> DC | F4: =VLOOKUP(A4,'DATA (2)'!A:F,5,FALSE) -> 1860.61 | G4: =IFERROR(F4*(1-VLOOKUP(C4,ГОЛОВНА!K:L,2,0)), "-") -> 1860.61
A5: 96524501 | B5: =VLOOKUP(A5,'DATA (2)'!A:F,2,FALSE) -> Глиб.насос SQE3-65 +40м+пакет пост.тиску | C5: =VLOOKUP(A5,'DATA (2)'!A:F,4,FALSE) -> DC | D5: S | F5: =VLOOKUP(A5,'DATA (2)'!A:F,5,FALSE) -> 1698.76 | G5: =IFERROR(F5*(1-VLOOKUP(C5,ГОЛОВНА!K:L,2,0)), "-") -> 1698.76
A6: 96524503 | B6: =VLOOKUP(A6,'DATA (2)'!A:F,2,FALSE) -> Глиб.насос SQE5-70 +40м+пакет пост.тиску | C6: =VLOOKUP(A6,'DATA (2)'!A:F,4,FALSE) -> DC | D6: S | F6: =VLOOKUP(A6,'DATA (2)'!A:F,5,FALSE) -> 1769.61 | G6: =IFERROR(F6*(1-VLOOKUP(C6,ГОЛОВНА!K:L,2,0)), "-") -> 1769.61
A7: 96524505 | B7: =VLOOKUP(A7,'DATA (2)'!A:F,2,FALSE) -> Глиб.насос SQE2-55 +40м+пакет пост.тиску | C7: =VLOOKUP(A7,'DATA (2)'!A:F,4,FALSE) -> DC | D7: S | F7: =VLOOKUP(A7,'DATA (2)'!A:F,5,FALSE) -> 1527.4 | G7: =IFERROR(F7*(1-VLOOKUP(C7,ГОЛОВНА!K:L,2,0)), "-") -> 1527.4
A8: 96524506 | B8: =VLOOKUP(A8,'DATA (2)'!A:F,2,FALSE) -> Глиб.насос SQE2-85+60м+пакет пост.тиску | C8: =VLOOKUP(A8,'DATA (2)'!A:F,4,FALSE) -> DC | D8: S | F8: =VLOOKUP(A8,'DATA (2)'!A:F,5,FALSE) -> 1892.7 | G8: =IFERROR(F8*(1-VLOOKUP(C8,ГОЛОВНА!K:L,2,0)), "-") -> 1892.7
A9: 96524507 | B9: =VLOOKUP(A9,'DATA (2)'!A:F,2,FALSE) -> Глиб.насос SQE2-115 +80м+пакет пост.тиск | C9: =VLOOKUP(A9,'DATA (2)'!A:F,4,FALSE) -> DC | D9: S | F9: =VLOOKUP(A9,'DATA (2)'!A:F,5,FALSE) -> 2068.73 | G9: =IFERROR(F9*(1-VLOOKUP(C9,ГОЛОВНА!K:L,2,0)), "-") -> 2068.73
A10: 96524508 | B10: =VLOOKUP(A10,'DATA (2)'!A:F,2,FALSE) -> Глиб.насос SQE3-105+80m+пакет пост.тиск | C10: =VLOOKUP(A10,'DATA (2)'!A:F,4,FALSE) -> DC | D10: S | F10: =VLOOKUP(A10,'DATA (2)'!A:F,5,FALSE) -> 1981.51 | G10: =IFERROR(F10*(1-VLOOKUP(C10,ГОЛОВНА!K:L,2,0)), "-") -> 1981.51
A12: SQ, SQE | G12: Глибинні насоси та пакети постійного тиску
A13: 96510071 | B13: =VLOOKUP(A13,'DATA (2)'!A:F,2,FALSE) -> Глибинний насос SQE1-35 0,7кВт 220-240В | C13: =VLOOKUP(A13,'DATA (2)'!A:F,4,FALSE) -> DC | F13: =VLOOKUP(A13,'DATA (2)'!A:F,5,FALSE) -> 647.22 | G13: =IFERROR(F13*(1-VLOOKUP(C13,ГОЛОВНА!K:L,2,0)), "-") -> 647.22
A14: 96510141 | B14: =VLOOKUP(A14,'DATA (2)'!A:F,2,FALSE) -> Глибинний насос SQE1-50 0,7кВт 220-240В | C14: =VLOOKUP(A14,'DATA (2)'!A:F,4,FALSE) -> DC | F14: =VLOOKUP(A14,'DATA (2)'!A:F,5,FALSE) -> 702.36 | G14: =IFERROR(F14*(1-VLOOKUP(C14,ГОЛОВНА!K:L,2,0)), "-") -> 702.36
A15: 96510142 | B15: =VLOOKUP(A15,'DATA (2)'!A:F,2,FALSE) -> Глибинний насос SQE1-65 0,7кВт 220-240В | C15: =VLOOKUP(A15,'DATA (2)'!A:F,4,FALSE) -> DC | F15: =VLOOKUP(A15,'DATA (2)'!A:F,5,FALSE) -> 754.87 | G15: =IFERROR(F15*(1-VLOOKUP(C15,ГОЛОВНА!K:L,2,0)), "-") -> 754.87
A16: 96510143 | B16: =VLOOKUP(A16,'DATA (2)'!A:F,2,FALSE) -> Глибинний насос SQE1-80 1,15кВт 220-240В | C16: =VLOOKUP(A16,'DATA (2)'!A:F,4,FALSE) -> DC | F16: =VLOOKUP(A16,'DATA (2)'!A:F,5,FALSE) -> 909.79 | G16: =IFERROR(F16*(1-VLOOKUP(C16,ГОЛОВНА!K:L,2,0)), "-") -> 909.79
A17: 96510144 | B17: =VLOOKUP(A17,'DATA (2)'!A:F,2,FALSE) -> Глибинний насос SQE1-95 1,15кВт 220-240В | C17: =VLOOKUP(A17,'DATA (2)'!A:F,4,FALSE) -> DC | F17: =VLOOKUP(A17,'DATA (2)'!A:F,5,FALSE) -> 947.89 | G17: =IFERROR(F17*(1-VLOOKUP(C17,ГОЛОВНА!K:L,2,0)), "-") -> 947.89
A18: 96510145 | B18: =VLOOKUP(A18,'DATA (2)'!A:F,2,FALSE) -> Глибинний насос SQE1-110 1,15кВт 220-240 | C18: =VLOOKUP(A18,'DATA (2)'!A:F,4,FALSE) -> DC | F18: =VLOOKUP(A18,'DATA (2)'!A:F,5,FALSE) -> 980.25 | G18: =IFERROR(F18*(1-VLOOKUP(C18,ГОЛОВНА!K:L,2,0)), "-") -> 980.25
A19: 96510146 | B19: =VLOOKUP(A19,'DATA (2)'!A:F,2,FALSE) -> Глибинний насос SQE1-125 1,68кВт 220-240 | C19: =VLOOKUP(A19,'DATA (2)'!A:F,4,FALSE) -> DC | F19: =VLOOKUP(A19,'DATA (2)'!A:F,5,FALSE) -> 1174.95 | G19: =IFERROR(F19*(1-VLOOKUP(C19,ГОЛОВНА!K:L,2,0)), "-") -> 1174.95
A20: 96510147 | B20: =VLOOKUP(A20,'DATA (2)'!A:F,2,FALSE) -> Глибинний насос SQE1-140 1,68кВт 220-240 | C20: =VLOOKUP(A20,'DATA (2)'!A:F,4,FALSE) -> DC | F20: =VLOOKUP(A20,'DATA (2)'!A:F,5,FALSE) -> 1213.03 | G20: =IFERROR(F20*(1-VLOOKUP(C20,ГОЛОВНА!K:L,2,0)), "-") -> 1213.03
A21: 96510148 | B21: =VLOOKUP(A21,'DATA (2)'!A:F,2,FALSE) -> Глибинний насос SQE1-155 1,85кВт 220-240 | C21: =VLOOKUP(A21,'DATA (2)'!A:F,4,FALSE) -> DC | F21: =VLOOKUP(A21,'DATA (2)'!A:F,5,FALSE) -> 1251.13 | G21: =IFERROR(F21*(1-VLOOKUP(C21,ГОЛОВНА!K:L,2,0)), "-") -> 1251.13
A22: 96510150 | B22: =VLOOKUP(A22,'DATA (2)'!A:F,2,FALSE) -> Глибинний насос SQE2-35 0,7кВт 220-240В | C22: =VLOOKUP(A22,'DATA (2)'!A:F,4,FALSE) -> DC | F22: =VLOOKUP(A22,'DATA (2)'!A:F,5,FALSE) -> 672.16 | G22: =IFERROR(F22*(1-VLOOKUP(C22,ГОЛОВНА!K:L,2,0)), "-") -> 672.16
A23: 96510151 | B23: =VLOOKUP(A23,'DATA (2)'!A:F,2,FALSE) -> Глибинний насос SQE2-55 0,7кВт 220-240В | C23: =VLOOKUP(A23,'DATA (2)'!A:F,4,FALSE) -> DC | F23: =VLOOKUP(A23,'DATA (2)'!A:F,5,FALSE) -> 750.4 | G23: =IFERROR(F23*(1-VLOOKUP(C23,ГОЛОВНА!K:L,2,0)), "-") -> 750.4
A24: 96510152 | B24: =VLOOKUP(A24,'DATA (2)'!A:F,2,FALSE) -> Глибинний насос SQE2-70 1,15кВт 220-240В | C24: =VLOOKUP(A24,'DATA (2)'!A:F,4,FALSE) -> DC | F24: =VLOOKUP(A24,'DATA (2)'!A:F,5,FALSE) -> 789.01 | G24: =IFERROR(F24*(1-VLOOKUP(C24,ГОЛОВНА!K:L,2,0)), "-") -> 789.01
A25: 96510153 | B25: =VLOOKUP(A25,'DATA (2)'!A:F,2,FALSE) -> Глибинний насос SQE2-85 1,15кВт 220-240В | C25: =VLOOKUP(A25,'DATA (2)'!A:F,4,FALSE) -> DC | F25: =VLOOKUP(A25,'DATA (2)'!A:F,5,FALSE) -> 882.22 | G25: =IFERROR(F25*(1-VLOOKUP(C25,ГОЛОВНА!K:L,2,0)), "-") -> 882.22
A26: 96510154 | B26: =VLOOKUP(A26,'DATA (2)'!A:F,2,FALSE) -> Глибинний насос SQE2-100 1,68кВт 220-240 | C26: =VLOOKUP(A26,'DATA (2)'!A:F,4,FALSE) -> DC | F26: =VLOOKUP(A26,'DATA (2)'!A:F,5,FALSE) -> 1094.92 | G26: =IFERROR(F26*(1-VLOOKUP(C26,ГОЛОВНА!K:L,2,0)), "-") -> 1094.92
A27: 96510155 | B27: =VLOOKUP(A27,'DATA (2)'!A:F,2,FALSE) -> Глибинний насос SQE2-115 1,85кВт 220-240 | C27: =VLOOKUP(A27,'DATA (2)'!A:F,4,FALSE) -> DC | F27: =VLOOKUP(A27,'DATA (2)'!A:F,5,FALSE) -> 1132.99 | G27: =IFERROR(F27*(1-VLOOKUP(C27,ГОЛОВНА!K:L,2,0)), "-") -> 1132.99
A28: 96510156 | B28: =VLOOKUP(A28,'DATA (2)'!A:F,2,FALSE) -> Глибинний насос SQE3-30 0,7кВт 220-240В | C28: =VLOOKUP(A28,'DATA (2)'!A:F,4,FALSE) -> DC | F28: =VLOOKUP(A28,'DATA (2)'!A:F,5,FALSE) -> 644.56 | G28: =IFERROR(F28*(1-VLOOKUP(C28,ГОЛОВНА!K:L,2,0)), "-") -> 644.56
A29: 96510157 | B29: =VLOOKUP(A29,'DATA (2)'!A:F,2,FALSE) -> Глибинний насос SQE3-40 0,7кВт 220-240В | C29: =VLOOKUP(A29,'DATA (2)'!A:F,4,FALSE) -> DC | F29: =VLOOKUP(A29,'DATA (2)'!A:F,5,FALSE) -> 682.65 | G29: =IFERROR(F29*(1-VLOOKUP(C29,ГОЛОВНА!K:L,2,0)), "-") -> 682.65
A30: 96510158 | B30: =VLOOKUP(A30,'DATA (2)'!A:F,2,FALSE) -> Глибинний насос SQE3-55 1,15кВт 220-240В | C30: =VLOOKUP(A30,'DATA (2)'!A:F,4,FALSE) -> DC | F30: =VLOOKUP(A30,'DATA (2)'!A:F,5,FALSE) -> 789.01 | G30: =IFERROR(F30*(1-VLOOKUP(C30,ГОЛОВНА!K:L,2,0)), "-") -> 789.01
A31: 96510159 | B31: =VLOOKUP(A31,'DATA (2)'!A:F,2,FALSE) -> Глибинний насос SQE3-65 1,15кВт 220-240В | C31: =VLOOKUP(A31,'DATA (2)'!A:F,4,FALSE) -> DC | F31: =VLOOKUP(A31,'DATA (2)'!A:F,5,FALSE) -> 928.65 | G31: =IFERROR(F31*(1-VLOOKUP(C31,ГОЛОВНА!K:L,2,0)), "-") -> 928.65
A32: 96510160 | B32: =VLOOKUP(A32,'DATA (2)'!A:F,2,FALSE) -> Глибинний насос SQE3-80 1,68кВт 220-240В | C32: =VLOOKUP(A32,'DATA (2)'!A:F,4,FALSE) -> DC | F32: =VLOOKUP(A32,'DATA (2)'!A:F,5,FALSE) -> 1152.55 | G32: =IFERROR(F32*(1-VLOOKUP(C32,ГОЛОВНА!K:L,2,0)), "-") -> 1152.55
A33: 96510161 | B33: =VLOOKUP(A33,'DATA (2)'!A:F,2,FALSE) -> Глибинний насос SQE3-95 1,68кВт 220-240В | C33: =VLOOKUP(A33,'DATA (2)'!A:F,4,FALSE) -> DC | F33: =VLOOKUP(A33,'DATA (2)'!A:F,5,FALSE) -> 1132.99 | G33: =IFERROR(F33*(1-VLOOKUP(C33,ГОЛОВНА!K:L,2,0)), "-") -> 1132.99
A34: 96510162 | B34: =VLOOKUP(A34,'DATA (2)'!A:F,2,FALSE) -> Глибинний насос SQE3-105 1,85кВт 220-240 | C34: =VLOOKUP(A34,'DATA (2)'!A:F,4,FALSE) -> DC | D34: FT | F34: =VLOOKUP(A34,'DATA (2)'!A:F,5,FALSE) -> 1232.67 | G34: =IFERROR(F34*(1-VLOOKUP(C34,ГОЛОВНА!K:L,2,0)), "-") -> 1232.67
A35: 96510163 | B35: =VLOOKUP(A35,'DATA (2)'!A:F,2,FALSE) -> Глибинний насос SQE5-15 0,7кВт 220-240В | C35: =VLOOKUP(A35,'DATA (2)'!A:F,4,FALSE) -> DC | F35: =VLOOKUP(A35,'DATA (2)'!A:F,5,FALSE) -> 636.7 | G35: =IFERROR(F35*(1-VLOOKUP(C35,ГОЛОВНА!K:L,2,0)), "-") -> 636.7
A36: 96510164 | B36: =VLOOKUP(A36,'DATA (2)'!A:F,2,FALSE) -> Глибинний насос SQE5-25 0,7кВт 220-240В | C36: =VLOOKUP(A36,'DATA (2)'!A:F,4,FALSE) -> DC | F36: =VLOOKUP(A36,'DATA (2)'!A:F,5,FALSE) -> 664.28 | G36: =IFERROR(F36*(1-VLOOKUP(C36,ГОЛОВНА!K:L,2,0)), "-") -> 664.28
A37: 96510165 | B37: =VLOOKUP(A37,'DATA (2)'!A:F,2,FALSE) -> Глибинний насос SQE5-35 1,15кВт 220-240В | C37: =VLOOKUP(A37,'DATA (2)'!A:F,4,FALSE) -> DC | F37: =VLOOKUP(A37,'DATA (2)'!A:F,5,FALSE) -> 789.01 | G37: =IFERROR(F37*(1-VLOOKUP(C37,ГОЛОВНА!K:L,2,0)), "-") -> 789.01
A38: 96510166 | B38: =VLOOKUP(A38,'DATA (2)'!A:F,2,FALSE) -> Глибинний насос SQE5-50 1,68кВт 220-240В | C38: =VLOOKUP(A38,'DATA (2)'!A:F,4,FALSE) -> DC | F38: =VLOOKUP(A38,'DATA (2)'!A:F,5,FALSE) -> 882.22 | G38: =IFERROR(F38*(1-VLOOKUP(C38,ГОЛОВНА!K:L,2,0)), "-") -> 882.22
A39: 96510167 | B39: =VLOOKUP(A39,'DATA (2)'!A:F,2,FALSE) -> Глибинний насос SQE5-60 1,68кВт 220-240В | C39: =VLOOKUP(A39,'DATA (2)'!A:F,4,FALSE) -> DC | F39: =VLOOKUP(A39,'DATA (2)'!A:F,5,FALSE) -> 1192.62 | G39: =IFERROR(F39*(1-VLOOKUP(C39,ГОЛОВНА!K:L,2,0)), "-") -> 1192.62
A40: 96510168 | B40: =VLOOKUP(A40,'DATA (2)'!A:F,2,FALSE) -> Глибинний насос SQE5-70 1,85кВт 220-240В | C40: =VLOOKUP(A40,'DATA (2)'!A:F,4,FALSE) -> DC | F40: =VLOOKUP(A40,'DATA (2)'!A:F,5,FALSE) -> 1232.67 | G40: =IFERROR(F40*(1-VLOOKUP(C40,ГОЛОВНА!K:L,2,0)), "-") -> 1232.67
A41: 96510169 | B41: =VLOOKUP(A41,'DATA (2)'!A:F,2,FALSE) -> Глибинний насос SQE7-15 0,7кВт 220-240В | C41: =VLOOKUP(A41,'DATA (2)'!A:F,4,FALSE) -> DC | F41: =VLOOKUP(A41,'DATA (2)'!A:F,5,FALSE) -> 871.67 | G41: =IFERROR(F41*(1-VLOOKUP(C41,ГОЛОВНА!K:L,2,0)), "-") -> 871.67
A42: 96510170 | B42: =VLOOKUP(A42,'DATA (2)'!A:F,2,FALSE) -> Глибинний насос SQE7-30 1,15кВт 220-240В | C42: =VLOOKUP(A42,'DATA (2)'!A:F,4,FALSE) -> DC | F42: =VLOOKUP(A42,'DATA (2)'!A:F,5,FALSE) -> 947.89 | G42: =IFERROR(F42*(1-VLOOKUP(C42,ГОЛОВНА!K:L,2,0)), "-") -> 947.89
A43: 96510171 | B43: =VLOOKUP(A43,'DATA (2)'!A:F,2,FALSE) -> Глибинний насос SQE7-40 1,68кВт 220-240В | C43: =VLOOKUP(A43,'DATA (2)'!A:F,4,FALSE) -> DC | F43: =VLOOKUP(A43,'DATA (2)'!A:F,5,FALSE) -> 1213.03 | G43: =IFERROR(F43*(1-VLOOKUP(C43,ГОЛОВНА!K:L,2,0)), "-") -> 1213.03
A44: 97778403 | B44: =VLOOKUP(A44,'DATA (2)'!A:F,2,FALSE) -> Глибинний насос SQE 2- 35 NE 0.70kW 200 | C44: =VLOOKUP(A44,'DATA (2)'!A:F,4,FALSE) -> DC | F44: =VLOOKUP(A44,'DATA (2)'!A:F,5,FALSE) -> 894.95 | G44: =IFERROR(F44*(1-VLOOKUP(C44,ГОЛОВНА!K:L,2,0)), "-") -> 894.95
A45: 96524509 | B45: =VLOOKUP(A45,'DATA (2)'!A:F,2,FALSE) -> Занурений насос SQE5-50 + 40m 3x1,5mm | C45: =VLOOKUP(A45,'DATA (2)'!A:F,4,FALSE) -> DC | F45: =VLOOKUP(A45,'DATA (2)'!A:F,5,FALSE) -> 1717 | G45: =IFERROR(F45*(1-VLOOKUP(C45,ГОЛОВНА!K:L,2,0)), "-") -> 1717
A46: 96510178 | B46: =VLOOKUP(A46,'DATA (2)'!A:F,2,FALSE) -> Глибинний насос SQ1-35 0,7кВт 220-240В | C46: =VLOOKUP(A46,'DATA (2)'!A:F,4,FALSE) -> DC | F46: =VLOOKUP(A46,'DATA (2)'!A:F,5,FALSE) -> 570.81 | G46: =IFERROR(F46*(1-VLOOKUP(C46,ГОЛОВНА!K:L,2,0)), "-") -> 570.81
A47: 96510179 | B47: =VLOOKUP(A47,'DATA (2)'!A:F,2,FALSE) -> Глибинний насос SQ1-50 0,7кВт 220-240В | C47: =VLOOKUP(A47,'DATA (2)'!A:F,4,FALSE) -> DC | D47: FT | F47: =VLOOKUP(A47,'DATA (2)'!A:F,5,FALSE) -> 616.59 | G47: =IFERROR(F47*(1-VLOOKUP(C47,ГОЛОВНА!K:L,2,0)), "-") -> 616.59
A48: 96510190 | B48: =VLOOKUP(A48,'DATA (2)'!A:F,2,FALSE) -> Глибинний насос SQ1-65 0,7кВт 220-240В | C48: =VLOOKUP(A48,'DATA (2)'!A:F,4,FALSE) -> DC | D48: FT | F48: =VLOOKUP(A48,'DATA (2)'!A:F,5,FALSE) -> 663.67 | G48: =IFERROR(F48*(1-VLOOKUP(C48,ГОЛОВНА!K:L,2,0)), "-") -> 663.67
A49: 96510191 | B49: =VLOOKUP(A49,'DATA (2)'!A:F,2,FALSE) -> Глибинний насос SQ1-80 1,15кВт 220-240В | C49: =VLOOKUP(A49,'DATA (2)'!A:F,4,FALSE) -> DC | F49: =VLOOKUP(A49,'DATA (2)'!A:F,5,FALSE) -> 800.94 | G49: =IFERROR(F49*(1-VLOOKUP(C49,ГОЛОВНА!K:L,2,0)), "-") -> 800.94
A50: 96510192 | B50: =VLOOKUP(A50,'DATA (2)'!A:F,2,FALSE) -> Глибинний насос SQ1-95 1,15кВт 220-240В | C50: =VLOOKUP(A50,'DATA (2)'!A:F,4,FALSE) -> DC | F50: =VLOOKUP(A50,'DATA (2)'!A:F,5,FALSE) -> 834.04 | G50: =IFERROR(F50*(1-VLOOKUP(C50,ГОЛОВНА!K:L,2,0)), "-") -> 834.04
A51: 96510193 | B51: =VLOOKUP(A51,'DATA (2)'!A:F,2,FALSE) -> Глибинний насос SQ1-110 1,15кВт 220-240В | C51: =VLOOKUP(A51,'DATA (2)'!A:F,4,FALSE) -> DC | F51: =VLOOKUP(A51,'DATA (2)'!A:F,5,FALSE) -> 867.11 | G51: =IFERROR(F51*(1-VLOOKUP(C51,ГОЛОВНА!K:L,2,0)), "-") -> 867.11
A52: 96510194 | B52: =VLOOKUP(A52,'DATA (2)'!A:F,2,FALSE) -> Глибинний насос SQ1-125 1,68кВт 220-240В | C52: =VLOOKUP(A52,'DATA (2)'!A:F,4,FALSE) -> DC | F52: =VLOOKUP(A52,'DATA (2)'!A:F,5,FALSE) -> 1033.62 | G52: =IFERROR(F52*(1-VLOOKUP(C52,ГОЛОВНА!K:L,2,0)), "-") -> 1033.62
A53: 96510195 | B53: =VLOOKUP(A53,'DATA (2)'!A:F,2,FALSE) -> Глибинний насос SQ1-140 1,68кВт 220-240В | C53: =VLOOKUP(A53,'DATA (2)'!A:F,4,FALSE) -> DC | F53: =VLOOKUP(A53,'DATA (2)'!A:F,5,FALSE) -> 1067.94 | G53: =IFERROR(F53*(1-VLOOKUP(C53,ГОЛОВНА!K:L,2,0)), "-") -> 1067.94
A54: 96510196 | B54: =VLOOKUP(A54,'DATA (2)'!A:F,2,FALSE) -> Глибинний насос SQ1-155 1,85кВт 220-240В | C54: =VLOOKUP(A54,'DATA (2)'!A:F,4,FALSE) -> DC | F54: =VLOOKUP(A54,'DATA (2)'!A:F,5,FALSE) -> 1101.01 | G54: =IFERROR(F54*(1-VLOOKUP(C54,ГОЛОВНА!K:L,2,0)), "-") -> 1101.01
A55: 96510198 | B55: =VLOOKUP(A55,'DATA (2)'!A:F,2,FALSE) -> Глибинний насос SQ2-35 0,7кВт 220-240В | C55: =VLOOKUP(A55,'DATA (2)'!A:F,4,FALSE) -> DC | D55: FT | F55: =VLOOKUP(A55,'DATA (2)'!A:F,5,FALSE) -> 602.79 | G55: =IFERROR(F55*(1-VLOOKUP(C55,ГОЛОВНА!K:L,2,0)), "-") -> 602.79
A56: 96510199 | B56: =VLOOKUP(A56,'DATA (2)'!A:F,2,FALSE) -> Глибинний насос SQ2-55 0,7кВт 220-240В | C56: =VLOOKUP(A56,'DATA (2)'!A:F,4,FALSE) -> DC | D56: S | F56: =VLOOKUP(A56,'DATA (2)'!A:F,5,FALSE) -> 640.41 | G56: =IFERROR(F56*(1-VLOOKUP(C56,ГОЛОВНА!K:L,2,0)), "-") -> 640.41
A57: 96510200 | B57: =VLOOKUP(A57,'DATA (2)'!A:F,2,FALSE) -> Глибинний насос SQ2-70 1,15кВт 220-240В | C57: =VLOOKUP(A57,'DATA (2)'!A:F,4,FALSE) -> DC | D57: S | F57: =VLOOKUP(A57,'DATA (2)'!A:F,5,FALSE) -> 709.23 | G57: =IFERROR(F57*(1-VLOOKUP(C57,ГОЛОВНА!K:L,2,0)), "-") -> 709.23
A58: 96510201 | B58: =VLOOKUP(A58,'DATA (2)'!A:F,2,FALSE) -> Глибинний насос SQ2-85 1,15кВт 220-240В | C58: =VLOOKUP(A58,'DATA (2)'!A:F,4,FALSE) -> DC | D58: S | F58: =VLOOKUP(A58,'DATA (2)'!A:F,5,FALSE) -> 793.72 | G58: =IFERROR(F58*(1-VLOOKUP(C58,ГОЛОВНА!K:L,2,0)), "-") -> 793.72
A59: 96510202 | B59: =VLOOKUP(A59,'DATA (2)'!A:F,2,FALSE) -> Глибинний насос SQ2-100 1,68кВт 220-240В | C59: =VLOOKUP(A59,'DATA (2)'!A:F,4,FALSE) -> DC | D59: S | F59: =VLOOKUP(A59,'DATA (2)'!A:F,5,FALSE) -> 984.63 | G59: =IFERROR(F59*(1-VLOOKUP(C59,ГОЛОВНА!K:L,2,0)), "-") -> 984.63
A60: 96510203 | B60: =VLOOKUP(A60,'DATA (2)'!A:F,2,FALSE) -> Глибинний насос SQ2-115 1,85кВт 220-240В | C60: =VLOOKUP(A60,'DATA (2)'!A:F,4,FALSE) -> DC | D60: S | F60: =VLOOKUP(A60,'DATA (2)'!A:F,5,FALSE) -> 1019.68 | G60: =IFERROR(F60*(1-VLOOKUP(C60,ГОЛОВНА!K:L,2,0)), "-") -> 1019.68
A61: 96524434 | B61: =VLOOKUP(A61,'DATA (2)'!A:F,2,FALSE) -> Глибинний насос з кабелем SQ2-70 (30м, 3 | C61: =VLOOKUP(A61,'DATA (2)'!A:F,4,FALSE) -> DC | F61: =VLOOKUP(A61,'DATA (2)'!A:F,5,FALSE) -> 856.3 | G61: =IFERROR(F61*(1-VLOOKUP(C61,ГОЛОВНА!K:L,2,0)), "-") -> 856.3
A62: 96160906 | B62: =VLOOKUP(A62,'DATA (2)'!A:F,2,FALSE) -> SQ pump cpl. with fitting s | C62: =VLOOKUP(A62,'DATA (2)'!A:F,4,FALSE) -> DC | F62: =VLOOKUP(A62,'DATA (2)'!A:F,5,FALSE) -> 771.52 | G62: =IFERROR(F62*(1-VLOOKUP(C62,ГОЛОВНА!K:L,2,0)), "-") -> 771.52
A63: 96160907 | B63: =VLOOKUP(A63,'DATA (2)'!A:F,2,FALSE) -> SQ pump cpl. with fitting s | C63: =VLOOKUP(A63,'DATA (2)'!A:F,4,FALSE) -> DC | F63: =VLOOKUP(A63,'DATA (2)'!A:F,5,FALSE) -> 924.84 | G63: =IFERROR(F63*(1-VLOOKUP(C63,ГОЛОВНА!K:L,2,0)), "-") -> 924.84
A64: 96160908 | B64: =VLOOKUP(A64,'DATA (2)'!A:F,2,FALSE) -> Пакет для водопостачання SQ3-40 з кабеле | C64: =VLOOKUP(A64,'DATA (2)'!A:F,4,FALSE) -> DC | F64: =VLOOKUP(A64,'DATA (2)'!A:F,5,FALSE) -> 981.92 | G64: =IFERROR(F64*(1-VLOOKUP(C64,ГОЛОВНА!K:L,2,0)), "-") -> 981.92
A65: 96510204 | B65: =VLOOKUP(A65,'DATA (2)'!A:F,2,FALSE) -> Глибинний насос SQ3-30 0,7кВт 220-240В | C65: =VLOOKUP(A65,'DATA (2)'!A:F,4,FALSE) -> DC | F65: =VLOOKUP(A65,'DATA (2)'!A:F,5,FALSE) -> 567.04 | G65: =IFERROR(F65*(1-VLOOKUP(C65,ГОЛОВНА!K:L,2,0)), "-") -> 567.04
A66: 96510205 | B66: =VLOOKUP(A66,'DATA (2)'!A:F,2,FALSE) -> Глибинний насос SQ3-40 0,7кВт 220-240В | C66: =VLOOKUP(A66,'DATA (2)'!A:F,4,FALSE) -> DC | D66: FT | F66: =VLOOKUP(A66,'DATA (2)'!A:F,5,FALSE) -> 600.13 | G66: =IFERROR(F66*(1-VLOOKUP(C66,ГОЛОВНА!K:L,2,0)), "-") -> 600.13
A67: 96510206 | B67: =VLOOKUP(A67,'DATA (2)'!A:F,2,FALSE) -> Глибинний насос SQ3-55 1,15кВт 220-240В | C67: =VLOOKUP(A67,'DATA (2)'!A:F,4,FALSE) -> DC | D67: S | F67: =VLOOKUP(A67,'DATA (2)'!A:F,5,FALSE) -> 694.14 | G67: =IFERROR(F67*(1-VLOOKUP(C67,ГОЛОВНА!K:L,2,0)), "-") -> 694.14
A68: 96510207 | B68: =VLOOKUP(A68,'DATA (2)'!A:F,2,FALSE) -> Глибинний насос SQ3-65 1,15кВт 220-240В | C68: =VLOOKUP(A68,'DATA (2)'!A:F,4,FALSE) -> DC | D68: S | F68: =VLOOKUP(A68,'DATA (2)'!A:F,5,FALSE) -> 776.84 | G68: =IFERROR(F68*(1-VLOOKUP(C68,ГОЛОВНА!K:L,2,0)), "-") -> 776.84
A69: 96510208 | B69: =VLOOKUP(A69,'DATA (2)'!A:F,2,FALSE) -> Глибинний насос SQ3-80 1,68кВт 220-240В | C69: =VLOOKUP(A69,'DATA (2)'!A:F,4,FALSE) -> DC | D69: S | F69: =VLOOKUP(A69,'DATA (2)'!A:F,5,FALSE) -> 963.67 | G69: =IFERROR(F69*(1-VLOOKUP(C69,ГОЛОВНА!K:L,2,0)), "-") -> 963.67
A70: 96510209 | B70: =VLOOKUP(A70,'DATA (2)'!A:F,2,FALSE) -> Глибинний насос SQ3-95 1,68кВт 220-240В | C70: =VLOOKUP(A70,'DATA (2)'!A:F,4,FALSE) -> DC | D70: S | F70: =VLOOKUP(A70,'DATA (2)'!A:F,5,FALSE) -> 997.98 | G70: =IFERROR(F70*(1-VLOOKUP(C70,ГОЛОВНА!K:L,2,0)), "-") -> 997.98
A71: 96510210 | B71: =VLOOKUP(A71,'DATA (2)'!A:F,2,FALSE) -> Глибинний насос SQ3-105 1,85кВт 220-240В | C71: =VLOOKUP(A71,'DATA (2)'!A:F,4,FALSE) -> DC | D71: S | F71: =VLOOKUP(A71,'DATA (2)'!A:F,5,FALSE) -> 1031.07 | G71: =IFERROR(F71*(1-VLOOKUP(C71,ГОЛОВНА!K:L,2,0)), "-") -> 1031.07
A72: 96524445 | B72: =VLOOKUP(A72,'DATA (2)'!A:F,2,FALSE) -> Глибинний насос з кабелем SQ3-80 (30м, 3 | C72: =VLOOKUP(A72,'DATA (2)'!A:F,4,FALSE) -> DC | F72: =VLOOKUP(A72,'DATA (2)'!A:F,5,FALSE) -> 1107.36 | G72: =IFERROR(F72*(1-VLOOKUP(C72,ГОЛОВНА!K:L,2,0)), "-") -> 1107.36
A73: 96510211 | B73: =VLOOKUP(A73,'DATA (2)'!A:F,2,FALSE) -> Глибинний насос SQ5-15 0,7кВт 220-240В | C73: =VLOOKUP(A73,'DATA (2)'!A:F,4,FALSE) -> DC | F73: =VLOOKUP(A73,'DATA (2)'!A:F,5,FALSE) -> 560.71 | G73: =IFERROR(F73*(1-VLOOKUP(C73,ГОЛОВНА!K:L,2,0)), "-") -> 560.71
A74: 96510212 | B74: =VLOOKUP(A74,'DATA (2)'!A:F,2,FALSE) -> Глибинний насос SQ5-25 0,7кВт 220-240В | C74: =VLOOKUP(A74,'DATA (2)'!A:F,4,FALSE) -> DC | F74: =VLOOKUP(A74,'DATA (2)'!A:F,5,FALSE) -> 573.47 | G74: =IFERROR(F74*(1-VLOOKUP(C74,ГОЛОВНА!K:L,2,0)), "-") -> 573.47
A75: 96510213 | B75: =VLOOKUP(A75,'DATA (2)'!A:F,2,FALSE) -> Глибинний насос SQ5-35 1,15кВт 220-240В | C75: =VLOOKUP(A75,'DATA (2)'!A:F,4,FALSE) -> DC | D75: FT | F75: =VLOOKUP(A75,'DATA (2)'!A:F,5,FALSE) -> 694.14 | G75: =IFERROR(F75*(1-VLOOKUP(C75,ГОЛОВНА!K:L,2,0)), "-") -> 694.14
A76: 96510214 | B76: =VLOOKUP(A76,'DATA (2)'!A:F,2,FALSE) -> Глибинний насос SQ5-50 1,68кВт 220-240В | C76: =VLOOKUP(A76,'DATA (2)'!A:F,4,FALSE) -> DC | F76: =VLOOKUP(A76,'DATA (2)'!A:F,5,FALSE) -> 776.83 | G76: =IFERROR(F76*(1-VLOOKUP(C76,ГОЛОВНА!K:L,2,0)), "-") -> 776.83
A77: 96510215 | B77: =VLOOKUP(A77,'DATA (2)'!A:F,2,FALSE) -> Глибинний насос SQ5-60 1,68кВт 220-240В | C77: =VLOOKUP(A77,'DATA (2)'!A:F,4,FALSE) -> DC | F77: =VLOOKUP(A77,'DATA (2)'!A:F,5,FALSE) -> 997.99 | G77: =IFERROR(F77*(1-VLOOKUP(C77,ГОЛОВНА!K:L,2,0)), "-") -> 997.99
A78: 96510217 | B78: =VLOOKUP(A78,'DATA (2)'!A:F,2,FALSE) -> Глибинний насос SQ5-70 1,85кВт 220-240В | C78: =VLOOKUP(A78,'DATA (2)'!A:F,4,FALSE) -> DC | D78: S | F78: =VLOOKUP(A78,'DATA (2)'!A:F,5,FALSE) -> 1031.07 | G78: =IFERROR(F78*(1-VLOOKUP(C78,ГОЛОВНА!K:L,2,0)), "-") -> 1031.07
A79: 96510218 | B79: =VLOOKUP(A79,'DATA (2)'!A:F,2,FALSE) -> Глибинний насос SQ7-15 0,7кВт 220-240В | C79: =VLOOKUP(A79,'DATA (2)'!A:F,4,FALSE) -> DC | F79: =VLOOKUP(A79,'DATA (2)'!A:F,5,FALSE) -> 767.89 | G79: =IFERROR(F79*(1-VLOOKUP(C79,ГОЛОВНА!K:L,2,0)), "-") -> 767.89
A80: 96510219 | B80: =VLOOKUP(A80,'DATA (2)'!A:F,2,FALSE) -> Глибинний насос SQ7-30 1,15кВт 220-240В | C80: =VLOOKUP(A80,'DATA (2)'!A:F,4,FALSE) -> DC | F80: =VLOOKUP(A80,'DATA (2)'!A:F,5,FALSE) -> 834.04 | G80: =IFERROR(F80*(1-VLOOKUP(C80,ГОЛОВНА!K:L,2,0)), "-") -> 834.04
A81: 96510220 | B81: =VLOOKUP(A81,'DATA (2)'!A:F,2,FALSE) -> Глибинний насос SQ7-40 1,68кВт 220-240В | C81: =VLOOKUP(A81,'DATA (2)'!A:F,4,FALSE) -> DC | F81: =VLOOKUP(A81,'DATA (2)'!A:F,5,FALSE) -> 1067.94 | G81: =IFERROR(F81*(1-VLOOKUP(C81,ГОЛОВНА!K:L,2,0)), "-") -> 1067.94
A82: 96160370 | B82: =VLOOKUP(A82,'DATA (2)'!A:F,2,FALSE) -> Занурений насос SQ 1- 35 N 0.70kW 200 | C82: =VLOOKUP(A82,'DATA (2)'!A:F,4,FALSE) -> DC | F82: =VLOOKUP(A82,'DATA (2)'!A:F,5,FALSE) -> 639.48 | G82: =IFERROR(F82*(1-VLOOKUP(C82,ГОЛОВНА!K:L,2,0)), "-") -> 639.48
A83: 96160371 | B83: =VLOOKUP(A83,'DATA (2)'!A:F,2,FALSE) -> Глибинний насос SQ 1- 50 N 0.70kW 200 | C83: =VLOOKUP(A83,'DATA (2)'!A:F,4,FALSE) -> DC | F83: =VLOOKUP(A83,'DATA (2)'!A:F,5,FALSE) -> 690.75 | G83: =IFERROR(F83*(1-VLOOKUP(C83,ГОЛОВНА!K:L,2,0)), "-") -> 690.75
A84: 96160372 | B84: =VLOOKUP(A84,'DATA (2)'!A:F,2,FALSE) -> Занурений насос SQ 1- 65 N 0.70kW 200 | C84: =VLOOKUP(A84,'DATA (2)'!A:F,4,FALSE) -> DC | F84: =VLOOKUP(A84,'DATA (2)'!A:F,5,FALSE) -> 769.43 | G84: =IFERROR(F84*(1-VLOOKUP(C84,ГОЛОВНА!K:L,2,0)), "-") -> 769.43
A85: 96160373 | B85: =VLOOKUP(A85,'DATA (2)'!A:F,2,FALSE) -> Занурений насос SQ 1- 80 N 1.15kW 200 | C85: =VLOOKUP(A85,'DATA (2)'!A:F,4,FALSE) -> DC | F85: =VLOOKUP(A85,'DATA (2)'!A:F,5,FALSE) -> 897.22 | G85: =IFERROR(F85*(1-VLOOKUP(C85,ГОЛОВНА!K:L,2,0)), "-") -> 897.22
A86: 96160374 | B86: =VLOOKUP(A86,'DATA (2)'!A:F,2,FALSE) -> Насос SQ 1- 95 N 1.15kW 200-240V 50/60 | C86: =VLOOKUP(A86,'DATA (2)'!A:F,4,FALSE) -> DC | F86: =VLOOKUP(A86,'DATA (2)'!A:F,5,FALSE) -> 934.32 | G86: =IFERROR(F86*(1-VLOOKUP(C86,ГОЛОВНА!K:L,2,0)), "-") -> 934.32
A87: 96160375 | B87: =VLOOKUP(A87,'DATA (2)'!A:F,2,FALSE) -> Занурений насос SQ 1-110 N 1.15kW 200 | C87: =VLOOKUP(A87,'DATA (2)'!A:F,4,FALSE) -> DC | F87: =VLOOKUP(A87,'DATA (2)'!A:F,5,FALSE) -> 971.35 | G87: =IFERROR(F87*(1-VLOOKUP(C87,ГОЛОВНА!K:L,2,0)), "-") -> 971.35
A88: 96160376 | B88: =VLOOKUP(A88,'DATA (2)'!A:F,2,FALSE) -> Занурений насос SQ 1-125 N 1.68kW 200 | C88: =VLOOKUP(A88,'DATA (2)'!A:F,4,FALSE) -> DC | F88: =VLOOKUP(A88,'DATA (2)'!A:F,5,FALSE) -> 1157.93 | G88: =IFERROR(F88*(1-VLOOKUP(C88,ГОЛОВНА!K:L,2,0)), "-") -> 1157.93
A89: 96160377 | B89: =VLOOKUP(A89,'DATA (2)'!A:F,2,FALSE) -> Занурений насос SQ 1-140 N 1.68kW 200 | C89: =VLOOKUP(A89,'DATA (2)'!A:F,4,FALSE) -> DC | F89: =VLOOKUP(A89,'DATA (2)'!A:F,5,FALSE) -> 1196.42 | G89: =IFERROR(F89*(1-VLOOKUP(C89,ГОЛОВНА!K:L,2,0)), "-") -> 1196.42
A90: 96160378 | B90: =VLOOKUP(A90,'DATA (2)'!A:F,2,FALSE) -> Занурений насос SQ 1-155 N 1.73kW 200 | C90: =VLOOKUP(A90,'DATA (2)'!A:F,4,FALSE) -> DC | F90: =VLOOKUP(A90,'DATA (2)'!A:F,5,FALSE) -> 1233.39 | G90: =IFERROR(F90*(1-VLOOKUP(C90,ГОЛОВНА!K:L,2,0)), "-") -> 1233.39
A91: 96160379 | B91: =VLOOKUP(A91,'DATA (2)'!A:F,2,FALSE) -> Занурений насос SQ 2- 35 N 0.70kW 200 | C91: =VLOOKUP(A91,'DATA (2)'!A:F,4,FALSE) -> DC | F91: =VLOOKUP(A91,'DATA (2)'!A:F,5,FALSE) -> 660.83 | G91: =IFERROR(F91*(1-VLOOKUP(C91,ГОЛОВНА!K:L,2,0)), "-") -> 660.83
A92: 96160380 | B92: =VLOOKUP(A92,'DATA (2)'!A:F,2,FALSE) -> Занурений насос SQ 2- 55 N 0.70kW 200 | C92: =VLOOKUP(A92,'DATA (2)'!A:F,4,FALSE) -> DC | F92: =VLOOKUP(A92,'DATA (2)'!A:F,5,FALSE) -> 702.17 | G92: =IFERROR(F92*(1-VLOOKUP(C92,ГОЛОВНА!K:L,2,0)), "-") -> 702.17
A93: 96160381 | B93: =VLOOKUP(A93,'DATA (2)'!A:F,2,FALSE) -> Глибинний насос SQ 2- 70 N 1.15kW 200 | C93: =VLOOKUP(A93,'DATA (2)'!A:F,4,FALSE) -> DC | F93: =VLOOKUP(A93,'DATA (2)'!A:F,5,FALSE) -> 777.65 | G93: =IFERROR(F93*(1-VLOOKUP(C93,ГОЛОВНА!K:L,2,0)), "-") -> 777.65
A94: 96160382 | B94: =VLOOKUP(A94,'DATA (2)'!A:F,2,FALSE) -> Занурений насос SQ 2- 85 N 1.15kW 200 | C94: =VLOOKUP(A94,'DATA (2)'!A:F,4,FALSE) -> DC | F94: =VLOOKUP(A94,'DATA (2)'!A:F,5,FALSE) -> 870.21 | G94: =IFERROR(F94*(1-VLOOKUP(C94,ГОЛОВНА!K:L,2,0)), "-") -> 870.21
A95: 96160383 | B95: =VLOOKUP(A95,'DATA (2)'!A:F,2,FALSE) -> Занурений насос SQ 2-100 N 1.68kW 200 | C95: =VLOOKUP(A95,'DATA (2)'!A:F,4,FALSE) -> DC | F95: =VLOOKUP(A95,'DATA (2)'!A:F,5,FALSE) -> 1079.54 | G95: =IFERROR(F95*(1-VLOOKUP(C95,ГОЛОВНА!K:L,2,0)), "-") -> 1079.54
A96: 96160384 | B96: =VLOOKUP(A96,'DATA (2)'!A:F,2,FALSE) -> Глибинний насос SQ2-115 N 1.85кВт 200-24 | C96: =VLOOKUP(A96,'DATA (2)'!A:F,4,FALSE) -> DC | F96: =VLOOKUP(A96,'DATA (2)'!A:F,5,FALSE) -> 1118.03 | G96: =IFERROR(F96*(1-VLOOKUP(C96,ГОЛОВНА!K:L,2,0)), "-") -> 1118.03
A97: 96160386 | B97: =VLOOKUP(A97,'DATA (2)'!A:F,2,FALSE) -> Занурений насос SQ 3- 30 N 0.63kW 200 | C97: =VLOOKUP(A97,'DATA (2)'!A:F,4,FALSE) -> DC | F97: =VLOOKUP(A97,'DATA (2)'!A:F,5,FALSE) -> 635.26 | G97: =IFERROR(F97*(1-VLOOKUP(C97,ГОЛОВНА!K:L,2,0)), "-") -> 635.26
A98: 96160387 | B98: =VLOOKUP(A98,'DATA (2)'!A:F,2,FALSE) -> Глибинний насос SQ3-40 N 0.63kW 200-240V | C98: =VLOOKUP(A98,'DATA (2)'!A:F,4,FALSE) -> DC | F98: =VLOOKUP(A98,'DATA (2)'!A:F,5,FALSE) -> 672.24 | G98: =IFERROR(F98*(1-VLOOKUP(C98,ГОЛОВНА!K:L,2,0)), "-") -> 672.24
A99: 96160388 | B99: =VLOOKUP(A99,'DATA (2)'!A:F,2,FALSE) -> Занурений насос SQ 3- 55 N 1.15kW 200 | C99: =VLOOKUP(A99,'DATA (2)'!A:F,4,FALSE) -> DC | F99: =VLOOKUP(A99,'DATA (2)'!A:F,5,FALSE) -> 777.65 | G99: =IFERROR(F99*(1-VLOOKUP(C99,ГОЛОВНА!K:L,2,0)), "-") -> 777.65
A100: 96160389 | B100: =VLOOKUP(A100,'DATA (2)'!A:F,2,FALSE) -> Занурений насос SQ 3- 65 N 1.05kW 200 | C100: =VLOOKUP(A100,'DATA (2)'!A:F,4,FALSE) -> DC | F100: =VLOOKUP(A100,'DATA (2)'!A:F,5,FALSE) -> 870.21 | G100: =IFERROR(F100*(1-VLOOKUP(C100,ГОЛОВНА!K:L,2,0)), "-") -> 870.21
A101: 96160390 | B101: =VLOOKUP(A101,'DATA (2)'!A:F,2,FALSE) -> Занурений насос SQ 3- 80 N 1.68kW 200 | C101: =VLOOKUP(A101,'DATA (2)'!A:F,4,FALSE) -> DC | F101: =VLOOKUP(A101,'DATA (2)'!A:F,5,FALSE) -> 1079.54 | G101: =IFERROR(F101*(1-VLOOKUP(C101,ГОЛОВНА!K:L,2,0)), "-") -> 1079.54
A102: 96160391 | B102: =VLOOKUP(A102,'DATA (2)'!A:F,2,FALSE) -> Занурений насос SQ 3- 95 N 1.68kW 200 | C102: =VLOOKUP(A102,'DATA (2)'!A:F,4,FALSE) -> DC | F102: =VLOOKUP(A102,'DATA (2)'!A:F,5,FALSE) -> 1118.03 | G102: =IFERROR(F102*(1-VLOOKUP(C102,ГОЛОВНА!K:L,2,0)), "-") -> 1118.03
A103: 96160392 | B103: =VLOOKUP(A103,'DATA (2)'!A:F,2,FALSE) -> Занурений насос SQ 3-105 N 1.85kW 200 | C103: =VLOOKUP(A103,'DATA (2)'!A:F,4,FALSE) -> DC | F103: =VLOOKUP(A103,'DATA (2)'!A:F,5,FALSE) -> 1155.06 | G103: =IFERROR(F103*(1-VLOOKUP(C103,ГОЛОВНА!K:L,2,0)), "-") -> 1155.06
A104: 96160393 | B104: =VLOOKUP(A104,'DATA (2)'!A:F,2,FALSE) -> Занурений насос SQ 5- 15 N 0.70kW 200 | C104: =VLOOKUP(A104,'DATA (2)'!A:F,4,FALSE) -> DC | F104: =VLOOKUP(A104,'DATA (2)'!A:F,5,FALSE) -> 628.08 | G104: =IFERROR(F104*(1-VLOOKUP(C104,ГОЛОВНА!K:L,2,0)), "-") -> 628.08
A105: 96160394 | B105: =VLOOKUP(A105,'DATA (2)'!A:F,2,FALSE) -> Занурений насос SQ 5- 25 N 0.70kW 200 | C105: =VLOOKUP(A105,'DATA (2)'!A:F,4,FALSE) -> DC | F105: =VLOOKUP(A105,'DATA (2)'!A:F,5,FALSE) -> 653.74 | G105: =IFERROR(F105*(1-VLOOKUP(C105,ГОЛОВНА!K:L,2,0)), "-") -> 653.74
A106: 96160395 | B106: =VLOOKUP(A106,'DATA (2)'!A:F,2,FALSE) -> Занурений насос SQ 5- 35 N 1.15kW 200 | C106: =VLOOKUP(A106,'DATA (2)'!A:F,4,FALSE) -> DC | F106: =VLOOKUP(A106,'DATA (2)'!A:F,5,FALSE) -> 777.65 | G106: =IFERROR(F106*(1-VLOOKUP(C106,ГОЛОВНА!K:L,2,0)), "-") -> 777.65
A107: 96160396 | B107: =VLOOKUP(A107,'DATA (2)'!A:F,2,FALSE) -> Занурений насос SQ 5- 50 N 1.68kW 200 | C107: =VLOOKUP(A107,'DATA (2)'!A:F,4,FALSE) -> DC | F107: =VLOOKUP(A107,'DATA (2)'!A:F,5,FALSE) -> 867.36 | G107: =IFERROR(F107*(1-VLOOKUP(C107,ГОЛОВНА!K:L,2,0)), "-") -> 867.36
A108: 96160397 | B108: =VLOOKUP(A108,'DATA (2)'!A:F,2,FALSE) -> Занурений насос SQ 5- 60 N 1.68kW 200 | C108: =VLOOKUP(A108,'DATA (2)'!A:F,4,FALSE) -> DC | F108: =VLOOKUP(A108,'DATA (2)'!A:F,5,FALSE) -> 1118.03 | G108: =IFERROR(F108*(1-VLOOKUP(C108,ГОЛОВНА!K:L,2,0)), "-") -> 1118.03
A109: 96160398 | B109: =VLOOKUP(A109,'DATA (2)'!A:F,2,FALSE) -> Занурений насос SQ 5- 70 N 1.85kW 200 | C109: =VLOOKUP(A109,'DATA (2)'!A:F,4,FALSE) -> DC | F109: =VLOOKUP(A109,'DATA (2)'!A:F,5,FALSE) -> 1155.06 | G109: =IFERROR(F109*(1-VLOOKUP(C109,ГОЛОВНА!K:L,2,0)), "-") -> 1155.06
A110: 96160399 | B110: =VLOOKUP(A110,'DATA (2)'!A:F,2,FALSE) -> Занурений насос SQ 7- 15 N 0.70kW 200 | C110: =VLOOKUP(A110,'DATA (2)'!A:F,4,FALSE) -> DC | F110: =VLOOKUP(A110,'DATA (2)'!A:F,5,FALSE) -> 860.22 | G110: =IFERROR(F110*(1-VLOOKUP(C110,ГОЛОВНА!K:L,2,0)), "-") -> 860.22
A111: 96160400 | B111: =VLOOKUP(A111,'DATA (2)'!A:F,2,FALSE) -> Занурений насос SQ 7- 30 N 1.15kW 200 | C111: =VLOOKUP(A111,'DATA (2)'!A:F,4,FALSE) -> DC | F111: =VLOOKUP(A111,'DATA (2)'!A:F,5,FALSE) -> 934.32 | G111: =IFERROR(F111*(1-VLOOKUP(C111,ГОЛОВНА!K:L,2,0)), "-") -> 934.32
A112: 96160401 | B112: =VLOOKUP(A112,'DATA (2)'!A:F,2,FALSE) -> Занурений насос SQ 7- 40 N 1.68kW 200 | C112: =VLOOKUP(A112,'DATA (2)'!A:F,4,FALSE) -> DC | F112: =VLOOKUP(A112,'DATA (2)'!A:F,5,FALSE) -> 1196.42 | G112: =IFERROR(F112*(1-VLOOKUP(C112,ГОЛОВНА!K:L,2,0)), "-") -> 1196.42
B114: Аксесуари
A115: 96524504 | B115: =VLOOKUP(A115,'DATA (2)'!A:F,2,FALSE) -> Комплект пост. тиску без насоса SQE | C115: =VLOOKUP(A115,'DATA (2)'!A:F,4,FALSE) -> DC | D115: FT | F115: =VLOOKUP(A115,'DATA (2)'!A:F,5,FALSE) -> 597.28 | G115: =IFERROR(F115*(1-VLOOKUP(C115,ГОЛОВНА!K:L,2,0)), "-") -> 597.28
A116: 00ID8952 | B116: =VLOOKUP(A116,'DATA (2)'!A:F,2,FALSE) -> Реле тиску FF4-4 DAY 0,22-4 bar | C116: =VLOOKUP(A116,'DATA (2)'!A:F,4,FALSE) -> CW | D116: S | F116: =VLOOKUP(A116,'DATA (2)'!A:F,5,FALSE) -> 64.11 | G116: =IFERROR(F116*(1-VLOOKUP(C116,ГОЛОВНА!K:L,2,0)), "-") -> 64.11
A117: 00ID8953 | B117: =VLOOKUP(A117,'DATA (2)'!A:F,2,FALSE) -> Реле тиску FF4-8 DAY 0,5-8 bar | C117: =VLOOKUP(A117,'DATA (2)'!A:F,4,FALSE) -> CW | D117: S | F117: =VLOOKUP(A117,'DATA (2)'!A:F,5,FALSE) -> 64.11 | G117: =IFERROR(F117*(1-VLOOKUP(C117,ГОЛОВНА!K:L,2,0)), "-") -> 64.11
A118: 00ID8954 | B118: =VLOOKUP(A118,'DATA (2)'!A:F,2,FALSE) -> Реле тиску FF4-16 DAY 1-16 bar | C118: =VLOOKUP(A118,'DATA (2)'!A:F,4,FALSE) -> CW | D118: S | F118: =VLOOKUP(A118,'DATA (2)'!A:F,5,FALSE) -> 88.78 | G118: =IFERROR(F118*(1-VLOOKUP(C118,ГОЛОВНА!K:L,2,0)), "-") -> 88.78
A119: 96021473 | B119: =VLOOKUP(A119,'DATA (2)'!A:F,2,FALSE) -> Термоусадкова муфта 3х1,5-6мм2 | C119: =VLOOKUP(A119,'DATA (2)'!A:F,4,FALSE) -> DC | F119: =VLOOKUP(A119,'DATA (2)'!A:F,5,FALSE) -> 26.94 | G119: =IFERROR(F119*(1-VLOOKUP(C119,ГОЛОВНА!K:L,2,0)), "-") -> 26.94
A120: 96436753 | B120: =VLOOKUP(A120,'DATA (2)'!A:F,2,FALSE) -> Блок керування CU301 в зборі | C120: =VLOOKUP(A120,'DATA (2)'!A:F,4,FALSE) -> DC | F120: =VLOOKUP(A120,'DATA (2)'!A:F,5,FALSE) -> 283.46 | G120: =IFERROR(F120*(1-VLOOKUP(C120,ГОЛОВНА!K:L,2,0)), "-") -> 283.46
A121: 97512995 | B121: =VLOOKUP(A121,'DATA (2)'!A:F,2,FALSE) -> Накладні хомути (2шт.) D68/D88 | C121: =VLOOKUP(A121,'DATA (2)'!A:F,4,FALSE) -> DC | F121: =VLOOKUP(A121,'DATA (2)'!A:F,5,FALSE) -> 82.35 | G121: =IFERROR(F121*(1-VLOOKUP(C121,ГОЛОВНА!K:L,2,0)), "-") -> 82.35
A122: 98148594 | B122: =VLOOKUP(A122,'DATA (2)'!A:F,2,FALSE) -> Кожух охолодження SQ/SQE | C122: =VLOOKUP(A122,'DATA (2)'!A:F,4,FALSE) -> DC | F122: =VLOOKUP(A122,'DATA (2)'!A:F,5,FALSE) -> 260.13 | G122: =IFERROR(F122*(1-VLOOKUP(C122,ГОЛОВНА!K:L,2,0)), "-") -> 260.13
A123: 00ID7946 | B123: =VLOOKUP(A123,'DATA (2)'!A:F,2,FALSE) -> Кабель для питної води 3x1.5 мм2 | C123: =VLOOKUP(A123,'DATA (2)'!A:F,4,FALSE) -> WS | F123: =VLOOKUP(A123,'DATA (2)'!A:F,5,FALSE) -> 3.03 | G123: =IFERROR(F123*(1-VLOOKUP(C123,ГОЛОВНА!K:L,2,0)), "-") -> 3.03
A124: 00ID7947 | B124: =VLOOKUP(A124,'DATA (2)'!A:F,2,FALSE) -> Кабель для питної води 3x2.5 мм2 | C124: =VLOOKUP(A124,'DATA (2)'!A:F,4,FALSE) -> WS | F124: =VLOOKUP(A124,'DATA (2)'!A:F,5,FALSE) -> 4.43 | G124: =IFERROR(F124*(1-VLOOKUP(C124,ГОЛОВНА!K:L,2,0)), "-") -> 4.43
A126: SP, SP-NE, SPE | G126: Глибинні насоси для професійного водопостачання
A127: 98779739 | B127: =VLOOKUP(A127,'DATA (2)'!A:F,2,FALSE) -> Глиб. насос SP9-10 Rp2 4"3X380-415/50 2 | C127: =VLOOKUP(A127,'DATA (2)'!A:F,4,FALSE) -> CW | F127: =VLOOKUP(A127,'DATA (2)'!A:F,5,FALSE) -> 1332.2 | G127: =IFERROR(F127*(1-VLOOKUP(C127,ГОЛОВНА!K:L,2,0)), "-") -> 1332.2
A128: 98699312 | B128: =VLOOKUP(A128,'DATA (2)'!A:F,2,FALSE) -> Глиб. насос SP11- 3 Rp2 4"3X380-415/50 | C128: =VLOOKUP(A128,'DATA (2)'!A:F,4,FALSE) -> CW | F128: =VLOOKUP(A128,'DATA (2)'!A:F,5,FALSE) -> 717.64 | G128: =IFERROR(F128*(1-VLOOKUP(C128,ГОЛОВНА!K:L,2,0)), "-") -> 717.64
A129: 98699313 | B129: =VLOOKUP(A129,'DATA (2)'!A:F,2,FALSE) -> Глиб. насос SP11- 5 Rp2 4"3X380-415/50 | C129: =VLOOKUP(A129,'DATA (2)'!A:F,4,FALSE) -> CW | F129: =VLOOKUP(A129,'DATA (2)'!A:F,5,FALSE) -> 883.89 | G129: =IFERROR(F129*(1-VLOOKUP(C129,ГОЛОВНА!K:L,2,0)), "-") -> 883.89
A130: 98699315 | B130: =VLOOKUP(A130,'DATA (2)'!A:F,2,FALSE) -> Глиб. насос SP11-11 Rp2 4"3X380-415/50 | C130: =VLOOKUP(A130,'DATA (2)'!A:F,4,FALSE) -> CW | F130: =VLOOKUP(A130,'DATA (2)'!A:F,5,FALSE) -> 1415.68 | G130: =IFERROR(F130*(1-VLOOKUP(C130,ГОЛОВНА!K:L,2,0)), "-") -> 1415.68
A131: 98699317 | B131: =VLOOKUP(A131,'DATA (2)'!A:F,2,FALSE) -> Глиб. насос SP11-20 Rp2 4"3X380-415/50 | C131: =VLOOKUP(A131,'DATA (2)'!A:F,4,FALSE) -> CW | F131: =VLOOKUP(A131,'DATA (2)'!A:F,5,FALSE) -> 2370.78 | G131: =IFERROR(F131*(1-VLOOKUP(C131,ГОЛОВНА!K:L,2,0)), "-") -> 2370.78
A132: 98699293 | B132: =VLOOKUP(A132,'DATA (2)'!A:F,2,FALSE) -> Глиб. насос SP11- 3 Rp2 4"1X230/50 0.75 | C132: =VLOOKUP(A132,'DATA (2)'!A:F,4,FALSE) -> CW | F132: =VLOOKUP(A132,'DATA (2)'!A:F,5,FALSE) -> 717.64 | G132: =IFERROR(F132*(1-VLOOKUP(C132,ГОЛОВНА!K:L,2,0)), "-") -> 717.64
A133: 98699321 | B133: =VLOOKUP(A133,'DATA (2)'!A:F,2,FALSE) -> Глиб. насос SP11- 3N Rp2 4"3X380-415/50 | C133: =VLOOKUP(A133,'DATA (2)'!A:F,4,FALSE) -> CW | F133: =VLOOKUP(A133,'DATA (2)'!A:F,5,FALSE) -> 1713.39 | G133: =IFERROR(F133*(1-VLOOKUP(C133,ГОЛОВНА!K:L,2,0)), "-") -> 1713.39
A134: 98699294 | B134: =VLOOKUP(A134,'DATA (2)'!A:F,2,FALSE) -> Глиб. насос SP11- 5 Rp2 4"1X230/50 1.10 | C134: =VLOOKUP(A134,'DATA (2)'!A:F,4,FALSE) -> CW | F134: =VLOOKUP(A134,'DATA (2)'!A:F,5,FALSE) -> 883.89 | G134: =IFERROR(F134*(1-VLOOKUP(C134,ГОЛОВНА!K:L,2,0)), "-") -> 883.89
A135: 98699322 | B135: =VLOOKUP(A135,'DATA (2)'!A:F,2,FALSE) -> Глиб. насос SP11- 5N Rp2 4"3X380-415/50 | C135: =VLOOKUP(A135,'DATA (2)'!A:F,4,FALSE) -> CW | F135: =VLOOKUP(A135,'DATA (2)'!A:F,5,FALSE) -> 1926.99 | G135: =IFERROR(F135*(1-VLOOKUP(C135,ГОЛОВНА!K:L,2,0)), "-") -> 1926.99
A136: 98699295 | B136: =VLOOKUP(A136,'DATA (2)'!A:F,2,FALSE) -> Глиб. насос SP11- 7 Rp2 4"1X230/50 1.5k | C136: =VLOOKUP(A136,'DATA (2)'!A:F,4,FALSE) -> CW | F136: =VLOOKUP(A136,'DATA (2)'!A:F,5,FALSE) -> 1064.89 | G136: =IFERROR(F136*(1-VLOOKUP(C136,ГОЛОВНА!K:L,2,0)), "-") -> 1064.89
A137: 98699314 | B137: =VLOOKUP(A137,'DATA (2)'!A:F,2,FALSE) -> Глибинний насос SP11- 7 Rp2 4"3X380-415/ | C137: =VLOOKUP(A137,'DATA (2)'!A:F,4,FALSE) -> CW | F137: =VLOOKUP(A137,'DATA (2)'!A:F,5,FALSE) -> 1064.89 | G137: =IFERROR(F137*(1-VLOOKUP(C137,ГОЛОВНА!K:L,2,0)), "-") -> 1064.89
A138: 98699323 | B138: =VLOOKUP(A138,'DATA (2)'!A:F,2,FALSE) -> Глиб. насос SP11- 7N Rp2 4"3X380-415/50 | C138: =VLOOKUP(A138,'DATA (2)'!A:F,4,FALSE) -> CW | F138: =VLOOKUP(A138,'DATA (2)'!A:F,5,FALSE) -> 2126.2 | G138: =IFERROR(F138*(1-VLOOKUP(C138,ГОЛОВНА!K:L,2,0)), "-") -> 2126.2
A139: 98699296 | B139: =VLOOKUP(A139,'DATA (2)'!A:F,2,FALSE) -> Глибинний насосSP11-11 Rp2 4"1X220- | C139: =VLOOKUP(A139,'DATA (2)'!A:F,4,FALSE) -> CW | F139: =VLOOKUP(A139,'DATA (2)'!A:F,5,FALSE) -> 1654.18 | G139: =IFERROR(F139*(1-VLOOKUP(C139,ГОЛОВНА!K:L,2,0)), "-") -> 1654.18
A140: 98699324 | B140: =VLOOKUP(A140,'DATA (2)'!A:F,2,FALSE) -> Глиб. насос SP11-11N Rp2 4"3X380-415/50 | C140: =VLOOKUP(A140,'DATA (2)'!A:F,4,FALSE) -> CW | F140: =VLOOKUP(A140,'DATA (2)'!A:F,5,FALSE) -> 2542.01 | G140: =IFERROR(F140*(1-VLOOKUP(C140,ГОЛОВНА!K:L,2,0)), "-") -> 2542.01
A141: 98699316 | B141: =VLOOKUP(A141,'DATA (2)'!A:F,2,FALSE) -> Глиб. насос SP11-15 Rp2 4"3X380-415/50 | C141: =VLOOKUP(A141,'DATA (2)'!A:F,4,FALSE) -> CW | F141: =VLOOKUP(A141,'DATA (2)'!A:F,5,FALSE) -> 1942.09 | G141: =IFERROR(F141*(1-VLOOKUP(C141,ГОЛОВНА!K:L,2,0)), "-") -> 1942.09
A142: 98699325 | B142: =VLOOKUP(A142,'DATA (2)'!A:F,2,FALSE) -> Глиб. насос SP11-15N Rp2 4"3X380-415/50 | C142: =VLOOKUP(A142,'DATA (2)'!A:F,4,FALSE) -> CW | F142: =VLOOKUP(A142,'DATA (2)'!A:F,5,FALSE) -> За запитом | G142: =IFERROR(F142*(1-VLOOKUP(C142,ГОЛОВНА!K:L,2,0)), "-") -> -
A143: 98699318 | B143: =VLOOKUP(A143,'DATA (2)'!A:F,2,FALSE) -> Глиб. насос SP11-24 Rp2 4"3X380-415/50 | C143: =VLOOKUP(A143,'DATA (2)'!A:F,4,FALSE) -> CW | F143: =VLOOKUP(A143,'DATA (2)'!A:F,5,FALSE) -> За запитом | G143: =IFERROR(F143*(1-VLOOKUP(C143,ГОЛОВНА!K:L,2,0)), "-") -> -
A144: 98699336 | B144: =VLOOKUP(A144,'DATA (2)'!A:F,2,FALSE) -> Глиб. насос SP14- 4 Rp2 4"1X230/50 1.10 | C144: =VLOOKUP(A144,'DATA (2)'!A:F,4,FALSE) -> CW | F144: =VLOOKUP(A144,'DATA (2)'!A:F,5,FALSE) -> 822.59 | G144: =IFERROR(F144*(1-VLOOKUP(C144,ГОЛОВНА!K:L,2,0)), "-") -> 822.59
A145: 98699353 | B145: =VLOOKUP(A145,'DATA (2)'!A:F,2,FALSE) -> Глиб. насос SP14- 4 Rp2 4"3X380-415/50 | C145: =VLOOKUP(A145,'DATA (2)'!A:F,4,FALSE) -> CW | F145: =VLOOKUP(A145,'DATA (2)'!A:F,5,FALSE) -> 822.59 | G145: =IFERROR(F145*(1-VLOOKUP(C145,ГОЛОВНА!K:L,2,0)), "-") -> 822.59
A146: 98699362 | B146: =VLOOKUP(A146,'DATA (2)'!A:F,2,FALSE) -> Глиб. насос SP14- 4N Rp2 4"3X380-415/50 | C146: =VLOOKUP(A146,'DATA (2)'!A:F,4,FALSE) -> CW | F146: =VLOOKUP(A146,'DATA (2)'!A:F,5,FALSE) -> 1824.69 | G146: =IFERROR(F146*(1-VLOOKUP(C146,ГОЛОВНА!K:L,2,0)), "-") -> 1824.69
A147: 98699337 | B147: =VLOOKUP(A147,'DATA (2)'!A:F,2,FALSE) -> Глиб. насос SP14- 6 Rp2 4"1X230/50 1.5k | C147: =VLOOKUP(A147,'DATA (2)'!A:F,4,FALSE) -> CW | F147: =VLOOKUP(A147,'DATA (2)'!A:F,5,FALSE) -> 1010.67 | G147: =IFERROR(F147*(1-VLOOKUP(C147,ГОЛОВНА!K:L,2,0)), "-") -> 1010.67
A148: 98699354 | B148: =VLOOKUP(A148,'DATA (2)'!A:F,2,FALSE) -> Глиб. насос SP14- 6 Rp2 4"3X380-415/50 | C148: =VLOOKUP(A148,'DATA (2)'!A:F,4,FALSE) -> CW | F148: =VLOOKUP(A148,'DATA (2)'!A:F,5,FALSE) -> 1010.67 | G148: =IFERROR(F148*(1-VLOOKUP(C148,ГОЛОВНА!K:L,2,0)), "-") -> 1010.67
A149: 98699363 | B149: =VLOOKUP(A149,'DATA (2)'!A:F,2,FALSE) -> Глиб. насос SP14- 6N Rp2 4"3X380-415/50 | C149: =VLOOKUP(A149,'DATA (2)'!A:F,4,FALSE) -> CW | F149: =VLOOKUP(A149,'DATA (2)'!A:F,5,FALSE) -> 2035.4 | G149: =IFERROR(F149*(1-VLOOKUP(C149,ГОЛОВНА!K:L,2,0)), "-") -> 2035.4
A150: 98699338 | B150: =VLOOKUP(A150,'DATA (2)'!A:F,2,FALSE) -> Глиб. насос SP14- 8 Rp2 4"1X220-230/50 | C150: =VLOOKUP(A150,'DATA (2)'!A:F,4,FALSE) -> CW | F150: =VLOOKUP(A150,'DATA (2)'!A:F,5,FALSE) -> 1468.34 | G150: =IFERROR(F150*(1-VLOOKUP(C150,ГОЛОВНА!K:L,2,0)), "-") -> 1468.34
A151: 98699355 | B151: =VLOOKUP(A151,'DATA (2)'!A:F,2,FALSE) -> Глиб. насос SP14- 8 Rp2 4"3X380-415/50 | C151: =VLOOKUP(A151,'DATA (2)'!A:F,4,FALSE) -> CW | F151: =VLOOKUP(A151,'DATA (2)'!A:F,5,FALSE) -> 1233.74 | G151: =IFERROR(F151*(1-VLOOKUP(C151,ГОЛОВНА!K:L,2,0)), "-") -> 1233.74
A152: 98699364 | B152: =VLOOKUP(A152,'DATA (2)'!A:F,2,FALSE) -> Глиб. насос SP14- 8N Rp2 4"3X380-415/50 | C152: =VLOOKUP(A152,'DATA (2)'!A:F,4,FALSE) -> CW | F152: =VLOOKUP(A152,'DATA (2)'!A:F,5,FALSE) -> 2261.76 | G152: =IFERROR(F152*(1-VLOOKUP(C152,ГОЛОВНА!K:L,2,0)), "-") -> 2261.76
A153: 98699365 | B153: =VLOOKUP(A153,'DATA (2)'!A:F,2,FALSE) -> Глиб. насос SP14-11N Rp2 4"3X380-415/50 | C153: =VLOOKUP(A153,'DATA (2)'!A:F,4,FALSE) -> CW | F153: =VLOOKUP(A153,'DATA (2)'!A:F,5,FALSE) -> За запитом | G153: =IFERROR(F153*(1-VLOOKUP(C153,ГОЛОВНА!K:L,2,0)), "-") -> -
A154: 98699357 | B154: =VLOOKUP(A154,'DATA (2)'!A:F,2,FALSE) -> Глиб. насос SP14-13 Rp2 4"3X380-415/50 | C154: =VLOOKUP(A154,'DATA (2)'!A:F,4,FALSE) -> CW | F154: =VLOOKUP(A154,'DATA (2)'!A:F,5,FALSE) -> 1841.87 | G154: =IFERROR(F154*(1-VLOOKUP(C154,ГОЛОВНА!K:L,2,0)), "-") -> 1841.87
A155: 98699366 | B155: =VLOOKUP(A155,'DATA (2)'!A:F,2,FALSE) -> Глиб. насос SP14-13N Rp2 4"3X380-415/50 | C155: =VLOOKUP(A155,'DATA (2)'!A:F,4,FALSE) -> CW | F155: =VLOOKUP(A155,'DATA (2)'!A:F,5,FALSE) -> За запитом | G155: =IFERROR(F155*(1-VLOOKUP(C155,ГОЛОВНА!K:L,2,0)), "-") -> -
A156: 98699358 | B156: =VLOOKUP(A156,'DATA (2)'!A:F,2,FALSE) -> Глиб. насос SP14-15 Rp2 4"3X380-415/50 | C156: =VLOOKUP(A156,'DATA (2)'!A:F,4,FALSE) -> CW | F156: =VLOOKUP(A156,'DATA (2)'!A:F,5,FALSE) -> 2076.79 | G156: =IFERROR(F156*(1-VLOOKUP(C156,ГОЛОВНА!K:L,2,0)), "-") -> 2076.79
A157: 98699359 | B157: =VLOOKUP(A157,'DATA (2)'!A:F,2,FALSE) -> Глиб. насос SP14-17 Rp2 4"3X380-415/50 | C157: =VLOOKUP(A157,'DATA (2)'!A:F,4,FALSE) -> CW | F157: =VLOOKUP(A157,'DATA (2)'!A:F,5,FALSE) -> 2210.32 | G157: =IFERROR(F157*(1-VLOOKUP(C157,ГОЛОВНА!K:L,2,0)), "-") -> 2210.32
A158: 98699360 | B158: =VLOOKUP(A158,'DATA (2)'!A:F,2,FALSE) -> Глиб. насос SP14-20 Rp2 4"3X380-415/50 | C158: =VLOOKUP(A158,'DATA (2)'!A:F,4,FALSE) -> CW | F158: =VLOOKUP(A158,'DATA (2)'!A:F,5,FALSE) -> 2506.98 | G158: =IFERROR(F158*(1-VLOOKUP(C158,ГОЛОВНА!K:L,2,0)), "-") -> 2506.98
A159: 98699371 | B159: =VLOOKUP(A159,'DATA (2)'!A:F,2,FALSE) -> Глиб. насос SP14-20 Rp2 6"3X380-415/50 | C159: =VLOOKUP(A159,'DATA (2)'!A:F,4,FALSE) -> CW | F159: =VLOOKUP(A159,'DATA (2)'!A:F,5,FALSE) -> За запитом | G159: =IFERROR(F159*(1-VLOOKUP(C159,ГОЛОВНА!K:L,2,0)), "-") -> -
A160: 98699361 | B160: =VLOOKUP(A160,'DATA (2)'!A:F,2,FALSE) -> Глиб. насос SP14-23 Rp2 4"3X380-415/50 | C160: =VLOOKUP(A160,'DATA (2)'!A:F,4,FALSE) -> CW | F160: =VLOOKUP(A160,'DATA (2)'!A:F,5,FALSE) -> За запитом | G160: =IFERROR(F160*(1-VLOOKUP(C160,ГОЛОВНА!K:L,2,0)), "-") -> -
A161: 12A02104 | B161: =VLOOKUP(A161,'DATA (2)'!A:F,2,FALSE) -> Глиб. насос SP17- 4 Rp2½ 4"1X220-230/50 | C161: =VLOOKUP(A161,'DATA (2)'!A:F,4,FALSE) -> WS | F161: =VLOOKUP(A161,'DATA (2)'!A:F,5,FALSE) -> 1640.53 | G161: =IFERROR(F161*(1-VLOOKUP(C161,ГОЛОВНА!K:L,2,0)), "-") -> 1640.53
A162: 08001K09 | B162: =VLOOKUP(A162,'DATA (2)'!A:F,2,FALSE) -> Глибинна помпа SP1A- 9 0.37kW 380-415V 5 | C162: =VLOOKUP(A162,'DATA (2)'!A:F,4,FALSE) -> CW | F162: =VLOOKUP(A162,'DATA (2)'!A:F,5,FALSE) -> 609.9 | G162: =IFERROR(F162*(1-VLOOKUP(C162,ГОЛОВНА!K:L,2,0)), "-") -> 609.9
A163: 08001K14 | B163: =VLOOKUP(A163,'DATA (2)'!A:F,2,FALSE) -> Глибинна помпа SP1A-14 0.37kW 380-415V 5 | C163: =VLOOKUP(A163,'DATA (2)'!A:F,4,FALSE) -> CW | F163: =VLOOKUP(A163,'DATA (2)'!A:F,5,FALSE) -> 679.59 | G163: =IFERROR(F163*(1-VLOOKUP(C163,ГОЛОВНА!K:L,2,0)), "-") -> 679.59
A164: 09001K06 | B164: =VLOOKUP(A164,'DATA (2)'!A:F,2,FALSE) -> Глибинна помпа SP2A- 6 0.37kW 380-415V 5 | C164: =VLOOKUP(A164,'DATA (2)'!A:F,4,FALSE) -> CW | D164: FT | F164: =VLOOKUP(A164,'DATA (2)'!A:F,5,FALSE) -> 592.89 | G164: =IFERROR(F164*(1-VLOOKUP(C164,ГОЛОВНА!K:L,2,0)), "-") -> 592.89
A165: 09001K09 | B165: =VLOOKUP(A165,'DATA (2)'!A:F,2,FALSE) -> Глибинна помпа SP2A- 9 0.37kW 380-415V 5 | C165: =VLOOKUP(A165,'DATA (2)'!A:F,4,FALSE) -> CW | D165: FT | F165: =VLOOKUP(A165,'DATA (2)'!A:F,5,FALSE) -> 623.57 | G165: =IFERROR(F165*(1-VLOOKUP(C165,ГОЛОВНА!K:L,2,0)), "-") -> 623.57
A166: 09001K13 | B166: =VLOOKUP(A166,'DATA (2)'!A:F,2,FALSE) -> Глибинна помпа SP2A-13 0.55kW 380-415V 5 | C166: =VLOOKUP(A166,'DATA (2)'!A:F,4,FALSE) -> CW | D166: FT | F166: =VLOOKUP(A166,'DATA (2)'!A:F,5,FALSE) -> 687.1 | G166: =IFERROR(F166*(1-VLOOKUP(C166,ГОЛОВНА!K:L,2,0)), "-") -> 687.1
A167: 9007513 | B167: =VLOOKUP(A167,'DATA (2)'!A:F,2,FALSE) -> Глибинна помпа SP2A-13, 0.55kW 1x220-240 | C167: =VLOOKUP(A167,'DATA (2)'!A:F,4,FALSE) -> CW | F167: =VLOOKUP(A167,'DATA (2)'!A:F,5,FALSE) -> 697.83 | G167: =IFERROR(F167*(1-VLOOKUP(C167,ГОЛОВНА!K:L,2,0)), "-") -> 697.83
A168: 09001K18 | B168: =VLOOKUP(A168,'DATA (2)'!A:F,2,FALSE) -> Глибинна помпа SP2A-18 0.75kW 380-415V 5 | C168: =VLOOKUP(A168,'DATA (2)'!A:F,4,FALSE) -> CW | D168: FT | F168: =VLOOKUP(A168,'DATA (2)'!A:F,5,FALSE) -> 756.69 | G168: =IFERROR(F168*(1-VLOOKUP(C168,ГОЛОВНА!K:L,2,0)), "-") -> 756.69
A169: 09001K23 | B169: =VLOOKUP(A169,'DATA (2)'!A:F,2,FALSE) -> Глибинна помпа SP2A-23 1.1kW 380-415V 50 | C169: =VLOOKUP(A169,'DATA (2)'!A:F,4,FALSE) -> CW | F169: =VLOOKUP(A169,'DATA (2)'!A:F,5,FALSE) -> 855.38 | G169: =IFERROR(F169*(1-VLOOKUP(C169,ГОЛОВНА!K:L,2,0)), "-") -> 855.38
A170: 09001K28 | B170: =VLOOKUP(A170,'DATA (2)'!A:F,2,FALSE) -> Глибинна помпа SP2A-28 1.5kW 380-415V 50 | C170: =VLOOKUP(A170,'DATA (2)'!A:F,4,FALSE) -> CW | F170: =VLOOKUP(A170,'DATA (2)'!A:F,5,FALSE) -> 960.35 | G170: =IFERROR(F170*(1-VLOOKUP(C170,ГОЛОВНА!K:L,2,0)), "-") -> 960.35
A171: 09001K33 | B171: =VLOOKUP(A171,'DATA (2)'!A:F,2,FALSE) -> Глибинна помпа SP2A-33 1,5kW 380-415V 50 | C171: =VLOOKUP(A171,'DATA (2)'!A:F,4,FALSE) -> CW | F171: =VLOOKUP(A171,'DATA (2)'!A:F,5,FALSE) -> 1011.38 | G171: =IFERROR(F171*(1-VLOOKUP(C171,ГОЛОВНА!K:L,2,0)), "-") -> 1011.38
A172: 09101K40 | B172: =VLOOKUP(A172,'DATA (2)'!A:F,2,FALSE) -> Глибинна помпа SP2A-40 2.2kW 3x380x415V | C172: =VLOOKUP(A172,'DATA (2)'!A:F,4,FALSE) -> CW | F172: =VLOOKUP(A172,'DATA (2)'!A:F,5,FALSE) -> 1878.93 | G172: =IFERROR(F172*(1-VLOOKUP(C172,ГОЛОВНА!K:L,2,0)), "-") -> 1878.93
A173: 09101K48 | B173: =VLOOKUP(A173,'DATA (2)'!A:F,2,FALSE) -> Глибинна помпа SP2A-48 2.2KW 3x380-415V | C173: =VLOOKUP(A173,'DATA (2)'!A:F,4,FALSE) -> CW | F173: =VLOOKUP(A173,'DATA (2)'!A:F,5,FALSE) -> 2107.34 | G173: =IFERROR(F173*(1-VLOOKUP(C173,ГОЛОВНА!K:L,2,0)), "-") -> 2107.34
A174: 09101K55 | B174: =VLOOKUP(A174,'DATA (2)'!A:F,2,FALSE) -> Глибинна помпа SP2A-55 3.0KW 3x380-415V | C174: =VLOOKUP(A174,'DATA (2)'!A:F,4,FALSE) -> CW | F174: =VLOOKUP(A174,'DATA (2)'!A:F,5,FALSE) -> 2545.75 | G174: =IFERROR(F174*(1-VLOOKUP(C174,ГОЛОВНА!K:L,2,0)), "-") -> 2545.75
A175: 09101K65 | B175: =VLOOKUP(A175,'DATA (2)'!A:F,2,FALSE) -> Глибинна помпа SP2A-65 3.0kW 3x380-415V | C175: =VLOOKUP(A175,'DATA (2)'!A:F,4,FALSE) -> CW | F175: =VLOOKUP(A175,'DATA (2)'!A:F,5,FALSE) -> За запитом | G175: =IFERROR(F175*(1-VLOOKUP(C175,ГОЛОВНА!K:L,2,0)), "-") -> -
A176: 10001K06 | B176: =VLOOKUP(A176,'DATA (2)'!A:F,2,FALSE) -> Глибинна помпа SP3A- 6 0.37kW 380-415V 5 | C176: =VLOOKUP(A176,'DATA (2)'!A:F,4,FALSE) -> CW | D176: FT | F176: =VLOOKUP(A176,'DATA (2)'!A:F,5,FALSE) -> 615.62 | G176: =IFERROR(F176*(1-VLOOKUP(C176,ГОЛОВНА!K:L,2,0)), "-") -> 615.62
A177: 10201906 | B177: =VLOOKUP(A177,'DATA (2)'!A:F,2,FALSE) -> Глибинна помпа SP3A- 6N 0.75kW 3x380-415 | C177: =VLOOKUP(A177,'DATA (2)'!A:F,4,FALSE) -> CW | F177: =VLOOKUP(A177,'DATA (2)'!A:F,5,FALSE) -> 1600.23 | G177: =IFERROR(F177*(1-VLOOKUP(C177,ГОЛОВНА!K:L,2,0)), "-") -> 1600.23
A178: 10221906 | B178: =VLOOKUP(A178,'DATA (2)'!A:F,2,FALSE) -> Глибинна помпа SP3A- 6NE 0.75kW 3x380-41 | C178: =VLOOKUP(A178,'DATA (2)'!A:F,4,FALSE) -> WS | F178: =VLOOKUP(A178,'DATA (2)'!A:F,5,FALSE) -> 1927.14 | G178: =IFERROR(F178*(1-VLOOKUP(C178,ГОЛОВНА!K:L,2,0)), "-") -> 1927.14
A179: 10001K09 | B179: =VLOOKUP(A179,'DATA (2)'!A:F,2,FALSE) -> Глибинна помпа SP3A- 9 0.55kW 380-415V 5 | C179: =VLOOKUP(A179,'DATA (2)'!A:F,4,FALSE) -> CW | D179: FT | F179: =VLOOKUP(A179,'DATA (2)'!A:F,5,FALSE) -> 650.81 | G179: =IFERROR(F179*(1-VLOOKUP(C179,ГОЛОВНА!K:L,2,0)), "-") -> 650.81
A180: 10201909 | B180: =VLOOKUP(A180,'DATA (2)'!A:F,2,FALSE) -> Глибинна помпа SP3A- 9N 0.75kW 3x380-415 | C180: =VLOOKUP(A180,'DATA (2)'!A:F,4,FALSE) -> CW | F180: =VLOOKUP(A180,'DATA (2)'!A:F,5,FALSE) -> 1646.9 | G180: =IFERROR(F180*(1-VLOOKUP(C180,ГОЛОВНА!K:L,2,0)), "-") -> 1646.9
A181: 10221909 | B181: =VLOOKUP(A181,'DATA (2)'!A:F,2,FALSE) -> Глибинна помпа SP3A- 9NE 0.75kW 3x380-41 | C181: =VLOOKUP(A181,'DATA (2)'!A:F,4,FALSE) -> WS | F181: =VLOOKUP(A181,'DATA (2)'!A:F,5,FALSE) -> 2010.37 | G181: =IFERROR(F181*(1-VLOOKUP(C181,ГОЛОВНА!K:L,2,0)), "-") -> 2010.37
A182: 10001K12 | B182: =VLOOKUP(A182,'DATA (2)'!A:F,2,FALSE) -> Глибинна помпа SP3A-12 0.75kW 380-415V 5 | C182: =VLOOKUP(A182,'DATA (2)'!A:F,4,FALSE) -> CW | D182: FT | F182: =VLOOKUP(A182,'DATA (2)'!A:F,5,FALSE) -> 719.66 | G182: =IFERROR(F182*(1-VLOOKUP(C182,ГОЛОВНА!K:L,2,0)), "-") -> 719.66
A183: 10201912 | B183: =VLOOKUP(A183,'DATA (2)'!A:F,2,FALSE) -> Глибинна помпа SP3A-12N 0.75kW 3x380-415 | C183: =VLOOKUP(A183,'DATA (2)'!A:F,4,FALSE) -> CW | F183: =VLOOKUP(A183,'DATA (2)'!A:F,5,FALSE) -> 1693.55 | G183: =IFERROR(F183*(1-VLOOKUP(C183,ГОЛОВНА!K:L,2,0)), "-") -> 1693.55
A184: 10221912 | B184: =VLOOKUP(A184,'DATA (2)'!A:F,2,FALSE) -> Глибинна помпа SP3A-12NE 0.75kW 3x380-41 | C184: =VLOOKUP(A184,'DATA (2)'!A:F,4,FALSE) -> WS | F184: =VLOOKUP(A184,'DATA (2)'!A:F,5,FALSE) -> 2044.66 | G184: =IFERROR(F184*(1-VLOOKUP(C184,ГОЛОВНА!K:L,2,0)), "-") -> 2044.66
A185: 10001K15 | B185: =VLOOKUP(A185,'DATA (2)'!A:F,2,FALSE) -> Глибинна помпа SP3A-15 1.1kW 380-415V 50 | C185: =VLOOKUP(A185,'DATA (2)'!A:F,4,FALSE) -> CW | D185: FT | F185: =VLOOKUP(A185,'DATA (2)'!A:F,5,FALSE) -> 799.07 | G185: =IFERROR(F185*(1-VLOOKUP(C185,ГОЛОВНА!K:L,2,0)), "-") -> 799.07
A186: 10201915 | B186: =VLOOKUP(A186,'DATA (2)'!A:F,2,FALSE) -> Глибинна помпа SP3A-15N 1.1kW 3x380-415V | C186: =VLOOKUP(A186,'DATA (2)'!A:F,4,FALSE) -> CW | F186: =VLOOKUP(A186,'DATA (2)'!A:F,5,FALSE) -> 1758.43 | G186: =IFERROR(F186*(1-VLOOKUP(C186,ГОЛОВНА!K:L,2,0)), "-") -> 1758.43
A187: 10221915 | B187: =VLOOKUP(A187,'DATA (2)'!A:F,2,FALSE) -> Глибинна помпа SP3A-15NE 1.1kW 3x380-415 | C187: =VLOOKUP(A187,'DATA (2)'!A:F,4,FALSE) -> WS | F187: =VLOOKUP(A187,'DATA (2)'!A:F,5,FALSE) -> 2130.25 | G187: =IFERROR(F187*(1-VLOOKUP(C187,ГОЛОВНА!K:L,2,0)), "-") -> 2130.25
A188: 10201918 | B188: =VLOOKUP(A188,'DATA (2)'!A:F,2,FALSE) -> Глибинна помпа SP3A-18N 1.1kW 3x380-415V | C188: =VLOOKUP(A188,'DATA (2)'!A:F,4,FALSE) -> WS | F188: =VLOOKUP(A188,'DATA (2)'!A:F,5,FALSE) -> 1783.31 | G188: =IFERROR(F188*(1-VLOOKUP(C188,ГОЛОВНА!K:L,2,0)), "-") -> 1783.31
A189: 10221918 | B189: =VLOOKUP(A189,'DATA (2)'!A:F,2,FALSE) -> Глибинна помпа SP3A-18NE 1.1kW 3x380-415 | C189: =VLOOKUP(A189,'DATA (2)'!A:F,4,FALSE) -> WS | F189: =VLOOKUP(A189,'DATA (2)'!A:F,5,FALSE) -> 2190.26 | G189: =IFERROR(F189*(1-VLOOKUP(C189,ГОЛОВНА!K:L,2,0)), "-") -> 2190.26
A190: 10201922 | B190: =VLOOKUP(A190,'DATA (2)'!A:F,2,FALSE) -> Глибинна помпа SP3A-22N 1.5kW 3x380-415V | C190: =VLOOKUP(A190,'DATA (2)'!A:F,4,FALSE) -> CW | F190: =VLOOKUP(A190,'DATA (2)'!A:F,5,FALSE) -> 1871.47 | G190: =IFERROR(F190*(1-VLOOKUP(C190,ГОЛОВНА!K:L,2,0)), "-") -> 1871.47
A191: 10221922 | B191: =VLOOKUP(A191,'DATA (2)'!A:F,2,FALSE) -> Глибинна помпа SP3A-22NE 1.5kW 3x380-415 | C191: =VLOOKUP(A191,'DATA (2)'!A:F,4,FALSE) -> WS | F191: =VLOOKUP(A191,'DATA (2)'!A:F,5,FALSE) -> 2273.41 | G191: =IFERROR(F191*(1-VLOOKUP(C191,ГОЛОВНА!K:L,2,0)), "-") -> 2273.41
A192: 10001K25 | B192: =VLOOKUP(A192,'DATA (2)'!A:F,2,FALSE) -> Глибинна помпа SP3A-25 1.5kW 380-415V 50 | C192: =VLOOKUP(A192,'DATA (2)'!A:F,4,FALSE) -> CW | F192: =VLOOKUP(A192,'DATA (2)'!A:F,5,FALSE) -> 943.31 | G192: =IFERROR(F192*(1-VLOOKUP(C192,ГОЛОВНА!K:L,2,0)), "-") -> 943.31
A193: 10201925 | B193: =VLOOKUP(A193,'DATA (2)'!A:F,2,FALSE) -> Глибинна помпа SP3A-25N 1.5kW 3x380-415V | C193: =VLOOKUP(A193,'DATA (2)'!A:F,4,FALSE) -> WS | F193: =VLOOKUP(A193,'DATA (2)'!A:F,5,FALSE) -> 1895.05 | G193: =IFERROR(F193*(1-VLOOKUP(C193,ГОЛОВНА!K:L,2,0)), "-") -> 1895.05
A194: 10221925 | B194: =VLOOKUP(A194,'DATA (2)'!A:F,2,FALSE) -> Глибинна помпа SP3A-25NE 1.5kW 3x380-415 | C194: =VLOOKUP(A194,'DATA (2)'!A:F,4,FALSE) -> WS | F194: =VLOOKUP(A194,'DATA (2)'!A:F,5,FALSE) -> 2333.43 | G194: =IFERROR(F194*(1-VLOOKUP(C194,ГОЛОВНА!K:L,2,0)), "-") -> 2333.43
A195: 10201929 | B195: =VLOOKUP(A195,'DATA (2)'!A:F,2,FALSE) -> Глибинна помпа SP3A-29N 2.2kW 3x380-415V | C195: =VLOOKUP(A195,'DATA (2)'!A:F,4,FALSE) -> CW | F195: =VLOOKUP(A195,'DATA (2)'!A:F,5,FALSE) -> 2010.27 | G195: =IFERROR(F195*(1-VLOOKUP(C195,ГОЛОВНА!K:L,2,0)), "-") -> 2010.27
A196: 10221929 | B196: =VLOOKUP(A196,'DATA (2)'!A:F,2,FALSE) -> Глибинна помпа SP3A-29NE 2.2kW 3x380-415 | C196: =VLOOKUP(A196,'DATA (2)'!A:F,4,FALSE) -> WS | F196: =VLOOKUP(A196,'DATA (2)'!A:F,5,FALSE) -> 2473.18 | G196: =IFERROR(F196*(1-VLOOKUP(C196,ГОЛОВНА!K:L,2,0)), "-") -> 2473.18
A197: 10101K39 | B197: =VLOOKUP(A197,'DATA (2)'!A:F,2,FALSE) -> Глибинна помпа SP3A-39 3.0KW 3x380-415V | C197: =VLOOKUP(A197,'DATA (2)'!A:F,4,FALSE) -> CW | F197: =VLOOKUP(A197,'DATA (2)'!A:F,5,FALSE) -> 2167.94 | G197: =IFERROR(F197*(1-VLOOKUP(C197,ГОЛОВНА!K:L,2,0)), "-") -> 2167.94
A198: 10201939 | B198: =VLOOKUP(A198,'DATA (2)'!A:F,2,FALSE) -> Глибинна помпа SP3A-39N 3.0kW 3x380-415V | C198: =VLOOKUP(A198,'DATA (2)'!A:F,4,FALSE) -> WS | F198: =VLOOKUP(A198,'DATA (2)'!A:F,5,FALSE) -> За запитом | G198: =IFERROR(F198*(1-VLOOKUP(C198,ГОЛОВНА!K:L,2,0)), "-") -> -
A199: 10101K45 | B199: =VLOOKUP(A199,'DATA (2)'!A:F,2,FALSE) -> Глибинна помпа SP3A-45 3.0KW 3x380-415V | C199: =VLOOKUP(A199,'DATA (2)'!A:F,4,FALSE) -> CW | F199: =VLOOKUP(A199,'DATA (2)'!A:F,5,FALSE) -> 2323.43 | G199: =IFERROR(F199*(1-VLOOKUP(C199,ГОЛОВНА!K:L,2,0)), "-") -> 2323.43
A200: 10101K52 | B200: =VLOOKUP(A200,'DATA (2)'!A:F,2,FALSE) -> Глибинна помпа SP3A-52 4.0KW 3x380-415V | C200: =VLOOKUP(A200,'DATA (2)'!A:F,4,FALSE) -> CW | F200: =VLOOKUP(A200,'DATA (2)'!A:F,5,FALSE) -> 2604.83 | G200: =IFERROR(F200*(1-VLOOKUP(C200,ГОЛОВНА!K:L,2,0)), "-") -> 2604.83
A201: 10101K60 | B201: =VLOOKUP(A201,'DATA (2)'!A:F,2,FALSE) -> Глибинна помпа SP3A-60 4.0kW 3x380-415V | C201: =VLOOKUP(A201,'DATA (2)'!A:F,4,FALSE) -> CW | F201: =VLOOKUP(A201,'DATA (2)'!A:F,5,FALSE) -> За запитом | G201: =IFERROR(F201*(1-VLOOKUP(C201,ГОЛОВНА!K:L,2,0)), "-") -> -
A202: 05001K04 | B202: =VLOOKUP(A202,'DATA (2)'!A:F,2,FALSE) -> Глибинна помпа SP5A- 4 0.37kW 380-415V 5 | C202: =VLOOKUP(A202,'DATA (2)'!A:F,4,FALSE) -> CW | F202: =VLOOKUP(A202,'DATA (2)'!A:F,5,FALSE) -> 608.69 | G202: =IFERROR(F202*(1-VLOOKUP(C202,ГОЛОВНА!K:L,2,0)), "-") -> 608.69
A203: 5201904 | B203: =VLOOKUP(A203,'DATA (2)'!A:F,2,FALSE) -> Глибинна помпа SP5A- 4N 0.75kW 3x380-415 | C203: =VLOOKUP(A203,'DATA (2)'!A:F,4,FALSE) -> CW | F203: =VLOOKUP(A203,'DATA (2)'!A:F,5,FALSE) -> 1589.92 | G203: =IFERROR(F203*(1-VLOOKUP(C203,ГОЛОВНА!K:L,2,0)), "-") -> 1589.92
... 430 more rows

Sheet Sololift, Unilift AP, KP
A1: АРТИКУЛ | B1: НАЙМЕНУВАННЯ (УКР) | C1: PRICE GROUP | D1: ДОСТАВКА | E1: ДОДАТКОВО | F1: ЦІНА (ЕВРО БЕЗ ПДВ) | G1: ЦІНА ЗІ ЗНИЖКОЮ | H1: НА ГОЛОВНУ
A2: Conlift, Sololift, Liftaway | G2: Дренажні та каналізаційні насоси та насосні станції
A3: 97775317 | B3: =VLOOKUP(A3,'DATA (2)'!A:F,2,FALSE) -> Каналізаційна установка Sololift2 C-3 | C3: =VLOOKUP(A3,'DATA (2)'!A:F,4,FALSE) -> DC | D3: S | F3: =VLOOKUP(A3,'DATA (2)'!A:F,5,FALSE) -> 351.22 | G3: =IFERROR(F3*(1-VLOOKUP(C3,ГОЛОВНА!K:L,2,0)), "-") -> 351.22
A4: 97775316 | B4: =VLOOKUP(A4,'DATA (2)'!A:F,2,FALSE) -> Каналізаційна установка Sololift2 CWC-3 | C4: =VLOOKUP(A4,'DATA (2)'!A:F,4,FALSE) -> DC | D4: S | F4: =VLOOKUP(A4,'DATA (2)'!A:F,5,FALSE) -> 390.25 | G4: =IFERROR(F4*(1-VLOOKUP(C4,ГОЛОВНА!K:L,2,0)), "-") -> 390.25
A5: 97775318 | B5: =VLOOKUP(A5,'DATA (2)'!A:F,2,FALSE) -> Каналізаційна установка Sololift2 D-2 | C5: =VLOOKUP(A5,'DATA (2)'!A:F,4,FALSE) -> DC | D5: S | F5: =VLOOKUP(A5,'DATA (2)'!A:F,5,FALSE) -> 278.29 | G5: =IFERROR(F5*(1-VLOOKUP(C5,ГОЛОВНА!K:L,2,0)), "-") -> 278.29
A6: 97775314 | B6: =VLOOKUP(A6,'DATA (2)'!A:F,2,FALSE) -> Каналізаційна установка Sololift2 WC-1 | C6: =VLOOKUP(A6,'DATA (2)'!A:F,4,FALSE) -> DC | D6: S | F6: =VLOOKUP(A6,'DATA (2)'!A:F,5,FALSE) -> 310.51 | G6: =IFERROR(F6*(1-VLOOKUP(C6,ГОЛОВНА!K:L,2,0)), "-") -> 310.51
A7: 97775315 | B7: =VLOOKUP(A7,'DATA (2)'!A:F,2,FALSE) -> Каналізаційна установка Sololift2 WC-3 | C7: =VLOOKUP(A7,'DATA (2)'!A:F,4,FALSE) -> DC | D7: S | F7: =VLOOKUP(A7,'DATA (2)'!A:F,5,FALSE) -> 376.69 | G7: =IFERROR(F7*(1-VLOOKUP(C7,ГОЛОВНА!K:L,2,0)), "-") -> 376.69
A8: 97936156 | B8: =VLOOKUP(A8,'DATA (2)'!A:F,2,FALSE) -> Дренажна установка CONLIFT1 | C8: =VLOOKUP(A8,'DATA (2)'!A:F,4,FALSE) -> DC | D8: S | F8: =VLOOKUP(A8,'DATA (2)'!A:F,5,FALSE) -> 92.26 | G8: =IFERROR(F8*(1-VLOOKUP(C8,ГОЛОВНА!K:L,2,0)), "-") -> 92.26
A9: 96003974 | B9: =VLOOKUP(A9,'DATA (2)'!A:F,2,FALSE) -> Каналізаційна установка Liftaway B 40-1 | C9: =VLOOKUP(A9,'DATA (2)'!A:F,4,FALSE) -> DC | F9: =VLOOKUP(A9,'DATA (2)'!A:F,5,FALSE) -> 828.12 | G9: =IFERROR(F9*(1-VLOOKUP(C9,ГОЛОВНА!K:L,2,0)), "-") -> 828.12
A10: 96003975 | B10: =VLOOKUP(A10,'DATA (2)'!A:F,2,FALSE) -> Каналізаційна установка Liftaway B 40-1- | C10: =VLOOKUP(A10,'DATA (2)'!A:F,4,FALSE) -> DC | F10: =VLOOKUP(A10,'DATA (2)'!A:F,5,FALSE) -> 859.37 | G10: =IFERROR(F10*(1-VLOOKUP(C10,ГОЛОВНА!K:L,2,0)), "-") -> 859.37
A11: 96003985 | B11: =VLOOKUP(A11,'DATA (2)'!A:F,2,FALSE) -> Каналізаційна установка Liftaway C 40-1 | C11: =VLOOKUP(A11,'DATA (2)'!A:F,4,FALSE) -> DC | F11: =VLOOKUP(A11,'DATA (2)'!A:F,5,FALSE) -> 221.54 | G11: =IFERROR(F11*(1-VLOOKUP(C11,ГОЛОВНА!K:L,2,0)), "-") -> 221.54
A13: Unilift KP,CC, KPC, AP, AP B | G13: Дренажні та каналізаційні насоси та насосні станції
A14: 98863989 | B14: =VLOOKUP(A14,'DATA (2)'!A:F,2,FALSE) -> Насос для брудн води KPC 300 A 1x220 50H | C14: =VLOOKUP(A14,'DATA (2)'!A:F,4,FALSE) -> DC | F14: =VLOOKUP(A14,'DATA (2)'!A:F,5,FALSE) -> 132.59 | G14: =IFERROR(F14*(1-VLOOKUP(C14,ГОЛОВНА!K:L,2,0)), "-") -> 132.59
A15: 98864015 | B15: =VLOOKUP(A15,'DATA (2)'!A:F,2,FALSE) -> Насос для брудн води KPC 600 A 1x220 50H | C15: =VLOOKUP(A15,'DATA (2)'!A:F,4,FALSE) -> DC | F15: =VLOOKUP(A15,'DATA (2)'!A:F,5,FALSE) -> 170.21 | G15: =IFERROR(F15*(1-VLOOKUP(C15,ГОЛОВНА!K:L,2,0)), "-") -> 170.21
A16: 96280966 | B16: =VLOOKUP(A16,'DATA (2)'!A:F,2,FALSE) -> Насос для брудної води Unilift CC5 - A1 | C16: =VLOOKUP(A16,'DATA (2)'!A:F,4,FALSE) -> DC | D16: S | F16: =VLOOKUP(A16,'DATA (2)'!A:F,5,FALSE) -> 156.26 | G16: =IFERROR(F16*(1-VLOOKUP(C16,ГОЛОВНА!K:L,2,0)), "-") -> 156.26
A17: 96280965 | B17: =VLOOKUP(A17,'DATA (2)'!A:F,2,FALSE) -> Насос для брудної води Unilift CC5 - M1 | C17: =VLOOKUP(A17,'DATA (2)'!A:F,4,FALSE) -> DC | F17: =VLOOKUP(A17,'DATA (2)'!A:F,5,FALSE) -> 146.73 | G17: =IFERROR(F17*(1-VLOOKUP(C17,ГОЛОВНА!K:L,2,0)), "-") -> 146.73
A18: 96280968 | B18: =VLOOKUP(A18,'DATA (2)'!A:F,2,FALSE) -> Насос для брудної води Unilift CC7 - A1 | C18: =VLOOKUP(A18,'DATA (2)'!A:F,4,FALSE) -> DC | D18: S | F18: =VLOOKUP(A18,'DATA (2)'!A:F,5,FALSE) -> 181.03 | G18: =IFERROR(F18*(1-VLOOKUP(C18,ГОЛОВНА!K:L,2,0)), "-") -> 181.03
A19: 96280967 | B19: =VLOOKUP(A19,'DATA (2)'!A:F,2,FALSE) -> Насос для брудної води Unilift CC7 - M1 | C19: =VLOOKUP(A19,'DATA (2)'!A:F,4,FALSE) -> DC | F19: =VLOOKUP(A19,'DATA (2)'!A:F,5,FALSE) -> 171.27 | G19: =IFERROR(F19*(1-VLOOKUP(C19,ГОЛОВНА!K:L,2,0)), "-") -> 171.27
A20: 96280970 | B20: =VLOOKUP(A20,'DATA (2)'!A:F,2,FALSE) -> Насос для брудної води Unilift CC9 - A1 | C20: =VLOOKUP(A20,'DATA (2)'!A:F,4,FALSE) -> DC | D20: S | F20: =VLOOKUP(A20,'DATA (2)'!A:F,5,FALSE) -> 234.39 | G20: =IFERROR(F20*(1-VLOOKUP(C20,ГОЛОВНА!K:L,2,0)), "-") -> 234.39
A21: 96280969 | B21: =VLOOKUP(A21,'DATA (2)'!A:F,2,FALSE) -> Насос для брудної води Unilift CC9 - M1 | C21: =VLOOKUP(A21,'DATA (2)'!A:F,4,FALSE) -> DC | F21: =VLOOKUP(A21,'DATA (2)'!A:F,5,FALSE) -> 221.07 | G21: =IFERROR(F21*(1-VLOOKUP(C21,ГОЛОВНА!K:L,2,0)), "-") -> 221.07
A22: 011H1800 | B22: =VLOOKUP(A22,'DATA (2)'!A:F,2,FALSE) -> Насос для брудної води KP150-A-1, кабель | C22: =VLOOKUP(A22,'DATA (2)'!A:F,4,FALSE) -> DC | D22: S | F22: =VLOOKUP(A22,'DATA (2)'!A:F,5,FALSE) -> 247.27 | G22: =IFERROR(F22*(1-VLOOKUP(C22,ГОЛОВНА!K:L,2,0)), "-") -> 247.27
A23: 011H1600 | B23: =VLOOKUP(A23,'DATA (2)'!A:F,2,FALSE) -> Насос для брудної води KP150-A-1, кабель | C23: =VLOOKUP(A23,'DATA (2)'!A:F,4,FALSE) -> DC | D23: S | F23: =VLOOKUP(A23,'DATA (2)'!A:F,5,FALSE) -> 231.33 | G23: =IFERROR(F23*(1-VLOOKUP(C23,ГОЛОВНА!K:L,2,0)), "-") -> 231.33
A24: 011H1400 | B24: =VLOOKUP(A24,'DATA (2)'!A:F,2,FALSE) -> Насос для брудної води KP150-AV-1, кабел | C24: =VLOOKUP(A24,'DATA (2)'!A:F,4,FALSE) -> DC | F24: =VLOOKUP(A24,'DATA (2)'!A:F,5,FALSE) -> 244.61 | G24: =IFERROR(F24*(1-VLOOKUP(C24,ГОЛОВНА!K:L,2,0)), "-") -> 244.61
A25: 011H1900 | B25: =VLOOKUP(A25,'DATA (2)'!A:F,2,FALSE) -> Насос для брудної води KP150-AV-1, кабел | C25: =VLOOKUP(A25,'DATA (2)'!A:F,4,FALSE) -> DC | F25: =VLOOKUP(A25,'DATA (2)'!A:F,5,FALSE) -> 260.58 | G25: =IFERROR(F25*(1-VLOOKUP(C25,ГОЛОВНА!K:L,2,0)), "-") -> 260.58
A26: 011H6300 | B26: =VLOOKUP(A26,'DATA (2)'!A:F,2,FALSE) -> Насос для брудної води KP150-M-1 1x220-2 | C26: =VLOOKUP(A26,'DATA (2)'!A:F,4,FALSE) -> DC | F26: =VLOOKUP(A26,'DATA (2)'!A:F,5,FALSE) -> 227.27 | G26: =IFERROR(F26*(1-VLOOKUP(C26,ГОЛОВНА!K:L,2,0)), "-") -> 227.27
A27: 011H1300 | B27: =VLOOKUP(A27,'DATA (2)'!A:F,2,FALSE) -> Насос для брудної води KP150-M-1, кабель | C27: =VLOOKUP(A27,'DATA (2)'!A:F,4,FALSE) -> DC | F27: =VLOOKUP(A27,'DATA (2)'!A:F,5,FALSE) -> 232.65 | G27: =IFERROR(F27*(1-VLOOKUP(C27,ГОЛОВНА!K:L,2,0)), "-") -> 232.65
A28: 012H1800 | B28: =VLOOKUP(A28,'DATA (2)'!A:F,2,FALSE) -> Насос для брудної води KP250-A-1, кабель | C28: =VLOOKUP(A28,'DATA (2)'!A:F,4,FALSE) -> DC | D28: S | F28: =VLOOKUP(A28,'DATA (2)'!A:F,5,FALSE) -> 292.76 | G28: =IFERROR(F28*(1-VLOOKUP(C28,ГОЛОВНА!K:L,2,0)), "-") -> 292.76
A29: 012H1600 | B29: =VLOOKUP(A29,'DATA (2)'!A:F,2,FALSE) -> Насос для брудної води KP250-A-1, кабель | C29: =VLOOKUP(A29,'DATA (2)'!A:F,4,FALSE) -> DC | D29: S | F29: =VLOOKUP(A29,'DATA (2)'!A:F,5,FALSE) -> 277.89 | G29: =IFERROR(F29*(1-VLOOKUP(C29,ГОЛОВНА!K:L,2,0)), "-") -> 277.89
A30: 012H1400 | B30: =VLOOKUP(A30,'DATA (2)'!A:F,2,FALSE) -> Насос для брудної води KP250-AV-1, кабел | C30: =VLOOKUP(A30,'DATA (2)'!A:F,4,FALSE) -> DC | F30: =VLOOKUP(A30,'DATA (2)'!A:F,5,FALSE) -> 291.4 | G30: =IFERROR(F30*(1-VLOOKUP(C30,ГОЛОВНА!K:L,2,0)), "-") -> 291.4
A31: 012H1900 | B31: =VLOOKUP(A31,'DATA (2)'!A:F,2,FALSE) -> Насос для брудної води KP250-AV-1, кабел | C31: =VLOOKUP(A31,'DATA (2)'!A:F,4,FALSE) -> DC | F31: =VLOOKUP(A31,'DATA (2)'!A:F,5,FALSE) -> 307.58 | G31: =IFERROR(F31*(1-VLOOKUP(C31,ГОЛОВНА!K:L,2,0)), "-") -> 307.58
A32: 012H1300 | B32: =VLOOKUP(A32,'DATA (2)'!A:F,2,FALSE) -> Насос для брудної води KP250-M-1, кабель | C32: =VLOOKUP(A32,'DATA (2)'!A:F,4,FALSE) -> DC | F32: =VLOOKUP(A32,'DATA (2)'!A:F,5,FALSE) -> 275.93 | G32: =IFERROR(F32*(1-VLOOKUP(C32,ГОЛОВНА!K:L,2,0)), "-") -> 275.93
A33: 012M6300 | B33: =VLOOKUP(A33,'DATA (2)'!A:F,2,FALSE) -> Насос для брудної води KP250-M-3 3x380-4 | C33: =VLOOKUP(A33,'DATA (2)'!A:F,4,FALSE) -> DC | F33: =VLOOKUP(A33,'DATA (2)'!A:F,5,FALSE) -> 271.94 | G33: =IFERROR(F33*(1-VLOOKUP(C33,ГОЛОВНА!K:L,2,0)), "-") -> 271.94
A34: 012M6100 | B34: =VLOOKUP(A34,'DATA (2)'!A:F,2,FALSE) -> Насос для брудної води UNILIFT KP250-M-3 | C34: =VLOOKUP(A34,'DATA (2)'!A:F,4,FALSE) -> DC | F34: =VLOOKUP(A34,'DATA (2)'!A:F,5,FALSE) -> 264.41 | G34: =IFERROR(F34*(1-VLOOKUP(C34,ГОЛОВНА!K:L,2,0)), "-") -> 264.41
A35: 013N1800 | B35: =VLOOKUP(A35,'DATA (2)'!A:F,2,FALSE) -> Насос для брудної води KP350-A-1, кабель | C35: =VLOOKUP(A35,'DATA (2)'!A:F,4,FALSE) -> DC | F35: =VLOOKUP(A35,'DATA (2)'!A:F,5,FALSE) -> 379.63 | G35: =IFERROR(F35*(1-VLOOKUP(C35,ГОЛОВНА!K:L,2,0)), "-") -> 379.63
A36: 013N1600 | B36: =VLOOKUP(A36,'DATA (2)'!A:F,2,FALSE) -> Насос для брудної води KP350-A-1, кабель | C36: =VLOOKUP(A36,'DATA (2)'!A:F,4,FALSE) -> DC | D36: S | F36: =VLOOKUP(A36,'DATA (2)'!A:F,5,FALSE) -> 353.81 | G36: =IFERROR(F36*(1-VLOOKUP(C36,ГОЛОВНА!K:L,2,0)), "-") -> 353.81
A37: 013N1400 | B37: =VLOOKUP(A37,'DATA (2)'!A:F,2,FALSE) -> Насос для брудної води KP350-AV-1, кабел | C37: =VLOOKUP(A37,'DATA (2)'!A:F,4,FALSE) -> DC | F37: =VLOOKUP(A37,'DATA (2)'!A:F,5,FALSE) -> 409.38 | G37: =IFERROR(F37*(1-VLOOKUP(C37,ГОЛОВНА!K:L,2,0)), "-") -> 409.38
A38: 013N1900 | B38: =VLOOKUP(A38,'DATA (2)'!A:F,2,FALSE) -> Насос для брудної води KP350-AV-1, кабел | C38: =VLOOKUP(A38,'DATA (2)'!A:F,4,FALSE) -> DC | F38: =VLOOKUP(A38,'DATA (2)'!A:F,5,FALSE) -> 435.14 | G38: =IFERROR(F38*(1-VLOOKUP(C38,ГОЛОВНА!K:L,2,0)), "-") -> 435.14
A39: 013N1300 | B39: =VLOOKUP(A39,'DATA (2)'!A:F,2,FALSE) -> Насос для брудної води KP350-M-1, кабель | C39: =VLOOKUP(A39,'DATA (2)'!A:F,4,FALSE) -> DC | F39: =VLOOKUP(A39,'DATA (2)'!A:F,5,FALSE) -> 350.95 | G39: =IFERROR(F39*(1-VLOOKUP(C39,ГОЛОВНА!K:L,2,0)), "-") -> 350.95
A40: 013M6300 | B40: =VLOOKUP(A40,'DATA (2)'!A:F,2,FALSE) -> Помпа для брудної води UNILIFT KP350-M-3 | C40: =VLOOKUP(A40,'DATA (2)'!A:F,4,FALSE) -> DC | F40: =VLOOKUP(A40,'DATA (2)'!A:F,5,FALSE) -> 364.36 | G40: =IFERROR(F40*(1-VLOOKUP(C40,ГОЛОВНА!K:L,2,0)), "-") -> 364.36
A41: 96011016 | B41: =VLOOKUP(A41,'DATA (2)'!A:F,2,FALSE) -> Насос для брудної води AP12.40.04.1, 1x2 | C41: =VLOOKUP(A41,'DATA (2)'!A:F,4,FALSE) -> CW | F41: =VLOOKUP(A41,'DATA (2)'!A:F,5,FALSE) -> 513.78 | G41: =IFERROR(F41*(1-VLOOKUP(C41,ГОЛОВНА!K:L,2,0)), "-") -> 513.78
A42: 96011024 | B42: =VLOOKUP(A42,'DATA (2)'!A:F,2,FALSE) -> Насос для брудної води AP12.40.04.3 3x40 | C42: =VLOOKUP(A42,'DATA (2)'!A:F,4,FALSE) -> CW | F42: =VLOOKUP(A42,'DATA (2)'!A:F,5,FALSE) -> 496.21 | G42: =IFERROR(F42*(1-VLOOKUP(C42,ГОЛОВНА!K:L,2,0)), "-") -> 496.21
A43: 96011018 | B43: =VLOOKUP(A43,'DATA (2)'!A:F,2,FALSE) -> Насос для брудної води AP12.40.04.A1, 1x | C43: =VLOOKUP(A43,'DATA (2)'!A:F,4,FALSE) -> CW | F43: =VLOOKUP(A43,'DATA (2)'!A:F,5,FALSE) -> 556.19 | G43: =IFERROR(F43*(1-VLOOKUP(C43,ГОЛОВНА!K:L,2,0)), "-") -> 556.19
A44: 96011015 | B44: =VLOOKUP(A44,'DATA (2)'!A:F,2,FALSE) -> Насос для брудної води AP 12.40.04.A1 1x | C44: =VLOOKUP(A44,'DATA (2)'!A:F,4,FALSE) -> CW | F44: =VLOOKUP(A44,'DATA (2)'!A:F,5,FALSE) -> 522.75 | G44: =IFERROR(F44*(1-VLOOKUP(C44,ГОЛОВНА!K:L,2,0)), "-") -> 522.75
A45: 96011017 | B45: =VLOOKUP(A45,'DATA (2)'!A:F,2,FALSE) -> Насос для брудної води AP12.40.04.A1 1x2 | C45: =VLOOKUP(A45,'DATA (2)'!A:F,4,FALSE) -> CW | D45: S | F45: =VLOOKUP(A45,'DATA (2)'!A:F,5,FALSE) -> 525.47 | G45: =IFERROR(F45*(1-VLOOKUP(C45,ГОЛОВНА!K:L,2,0)), "-") -> 525.47
A46: 96023871 | B46: =VLOOKUP(A46,'DATA (2)'!A:F,2,FALSE) -> Насос для брудної води AP12.40.04.A3 | C46: =VLOOKUP(A46,'DATA (2)'!A:F,4,FALSE) -> CW | F46: =VLOOKUP(A46,'DATA (2)'!A:F,5,FALSE) -> 657.23 | G46: =IFERROR(F46*(1-VLOOKUP(C46,ГОЛОВНА!K:L,2,0)), "-") -> 657.23
A47: 96001720 | B47: =VLOOKUP(A47,'DATA (2)'!A:F,2,FALSE) -> Насос для брудної води AP12.40.06.1 1x23 | C47: =VLOOKUP(A47,'DATA (2)'!A:F,4,FALSE) -> CW | F47: =VLOOKUP(A47,'DATA (2)'!A:F,5,FALSE) -> 535.75 | G47: =IFERROR(F47*(1-VLOOKUP(C47,ГОЛОВНА!K:L,2,0)), "-") -> 535.75
A48: 96001652 | B48: =VLOOKUP(A48,'DATA (2)'!A:F,2,FALSE) -> Насос для брудної води AP12.40.06.3 3x40 | C48: =VLOOKUP(A48,'DATA (2)'!A:F,4,FALSE) -> CW | F48: =VLOOKUP(A48,'DATA (2)'!A:F,5,FALSE) -> 518.17 | G48: =IFERROR(F48*(1-VLOOKUP(C48,ГОЛОВНА!K:L,2,0)), "-") -> 518.17
A49: 96010979 | B49: =VLOOKUP(A49,'DATA (2)'!A:F,2,FALSE) -> Помпа для брудної води AP12.40.06.A1 1X2 | C49: =VLOOKUP(A49,'DATA (2)'!A:F,4,FALSE) -> CW | F49: =VLOOKUP(A49,'DATA (2)'!A:F,5,FALSE) -> 591.34 | G49: =IFERROR(F49*(1-VLOOKUP(C49,ГОЛОВНА!K:L,2,0)), "-") -> 591.34
A50: 96001735 | B50: =VLOOKUP(A50,'DATA (2)'!A:F,2,FALSE) -> Насос для брудної води AP12.40.06.A1 1x2 | C50: =VLOOKUP(A50,'DATA (2)'!A:F,4,FALSE) -> CW | D50: S | F50: =VLOOKUP(A50,'DATA (2)'!A:F,5,FALSE) -> 553.33 | G50: =IFERROR(F50*(1-VLOOKUP(C50,ГОЛОВНА!K:L,2,0)), "-") -> 553.33
A51: 96023872 | B51: =VLOOKUP(A51,'DATA (2)'!A:F,2,FALSE) -> Насос для брудної води AP12.40.06.A3 3x4 | C51: =VLOOKUP(A51,'DATA (2)'!A:F,4,FALSE) -> CW | F51: =VLOOKUP(A51,'DATA (2)'!A:F,5,FALSE) -> 693.78 | G51: =IFERROR(F51*(1-VLOOKUP(C51,ГОЛОВНА!K:L,2,0)), "-") -> 693.78
A52: 96001869 | B52: =VLOOKUP(A52,'DATA (2)'!A:F,2,FALSE) -> Насос для брудної води AP12.40.08.1 1x23 | C52: =VLOOKUP(A52,'DATA (2)'!A:F,4,FALSE) -> CW | F52: =VLOOKUP(A52,'DATA (2)'!A:F,5,FALSE) -> 598.71 | G52: =IFERROR(F52*(1-VLOOKUP(C52,ГОЛОВНА!K:L,2,0)), "-") -> 598.71
A53: 96001791 | B53: =VLOOKUP(A53,'DATA (2)'!A:F,2,FALSE) -> Насос для брудної води AP12.40.08.3 3x40 | C53: =VLOOKUP(A53,'DATA (2)'!A:F,4,FALSE) -> CW | F53: =VLOOKUP(A53,'DATA (2)'!A:F,5,FALSE) -> 577.83 | G53: =IFERROR(F53*(1-VLOOKUP(C53,ГОЛОВНА!K:L,2,0)), "-") -> 577.83
A54: 96404181 | B54: =VLOOKUP(A54,'DATA (2)'!A:F,2,FALSE) -> Насос для брудної води AP 12.40.08.A1 1X | C54: =VLOOKUP(A54,'DATA (2)'!A:F,4,FALSE) -> CW | F54: =VLOOKUP(A54,'DATA (2)'!A:F,5,FALSE) -> 653.97 | G54: =IFERROR(F54*(1-VLOOKUP(C54,ГОЛОВНА!K:L,2,0)), "-") -> 653.97
A55: 96010980 | B55: =VLOOKUP(A55,'DATA (2)'!A:F,2,FALSE) -> Насос для брудної води AP12.40.08.A1 1X2 | C55: =VLOOKUP(A55,'DATA (2)'!A:F,4,FALSE) -> CW | F55: =VLOOKUP(A55,'DATA (2)'!A:F,5,FALSE) -> 653.97 | G55: =IFERROR(F55*(1-VLOOKUP(C55,ГОЛОВНА!K:L,2,0)), "-") -> 653.97
A56: 96001798 | B56: =VLOOKUP(A56,'DATA (2)'!A:F,2,FALSE) -> Насос для брудної води AP12.40.08 | C56: =VLOOKUP(A56,'DATA (2)'!A:F,4,FALSE) -> CW | F56: =VLOOKUP(A56,'DATA (2)'!A:F,5,FALSE) -> 618.13 | G56: =IFERROR(F56*(1-VLOOKUP(C56,ГОЛОВНА!K:L,2,0)), "-") -> 618.13
A57: 96010925 | B57: =VLOOKUP(A57,'DATA (2)'!A:F,2,FALSE) -> Насос дренажний UNILIFT AP12.40.08.A3 3x | C57: =VLOOKUP(A57,'DATA (2)'!A:F,4,FALSE) -> CW | F57: =VLOOKUP(A57,'DATA (2)'!A:F,5,FALSE) -> 701.69 | G57: =IFERROR(F57*(1-VLOOKUP(C57,ГОЛОВНА!K:L,2,0)), "-") -> 701.69
A58: 96023873 | B58: =VLOOKUP(A58,'DATA (2)'!A:F,2,FALSE) -> Насос для брудної води AP12.40.08.A3 3X4 | C58: =VLOOKUP(A58,'DATA (2)'!A:F,4,FALSE) -> CW | F58: =VLOOKUP(A58,'DATA (2)'!A:F,5,FALSE) -> 728.6 | G58: =IFERROR(F58*(1-VLOOKUP(C58,ГОЛОВНА!K:L,2,0)), "-") -> 728.6
A59: 96001958 | B59: =VLOOKUP(A59,'DATA (2)'!A:F,2,FALSE) -> Насос для брудної води AP12.50.11.1 1x23 | C59: =VLOOKUP(A59,'DATA (2)'!A:F,4,FALSE) -> CW | F59: =VLOOKUP(A59,'DATA (2)'!A:F,5,FALSE) -> 845.09 | G59: =IFERROR(F59*(1-VLOOKUP(C59,ГОЛОВНА!K:L,2,0)), "-") -> 845.09
A60: 96001975 | B60: =VLOOKUP(A60,'DATA (2)'!A:F,2,FALSE) -> Насос для брудної води AP12.50.11.3 3x40 | C60: =VLOOKUP(A60,'DATA (2)'!A:F,4,FALSE) -> CW | F60: =VLOOKUP(A60,'DATA (2)'!A:F,5,FALSE) -> 815.19 | G60: =IFERROR(F60*(1-VLOOKUP(C60,ГОЛОВНА!K:L,2,0)), "-") -> 815.19
A61: 96010981 | B61: =VLOOKUP(A61,'DATA (2)'!A:F,2,FALSE) -> Насос для брудної води AP12.50.11.A1 1x2 | C61: =VLOOKUP(A61,'DATA (2)'!A:F,4,FALSE) -> CW | F61: =VLOOKUP(A61,'DATA (2)'!A:F,5,FALSE) -> 910.74 | G61: =IFERROR(F61*(1-VLOOKUP(C61,ГОЛОВНА!K:L,2,0)), "-") -> 910.74
A62: 96001965 | B62: =VLOOKUP(A62,'DATA (2)'!A:F,2,FALSE) -> Насос для брудної води AP12.50.11.A1 1x2 | C62: =VLOOKUP(A62,'DATA (2)'!A:F,4,FALSE) -> CW | D62: S | F62: =VLOOKUP(A62,'DATA (2)'!A:F,5,FALSE) -> 870.41 | G62: =IFERROR(F62*(1-VLOOKUP(C62,ГОЛОВНА!K:L,2,0)), "-") -> 870.41
A63: 96023874 | B63: =VLOOKUP(A63,'DATA (2)'!A:F,2,FALSE) -> Насос для брудної води AP12.50.11.A3 3x4 | C63: =VLOOKUP(A63,'DATA (2)'!A:F,4,FALSE) -> CW | F63: =VLOOKUP(A63,'DATA (2)'!A:F,5,FALSE) -> 974.94 | G63: =IFERROR(F63*(1-VLOOKUP(C63,ГОЛОВНА!K:L,2,0)), "-") -> 974.94
A64: 96001796 | B64: =VLOOKUP(A64,'DATA (2)'!A:F,2,FALSE) -> Помпа для брудної води AP35.40.06.1V | C64: =VLOOKUP(A64,'DATA (2)'!A:F,4,FALSE) -> CW | F64: =VLOOKUP(A64,'DATA (2)'!A:F,5,FALSE) -> 612.02 | G64: =IFERROR(F64*(1-VLOOKUP(C64,ГОЛОВНА!K:L,2,0)), "-") -> 612.02
A65: 96000169 | B65: =VLOOKUP(A65,'DATA (2)'!A:F,2,FALSE) -> Насос для брудної води AP 35.40.06.3V 3x | C65: =VLOOKUP(A65,'DATA (2)'!A:F,4,FALSE) -> CW | F65: =VLOOKUP(A65,'DATA (2)'!A:F,5,FALSE) -> 592.05 | G65: =IFERROR(F65*(1-VLOOKUP(C65,ГОЛОВНА!K:L,2,0)), "-") -> 592.05
A66: 96010982 | B66: =VLOOKUP(A66,'DATA (2)'!A:F,2,FALSE) -> Насос для брудної води AP35.40.06.A1, 10 | C66: =VLOOKUP(A66,'DATA (2)'!A:F,4,FALSE) -> CW | F66: =VLOOKUP(A66,'DATA (2)'!A:F,5,FALSE) -> 679.73 | G66: =IFERROR(F66*(1-VLOOKUP(C66,ГОЛОВНА!K:L,2,0)), "-") -> 679.73
A67: 96023875 | B67: =VLOOKUP(A67,'DATA (2)'!A:F,2,FALSE) -> Помпа для брудної води AP35.40.06.A3V 3x | C67: =VLOOKUP(A67,'DATA (2)'!A:F,4,FALSE) -> CW | F67: =VLOOKUP(A67,'DATA (2)'!A:F,5,FALSE) -> 750.46 | G67: =IFERROR(F67*(1-VLOOKUP(C67,ГОЛОВНА!K:L,2,0)), "-") -> 750.46
A68: 96001672 | B68: =VLOOKUP(A68,'DATA (2)'!A:F,2,FALSE) -> Помпа для брудної води AP35.40.08.1V | C68: =VLOOKUP(A68,'DATA (2)'!A:F,4,FALSE) -> CW | F68: =VLOOKUP(A68,'DATA (2)'!A:F,5,FALSE) -> 670.49 | G68: =IFERROR(F68*(1-VLOOKUP(C68,ГОЛОВНА!K:L,2,0)), "-") -> 670.49
A69: 96001718 | B69: =VLOOKUP(A69,'DATA (2)'!A:F,2,FALSE) -> Насос для брудної води AP 35.40.08.3V 3x | C69: =VLOOKUP(A69,'DATA (2)'!A:F,4,FALSE) -> CW | F69: =VLOOKUP(A69,'DATA (2)'!A:F,5,FALSE) -> 647.41 | G69: =IFERROR(F69*(1-VLOOKUP(C69,ГОЛОВНА!K:L,2,0)), "-") -> 647.41
A70: 96010983 | B70: =VLOOKUP(A70,'DATA (2)'!A:F,2,FALSE) -> Насос для брудної води AP35.40.08.A1V 10 | C70: =VLOOKUP(A70,'DATA (2)'!A:F,4,FALSE) -> CW | F70: =VLOOKUP(A70,'DATA (2)'!A:F,5,FALSE) -> 721.2 | G70: =IFERROR(F70*(1-VLOOKUP(C70,ГОЛОВНА!K:L,2,0)), "-") -> 721.2
A71: 96001897 | B71: =VLOOKUP(A71,'DATA (2)'!A:F,2,FALSE) -> Помпа для брудної води AP35.40.08.A1V | C71: =VLOOKUP(A71,'DATA (2)'!A:F,4,FALSE) -> CW | F71: =VLOOKUP(A71,'DATA (2)'!A:F,5,FALSE) -> 690.52 | G71: =IFERROR(F71*(1-VLOOKUP(C71,ГОЛОВНА!K:L,2,0)), "-") -> 690.52
A72: 96023876 | B72: =VLOOKUP(A72,'DATA (2)'!A:F,2,FALSE) -> Помпа для брудної води AP35.40.08.A3V | C72: =VLOOKUP(A72,'DATA (2)'!A:F,4,FALSE) -> CW | F72: =VLOOKUP(A72,'DATA (2)'!A:F,5,FALSE) -> 834.76 | G72: =IFERROR(F72*(1-VLOOKUP(C72,ГОЛОВНА!K:L,2,0)), "-") -> 834.76
A73: 96004563 | B73: =VLOOKUP(A73,'DATA (2)'!A:F,2,FALSE) -> Насос для брудної води AP35B.50.06.1V 1x | C73: =VLOOKUP(A73,'DATA (2)'!A:F,4,FALSE) -> CW | F73: =VLOOKUP(A73,'DATA (2)'!A:F,5,FALSE) -> 405.97 | G73: =IFERROR(F73*(1-VLOOKUP(C73,ГОЛОВНА!K:L,2,0)), "-") -> 405.97
A74: 96468190 | B74: =VLOOKUP(A74,'DATA (2)'!A:F,2,FALSE) -> Помпа для брудної води UNILIFT AP35B.50. | C74: =VLOOKUP(A74,'DATA (2)'!A:F,4,FALSE) -> CW | F74: =VLOOKUP(A74,'DATA (2)'!A:F,5,FALSE) -> 454.18 | G74: =IFERROR(F74*(1-VLOOKUP(C74,ГОЛОВНА!K:L,2,0)), "-") -> 454.18
A75: 96004565 | B75: =VLOOKUP(A75,'DATA (2)'!A:F,2,FALSE) -> Помпа для брудної води AP35B.50.06.3V 3x | C75: =VLOOKUP(A75,'DATA (2)'!A:F,4,FALSE) -> CW | F75: =VLOOKUP(A75,'DATA (2)'!A:F,5,FALSE) -> 445.92 | G75: =IFERROR(F75*(1-VLOOKUP(C75,ГОЛОВНА!K:L,2,0)), "-") -> 445.92
A76: 96468356 | B76: =VLOOKUP(A76,'DATA (2)'!A:F,2,FALSE) -> Насос для брудної води AP35B.50.06.A1V 1 | C76: =VLOOKUP(A76,'DATA (2)'!A:F,4,FALSE) -> CW | D76: S | F76: =VLOOKUP(A76,'DATA (2)'!A:F,5,FALSE) -> 475.9 | G76: =IFERROR(F76*(1-VLOOKUP(C76,ГОЛОВНА!K:L,2,0)), "-") -> 475.9
A77: 96004562 | B77: =VLOOKUP(A77,'DATA (2)'!A:F,2,FALSE) -> Насос для брудної води AP35B.50.06.A1V 1 | C77: =VLOOKUP(A77,'DATA (2)'!A:F,4,FALSE) -> CW | F77: =VLOOKUP(A77,'DATA (2)'!A:F,5,FALSE) -> 464.43 | G77: =IFERROR(F77*(1-VLOOKUP(C77,ГОЛОВНА!K:L,2,0)), "-") -> 464.43
A78: 96004575 | B78: =VLOOKUP(A78,'DATA (2)'!A:F,2,FALSE) -> Помпа для брудної води UNILIFT AP35B.50. | C78: =VLOOKUP(A78,'DATA (2)'!A:F,4,FALSE) -> CW | F78: =VLOOKUP(A78,'DATA (2)'!A:F,5,FALSE) -> 490.5 | G78: =IFERROR(F78*(1-VLOOKUP(C78,ГОЛОВНА!K:L,2,0)), "-") -> 490.5
A79: 96468193 | B79: =VLOOKUP(A79,'DATA (2)'!A:F,2,FALSE) -> Насос для брудної води AP35B.50.08.3V | C79: =VLOOKUP(A79,'DATA (2)'!A:F,4,FALSE) -> CW | F79: =VLOOKUP(A79,'DATA (2)'!A:F,5,FALSE) -> 539.51 | G79: =IFERROR(F79*(1-VLOOKUP(C79,ГОЛОВНА!K:L,2,0)), "-") -> 539.51
A80: 96004577 | B80: =VLOOKUP(A80,'DATA (2)'!A:F,2,FALSE) -> Помпа для брудної води AP35B.50.08.3V 3x | C80: =VLOOKUP(A80,'DATA (2)'!A:F,4,FALSE) -> CW | F80: =VLOOKUP(A80,'DATA (2)'!A:F,5,FALSE) -> 530.53 | G80: =IFERROR(F80*(1-VLOOKUP(C80,ГОЛОВНА!K:L,2,0)), "-") -> 530.53
A81: 96468355 | B81: =VLOOKUP(A81,'DATA (2)'!A:F,2,FALSE) -> Насос для брудної води AP35B.50.08.A1V 1 | C81: =VLOOKUP(A81,'DATA (2)'!A:F,4,FALSE) -> CW | F81: =VLOOKUP(A81,'DATA (2)'!A:F,5,FALSE) -> 560.83 | G81: =IFERROR(F81*(1-VLOOKUP(C81,ГОЛОВНА!K:L,2,0)), "-") -> 560.83
A82: 96004574 | B82: =VLOOKUP(A82,'DATA (2)'!A:F,2,FALSE) -> Помпа для брудної води AP35B.50.08.A1V 1 | C82: =VLOOKUP(A82,'DATA (2)'!A:F,4,FALSE) -> CW | F82: =VLOOKUP(A82,'DATA (2)'!A:F,5,FALSE) -> 549.01 | G82: =IFERROR(F82*(1-VLOOKUP(C82,ГОЛОВНА!K:L,2,0)), "-") -> 549.01
A83: 96010595 | B83: =VLOOKUP(A83,'DATA (2)'!A:F,2,FALSE) -> Помпа для брудної води AP50.50.08.1V | C83: =VLOOKUP(A83,'DATA (2)'!A:F,4,FALSE) -> CW | F83: =VLOOKUP(A83,'DATA (2)'!A:F,5,FALSE) -> 879.61 | G83: =IFERROR(F83*(1-VLOOKUP(C83,ГОЛОВНА!K:L,2,0)), "-") -> 879.61
A84: 96010563 | B84: =VLOOKUP(A84,'DATA (2)'!A:F,2,FALSE) -> Помпа для брудної води AP50.50.08.3V | C84: =VLOOKUP(A84,'DATA (2)'!A:F,4,FALSE) -> CW | F84: =VLOOKUP(A84,'DATA (2)'!A:F,5,FALSE) -> 850.43 | G84: =IFERROR(F84*(1-VLOOKUP(C84,ГОЛОВНА!K:L,2,0)), "-") -> 850.43
A85: 96010984 | B85: =VLOOKUP(A85,'DATA (2)'!A:F,2,FALSE) -> Помпа для брудної води AP50.50.08.A1V | C85: =VLOOKUP(A85,'DATA (2)'!A:F,4,FALSE) -> CW | F85: =VLOOKUP(A85,'DATA (2)'!A:F,5,FALSE) -> 958.57 | G85: =IFERROR(F85*(1-VLOOKUP(C85,ГОЛОВНА!K:L,2,0)), "-") -> 958.57
A86: 96010584 | B86: =VLOOKUP(A86,'DATA (2)'!A:F,2,FALSE) -> Помпа для брудної води AP50.50.08.A1V | C86: =VLOOKUP(A86,'DATA (2)'!A:F,4,FALSE) -> CW | F86: =VLOOKUP(A86,'DATA (2)'!A:F,5,FALSE) -> 907.3 | G86: =IFERROR(F86*(1-VLOOKUP(C86,ГОЛОВНА!K:L,2,0)), "-") -> 907.3
A87: 96023877 | B87: =VLOOKUP(A87,'DATA (2)'!A:F,2,FALSE) -> Помпа для брудної води AP50.50.08.A3V | C87: =VLOOKUP(A87,'DATA (2)'!A:F,4,FALSE) -> CW | F87: =VLOOKUP(A87,'DATA (2)'!A:F,5,FALSE) -> 1025.73 | G87: =IFERROR(F87*(1-VLOOKUP(C87,ГОЛОВНА!K:L,2,0)), "-") -> 1025.73
A88: 96010577 | B88: =VLOOKUP(A88,'DATA (2)'!A:F,2,FALSE) -> Помпа для брудної води AP50.50.11.1V | C88: =VLOOKUP(A88,'DATA (2)'!A:F,4,FALSE) -> CW | F88: =VLOOKUP(A88,'DATA (2)'!A:F,5,FALSE) -> 1330.23 | G88: =IFERROR(F88*(1-VLOOKUP(C88,ГОЛОВНА!K:L,2,0)), "-") -> 1330.23
A89: 96010562 | B89: =VLOOKUP(A89,'DATA (2)'!A:F,2,FALSE) -> Помпа для брудної води AP50.50.11.3V | C89: =VLOOKUP(A89,'DATA (2)'!A:F,4,FALSE) -> CW | F89: =VLOOKUP(A89,'DATA (2)'!A:F,5,FALSE) -> 1288.72 | G89: =IFERROR(F89*(1-VLOOKUP(C89,ГОЛОВНА!K:L,2,0)), "-") -> 1288.72
A90: 96010985 | B90: =VLOOKUP(A90,'DATA (2)'!A:F,2,FALSE) -> Помпа для брудної води AP50.50.11.A1V | C90: =VLOOKUP(A90,'DATA (2)'!A:F,4,FALSE) -> CW | F90: =VLOOKUP(A90,'DATA (2)'!A:F,5,FALSE) -> 1407.08 | G90: =IFERROR(F90*(1-VLOOKUP(C90,ГОЛОВНА!K:L,2,0)), "-") -> 1407.08
A91: 96023878 | B91: =VLOOKUP(A91,'DATA (2)'!A:F,2,FALSE) -> Насос для брудної води AP50.50.11.A3V | C91: =VLOOKUP(A91,'DATA (2)'!A:F,4,FALSE) -> CW | F91: =VLOOKUP(A91,'DATA (2)'!A:F,5,FALSE) -> 1462.43 | G91: =IFERROR(F91*(1-VLOOKUP(C91,ГОЛОВНА!K:L,2,0)), "-") -> 1462.43
A92: 96004587 | B92: =VLOOKUP(A92,'DATA (2)'!A:F,2,FALSE) -> Насос для брудної води AP50B.50.08.1V 1x | C92: =VLOOKUP(A92,'DATA (2)'!A:F,4,FALSE) -> CW | F92: =VLOOKUP(A92,'DATA (2)'!A:F,5,FALSE) -> 627.1 | G92: =IFERROR(F92*(1-VLOOKUP(C92,ГОЛОВНА!K:L,2,0)), "-") -> 627.1
A93: 96468194 | B93: =VLOOKUP(A93,'DATA (2)'!A:F,2,FALSE) -> Насос брудної води UNILIFT AP50B.50.08.3 | C93: =VLOOKUP(A93,'DATA (2)'!A:F,4,FALSE) -> CW | D93: S | F93: =VLOOKUP(A93,'DATA (2)'!A:F,5,FALSE) -> 627.36 | G93: =IFERROR(F93*(1-VLOOKUP(C93,ГОЛОВНА!K:L,2,0)), "-") -> 627.36
A94: 96004589 | B94: =VLOOKUP(A94,'DATA (2)'!A:F,2,FALSE) -> Насос для брудної води AP50B.50.08.3V 3x | C94: =VLOOKUP(A94,'DATA (2)'!A:F,4,FALSE) -> CW | F94: =VLOOKUP(A94,'DATA (2)'!A:F,5,FALSE) -> 616.64 | G94: =IFERROR(F94*(1-VLOOKUP(C94,ГОЛОВНА!K:L,2,0)), "-") -> 616.64
A95: 96468354 | B95: =VLOOKUP(A95,'DATA (2)'!A:F,2,FALSE) -> Насос для брудної води AP50B.50.08.A1V 1 | C95: =VLOOKUP(A95,'DATA (2)'!A:F,4,FALSE) -> CW | F95: =VLOOKUP(A95,'DATA (2)'!A:F,5,FALSE) -> 702.67 | G95: =IFERROR(F95*(1-VLOOKUP(C95,ГОЛОВНА!K:L,2,0)), "-") -> 702.67
A96: 96004586 | B96: =VLOOKUP(A96,'DATA (2)'!A:F,2,FALSE) -> Помпа для брудної води AP50B.50.08.A1V 1 | C96: =VLOOKUP(A96,'DATA (2)'!A:F,4,FALSE) -> CW | F96: =VLOOKUP(A96,'DATA (2)'!A:F,5,FALSE) -> 683.83 | G96: =IFERROR(F96*(1-VLOOKUP(C96,ГОЛОВНА!K:L,2,0)), "-") -> 683.83
A97: 96004599 | B97: =VLOOKUP(A97,'DATA (2)'!A:F,2,FALSE) -> Насос для брудної води AP50B.50.11.1V 1x | C97: =VLOOKUP(A97,'DATA (2)'!A:F,4,FALSE) -> CW | F97: =VLOOKUP(A97,'DATA (2)'!A:F,5,FALSE) -> 774.86 | G97: =IFERROR(F97*(1-VLOOKUP(C97,ГОЛОВНА!K:L,2,0)), "-") -> 774.86
A98: 96468195 | B98: =VLOOKUP(A98,'DATA (2)'!A:F,2,FALSE) -> Помпа для брудної води UNILIFT AP50B.50. | C98: =VLOOKUP(A98,'DATA (2)'!A:F,4,FALSE) -> CW | F98: =VLOOKUP(A98,'DATA (2)'!A:F,5,FALSE) -> 739.37 | G98: =IFERROR(F98*(1-VLOOKUP(C98,ГОЛОВНА!K:L,2,0)), "-") -> 739.37
A99: 96004601 | B99: =VLOOKUP(A99,'DATA (2)'!A:F,2,FALSE) -> Помпа для брудної води AP50B.50.11.3V 3x | C99: =VLOOKUP(A99,'DATA (2)'!A:F,4,FALSE) -> CW | F99: =VLOOKUP(A99,'DATA (2)'!A:F,5,FALSE) -> 727.1 | G99: =IFERROR(F99*(1-VLOOKUP(C99,ГОЛОВНА!K:L,2,0)), "-") -> 727.1
A100: 96468352 | B100: =VLOOKUP(A100,'DATA (2)'!A:F,2,FALSE) -> Насос для брудн води UNILIFT AP50B.50.11 | C100: =VLOOKUP(A100,'DATA (2)'!A:F,4,FALSE) -> CW | F100: =VLOOKUP(A100,'DATA (2)'!A:F,5,FALSE) -> 853.29 | G100: =IFERROR(F100*(1-VLOOKUP(C100,ГОЛОВНА!K:L,2,0)), "-") -> 853.29
A101: 96004598 | B101: =VLOOKUP(A101,'DATA (2)'!A:F,2,FALSE) -> Насос для брудної води AP50B.50.11.A1V 1 | C101: =VLOOKUP(A101,'DATA (2)'!A:F,4,FALSE) -> CW | F101: =VLOOKUP(A101,'DATA (2)'!A:F,5,FALSE) -> 834.61 | G101: =IFERROR(F101*(1-VLOOKUP(C101,ГОЛОВНА!K:L,2,0)), "-") -> 834.61
A102: 96468196 | B102: =VLOOKUP(A102,'DATA (2)'!A:F,2,FALSE) -> Насос UNILIFT AP50В.50.15.3.V | C102: =VLOOKUP(A102,'DATA (2)'!A:F,4,FALSE) -> CW | F102: =VLOOKUP(A102,'DATA (2)'!A:F,5,FALSE) -> 865.01 | G102: =IFERROR(F102*(1-VLOOKUP(C102,ГОЛОВНА!K:L,2,0)), "-") -> 865.01
A103: 96004609 | B103: =VLOOKUP(A103,'DATA (2)'!A:F,2,FALSE) -> Помпа для брудної води AP50B.50.15.3V 3x | C103: =VLOOKUP(A103,'DATA (2)'!A:F,4,FALSE) -> CW | F103: =VLOOKUP(A103,'DATA (2)'!A:F,5,FALSE) -> 853.99 | G103: =IFERROR(F103*(1-VLOOKUP(C103,ГОЛОВНА!K:L,2,0)), "-") -> 853.99
B105: Аксесуари
A106: 330767 | B106: =VLOOKUP(A106,'DATA (2)'!A:F,2,FALSE) -> Ніпель R 1 1/2 | C106: =VLOOKUP(A106,'DATA (2)'!A:F,4,FALSE) -> CW | F106: =VLOOKUP(A106,'DATA (2)'!A:F,5,FALSE) -> 32.84 | G106: =IFERROR(F106*(1-VLOOKUP(C106,ГОЛОВНА!K:L,2,0)), "-") -> 32.84
A107: 91070765 | B107: =VLOOKUP(A107,'DATA (2)'!A:F,2,FALSE) -> Труба направляюча 1 1/2 6 м | C107: =VLOOKUP(A107,'DATA (2)'!A:F,4,FALSE) -> CW | F107: =VLOOKUP(A107,'DATA (2)'!A:F,5,FALSE) -> 171.6 | G107: =IFERROR(F107*(1-VLOOKUP(C107,ГОЛОВНА!K:L,2,0)), "-") -> 171.6
A108: 91071763 | B108: =VLOOKUP(A108,'DATA (2)'!A:F,2,FALSE) -> Ланцюг KETTE-ABLAЯ 4MM 3M | C108: =VLOOKUP(A108,'DATA (2)'!A:F,4,FALSE) -> CW | F108: =VLOOKUP(A108,'DATA (2)'!A:F,5,FALSE) -> 45.91 | G108: =IFERROR(F108*(1-VLOOKUP(C108,ГОЛОВНА!K:L,2,0)), "-") -> 45.91
A109: 91072171 | B109: =VLOOKUP(A109,'DATA (2)'!A:F,2,FALSE) -> Двосторонній ніпель 210 R2" 100 1.4571 | C109: =VLOOKUP(A109,'DATA (2)'!A:F,4,FALSE) -> CW | F109: =VLOOKUP(A109,'DATA (2)'!A:F,5,FALSE) -> 26.88 | G109: =IFERROR(F109*(1-VLOOKUP(C109,ГОЛОВНА!K:L,2,0)), "-") -> 26.88
A110: 91072424 | B110: =VLOOKUP(A110,'DATA (2)'!A:F,2,FALSE) -> Комплект нап. труб 11/2" 2 шт 6м 1.4541 | C110: =VLOOKUP(A110,'DATA (2)'!A:F,4,FALSE) -> CW | F110: =VLOOKUP(A110,'DATA (2)'!A:F,5,FALSE) -> 621.09 | G110: =IFERROR(F110*(1-VLOOKUP(C110,ГОЛОВНА!K:L,2,0)), "-") -> 621.09
A111: 91076761 | B111: =VLOOKUP(A111,'DATA (2)'!A:F,2,FALSE) -> Зворотний клапан кульовий Rp1 1/2" | C111: =VLOOKUP(A111,'DATA (2)'!A:F,4,FALSE) -> WW | F111: =VLOOKUP(A111,'DATA (2)'!A:F,5,FALSE) -> 202.24 | G111: =IFERROR(F111*(1-VLOOKUP(C111,ГОЛОВНА!K:L,2,0)), "-") -> 202.24
A112: 96001977 | B112: =VLOOKUP(A112,'DATA (2)'!A:F,2,FALSE) -> Муфта Storz 1 1/2 | C112: =VLOOKUP(A112,'DATA (2)'!A:F,4,FALSE) -> CW | F112: =VLOOKUP(A112,'DATA (2)'!A:F,5,FALSE) -> 36.23 | G112: =IFERROR(F112*(1-VLOOKUP(C112,ГОЛОВНА!K:L,2,0)), "-") -> 36.23
A113: 96001979 | B113: =VLOOKUP(A113,'DATA (2)'!A:F,2,FALSE) -> Коліно 90 R/Rp11/2 | C113: =VLOOKUP(A113,'DATA (2)'!A:F,4,FALSE) -> CW | F113: =VLOOKUP(A113,'DATA (2)'!A:F,5,FALSE) -> 20.83 | G113: =IFERROR(F113*(1-VLOOKUP(C113,ГОЛОВНА!K:L,2,0)), "-") -> 20.83
A114: 96001980 | B114: =VLOOKUP(A114,'DATA (2)'!A:F,2,FALSE) -> Коліно оцинк 2 R /RP 90* | C114: =VLOOKUP(A114,'DATA (2)'!A:F,4,FALSE) -> CW | F114: =VLOOKUP(A114,'DATA (2)'!A:F,5,FALSE) -> 22.92 | G114: =IFERROR(F114*(1-VLOOKUP(C114,ГОЛОВНА!K:L,2,0)), "-") -> 22.92
A115: 96001981 | B115: =VLOOKUP(A115,'DATA (2)'!A:F,2,FALSE) -> Коліно оцинк 2 1/2 R /RP 90* | C115: =VLOOKUP(A115,'DATA (2)'!A:F,4,FALSE) -> CW | F115: =VLOOKUP(A115,'DATA (2)'!A:F,5,FALSE) -> 41.67 | G115: =IFERROR(F115*(1-VLOOKUP(C115,ГОЛОВНА!K:L,2,0)), "-") -> 41.67
A116: 96001984 | B116: =VLOOKUP(A116,'DATA (2)'!A:F,2,FALSE) -> Муфта STORZ 3 | C116: =VLOOKUP(A116,'DATA (2)'!A:F,4,FALSE) -> CW | F116: =VLOOKUP(A116,'DATA (2)'!A:F,5,FALSE) -> 45.83 | G116: =IFERROR(F116*(1-VLOOKUP(C116,ГОЛОВНА!K:L,2,0)), "-") -> 45.83
A117: 96001993 | B117: =VLOOKUP(A117,'DATA (2)'!A:F,2,FALSE) -> Ніпель R 2 | C117: =VLOOKUP(A117,'DATA (2)'!A:F,4,FALSE) -> CW | F117: =VLOOKUP(A117,'DATA (2)'!A:F,5,FALSE) -> 11.71 | G117: =IFERROR(F117*(1-VLOOKUP(C117,ГОЛОВНА!K:L,2,0)), "-") -> 11.71
A118: 96001994 | B118: =VLOOKUP(A118,'DATA (2)'!A:F,2,FALSE) -> Ніпель R 2 1/2 | C118: =VLOOKUP(A118,'DATA (2)'!A:F,4,FALSE) -> CW | F118: =VLOOKUP(A118,'DATA (2)'!A:F,5,FALSE) -> 31.25 | G118: =IFERROR(F118*(1-VLOOKUP(C118,ГОЛОВНА!K:L,2,0)), "-") -> 31.25
A119: 96001996 | B119: =VLOOKUP(A119,'DATA (2)'!A:F,2,FALSE) -> Флан. різьбовий Rp 2 1/2 DN 65 GW | C119: =VLOOKUP(A119,'DATA (2)'!A:F,4,FALSE) -> CW | F119: =VLOOKUP(A119,'DATA (2)'!A:F,5,FALSE) -> 46.32 | G119: =IFERROR(F119*(1-VLOOKUP(C119,ГОЛОВНА!K:L,2,0)), "-") -> 46.32
A120: 96001999 | B120: =VLOOKUP(A120,'DATA (2)'!A:F,2,FALSE) -> Набір прокладок DN80 | C120: =VLOOKUP(A120,'DATA (2)'!A:F,4,FALSE) -> CW | F120: =VLOOKUP(A120,'DATA (2)'!A:F,5,FALSE) -> 42.79 | G120: =IFERROR(F120*(1-VLOOKUP(C120,ГОЛОВНА!K:L,2,0)), "-") -> 42.79
A121: 96002002 | B121: =VLOOKUP(A121,'DATA (2)'!A:F,2,FALSE) -> Зворотній клапан Rp2", PN10 | C121: =VLOOKUP(A121,'DATA (2)'!A:F,4,FALSE) -> CW | D121: S | F121: =VLOOKUP(A121,'DATA (2)'!A:F,5,FALSE) -> 107.38 | G121: =IFERROR(F121*(1-VLOOKUP(C121,ГОЛОВНА!K:L,2,0)), "-") -> 107.38
A122: 96002005 | B122: =VLOOKUP(A122,'DATA (2)'!A:F,2,FALSE) -> Клапан запірний Rp2'/Rp2''(латунь) | C122: =VLOOKUP(A122,'DATA (2)'!A:F,4,FALSE) -> CW | D122: S | F122: =VLOOKUP(A122,'DATA (2)'!A:F,5,FALSE) -> 58.25 | G122: =IFERROR(F122*(1-VLOOKUP(C122,ГОЛОВНА!K:L,2,0)), "-") -> 58.25
A123: 96002006 | B123: =VLOOKUP(A123,'DATA (2)'!A:F,2,FALSE) -> Відсічний клапан 2 1/2 | C123: =VLOOKUP(A123,'DATA (2)'!A:F,4,FALSE) -> WW | F123: =VLOOKUP(A123,'DATA (2)'!A:F,5,FALSE) -> 119.68 | G123: =IFERROR(F123*(1-VLOOKUP(C123,ГОЛОВНА!K:L,2,0)), "-") -> 119.68
A124: 96002008 | B124: =VLOOKUP(A124,'DATA (2)'!A:F,2,FALSE) -> Кульовий зворотний клапан DN 65 PN 10 | C124: =VLOOKUP(A124,'DATA (2)'!A:F,4,FALSE) -> WW | D124: S | F124: =VLOOKUP(A124,'DATA (2)'!A:F,5,FALSE) -> 143.91 | G124: =IFERROR(F124*(1-VLOOKUP(C124,ГОЛОВНА!K:L,2,0)), "-") -> 143.91
A125: 96002009 | B125: =VLOOKUP(A125,'DATA (2)'!A:F,2,FALSE) -> Зворотний клапан кульовий DN 80 PN10 (SE | C125: =VLOOKUP(A125,'DATA (2)'!A:F,4,FALSE) -> WW | D125: S | F125: =VLOOKUP(A125,'DATA (2)'!A:F,5,FALSE) -> 172 | G125: =IFERROR(F125*(1-VLOOKUP(C125,ГОЛОВНА!K:L,2,0)), "-") -> 172
A126: 96002010 | B126: =VLOOKUP(A126,'DATA (2)'!A:F,2,FALSE) -> Засувка клинова DN 65 PN 10 | C126: =VLOOKUP(A126,'DATA (2)'!A:F,4,FALSE) -> WW | D126: S | F126: =VLOOKUP(A126,'DATA (2)'!A:F,5,FALSE) -> 158.11 | G126: =IFERROR(F126*(1-VLOOKUP(C126,ГОЛОВНА!K:L,2,0)), "-") -> 158.11
A127: 96002011 | B127: =VLOOKUP(A127,'DATA (2)'!A:F,2,FALSE) -> Запірний клапан DN80 PN10/16 (SEV, M/MD) | C127: =VLOOKUP(A127,'DATA (2)'!A:F,4,FALSE) -> WW | D127: S | F127: =VLOOKUP(A127,'DATA (2)'!A:F,5,FALSE) -> 194.55 | G127: =IFERROR(F127*(1-VLOOKUP(C127,ГОЛОВНА!K:L,2,0)), "-") -> 194.55
A128: 96002085 | B128: =VLOOKUP(A128,'DATA (2)'!A:F,2,FALSE) -> Кульовий зворотний клапан DN100 PN10 | C128: =VLOOKUP(A128,'DATA (2)'!A:F,4,FALSE) -> WW | F128: =VLOOKUP(A128,'DATA (2)'!A:F,5,FALSE) -> 257.87 | G128: =IFERROR(F128*(1-VLOOKUP(C128,ГОЛОВНА!K:L,2,0)), "-") -> 257.87
A129: 96003605 | B129: =VLOOKUP(A129,'DATA (2)'!A:F,2,FALSE) -> Монтажний комплект до фланця DN150 | C129: =VLOOKUP(A129,'DATA (2)'!A:F,4,FALSE) -> CW | F129: =VLOOKUP(A129,'DATA (2)'!A:F,5,FALSE) -> 70.58 | G129: =IFERROR(F129*(1-VLOOKUP(C129,ГОЛОВНА!K:L,2,0)), "-") -> 70.58
A130: 96003632 | B130: =VLOOKUP(A130,'DATA (2)'!A:F,2,FALSE) -> Ніпель R 1 1/2 | C130: =VLOOKUP(A130,'DATA (2)'!A:F,4,FALSE) -> CW | F130: =VLOOKUP(A130,'DATA (2)'!A:F,5,FALSE) -> 22.86 | G130: =IFERROR(F130*(1-VLOOKUP(C130,ГОЛОВНА!K:L,2,0)), "-") -> 22.86
A131: 96003823 | B131: =VLOOKUP(A131,'DATA (2)'!A:F,2,FALSE) -> Монтажний комплект DN100 | C131: =VLOOKUP(A131,'DATA (2)'!A:F,4,FALSE) -> CW | F131: =VLOOKUP(A131,'DATA (2)'!A:F,5,FALSE) -> 49.2 | G131: =IFERROR(F131*(1-VLOOKUP(C131,ГОЛОВНА!K:L,2,0)), "-") -> 49.2
A132: 96003826 | B132: =VLOOKUP(A132,'DATA (2)'!A:F,2,FALSE) -> Клапан зворотній DN80 | C132: =VLOOKUP(A132,'DATA (2)'!A:F,4,FALSE) -> WW | F132: =VLOOKUP(A132,'DATA (2)'!A:F,5,FALSE) -> 486.84 | G132: =IFERROR(F132*(1-VLOOKUP(C132,ГОЛОВНА!K:L,2,0)), "-") -> 486.84
A133: 96003827 | B133: =VLOOKUP(A133,'DATA (2)'!A:F,2,FALSE) -> Зворотній капан DN100 PN10 | C133: =VLOOKUP(A133,'DATA (2)'!A:F,4,FALSE) -> CW | F133: =VLOOKUP(A133,'DATA (2)'!A:F,5,FALSE) -> 493.52 | G133: =IFERROR(F133*(1-VLOOKUP(C133,ГОЛОВНА!K:L,2,0)), "-") -> 493.52
A134: 96003837 | B134: =VLOOKUP(A134,'DATA (2)'!A:F,2,FALSE) -> 8 шт. М20 х 75 мм, DN 200 | C134: =VLOOKUP(A134,'DATA (2)'!A:F,4,FALSE) -> CW | F134: =VLOOKUP(A134,'DATA (2)'!A:F,5,FALSE) -> 81.28 | G134: =IFERROR(F134*(1-VLOOKUP(C134,ГОЛОВНА!K:L,2,0)), "-") -> 81.28
A135: 96004422 | B135: =VLOOKUP(A135,'DATA (2)'!A:F,2,FALSE) -> Кульовий зворотній клапан DN300 PN10 | C135: =VLOOKUP(A135,'DATA (2)'!A:F,4,FALSE) -> WW | F135: =VLOOKUP(A135,'DATA (2)'!A:F,5,FALSE) -> За запитом | G135: =IFERROR(F135*(1-VLOOKUP(C135,ГОЛОВНА!K:L,2,0)), "-") -> -
A136: 96004423 | B136: =VLOOKUP(A136,'DATA (2)'!A:F,2,FALSE) -> Засувка клинова DN250 PN10 | C136: =VLOOKUP(A136,'DATA (2)'!A:F,4,FALSE) -> WW | F136: =VLOOKUP(A136,'DATA (2)'!A:F,5,FALSE) -> 835.61 | G136: =IFERROR(F136*(1-VLOOKUP(C136,ГОЛОВНА!K:L,2,0)), "-") -> 835.61
A137: 96004445 | B137: =VLOOKUP(A137,'DATA (2)'!A:F,2,FALSE) -> Авт. муфта підвісна 2" (з коліном 90) | C137: =VLOOKUP(A137,'DATA (2)'!A:F,4,FALSE) -> WW | F137: =VLOOKUP(A137,'DATA (2)'!A:F,5,FALSE) -> 164.02 | G137: =IFERROR(F137*(1-VLOOKUP(C137,ГОЛОВНА!K:L,2,0)), "-") -> 164.02
A138: 96005259 | B138: =VLOOKUP(A138,'DATA (2)'!A:F,2,FALSE) -> Напірний шланг з муфтою Storz L=20м 3 | C138: =VLOOKUP(A138,'DATA (2)'!A:F,4,FALSE) -> WW | F138: =VLOOKUP(A138,'DATA (2)'!A:F,5,FALSE) -> 334.89 | G138: =IFERROR(F138*(1-VLOOKUP(C138,ГОЛОВНА!K:L,2,0)), "-") -> 334.89
A139: 96005308 | B139: =VLOOKUP(A139,'DATA (2)'!A:F,2,FALSE) -> Зворотній клапан R 1 1/4 | C139: =VLOOKUP(A139,'DATA (2)'!A:F,4,FALSE) -> WW | F139: =VLOOKUP(A139,'DATA (2)'!A:F,5,FALSE) -> 41.09 | G139: =IFERROR(F139*(1-VLOOKUP(C139,ГОЛОВНА!K:L,2,0)), "-") -> 41.09
A140: 96005309 | B140: =VLOOKUP(A140,'DATA (2)'!A:F,2,FALSE) -> Зворотний клапан Rp 1 1/2" | C140: =VLOOKUP(A140,'DATA (2)'!A:F,4,FALSE) -> CW | F140: =VLOOKUP(A140,'DATA (2)'!A:F,5,FALSE) -> 89.06 | G140: =IFERROR(F140*(1-VLOOKUP(C140,ГОЛОВНА!K:L,2,0)), "-") -> 89.06
A141: 96489959 | B141: =VLOOKUP(A141,'DATA (2)'!A:F,2,FALSE) -> Фланець різьбовий DN40, Rp 1 1/2" | C141: =VLOOKUP(A141,'DATA (2)'!A:F,4,FALSE) -> CW | F141: =VLOOKUP(A141,'DATA (2)'!A:F,5,FALSE) -> 26.71 | G141: =IFERROR(F141*(1-VLOOKUP(C141,ГОЛОВНА!K:L,2,0)), "-") -> 26.71
A142: 96489973 | B142: =VLOOKUP(A142,'DATA (2)'!A:F,2,FALSE) -> Клапан запірний Rp/Rp 1 1/2" | C142: =VLOOKUP(A142,'DATA (2)'!A:F,4,FALSE) -> CW | D142: S | F142: =VLOOKUP(A142,'DATA (2)'!A:F,5,FALSE) -> 77.28 | G142: =IFERROR(F142*(1-VLOOKUP(C142,ГОЛОВНА!K:L,2,0)), "-") -> 77.28
A143: 91070503 | B143: =VLOOKUP(A143,'DATA (2)'!A:F,2,FALSE) -> Кабельна муфта роз'ємна MS6 (4x6..16мм2) | C143: =VLOOKUP(A143,'DATA (2)'!A:F,4,FALSE) -> WS | F143: =VLOOKUP(A143,'DATA (2)'!A:F,5,FALSE) -> 389.81 | G143: =IFERROR(F143*(1-VLOOKUP(C143,ГОЛОВНА!K:L,2,0)), "-") -> 389.81
A144: 00ID7948 | B144: =VLOOKUP(A144,'DATA (2)'!A:F,2,FALSE) -> Кабель для питної води 3x4.0 мм2 | C144: =VLOOKUP(A144,'DATA (2)'!A:F,4,FALSE) -> WS | F144: =VLOOKUP(A144,'DATA (2)'!A:F,5,FALSE) -> 6.95 | G144: =IFERROR(F144*(1-VLOOKUP(C144,ГОЛОВНА!K:L,2,0)), "-") -> 6.95
A145: 00RM4098 | B145: =VLOOKUP(A145,'DATA (2)'!A:F,2,FALSE) -> Кабель для питної води 3x6.0мм2 | C145: =VLOOKUP(A145,'DATA (2)'!A:F,4,FALSE) -> WS | F145: =VLOOKUP(A145,'DATA (2)'!A:F,5,FALSE) -> 8.9 | G145: =IFERROR(F145*(1-VLOOKUP(C145,ГОЛОВНА!K:L,2,0)), "-") -> 8.9
A146: 00ID7803 | B146: =VLOOKUP(A146,'DATA (2)'!A:F,2,FALSE) -> Поплавцевий вимикач REIFA-E w/3m-cable | C146: =VLOOKUP(A146,'DATA (2)'!A:F,4,FALSE) -> CW | F146: =VLOOKUP(A146,'DATA (2)'!A:F,5,FALSE) -> 25.38 | G146: =IFERROR(F146*(1-VLOOKUP(C146,ГОЛОВНА!K:L,2,0)), "-") -> 25.38
A147: 00ID7805 | B147: =VLOOKUP(A147,'DATA (2)'!A:F,2,FALSE) -> Поплавцевий вимикач REIFA SAS, 5 м | C147: =VLOOKUP(A147,'DATA (2)'!A:F,4,FALSE) -> CW | F147: =VLOOKUP(A147,'DATA (2)'!A:F,5,FALSE) -> 35.24 | G147: =IFERROR(F147*(1-VLOOKUP(C147,ГОЛОВНА!K:L,2,0)), "-") -> 35.24
A148: 00ID7942 | B148: =VLOOKUP(A148,'DATA (2)'!A:F,2,FALSE) -> Поплавцевий вимикач Reifa E 20,0 м | C148: =VLOOKUP(A148,'DATA (2)'!A:F,4,FALSE) -> CW | F148: =VLOOKUP(A148,'DATA (2)'!A:F,5,FALSE) -> 83.1 | G148: =IFERROR(F148*(1-VLOOKUP(C148,ГОЛОВНА!K:L,2,0)), "-") -> 83.1
A149: 15211 | B149: =VLOOKUP(A149,'DATA (2)'!A:F,2,FALSE) -> Зворотній клапан до насоса KP | C149: =VLOOKUP(A149,'DATA (2)'!A:F,4,FALSE) -> CW | F149: =VLOOKUP(A149,'DATA (2)'!A:F,5,FALSE) -> 20.1 | G149: =IFERROR(F149*(1-VLOOKUP(C149,ГОЛОВНА!K:L,2,0)), "-") -> 20.1
A150: 00ID7809 | B150: =VLOOKUP(A150,'DATA (2)'!A:F,2,FALSE) -> Поплавцевий вимикач з кабелем 10 м | C150: =VLOOKUP(A150,'DATA (2)'!A:F,4,FALSE) -> CW | F150: =VLOOKUP(A150,'DATA (2)'!A:F,5,FALSE) -> 56.08 | G150: =IFERROR(F150*(1-VLOOKUP(C150,ГОЛОВНА!K:L,2,0)), "-") -> 56.08
A151: 00ID8961 | B151: =VLOOKUP(A151,'DATA (2)'!A:F,2,FALSE) -> Запобіжний вимикач для підключення | C151: =VLOOKUP(A151,'DATA (2)'!A:F,4,FALSE) -> CW | F151: =VLOOKUP(A151,'DATA (2)'!A:F,5,FALSE) -> 166.22 | G151: =IFERROR(F151*(1-VLOOKUP(C151,ГОЛОВНА!K:L,2,0)), "-") -> 166.22
A152: 00ID8962 | B152: =VLOOKUP(A152,'DATA (2)'!A:F,2,FALSE) -> Муфта швидкого монтажу MS 1 1/4 PN40 | C152: =VLOOKUP(A152,'DATA (2)'!A:F,4,FALSE) -> CW | F152: =VLOOKUP(A152,'DATA (2)'!A:F,5,FALSE) -> 16.42 | G152: =IFERROR(F152*(1-VLOOKUP(C152,ГОЛОВНА!K:L,2,0)), "-") -> 16.42
A153: 00ID8963 | B153: =VLOOKUP(A153,'DATA (2)'!A:F,2,FALSE) -> Муфта швидкого монтажа PN20 | C153: =VLOOKUP(A153,'DATA (2)'!A:F,4,FALSE) -> CW | F153: =VLOOKUP(A153,'DATA (2)'!A:F,5,FALSE) -> 8.68 | G153: =IFERROR(F153*(1-VLOOKUP(C153,ГОЛОВНА!K:L,2,0)), "-") -> 8.68
A154: 00ID9052 | B154: =VLOOKUP(A154,'DATA (2)'!A:F,2,FALSE) -> Муфта швидкого монтажу R 1 1/4 --> STORZ | C154: =VLOOKUP(A154,'DATA (2)'!A:F,4,FALSE) -> CW | F154: =VLOOKUP(A154,'DATA (2)'!A:F,5,FALSE) -> 13.25 | G154: =IFERROR(F154*(1-VLOOKUP(C154,ГОЛОВНА!K:L,2,0)), "-") -> 13.25
A155: 00ID9053 | B155: =VLOOKUP(A155,'DATA (2)'!A:F,2,FALSE) -> Хомут для шланга, 1 1/4 | C155: =VLOOKUP(A155,'DATA (2)'!A:F,4,FALSE) -> CW | D155: S | F155: =VLOOKUP(A155,'DATA (2)'!A:F,5,FALSE) -> 2.83 | G155: =IFERROR(F155*(1-VLOOKUP(C155,ГОЛОВНА!K:L,2,0)), "-") -> 2.83
B158: Примітка:
A159: S | B159: - складська позиція (зазвичай є на скаді)
A160: FT | B160: - швидка поставка (зазвичай до 3-х тижнів)

Sheet SEG, AutoADAPT
A1: АРТИКУЛ | B1: НАЙМЕНУВАННЯ (УКР) | C1: PRICE GROUP | D1: ДОСТАВКА | E1: ДОДАТКОВО | F1: ЦІНА (ЕВРО БЕЗ ПДВ) | G1: ЦІНА ЗІ ЗНИЖКОЮ | H1: НА ГОЛОВНУ
A2: SEG | G2: Каналізаційні насоси з ріжучим механізмом
A3: 96075893 | B3: =VLOOKUP(A3,'DATA (2)'!A:F,2,FALSE) -> Каналізаційний насос SEG.40.09.2.1.502 | C3: =VLOOKUP(A3,'DATA (2)'!A:F,4,FALSE) -> CW | D3: S | F3: =VLOOKUP(A3,'DATA (2)'!A:F,5,FALSE) -> 1325.77 | G3: =IFERROR(F3*(1-VLOOKUP(C3,ГОЛОВНА!K:L,2,0)), "-") -> 1325.77
A4: 96076212 | B4: =VLOOKUP(A4,'DATA (2)'!A:F,2,FALSE) -> Каналізаційний насос SEG.40.09.2.1.502 ( | C4: =VLOOKUP(A4,'DATA (2)'!A:F,4,FALSE) -> CW | F4: =VLOOKUP(A4,'DATA (2)'!A:F,5,FALSE) -> 1389.82 | G4: =IFERROR(F4*(1-VLOOKUP(C4,ГОЛОВНА!K:L,2,0)), "-") -> 1389.82
A5: 96075897 | B5: =VLOOKUP(A5,'DATA (2)'!A:F,2,FALSE) -> Каналізаційний насос SEG.40.09.2.50B | C5: =VLOOKUP(A5,'DATA (2)'!A:F,4,FALSE) -> CW | D5: S | F5: =VLOOKUP(A5,'DATA (2)'!A:F,5,FALSE) -> 1325.77 | G5: =IFERROR(F5*(1-VLOOKUP(C5,ГОЛОВНА!K:L,2,0)), "-") -> 1325.77
A6: 96878505 | B6: =VLOOKUP(A6,'DATA (2)'!A:F,2,FALSE) -> Каналізаційний насос SEG.40.09.E.2.1.502 | C6: =VLOOKUP(A6,'DATA (2)'!A:F,4,FALSE) -> CW | D6: S | F6: =VLOOKUP(A6,'DATA (2)'!A:F,5,FALSE) -> 1876.24 | G6: =IFERROR(F6*(1-VLOOKUP(C6,ГОЛОВНА!K:L,2,0)), "-") -> 1876.24
A7: 96878506 | B7: =VLOOKUP(A7,'DATA (2)'!A:F,2,FALSE) -> Каналізаційний насос SEG.40.09.E.2.50B | C7: =VLOOKUP(A7,'DATA (2)'!A:F,4,FALSE) -> CW | D7: S | F7: =VLOOKUP(A7,'DATA (2)'!A:F,5,FALSE) -> 1876.24 | G7: =IFERROR(F7*(1-VLOOKUP(C7,ГОЛОВНА!K:L,2,0)), "-") -> 1876.24
A8: 96878507 | B8: =VLOOKUP(A8,'DATA (2)'!A:F,2,FALSE) -> Каналізаційний насос SEG.40.09.E.Ex.2.1. | C8: =VLOOKUP(A8,'DATA (2)'!A:F,4,FALSE) -> CW | F8: =VLOOKUP(A8,'DATA (2)'!A:F,5,FALSE) -> 2048.26 | G8: =IFERROR(F8*(1-VLOOKUP(C8,ГОЛОВНА!K:L,2,0)), "-") -> 2048.26
A9: 96878508 | B9: =VLOOKUP(A9,'DATA (2)'!A:F,2,FALSE) -> Каналізаційний насос SEG.40.09.E.Ex.2.50 | C9: =VLOOKUP(A9,'DATA (2)'!A:F,4,FALSE) -> CW | F9: =VLOOKUP(A9,'DATA (2)'!A:F,5,FALSE) -> 2048.26 | G9: =IFERROR(F9*(1-VLOOKUP(C9,ГОЛОВНА!K:L,2,0)), "-") -> 2048.26
A10: 96075894 | B10: =VLOOKUP(A10,'DATA (2)'!A:F,2,FALSE) -> Каналізаційний насос SEG.40.09.EX.2.1.50 | C10: =VLOOKUP(A10,'DATA (2)'!A:F,4,FALSE) -> CW | F10: =VLOOKUP(A10,'DATA (2)'!A:F,5,FALSE) -> 1466 | G10: =IFERROR(F10*(1-VLOOKUP(C10,ГОЛОВНА!K:L,2,0)), "-") -> 1466
A11: 96076213 | B11: =VLOOKUP(A11,'DATA (2)'!A:F,2,FALSE) -> Каналізаційний насос SEG. 40.09.Ex.2.1.5 | C11: =VLOOKUP(A11,'DATA (2)'!A:F,4,FALSE) -> CW | F11: =VLOOKUP(A11,'DATA (2)'!A:F,5,FALSE) -> 1501.15 | G11: =IFERROR(F11*(1-VLOOKUP(C11,ГОЛОВНА!K:L,2,0)), "-") -> 1501.15
A12: 96075898 | B12: =VLOOKUP(A12,'DATA (2)'!A:F,2,FALSE) -> Каналізаційний насос SEG.40.09.EX.2.50B | C12: =VLOOKUP(A12,'DATA (2)'!A:F,4,FALSE) -> CW | F12: =VLOOKUP(A12,'DATA (2)'!A:F,5,FALSE) -> 1466 | G12: =IFERROR(F12*(1-VLOOKUP(C12,ГОЛОВНА!K:L,2,0)), "-") -> 1466
A13: 96076215 | B13: =VLOOKUP(A13,'DATA (2)'!A:F,2,FALSE) -> Каналізаційний насос SEG.40.09.EX.2.50B | C13: =VLOOKUP(A13,'DATA (2)'!A:F,4,FALSE) -> CW | F13: =VLOOKUP(A13,'DATA (2)'!A:F,5,FALSE) -> 1493.86 | G13: =IFERROR(F13*(1-VLOOKUP(C13,ГОЛОВНА!K:L,2,0)), "-") -> 1493.86
A14: 96075901 | B14: =VLOOKUP(A14,'DATA (2)'!A:F,2,FALSE) -> Каналізаційний насос SEG.40.12.2.1.502 | C14: =VLOOKUP(A14,'DATA (2)'!A:F,4,FALSE) -> CW | D14: S | F14: =VLOOKUP(A14,'DATA (2)'!A:F,5,FALSE) -> 1325.77 | G14: =IFERROR(F14*(1-VLOOKUP(C14,ГОЛОВНА!K:L,2,0)), "-") -> 1325.77
A15: 96076216 | B15: =VLOOKUP(A15,'DATA (2)'!A:F,2,FALSE) -> Каналізаційний насос SEG. 40.12.2.1.502 | C15: =VLOOKUP(A15,'DATA (2)'!A:F,4,FALSE) -> CW | F15: =VLOOKUP(A15,'DATA (2)'!A:F,5,FALSE) -> 1391.12 | G15: =IFERROR(F15*(1-VLOOKUP(C15,ГОЛОВНА!K:L,2,0)), "-") -> 1391.12
A16: 96075905 | B16: =VLOOKUP(A16,'DATA (2)'!A:F,2,FALSE) -> Каналізаційний насос SEG.40.12.2.50B | C16: =VLOOKUP(A16,'DATA (2)'!A:F,4,FALSE) -> CW | D16: S | F16: =VLOOKUP(A16,'DATA (2)'!A:F,5,FALSE) -> 1325.77 | G16: =IFERROR(F16*(1-VLOOKUP(C16,ГОЛОВНА!K:L,2,0)), "-") -> 1325.77
A17: 96878509 | B17: =VLOOKUP(A17,'DATA (2)'!A:F,2,FALSE) -> Каналізаційний насос SEG.40.12.E.2.1.502 | C17: =VLOOKUP(A17,'DATA (2)'!A:F,4,FALSE) -> CW | D17: S | F17: =VLOOKUP(A17,'DATA (2)'!A:F,5,FALSE) -> 1876.24 | G17: =IFERROR(F17*(1-VLOOKUP(C17,ГОЛОВНА!K:L,2,0)), "-") -> 1876.24
A18: 96878510 | B18: =VLOOKUP(A18,'DATA (2)'!A:F,2,FALSE) -> Каналізаційний насос SEG.40.12.E.2.50B | C18: =VLOOKUP(A18,'DATA (2)'!A:F,4,FALSE) -> CW | D18: S | F18: =VLOOKUP(A18,'DATA (2)'!A:F,5,FALSE) -> 1876.24 | G18: =IFERROR(F18*(1-VLOOKUP(C18,ГОЛОВНА!K:L,2,0)), "-") -> 1876.24
A19: 96878512 | B19: =VLOOKUP(A19,'DATA (2)'!A:F,2,FALSE) -> Каналізаційний насос SEG.40.12.E.Ex.2.1. | C19: =VLOOKUP(A19,'DATA (2)'!A:F,4,FALSE) -> CW | F19: =VLOOKUP(A19,'DATA (2)'!A:F,5,FALSE) -> 2048.26 | G19: =IFERROR(F19*(1-VLOOKUP(C19,ГОЛОВНА!K:L,2,0)), "-") -> 2048.26
A20: 96878513 | B20: =VLOOKUP(A20,'DATA (2)'!A:F,2,FALSE) -> Каналізаційний насос SEG.40.12.E.Ex.2.50 | C20: =VLOOKUP(A20,'DATA (2)'!A:F,4,FALSE) -> CW | F20: =VLOOKUP(A20,'DATA (2)'!A:F,5,FALSE) -> 2048.26 | G20: =IFERROR(F20*(1-VLOOKUP(C20,ГОЛОВНА!K:L,2,0)), "-") -> 2048.26
A21: 96075902 | B21: =VLOOKUP(A21,'DATA (2)'!A:F,2,FALSE) -> Каналізаційний насос SEG.40.12.EX.2.1.50 | C21: =VLOOKUP(A21,'DATA (2)'!A:F,4,FALSE) -> CW | F21: =VLOOKUP(A21,'DATA (2)'!A:F,5,FALSE) -> 1466 | G21: =IFERROR(F21*(1-VLOOKUP(C21,ГОЛОВНА!K:L,2,0)), "-") -> 1466
A22: 96076217 | B22: =VLOOKUP(A22,'DATA (2)'!A:F,2,FALSE) -> Каналізаційний насос SEG. 40.12.Ex.2.1.5 | C22: =VLOOKUP(A22,'DATA (2)'!A:F,4,FALSE) -> CW | F22: =VLOOKUP(A22,'DATA (2)'!A:F,5,FALSE) -> 1493.86 | G22: =IFERROR(F22*(1-VLOOKUP(C22,ГОЛОВНА!K:L,2,0)), "-") -> 1493.86
A23: 96075906 | B23: =VLOOKUP(A23,'DATA (2)'!A:F,2,FALSE) -> Каналізаційний насос SEG.40.12.EX.2.50B | C23: =VLOOKUP(A23,'DATA (2)'!A:F,4,FALSE) -> CW | F23: =VLOOKUP(A23,'DATA (2)'!A:F,5,FALSE) -> 1466 | G23: =IFERROR(F23*(1-VLOOKUP(C23,ГОЛОВНА!K:L,2,0)), "-") -> 1466
A24: 96076164 | B24: =VLOOKUP(A24,'DATA (2)'!A:F,2,FALSE) -> Каналізаційний насос SEG.40.12.Ex.2.50B | C24: =VLOOKUP(A24,'DATA (2)'!A:F,4,FALSE) -> CW | F24: =VLOOKUP(A24,'DATA (2)'!A:F,5,FALSE) -> 1325.77 | G24: =IFERROR(F24*(1-VLOOKUP(C24,ГОЛОВНА!K:L,2,0)), "-") -> 1325.77
A25: 96076219 | B25: =VLOOKUP(A25,'DATA (2)'!A:F,2,FALSE) -> Каналізаційний насос SEG.40.12.EX.2.50B | C25: =VLOOKUP(A25,'DATA (2)'!A:F,4,FALSE) -> CW | F25: =VLOOKUP(A25,'DATA (2)'!A:F,5,FALSE) -> 1493.86 | G25: =IFERROR(F25*(1-VLOOKUP(C25,ГОЛОВНА!K:L,2,0)), "-") -> 1493.86
A26: 98280724 | B26: =VLOOKUP(A26,'DATA (2)'!A:F,2,FALSE) -> Каналізаційний насос SEG.40.15.2.1.502 | C26: =VLOOKUP(A26,'DATA (2)'!A:F,4,FALSE) -> CW | F26: =VLOOKUP(A26,'DATA (2)'!A:F,5,FALSE) -> 1453.43 | G26: =IFERROR(F26*(1-VLOOKUP(C26,ГОЛОВНА!K:L,2,0)), "-") -> 1453.43
A27: 96075909 | B27: =VLOOKUP(A27,'DATA (2)'!A:F,2,FALSE) -> Каналізаційний насос SEG.40.15.2.50B | C27: =VLOOKUP(A27,'DATA (2)'!A:F,4,FALSE) -> CW | D27: S | F27: =VLOOKUP(A27,'DATA (2)'!A:F,5,FALSE) -> 1496.9 | G27: =IFERROR(F27*(1-VLOOKUP(C27,ГОЛОВНА!K:L,2,0)), "-") -> 1496.9
A28: 98280726 | B28: =VLOOKUP(A28,'DATA (2)'!A:F,2,FALSE) -> Каналізаційний насос SEG.40.15.E.2.1.502 | C28: =VLOOKUP(A28,'DATA (2)'!A:F,4,FALSE) -> CW | F28: =VLOOKUP(A28,'DATA (2)'!A:F,5,FALSE) -> 2030.87 | G28: =IFERROR(F28*(1-VLOOKUP(C28,ГОЛОВНА!K:L,2,0)), "-") -> 2030.87
A29: 96878514 | B29: =VLOOKUP(A29,'DATA (2)'!A:F,2,FALSE) -> Каналізаційний насос SEG.40.15.E.2.50B | C29: =VLOOKUP(A29,'DATA (2)'!A:F,4,FALSE) -> CW | D29: S | F29: =VLOOKUP(A29,'DATA (2)'!A:F,5,FALSE) -> 2030.87 | G29: =IFERROR(F29*(1-VLOOKUP(C29,ГОЛОВНА!K:L,2,0)), "-") -> 2030.87
A30: 96878515 | B30: =VLOOKUP(A30,'DATA (2)'!A:F,2,FALSE) -> Каналізаційний насос SEG.40.15.E.Ex.2.50 | C30: =VLOOKUP(A30,'DATA (2)'!A:F,4,FALSE) -> CW | F30: =VLOOKUP(A30,'DATA (2)'!A:F,5,FALSE) -> 2150.48 | G30: =IFERROR(F30*(1-VLOOKUP(C30,ГОЛОВНА!K:L,2,0)), "-") -> 2150.48
A31: 96075910 | B31: =VLOOKUP(A31,'DATA (2)'!A:F,2,FALSE) -> Каналізаційний насос SEG.40.15.EX.2.50B | C31: =VLOOKUP(A31,'DATA (2)'!A:F,4,FALSE) -> CW | F31: =VLOOKUP(A31,'DATA (2)'!A:F,5,FALSE) -> 1596.63 | G31: =IFERROR(F31*(1-VLOOKUP(C31,ГОЛОВНА!K:L,2,0)), "-") -> 1596.63
A32: 96076221 | B32: =VLOOKUP(A32,'DATA (2)'!A:F,2,FALSE) -> Каналізаційний насос SEG.40.15.EX.2.50B | C32: =VLOOKUP(A32,'DATA (2)'!A:F,4,FALSE) -> CW | F32: =VLOOKUP(A32,'DATA (2)'!A:F,5,FALSE) -> 1703.48 | G32: =IFERROR(F32*(1-VLOOKUP(C32,ГОЛОВНА!K:L,2,0)), "-") -> 1703.48
A33: 96075913 | B33: =VLOOKUP(A33,'DATA (2)'!A:F,2,FALSE) -> Каналізаційний насос SEG.40.26.2.50B | C33: =VLOOKUP(A33,'DATA (2)'!A:F,4,FALSE) -> CW | D33: S | F33: =VLOOKUP(A33,'DATA (2)'!A:F,5,FALSE) -> 1857.94 | G33: =IFERROR(F33*(1-VLOOKUP(C33,ГОЛОВНА!K:L,2,0)), "-") -> 1857.94
A34: 96878516 | B34: =VLOOKUP(A34,'DATA (2)'!A:F,2,FALSE) -> Каналізаційний насос SEG.40.26.E.2.50B | C34: =VLOOKUP(A34,'DATA (2)'!A:F,4,FALSE) -> CW | D34: S | F34: =VLOOKUP(A34,'DATA (2)'!A:F,5,FALSE) -> 2422.48 | G34: =IFERROR(F34*(1-VLOOKUP(C34,ГОЛОВНА!K:L,2,0)), "-") -> 2422.48
A35: 96878517 | B35: =VLOOKUP(A35,'DATA (2)'!A:F,2,FALSE) -> Каналізаційний насос SEG.40.26.E.Ex.2.50 | C35: =VLOOKUP(A35,'DATA (2)'!A:F,4,FALSE) -> CW | F35: =VLOOKUP(A35,'DATA (2)'!A:F,5,FALSE) -> 2545.19 | G35: =IFERROR(F35*(1-VLOOKUP(C35,ГОЛОВНА!K:L,2,0)), "-") -> 2545.19
A36: 96075914 | B36: =VLOOKUP(A36,'DATA (2)'!A:F,2,FALSE) -> Каналізаційний насос SEG.40.26.EX.2.50B | C36: =VLOOKUP(A36,'DATA (2)'!A:F,4,FALSE) -> CW | F36: =VLOOKUP(A36,'DATA (2)'!A:F,5,FALSE) -> 1943.56 | G36: =IFERROR(F36*(1-VLOOKUP(C36,ГОЛОВНА!K:L,2,0)), "-") -> 1943.56
A37: 96076223 | B37: =VLOOKUP(A37,'DATA (2)'!A:F,2,FALSE) -> Каналізаційний насос SEG.40.26.EX.2.50B | C37: =VLOOKUP(A37,'DATA (2)'!A:F,4,FALSE) -> CW | F37: =VLOOKUP(A37,'DATA (2)'!A:F,5,FALSE) -> 1978.72 | G37: =IFERROR(F37*(1-VLOOKUP(C37,ГОЛОВНА!K:L,2,0)), "-") -> 1978.72
A38: 96075915 | B38: =VLOOKUP(A38,'DATA (2)'!A:F,2,FALSE) -> Каналізаційний насос SEG.40.31.2.50B | C38: =VLOOKUP(A38,'DATA (2)'!A:F,4,FALSE) -> CW | D38: S | F38: =VLOOKUP(A38,'DATA (2)'!A:F,5,FALSE) -> 1924.53 | G38: =IFERROR(F38*(1-VLOOKUP(C38,ГОЛОВНА!K:L,2,0)), "-") -> 1924.53
A39: 96878518 | B39: =VLOOKUP(A39,'DATA (2)'!A:F,2,FALSE) -> Каналізаційний насос SEG.40.31.E.2.50B | C39: =VLOOKUP(A39,'DATA (2)'!A:F,4,FALSE) -> CW | D39: S | F39: =VLOOKUP(A39,'DATA (2)'!A:F,5,FALSE) -> 2482.68 | G39: =IFERROR(F39*(1-VLOOKUP(C39,ГОЛОВНА!K:L,2,0)), "-") -> 2482.68
A40: 96878519 | B40: =VLOOKUP(A40,'DATA (2)'!A:F,2,FALSE) -> Каналізаційний насос SEG.40.31.E.Ex.2.50 | C40: =VLOOKUP(A40,'DATA (2)'!A:F,4,FALSE) -> CW | F40: =VLOOKUP(A40,'DATA (2)'!A:F,5,FALSE) -> 2605.31 | G40: =IFERROR(F40*(1-VLOOKUP(C40,ГОЛОВНА!K:L,2,0)), "-") -> 2605.31
A41: 96075916 | B41: =VLOOKUP(A41,'DATA (2)'!A:F,2,FALSE) -> Каналізаційний насос SEG.40.31.EX.2.50B | C41: =VLOOKUP(A41,'DATA (2)'!A:F,4,FALSE) -> CW | F41: =VLOOKUP(A41,'DATA (2)'!A:F,5,FALSE) -> 2010.09 | G41: =IFERROR(F41*(1-VLOOKUP(C41,ГОЛОВНА!K:L,2,0)), "-") -> 2010.09
A42: 96076225 | B42: =VLOOKUP(A42,'DATA (2)'!A:F,2,FALSE) -> Каналізаційний насос SEG.40.31.EX.2.50B | C42: =VLOOKUP(A42,'DATA (2)'!A:F,4,FALSE) -> CW | F42: =VLOOKUP(A42,'DATA (2)'!A:F,5,FALSE) -> 2035.31 | G42: =IFERROR(F42*(1-VLOOKUP(C42,ГОЛОВНА!K:L,2,0)), "-") -> 2035.31
A43: 96075917 | B43: =VLOOKUP(A43,'DATA (2)'!A:F,2,FALSE) -> Каналізаційний насос SEG.40.40.2.50B | C43: =VLOOKUP(A43,'DATA (2)'!A:F,4,FALSE) -> CW | D43: S | F43: =VLOOKUP(A43,'DATA (2)'!A:F,5,FALSE) -> 2245.29 | G43: =IFERROR(F43*(1-VLOOKUP(C43,ГОЛОВНА!K:L,2,0)), "-") -> 2245.29
A44: 96878520 | B44: =VLOOKUP(A44,'DATA (2)'!A:F,2,FALSE) -> Каналізаційний насос SEG.40.40.E.2.50B | C44: =VLOOKUP(A44,'DATA (2)'!A:F,4,FALSE) -> CW | D44: S | F44: =VLOOKUP(A44,'DATA (2)'!A:F,5,FALSE) -> 2772.62 | G44: =IFERROR(F44*(1-VLOOKUP(C44,ГОЛОВНА!K:L,2,0)), "-") -> 2772.62
A45: 96878521 | B45: =VLOOKUP(A45,'DATA (2)'!A:F,2,FALSE) -> Каналізаційний насос SEG.40.40.E.Ex.2.50 | C45: =VLOOKUP(A45,'DATA (2)'!A:F,4,FALSE) -> CW | F45: =VLOOKUP(A45,'DATA (2)'!A:F,5,FALSE) -> 2908.06 | G45: =IFERROR(F45*(1-VLOOKUP(C45,ГОЛОВНА!K:L,2,0)), "-") -> 2908.06
A46: 96075918 | B46: =VLOOKUP(A46,'DATA (2)'!A:F,2,FALSE) -> Каналізаційний насос SEG.40.40.EX.2.50B | C46: =VLOOKUP(A46,'DATA (2)'!A:F,4,FALSE) -> CW | F46: =VLOOKUP(A46,'DATA (2)'!A:F,5,FALSE) -> 2345.08 | G46: =IFERROR(F46*(1-VLOOKUP(C46,ГОЛОВНА!K:L,2,0)), "-") -> 2345.08
A47: 96076227 | B47: =VLOOKUP(A47,'DATA (2)'!A:F,2,FALSE) -> Каналізаційний насос SEG.40.40.EX.2.50B | C47: =VLOOKUP(A47,'DATA (2)'!A:F,4,FALSE) -> CW | F47: =VLOOKUP(A47,'DATA (2)'!A:F,5,FALSE) -> 2380.23 | G47: =IFERROR(F47*(1-VLOOKUP(C47,ГОЛОВНА!K:L,2,0)), "-") -> 2380.23
A48: 99274393 | B48: =VLOOKUP(A48,'DATA (2)'!A:F,2,FALSE) -> Каналізаційний насос SEG.50.26.Ex.2.50B | C48: =VLOOKUP(A48,'DATA (2)'!A:F,4,FALSE) -> CW | F48: =VLOOKUP(A48,'DATA (2)'!A:F,5,FALSE) -> 1941.85 | G48: =IFERROR(F48*(1-VLOOKUP(C48,ГОЛОВНА!K:L,2,0)), "-") -> 1941.85
A49: 99274394 | B49: =VLOOKUP(A49,'DATA (2)'!A:F,2,FALSE) -> Каналізаційний насос SEG.50.31.Ex.2.50B | C49: =VLOOKUP(A49,'DATA (2)'!A:F,4,FALSE) -> CW | F49: =VLOOKUP(A49,'DATA (2)'!A:F,5,FALSE) -> 2011.07 | G49: =IFERROR(F49*(1-VLOOKUP(C49,ГОЛОВНА!K:L,2,0)), "-") -> 2011.07
A50: 99274395 | B50: =VLOOKUP(A50,'DATA (2)'!A:F,2,FALSE) -> Каналізаційний насос SEG.50.40.Ex.2.50B | C50: =VLOOKUP(A50,'DATA (2)'!A:F,4,FALSE) -> CW | F50: =VLOOKUP(A50,'DATA (2)'!A:F,5,FALSE) -> 2345.93 | G50: =IFERROR(F50*(1-VLOOKUP(C50,ГОЛОВНА!K:L,2,0)), "-") -> 2345.93
A51: 99274435 | B51: =VLOOKUP(A51,'DATA (2)'!A:F,2,FALSE) -> Каналізаційний насос SEG.50.26.E.Ex.2.50 | C51: =VLOOKUP(A51,'DATA (2)'!A:F,4,FALSE) -> CW | F51: =VLOOKUP(A51,'DATA (2)'!A:F,5,FALSE) -> 2672.31 | G51: =IFERROR(F51*(1-VLOOKUP(C51,ГОЛОВНА!K:L,2,0)), "-") -> 2672.31
A52: 99274436 | B52: =VLOOKUP(A52,'DATA (2)'!A:F,2,FALSE) -> Каналізаційний насос SEG.50.31.E.2.50B | C52: =VLOOKUP(A52,'DATA (2)'!A:F,4,FALSE) -> CW | F52: =VLOOKUP(A52,'DATA (2)'!A:F,5,FALSE) -> 2606.52 | G52: =IFERROR(F52*(1-VLOOKUP(C52,ГОЛОВНА!K:L,2,0)), "-") -> 2606.52
A53: 99274434 | B53: =VLOOKUP(A53,'DATA (2)'!A:F,2,FALSE) -> Каналізаційний насос SEG.50.26.E.2.50B | C53: =VLOOKUP(A53,'DATA (2)'!A:F,4,FALSE) -> CW | F53: =VLOOKUP(A53,'DATA (2)'!A:F,5,FALSE) -> 2542.67 | G53: =IFERROR(F53*(1-VLOOKUP(C53,ГОЛОВНА!K:L,2,0)), "-") -> 2542.67
A54: 99274437 | B54: =VLOOKUP(A54,'DATA (2)'!A:F,2,FALSE) -> Каналізаційний насос SEG.50.31.E.Ex.2.50 | C54: =VLOOKUP(A54,'DATA (2)'!A:F,4,FALSE) -> CW | F54: =VLOOKUP(A54,'DATA (2)'!A:F,5,FALSE) -> 2736.16 | G54: =IFERROR(F54*(1-VLOOKUP(C54,ГОЛОВНА!K:L,2,0)), "-") -> 2736.16
A55: 99274439 | B55: =VLOOKUP(A55,'DATA (2)'!A:F,2,FALSE) -> Каналізаційний насос SEG.50.40.E.Ex.2.50 | C55: =VLOOKUP(A55,'DATA (2)'!A:F,4,FALSE) -> CW | F55: =VLOOKUP(A55,'DATA (2)'!A:F,5,FALSE) -> 3053.51 | G55: =IFERROR(F55*(1-VLOOKUP(C55,ГОЛОВНА!K:L,2,0)), "-") -> 3053.51
A56: 99274389 | B56: =VLOOKUP(A56,'DATA (2)'!A:F,2,FALSE) -> Каналізаційний насос SEG.50.40.EX.2.50B | C56: =VLOOKUP(A56,'DATA (2)'!A:F,4,FALSE) -> CW | F56: =VLOOKUP(A56,'DATA (2)'!A:F,5,FALSE) -> 2465.2 | G56: =IFERROR(F56*(1-VLOOKUP(C56,ГОЛОВНА!K:L,2,0)), "-") -> 2465.2
A57: 99274386 | B57: =VLOOKUP(A57,'DATA (2)'!A:F,2,FALSE) -> Каналізаційний насос SEG.50.31.2.50B | C57: =VLOOKUP(A57,'DATA (2)'!A:F,4,FALSE) -> CW | F57: =VLOOKUP(A57,'DATA (2)'!A:F,5,FALSE) -> 2022.97 | G57: =IFERROR(F57*(1-VLOOKUP(C57,ГОЛОВНА!K:L,2,0)), "-") -> 2022.97
A58: 99274385 | B58: =VLOOKUP(A58,'DATA (2)'!A:F,2,FALSE) -> Каналізаційний насос SEG.50.26.EX.2.50B | C58: =VLOOKUP(A58,'DATA (2)'!A:F,4,FALSE) -> CW | F58: =VLOOKUP(A58,'DATA (2)'!A:F,5,FALSE) -> 2043.67 | G58: =IFERROR(F58*(1-VLOOKUP(C58,ГОЛОВНА!K:L,2,0)), "-") -> 2043.67
A59: 99274387 | B59: =VLOOKUP(A59,'DATA (2)'!A:F,2,FALSE) -> Каналізаційний насос SEG.50.31.EX.2.50B | C59: =VLOOKUP(A59,'DATA (2)'!A:F,4,FALSE) -> CW | F59: =VLOOKUP(A59,'DATA (2)'!A:F,5,FALSE) -> 2113.29 | G59: =IFERROR(F59*(1-VLOOKUP(C59,ГОЛОВНА!K:L,2,0)), "-") -> 2113.29
A60: 99274388 | B60: =VLOOKUP(A60,'DATA (2)'!A:F,2,FALSE) -> Каналізаційний насос SEG.50.40.2.50B | C60: =VLOOKUP(A60,'DATA (2)'!A:F,4,FALSE) -> CW | F60: =VLOOKUP(A60,'DATA (2)'!A:F,5,FALSE) -> 2359.81 | G60: =IFERROR(F60*(1-VLOOKUP(C60,ГОЛОВНА!K:L,2,0)), "-") -> 2359.81
A61: 99274384 | B61: =VLOOKUP(A61,'DATA (2)'!A:F,2,FALSE) -> Каналізаційний насос SEG.50.26.2.50B | C61: =VLOOKUP(A61,'DATA (2)'!A:F,4,FALSE) -> CW | F61: =VLOOKUP(A61,'DATA (2)'!A:F,5,FALSE) -> 1953.34 | G61: =IFERROR(F61*(1-VLOOKUP(C61,ГОЛОВНА!K:L,2,0)), "-") -> 1953.34
A62: 99274438 | B62: =VLOOKUP(A62,'DATA (2)'!A:F,2,FALSE) -> Каналізаційний насос SEG.50.40.E.2.50B | C62: =VLOOKUP(A62,'DATA (2)'!A:F,4,FALSE) -> CW | F62: =VLOOKUP(A62,'DATA (2)'!A:F,5,FALSE) -> 2910.32 | G62: =IFERROR(F62*(1-VLOOKUP(C62,ГОЛОВНА!K:L,2,0)), "-") -> 2910.32
B64: Аксесуари
A65: 96001977 | B65: =VLOOKUP(A65,'DATA (2)'!A:F,2,FALSE) -> Муфта Storz 1 1/2 | C65: =VLOOKUP(A65,'DATA (2)'!A:F,4,FALSE) -> CW | F65: =VLOOKUP(A65,'DATA (2)'!A:F,5,FALSE) -> 36.23 | G65: =IFERROR(F65*(1-VLOOKUP(C65,ГОЛОВНА!K:L,2,0)), "-") -> 36.23
A66: 96002002 | B66: =VLOOKUP(A66,'DATA (2)'!A:F,2,FALSE) -> Зворотній клапан Rp2", PN10 | C66: =VLOOKUP(A66,'DATA (2)'!A:F,4,FALSE) -> CW | D66: S | F66: =VLOOKUP(A66,'DATA (2)'!A:F,5,FALSE) -> 107.38 | G66: =IFERROR(F66*(1-VLOOKUP(C66,ГОЛОВНА!K:L,2,0)), "-") -> 107.38
A67: 96489973 | B67: =VLOOKUP(A67,'DATA (2)'!A:F,2,FALSE) -> Клапан запірний Rp/Rp 1 1/2" | C67: =VLOOKUP(A67,'DATA (2)'!A:F,4,FALSE) -> CW | D67: S | F67: =VLOOKUP(A67,'DATA (2)'!A:F,5,FALSE) -> 77.28 | G67: =IFERROR(F67*(1-VLOOKUP(C67,ГОЛОВНА!K:L,2,0)), "-") -> 77.28
A68: 96489973 | B68: =VLOOKUP(A68,'DATA (2)'!A:F,2,FALSE) -> Клапан запірний Rp/Rp 1 1/2" | C68: =VLOOKUP(A68,'DATA (2)'!A:F,4,FALSE) -> CW | D68: S | F68: =VLOOKUP(A68,'DATA (2)'!A:F,5,FALSE) -> 77.28 | G68: =IFERROR(F68*(1-VLOOKUP(C68,ГОЛОВНА!K:L,2,0)), "-") -> 77.28
A69: 96003632 | B69: =VLOOKUP(A69,'DATA (2)'!A:F,2,FALSE) -> Ніпель R 1 1/2 | C69: =VLOOKUP(A69,'DATA (2)'!A:F,4,FALSE) -> CW | F69: =VLOOKUP(A69,'DATA (2)'!A:F,5,FALSE) -> 22.86 | G69: =IFERROR(F69*(1-VLOOKUP(C69,ГОЛОВНА!K:L,2,0)), "-") -> 22.86
A70: 96001993 | B70: =VLOOKUP(A70,'DATA (2)'!A:F,2,FALSE) -> Ніпель R 2 | C70: =VLOOKUP(A70,'DATA (2)'!A:F,4,FALSE) -> CW | F70: =VLOOKUP(A70,'DATA (2)'!A:F,5,FALSE) -> 11.71 | G70: =IFERROR(F70*(1-VLOOKUP(C70,ГОЛОВНА!K:L,2,0)), "-") -> 11.71
A71: 96001993 | B71: =VLOOKUP(A71,'DATA (2)'!A:F,2,FALSE) -> Ніпель R 2 | C71: =VLOOKUP(A71,'DATA (2)'!A:F,4,FALSE) -> CW | F71: =VLOOKUP(A71,'DATA (2)'!A:F,5,FALSE) -> 11.71 | G71: =IFERROR(F71*(1-VLOOKUP(C71,ГОЛОВНА!K:L,2,0)), "-") -> 11.71
A72: 96001980 | B72: =VLOOKUP(A72,'DATA (2)'!A:F,2,FALSE) -> Коліно оцинк 2 R /RP 90* | C72: =VLOOKUP(A72,'DATA (2)'!A:F,4,FALSE) -> CW | F72: =VLOOKUP(A72,'DATA (2)'!A:F,5,FALSE) -> 22.92 | G72: =IFERROR(F72*(1-VLOOKUP(C72,ГОЛОВНА!K:L,2,0)), "-") -> 22.92
A73: 96076063 | B73: =VLOOKUP(A73,'DATA (2)'!A:F,2,FALSE) -> Автоматична муфта DN40 (SEG) | C73: =VLOOKUP(A73,'DATA (2)'!A:F,4,FALSE) -> WW | D73: S | F73: =VLOOKUP(A73,'DATA (2)'!A:F,5,FALSE) -> 180.78 | G73: =IFERROR(F73*(1-VLOOKUP(C73,ГОЛОВНА!K:L,2,0)), "-") -> 180.78
A74: 96489959 | B74: =VLOOKUP(A74,'DATA (2)'!A:F,2,FALSE) -> Фланець різьбовий DN40, Rp 1 1/2" | C74: =VLOOKUP(A74,'DATA (2)'!A:F,4,FALSE) -> CW | F74: =VLOOKUP(A74,'DATA (2)'!A:F,5,FALSE) -> 26.71 | G74: =IFERROR(F74*(1-VLOOKUP(C74,ГОЛОВНА!K:L,2,0)), "-") -> 26.71
A75: 98538177 | B75: =VLOOKUP(A75,'DATA (2)'!A:F,2,FALSE) -> Ланцюг 500кг 6м нерж. компл. | C75: =VLOOKUP(A75,'DATA (2)'!A:F,4,FALSE) -> WW | F75: =VLOOKUP(A75,'DATA (2)'!A:F,5,FALSE) -> 178.46 | G75: =IFERROR(F75*(1-VLOOKUP(C75,ГОЛОВНА!K:L,2,0)), "-") -> 178.46
A76: 98538176 | B76: =VLOOKUP(A76,'DATA (2)'!A:F,2,FALSE) -> Ланцюг 500кг 4м нерж. компл. | C76: =VLOOKUP(A76,'DATA (2)'!A:F,4,FALSE) -> WW | F76: =VLOOKUP(A76,'DATA (2)'!A:F,5,FALSE) -> 127.8 | G76: =IFERROR(F76*(1-VLOOKUP(C76,ГОЛОВНА!K:L,2,0)), "-") -> 127.8
A77: 96004442 | B77: =VLOOKUP(A77,'DATA (2)'!A:F,2,FALSE) -> Автоматична трубна муфта Rp/Rp2, cpl. | C77: =VLOOKUP(A77,'DATA (2)'!A:F,4,FALSE) -> WW | F77: =VLOOKUP(A77,'DATA (2)'!A:F,5,FALSE) -> 161.52 | G77: =IFERROR(F77*(1-VLOOKUP(C77,ГОЛОВНА!K:L,2,0)), "-") -> 161.52
A78: 96076196 | B78: =VLOOKUP(A78,'DATA (2)'!A:F,2,FALSE) -> Опори для переносного монтажу SEG (3 шт) | C78: =VLOOKUP(A78,'DATA (2)'!A:F,4,FALSE) -> CW | D78: S | F78: =VLOOKUP(A78,'DATA (2)'!A:F,5,FALSE) -> 88.78 | G78: =IFERROR(F78*(1-VLOOKUP(C78,ГОЛОВНА!K:L,2,0)), "-") -> 88.78
A79: 96076196 | B79: =VLOOKUP(A79,'DATA (2)'!A:F,2,FALSE) -> Опори для переносного монтажу SEG (3 шт) | C79: =VLOOKUP(A79,'DATA (2)'!A:F,4,FALSE) -> CW | D79: S | F79: =VLOOKUP(A79,'DATA (2)'!A:F,5,FALSE) -> 88.78 | G79: =IFERROR(F79*(1-VLOOKUP(C79,ГОЛОВНА!K:L,2,0)), "-") -> 88.78
A80: 96914019 | B80: =VLOOKUP(A80,'DATA (2)'!A:F,2,FALSE) -> Пульт керування CU 100.400.3.5.A | C80: =VLOOKUP(A80,'DATA (2)'!A:F,4,FALSE) -> CW | D80: S | F80: =VLOOKUP(A80,'DATA (2)'!A:F,5,FALSE) -> 576.84 | G80: =IFERROR(F80*(1-VLOOKUP(C80,ГОЛОВНА!K:L,2,0)), "-") -> 576.84
A81: 99369644 | B81: =VLOOKUP(A81,'DATA (2)'!A:F,2,FALSE) -> Шафа керув LC 231 1x1-12 DOL 3x460 PI CE | C81: =VLOOKUP(A81,'DATA (2)'!A:F,4,FALSE) -> CW | F81: =VLOOKUP(A81,'DATA (2)'!A:F,5,FALSE) -> 675.78 | G81: =IFERROR(F81*(1-VLOOKUP(C81,ГОЛОВНА!K:L,2,0)), "-") -> 675.78
A82: 99369650 | B82: =VLOOKUP(A82,'DATA (2)'!A:F,2,FALSE) -> Шафа керування LC 231 2x 1-9 DOL | C82: =VLOOKUP(A82,'DATA (2)'!A:F,4,FALSE) -> CW | F82: =VLOOKUP(A82,'DATA (2)'!A:F,5,FALSE) -> 847.4 | G82: =IFERROR(F82*(1-VLOOKUP(C82,ГОЛОВНА!K:L,2,0)), "-") -> 847.4
A83: 99877171 | B83: =VLOOKUP(A83,'DATA (2)'!A:F,2,FALSE) -> Шафа керув LC 241 1x5,7-12 DOL 30 150 1x | C83: =VLOOKUP(A83,'DATA (2)'!A:F,4,FALSE) -> CW | F83: =VLOOKUP(A83,'DATA (2)'!A:F,5,FALSE) -> 1614.6 | G83: =IFERROR(F83*(1-VLOOKUP(C83,ГОЛОВНА!K:L,2,0)), "-") -> 1614.6
A84: 99877161 | B84: =VLOOKUP(A84,'DATA (2)'!A:F,2,FALSE) -> Шафа керув LC 241 2x1,9-6,3 DOL 30 150 1х | C84: =VLOOKUP(A84,'DATA (2)'!A:F,4,FALSE) -> CW | F84: =VLOOKUP(A84,'DATA (2)'!A:F,5,FALSE) -> 1853.8 | G84: =IFERROR(F84*(1-VLOOKUP(C84,ГОЛОВНА!K:L,2,0)), "-") -> 1853.8
A85: 99877119 | B85: =VLOOKUP(A85,'DATA (2)'!A:F,2,FALSE) -> Шафа керув LC 241 1x 0,8-2,7 DOL 3x230/400 PI OPT | C85: =VLOOKUP(A85,'DATA (2)'!A:F,4,FALSE) -> CW | F85: =VLOOKUP(A85,'DATA (2)'!A:F,5,FALSE) -> 1367.15 | G85: =IFERROR(F85*(1-VLOOKUP(C85,ГОЛОВНА!K:L,2,0)), "-") -> 1367.15
A86: 99877139 | B86: =VLOOKUP(A86,'DATA (2)'!A:F,2,FALSE) -> Шафа керув LC 241 1x 1,9-6,3 DOL 3x230/400 PI OPT | C86: =VLOOKUP(A86,'DATA (2)'!A:F,4,FALSE) -> CW | F86: =VLOOKUP(A86,'DATA (2)'!A:F,5,FALSE) -> 1371.27 | G86: =IFERROR(F86*(1-VLOOKUP(C86,ГОЛОВНА!K:L,2,0)), "-") -> 1371.27
A87: 99877164 | B87: =VLOOKUP(A87,'DATA (2)'!A:F,2,FALSE) -> Шафа керув LC 241 1x 5,7-12 DOL 3x230/400 PI OPT | C87: =VLOOKUP(A87,'DATA (2)'!A:F,4,FALSE) -> CW | F87: =VLOOKUP(A87,'DATA (2)'!A:F,5,FALSE) -> 1408.39 | G87: =IFERROR(F87*(1-VLOOKUP(C87,ГОЛОВНА!K:L,2,0)), "-") -> 1408.39
A88: 99877183 | B88: =VLOOKUP(A88,'DATA (2)'!A:F,2,FALSE) -> Шафа керув LC 241 1x 9-26 DOL 3x230/400 PI OPT | C88: =VLOOKUP(A88,'DATA (2)'!A:F,4,FALSE) -> CW | F88: =VLOOKUP(A88,'DATA (2)'!A:F,5,FALSE) -> 1701.21 | G88: =IFERROR(F88*(1-VLOOKUP(C88,ГОЛОВНА!K:L,2,0)), "-") -> 1701.21
A89: 99877134 | B89: =VLOOKUP(A89,'DATA (2)'!A:F,2,FALSE) -> Шафа керув LC 241 2x 0,8-2,7 DOL 3x230/400 PI OPT | C89: =VLOOKUP(A89,'DATA (2)'!A:F,4,FALSE) -> CW | F89: =VLOOKUP(A89,'DATA (2)'!A:F,5,FALSE) -> 1579.54 | G89: =IFERROR(F89*(1-VLOOKUP(C89,ГОЛОВНА!K:L,2,0)), "-") -> 1579.54
A90: 99877174 | B90: =VLOOKUP(A90,'DATA (2)'!A:F,2,FALSE) -> Шафа керув LC 241 2x 5,7-12 DOL 3x230/400 PI OPT | C90: =VLOOKUP(A90,'DATA (2)'!A:F,4,FALSE) -> CW | F90: =VLOOKUP(A90,'DATA (2)'!A:F,5,FALSE) -> 1701.21 | G90: =IFERROR(F90*(1-VLOOKUP(C90,ГОЛОВНА!K:L,2,0)), "-") -> 1701.21
A91: 99877156 | B91: =VLOOKUP(A91,'DATA (2)'!A:F,2,FALSE) -> Шафа керув LC 241 2x 1,9-6,3 DOL 3x230/400 PI OPT | C91: =VLOOKUP(A91,'DATA (2)'!A:F,4,FALSE) -> CW | F91: =VLOOKUP(A91,'DATA (2)'!A:F,5,FALSE) -> 1577.48 | G91: =IFERROR(F91*(1-VLOOKUP(C91,ГОЛОВНА!K:L,2,0)), "-") -> 1577.48
A93: 96003332 | B93: =VLOOKUP(A93,'DATA (2)'!A:F,2,FALSE) -> Поплавцевий вимикач MS1+10м кабель | C93: =VLOOKUP(A93,'DATA (2)'!A:F,4,FALSE) -> CW | D93: S | F93: =VLOOKUP(A93,'DATA (2)'!A:F,5,FALSE) -> 96.73 | G93: =IFERROR(F93*(1-VLOOKUP(C93,ГОЛОВНА!K:L,2,0)), "-") -> 96.73
A94: 62500013 | B94: =VLOOKUP(A94,'DATA (2)'!A:F,2,FALSE) -> Поплавцевий вимикач MS1 + 10м каб, 2 шт. | C94: =VLOOKUP(A94,'DATA (2)'!A:F,4,FALSE) -> CW | F94: =VLOOKUP(A94,'DATA (2)'!A:F,5,FALSE) -> 245.18 | G94: =IFERROR(F94*(1-VLOOKUP(C94,ГОЛОВНА!K:L,2,0)), "-") -> 245.18
A95: 62500014 | B95: =VLOOKUP(A95,'DATA (2)'!A:F,2,FALSE) -> Поплавцевий вимикач МS1 + 10м каб, 3 шт. | C95: =VLOOKUP(A95,'DATA (2)'!A:F,4,FALSE) -> CW | F95: =VLOOKUP(A95,'DATA (2)'!A:F,5,FALSE) -> 391.41 | G95: =IFERROR(F95*(1-VLOOKUP(C95,ГОЛОВНА!K:L,2,0)), "-") -> 391.41
A96: 62500015 | B96: =VLOOKUP(A96,'DATA (2)'!A:F,2,FALSE) -> Поплавцевий вимикач МS1 + 10м каб, 4шт. | C96: =VLOOKUP(A96,'DATA (2)'!A:F,4,FALSE) -> CW | F96: =VLOOKUP(A96,'DATA (2)'!A:F,5,FALSE) -> 492.63 | G96: =IFERROR(F96*(1-VLOOKUP(C96,ГОЛОВНА!K:L,2,0)), "-") -> 492.63
A97: 96003421 | B97: =VLOOKUP(A97,'DATA (2)'!A:F,2,FALSE) -> Поплавцевий вимикач MS1 (Ex) з кабел 10м | C97: =VLOOKUP(A97,'DATA (2)'!A:F,4,FALSE) -> CW | F97: =VLOOKUP(A97,'DATA (2)'!A:F,5,FALSE) -> 134.98 | G97: =IFERROR(F97*(1-VLOOKUP(C97,ГОЛОВНА!K:L,2,0)), "-") -> 134.98
A98: 99911624 | B98: =VLOOKUP(A98,'DATA (2)'!A:F,2,FALSE) -> Поплавцевий вимикач FS1, кабель 10м | C98: =VLOOKUP(A98,'DATA (2)'!A:F,4,FALSE) -> CW | D98: S | F98: =VLOOKUP(A98,'DATA (2)'!A:F,5,FALSE) -> 52.72 | G98: =IFERROR(F98*(1-VLOOKUP(C98,ГОЛОВНА!K:L,2,0)), "-") -> 52.72
A99: 62500016 | B99: =VLOOKUP(A99,'DATA (2)'!A:F,2,FALSE) -> Поплавцевий вимикач, к-т 2 шт., вибухоза | C99: =VLOOKUP(A99,'DATA (2)'!A:F,4,FALSE) -> CW | F99: =VLOOKUP(A99,'DATA (2)'!A:F,5,FALSE) -> 326.19 | G99: =IFERROR(F99*(1-VLOOKUP(C99,ГОЛОВНА!K:L,2,0)), "-") -> 326.19
A100: 62500017 | B100: =VLOOKUP(A100,'DATA (2)'!A:F,2,FALSE) -> Поплавцевий вимикач, к-т 3 шт., вибухоза | C100: =VLOOKUP(A100,'DATA (2)'!A:F,4,FALSE) -> CW | F100: =VLOOKUP(A100,'DATA (2)'!A:F,5,FALSE) -> 517.4 | G100: =IFERROR(F100*(1-VLOOKUP(C100,ГОЛОВНА!K:L,2,0)), "-") -> 517.4
A101: 62500018 | B101: =VLOOKUP(A101,'DATA (2)'!A:F,2,FALSE) -> Поплавцевий вимикач, к-т 4 шт., вибухоза | C101: =VLOOKUP(A101,'DATA (2)'!A:F,4,FALSE) -> CW | F101: =VLOOKUP(A101,'DATA (2)'!A:F,5,FALSE) -> 663.59 | G101: =IFERROR(F101*(1-VLOOKUP(C101,ГОЛОВНА!K:L,2,0)), "-") -> 663.59
B104: Примітка:
A105: S | B105: - складська позиція (зазвичай є на скаді)
A106: FT | B106: - швидка поставка (зазвичай до 3-х тижнів)

Sheet Multilift
A1: АРТИКУЛ | B1: НАЙМЕНУВАННЯ (УКР) | C1: PRICE GROUP | D1: ДОСТАВКА (ТИЖНІВ) | E1: ДОДАТКОВО | F1: ЦІНА (ЕВРО БЕЗ ПДВ) | G1: ЦІНА ЗІ ЗНИЖКОЮ | H1: НА ГОЛОВНУ
A2: Multilift | G2: Компактні каналізаційні станції для встановлення у приміщенні
A3: 97901064 | B3: =VLOOKUP(A3,'DATA (2)'!A:F,2,FALSE) -> Каналізаційна установка M.12.1.4 1x230V | C3: =VLOOKUP(A3,'DATA (2)'!A:F,4,FALSE) -> CW | F3: =VLOOKUP(A3,'DATA (2)'!A:F,5,FALSE) -> 2810.03 | G3: =IFERROR(F3*(1-VLOOKUP(C3,ГОЛОВНА!K:L,2,0)), "-") -> 2810.03
A4: 97901076 | B4: =VLOOKUP(A4,'DATA (2)'!A:F,2,FALSE) -> Каналізаційна установка M.12.1.4 1x230V | C4: =VLOOKUP(A4,'DATA (2)'!A:F,4,FALSE) -> CW | F4: =VLOOKUP(A4,'DATA (2)'!A:F,5,FALSE) -> 2916.62 | G4: =IFERROR(F4*(1-VLOOKUP(C4,ГОЛОВНА!K:L,2,0)), "-") -> 2916.62
A5: 97901065 | B5: =VLOOKUP(A5,'DATA (2)'!A:F,2,FALSE) -> Каналізаційна установка M.12.3.4 3x400V | C5: =VLOOKUP(A5,'DATA (2)'!A:F,4,FALSE) -> CW | F5: =VLOOKUP(A5,'DATA (2)'!A:F,5,FALSE) -> 2810.03 | G5: =IFERROR(F5*(1-VLOOKUP(C5,ГОЛОВНА!K:L,2,0)), "-") -> 2810.03
A6: 97901066 | B6: =VLOOKUP(A6,'DATA (2)'!A:F,2,FALSE) -> Каналізаційна установка M.15.1.4 1x230V | C6: =VLOOKUP(A6,'DATA (2)'!A:F,4,FALSE) -> CW | F6: =VLOOKUP(A6,'DATA (2)'!A:F,5,FALSE) -> 3080.62 | G6: =IFERROR(F6*(1-VLOOKUP(C6,ГОЛОВНА!K:L,2,0)), "-") -> 3080.62
A7: 97901067 | B7: =VLOOKUP(A7,'DATA (2)'!A:F,2,FALSE) -> Каналізаційна установка M.15.3.4 3x400V | C7: =VLOOKUP(A7,'DATA (2)'!A:F,4,FALSE) -> CW | F7: =VLOOKUP(A7,'DATA (2)'!A:F,5,FALSE) -> 3080.62 | G7: =IFERROR(F7*(1-VLOOKUP(C7,ГОЛОВНА!K:L,2,0)), "-") -> 3080.62
A8: 97901068 | B8: =VLOOKUP(A8,'DATA (2)'!A:F,2,FALSE) -> Каналізаційна установка M.22.3.4 3x400V | C8: =VLOOKUP(A8,'DATA (2)'!A:F,4,FALSE) -> CW | F8: =VLOOKUP(A8,'DATA (2)'!A:F,5,FALSE) -> 3288.76 | G8: =IFERROR(F8*(1-VLOOKUP(C8,ГОЛОВНА!K:L,2,0)), "-") -> 3288.76
A9: 97901037 | B9: =VLOOKUP(A9,'DATA (2)'!A:F,2,FALSE) -> Каналізаційна установка MSS.11.1.2 1x230 | C9: =VLOOKUP(A9,'DATA (2)'!A:F,4,FALSE) -> CW | D9: S | F9: =VLOOKUP(A9,'DATA (2)'!A:F,5,FALSE) -> 1748.46 | G9: =IFERROR(F9*(1-VLOOKUP(C9,ГОЛОВНА!K:L,2,0)), "-") -> 1748.46
A10: 97901028 | B10: =VLOOKUP(A10,'DATA (2)'!A:F,2,FALSE) -> Каналізаційна установка MSS.11.1.2 1x230 | C10: =VLOOKUP(A10,'DATA (2)'!A:F,4,FALSE) -> CW | F10: =VLOOKUP(A10,'DATA (2)'!A:F,5,FALSE) -> 1831.73 | G10: =IFERROR(F10*(1-VLOOKUP(C10,ГОЛОВНА!K:L,2,0)), "-") -> 1831.73
A11: 97901027 | B11: =VLOOKUP(A11,'DATA (2)'!A:F,2,FALSE) -> Каналізаційна установка MSS.11.3.2 3x400 | C11: =VLOOKUP(A11,'DATA (2)'!A:F,4,FALSE) -> CW | F11: =VLOOKUP(A11,'DATA (2)'!A:F,5,FALSE) -> 1748.46 | G11: =IFERROR(F11*(1-VLOOKUP(C11,ГОЛОВНА!K:L,2,0)), "-") -> 1748.46
B13: Примітка:
A14: S | B14: - складська позиція (зазвичай є на скаді)
A15: FT | B15: - швидка поставка (зазвичай до 3-х тижнів)

Sheet SE, SL
A1: АРТИКУЛ | B1: НАЙМЕНУВАННЯ (УКР) | C1: PRICE GROUP | D1: ДОСТАВКА | E1: ДОДАТКОВО | F1: ЦІНА (ЕВРО БЕЗ ПДВ) | G1: ЦІНА ЗІ ЗНИЖКОЮ | H1: НА ГОЛОВНУ
A2: SE/SL | G2: Каналізаційні насоси
A3: 96106562 | B3: =VLOOKUP(A3,'DATA (2)'!A:F,2,FALSE) -> Насос для стічн.вод SL1.50.65.09.2.1.5 | C3: =VLOOKUP(A3,'DATA (2)'!A:F,4,FALSE) -> CW | F3: =VLOOKUP(A3,'DATA (2)'!A:F,5,FALSE) -> 1149.73 | G3: =IFERROR(F3*(1-VLOOKUP(C3,ГОЛОВНА!K:L,2,0)), "-") -> 1149.73
A4: 96106566 | B4: =VLOOKUP(A4,'DATA (2)'!A:F,2,FALSE) -> Насос для стічн вод SL1.50.65.09.2.50B | C4: =VLOOKUP(A4,'DATA (2)'!A:F,4,FALSE) -> CW | F4: =VLOOKUP(A4,'DATA (2)'!A:F,5,FALSE) -> 1149.73 | G4: =IFERROR(F4*(1-VLOOKUP(C4,ГОЛОВНА!K:L,2,0)), "-") -> 1149.73
A5: 96106564 | B5: =VLOOKUP(A5,'DATA (2)'!A:F,2,FALSE) -> Насос для стічн.вод SL1.50.65.09.A.2.1.502 | C5: =VLOOKUP(A5,'DATA (2)'!A:F,4,FALSE) -> CW | F5: =VLOOKUP(A5,'DATA (2)'!A:F,5,FALSE) -> 1601.82 | G5: =IFERROR(F5*(1-VLOOKUP(C5,ГОЛОВНА!K:L,2,0)), "-") -> 1601.82
A6: 96106570 | B6: =VLOOKUP(A6,'DATA (2)'!A:F,2,FALSE) -> Насос для стічн вод SL1.50.65.09.A.2.50B | C6: =VLOOKUP(A6,'DATA (2)'!A:F,4,FALSE) -> CW | F6: =VLOOKUP(A6,'DATA (2)'!A:F,5,FALSE) -> 1460.26 | G6: =IFERROR(F6*(1-VLOOKUP(C6,ГОЛОВНА!K:L,2,0)), "-") -> 1460.26
A7: 96878450 | B7: =VLOOKUP(A7,'DATA (2)'!A:F,2,FALSE) -> Насос для стічн.вод SL1.50.65.09.E.2.1. | C7: =VLOOKUP(A7,'DATA (2)'!A:F,4,FALSE) -> CW | F7: =VLOOKUP(A7,'DATA (2)'!A:F,5,FALSE) -> 1770.24 | G7: =IFERROR(F7*(1-VLOOKUP(C7,ГОЛОВНА!K:L,2,0)), "-") -> 1770.24
A8: 96878451 | B8: =VLOOKUP(A8,'DATA (2)'!A:F,2,FALSE) -> Насос для стічн.вод SL1.50.65.09.E.2.50 | C8: =VLOOKUP(A8,'DATA (2)'!A:F,4,FALSE) -> CW | F8: =VLOOKUP(A8,'DATA (2)'!A:F,5,FALSE) -> 1770.24 | G8: =IFERROR(F8*(1-VLOOKUP(C8,ГОЛОВНА!K:L,2,0)), "-") -> 1770.24
A9: 96878452 | B9: =VLOOKUP(A9,'DATA (2)'!A:F,2,FALSE) -> Насос для стічн.вод SL1.50.65.09.E.Ex.2 | C9: =VLOOKUP(A9,'DATA (2)'!A:F,4,FALSE) -> CW | F9: =VLOOKUP(A9,'DATA (2)'!A:F,5,FALSE) -> 1949.31 | G9: =IFERROR(F9*(1-VLOOKUP(C9,ГОЛОВНА!K:L,2,0)), "-") -> 1949.31
A10: 96878453 | B10: =VLOOKUP(A10,'DATA (2)'!A:F,2,FALSE) -> Насос для стічн.вод SL1.50.65.09.E.Ex.2 | C10: =VLOOKUP(A10,'DATA (2)'!A:F,4,FALSE) -> CW | F10: =VLOOKUP(A10,'DATA (2)'!A:F,5,FALSE) -> 1949.31 | G10: =IFERROR(F10*(1-VLOOKUP(C10,ГОЛОВНА!K:L,2,0)), "-") -> 1949.31
A11: 96106563 | B11: =VLOOKUP(A11,'DATA (2)'!A:F,2,FALSE) -> Насос для стічн.вод SL1.50.65.09.EX.2. | C11: =VLOOKUP(A11,'DATA (2)'!A:F,4,FALSE) -> CW | F11: =VLOOKUP(A11,'DATA (2)'!A:F,5,FALSE) -> 1293.07 | G11: =IFERROR(F11*(1-VLOOKUP(C11,ГОЛОВНА!K:L,2,0)), "-") -> 1293.07
A12: 96106568 | B12: =VLOOKUP(A12,'DATA (2)'!A:F,2,FALSE) -> Насос для стічн вод SE1.50.65.09.Ex.2.50 | C12: =VLOOKUP(A12,'DATA (2)'!A:F,4,FALSE) -> CW | F12: =VLOOKUP(A12,'DATA (2)'!A:F,5,FALSE) -> 1293.07 | G12: =IFERROR(F12*(1-VLOOKUP(C12,ГОЛОВНА!K:L,2,0)), "-") -> 1293.07
A13: 96104125 | B13: =VLOOKUP(A13,'DATA (2)'!A:F,2,FALSE) -> Насос для стічн.вод SL1.50.65.11.2.1.5 | C13: =VLOOKUP(A13,'DATA (2)'!A:F,4,FALSE) -> CW | F13: =VLOOKUP(A13,'DATA (2)'!A:F,5,FALSE) -> 1304.91 | G13: =IFERROR(F13*(1-VLOOKUP(C13,ГОЛОВНА!K:L,2,0)), "-") -> 1304.91
A14: 96104129 | B14: =VLOOKUP(A14,'DATA (2)'!A:F,2,FALSE) -> Насос для стічн.вод SL1.50.65.11.2.50B | C14: =VLOOKUP(A14,'DATA (2)'!A:F,4,FALSE) -> CW | F14: =VLOOKUP(A14,'DATA (2)'!A:F,5,FALSE) -> 1304.91 | G14: =IFERROR(F14*(1-VLOOKUP(C14,ГОЛОВНА!K:L,2,0)), "-") -> 1304.91
A15: 96104127 | B15: =VLOOKUP(A15,'DATA (2)'!A:F,2,FALSE) -> Насос для стічн.вод SL1.50.65.11.A.2.1.502 | C15: =VLOOKUP(A15,'DATA (2)'!A:F,4,FALSE) -> CW | F15: =VLOOKUP(A15,'DATA (2)'!A:F,5,FALSE) -> 1615.46 | G15: =IFERROR(F15*(1-VLOOKUP(C15,ГОЛОВНА!K:L,2,0)), "-") -> 1615.46
A16: 96104133 | B16: =VLOOKUP(A16,'DATA (2)'!A:F,2,FALSE) -> Насос для стічн.вод SL1.50.65.11.A.2.50B | C16: =VLOOKUP(A16,'DATA (2)'!A:F,4,FALSE) -> CW | F16: =VLOOKUP(A16,'DATA (2)'!A:F,5,FALSE) -> 1615.46 | G16: =IFERROR(F16*(1-VLOOKUP(C16,ГОЛОВНА!K:L,2,0)), "-") -> 1615.46
A17: 96878454 | B17: =VLOOKUP(A17,'DATA (2)'!A:F,2,FALSE) -> Насос для стічн.вод SL1.50.65.11.E.2.1. | C17: =VLOOKUP(A17,'DATA (2)'!A:F,4,FALSE) -> CW | F17: =VLOOKUP(A17,'DATA (2)'!A:F,5,FALSE) -> 1912.01 | G17: =IFERROR(F17*(1-VLOOKUP(C17,ГОЛОВНА!K:L,2,0)), "-") -> 1912.01
A18: 96878455 | B18: =VLOOKUP(A18,'DATA (2)'!A:F,2,FALSE) -> Насос для стічн.вод SL1.50.65.11.E.2.50 | C18: =VLOOKUP(A18,'DATA (2)'!A:F,4,FALSE) -> CW | F18: =VLOOKUP(A18,'DATA (2)'!A:F,5,FALSE) -> 1912.01 | G18: =IFERROR(F18*(1-VLOOKUP(C18,ГОЛОВНА!K:L,2,0)), "-") -> 1912.01
A19: 96878456 | B19: =VLOOKUP(A19,'DATA (2)'!A:F,2,FALSE) -> Насос для стічн.вод SL1.50.65.11.E.Ex.2 | C19: =VLOOKUP(A19,'DATA (2)'!A:F,4,FALSE) -> CW | F19: =VLOOKUP(A19,'DATA (2)'!A:F,5,FALSE) -> 2091.06 | G19: =IFERROR(F19*(1-VLOOKUP(C19,ГОЛОВНА!K:L,2,0)), "-") -> 2091.06
A20: 96878457 | B20: =VLOOKUP(A20,'DATA (2)'!A:F,2,FALSE) -> Насос для стічн.вод SL1.50.65.11.E.Ex.2 | C20: =VLOOKUP(A20,'DATA (2)'!A:F,4,FALSE) -> CW | F20: =VLOOKUP(A20,'DATA (2)'!A:F,5,FALSE) -> 2091.06 | G20: =IFERROR(F20*(1-VLOOKUP(C20,ГОЛОВНА!K:L,2,0)), "-") -> 2091.06
A21: 96104126 | B21: =VLOOKUP(A21,'DATA (2)'!A:F,2,FALSE) -> Насос для стічн.вод SL1.50.65.11.EX.2. | C21: =VLOOKUP(A21,'DATA (2)'!A:F,4,FALSE) -> CW | F21: =VLOOKUP(A21,'DATA (2)'!A:F,5,FALSE) -> 1448.23 | G21: =IFERROR(F21*(1-VLOOKUP(C21,ГОЛОВНА!K:L,2,0)), "-") -> 1448.23
A22: 96104131 | B22: =VLOOKUP(A22,'DATA (2)'!A:F,2,FALSE) -> Насос для стічн.вод SL1.50.65.11.EX.2. | C22: =VLOOKUP(A22,'DATA (2)'!A:F,4,FALSE) -> CW | F22: =VLOOKUP(A22,'DATA (2)'!A:F,5,FALSE) -> 1448.23 | G22: =IFERROR(F22*(1-VLOOKUP(C22,ГОЛОВНА!K:L,2,0)), "-") -> 1448.23
A23: 96104118 | B23: =VLOOKUP(A23,'DATA (2)'!A:F,2,FALSE) -> Насос для стічн.вод SL1.50.65.15.2.50B | C23: =VLOOKUP(A23,'DATA (2)'!A:F,4,FALSE) -> CW | F23: =VLOOKUP(A23,'DATA (2)'!A:F,5,FALSE) -> 1600.05 | G23: =IFERROR(F23*(1-VLOOKUP(C23,ГОЛОВНА!K:L,2,0)), "-") -> 1600.05
A24: 96104122 | B24: =VLOOKUP(A24,'DATA (2)'!A:F,2,FALSE) -> Насос для стічн.вод SL1.50.65.15.A.2.50B | C24: =VLOOKUP(A24,'DATA (2)'!A:F,4,FALSE) -> CW | F24: =VLOOKUP(A24,'DATA (2)'!A:F,5,FALSE) -> 1910.62 | G24: =IFERROR(F24*(1-VLOOKUP(C24,ГОЛОВНА!K:L,2,0)), "-") -> 1910.62
A25: 96878458 | B25: =VLOOKUP(A25,'DATA (2)'!A:F,2,FALSE) -> Насос для стічн.вод SL1.50.65.15.E.2.50 | C25: =VLOOKUP(A25,'DATA (2)'!A:F,4,FALSE) -> CW | F25: =VLOOKUP(A25,'DATA (2)'!A:F,5,FALSE) -> 2181.61 | G25: =IFERROR(F25*(1-VLOOKUP(C25,ГОЛОВНА!K:L,2,0)), "-") -> 2181.61
A26: 96878472 | B26: =VLOOKUP(A26,'DATA (2)'!A:F,2,FALSE) -> Насос для стічн.вод SL1.50.65.15.E.Ex.2 | C26: =VLOOKUP(A26,'DATA (2)'!A:F,4,FALSE) -> CW | F26: =VLOOKUP(A26,'DATA (2)'!A:F,5,FALSE) -> 2360.64 | G26: =IFERROR(F26*(1-VLOOKUP(C26,ГОЛОВНА!K:L,2,0)), "-") -> 2360.64
A27: 96104120 | B27: =VLOOKUP(A27,'DATA (2)'!A:F,2,FALSE) -> Насос для стічн.вод SL1.50.65.15.EX.2. | C27: =VLOOKUP(A27,'DATA (2)'!A:F,4,FALSE) -> CW | F27: =VLOOKUP(A27,'DATA (2)'!A:F,5,FALSE) -> 1743.36 | G27: =IFERROR(F27*(1-VLOOKUP(C27,ГОЛОВНА!K:L,2,0)), "-") -> 1743.36
A28: 96115119 | B28: =VLOOKUP(A28,'DATA (2)'!A:F,2,FALSE) -> Насос для стічн.вод SLV 65.65.09.2.1.5 | C28: =VLOOKUP(A28,'DATA (2)'!A:F,4,FALSE) -> CW | F28: =VLOOKUP(A28,'DATA (2)'!A:F,5,FALSE) -> 1134.74 | G28: =IFERROR(F28*(1-VLOOKUP(C28,ГОЛОВНА!K:L,2,0)), "-") -> 1134.74
A29: 96115123 | B29: =VLOOKUP(A29,'DATA (2)'!A:F,2,FALSE) -> Насос для стічн.вод SLV 65.65.09.2.50B | C29: =VLOOKUP(A29,'DATA (2)'!A:F,4,FALSE) -> CW | F29: =VLOOKUP(A29,'DATA (2)'!A:F,5,FALSE) -> 1134.74 | G29: =IFERROR(F29*(1-VLOOKUP(C29,ГОЛОВНА!K:L,2,0)), "-") -> 1134.74
A30: 96115121 | B30: =VLOOKUP(A30,'DATA (2)'!A:F,2,FALSE) -> Насос для стічн вод SLV.65.65.09.A.2.1.502 | C30: =VLOOKUP(A30,'DATA (2)'!A:F,4,FALSE) -> CW | F30: =VLOOKUP(A30,'DATA (2)'!A:F,5,FALSE) -> 1445.35 | G30: =IFERROR(F30*(1-VLOOKUP(C30,ГОЛОВНА!K:L,2,0)), "-") -> 1445.35
A31: 96115125 | B31: =VLOOKUP(A31,'DATA (2)'!A:F,2,FALSE) -> Насос для стічн вод SLV.65.65.09.A.2.50B | C31: =VLOOKUP(A31,'DATA (2)'!A:F,4,FALSE) -> CW | F31: =VLOOKUP(A31,'DATA (2)'!A:F,5,FALSE) -> 1445.35 | G31: =IFERROR(F31*(1-VLOOKUP(C31,ГОЛОВНА!K:L,2,0)), "-") -> 1445.35
A32: 96878474 | B32: =VLOOKUP(A32,'DATA (2)'!A:F,2,FALSE) -> Насос для стічних вод SLV.65.65.09.E.2.1 | C32: =VLOOKUP(A32,'DATA (2)'!A:F,4,FALSE) -> CW | F32: =VLOOKUP(A32,'DATA (2)'!A:F,5,FALSE) -> 1756.58 | G32: =IFERROR(F32*(1-VLOOKUP(C32,ГОЛОВНА!K:L,2,0)), "-") -> 1756.58
A33: 96878475 | B33: =VLOOKUP(A33,'DATA (2)'!A:F,2,FALSE) -> Насос для стічн.вод SLV65.65.09.E.2.50 | C33: =VLOOKUP(A33,'DATA (2)'!A:F,4,FALSE) -> CW | F33: =VLOOKUP(A33,'DATA (2)'!A:F,5,FALSE) -> 1756.58 | G33: =IFERROR(F33*(1-VLOOKUP(C33,ГОЛОВНА!K:L,2,0)), "-") -> 1756.58
A34: 96878476 | B34: =VLOOKUP(A34,'DATA (2)'!A:F,2,FALSE) -> Насос для стічн.вод SLV65.65.09.E.EX.2 | C34: =VLOOKUP(A34,'DATA (2)'!A:F,4,FALSE) -> CW | F34: =VLOOKUP(A34,'DATA (2)'!A:F,5,FALSE) -> 1935.67 | G34: =IFERROR(F34*(1-VLOOKUP(C34,ГОЛОВНА!K:L,2,0)), "-") -> 1935.67
A35: 96878477 | B35: =VLOOKUP(A35,'DATA (2)'!A:F,2,FALSE) -> Насос для стічн.вод SLV65.65.09.E.EX.2 | C35: =VLOOKUP(A35,'DATA (2)'!A:F,4,FALSE) -> CW | F35: =VLOOKUP(A35,'DATA (2)'!A:F,5,FALSE) -> 1935.66 | G35: =IFERROR(F35*(1-VLOOKUP(C35,ГОЛОВНА!K:L,2,0)), "-") -> 1935.66
A36: 96115120 | B36: =VLOOKUP(A36,'DATA (2)'!A:F,2,FALSE) -> Насос для стічн.вод SLV 65.65.09.EX.2. | C36: =VLOOKUP(A36,'DATA (2)'!A:F,4,FALSE) -> CW | F36: =VLOOKUP(A36,'DATA (2)'!A:F,5,FALSE) -> 1278.12 | G36: =IFERROR(F36*(1-VLOOKUP(C36,ГОЛОВНА!K:L,2,0)), "-") -> 1278.12
A37: 96115124 | B37: =VLOOKUP(A37,'DATA (2)'!A:F,2,FALSE) -> Насос для стічн.вод SLV 65.65.09.EX.2. | C37: =VLOOKUP(A37,'DATA (2)'!A:F,4,FALSE) -> CW | F37: =VLOOKUP(A37,'DATA (2)'!A:F,5,FALSE) -> 1278.12 | G37: =IFERROR(F37*(1-VLOOKUP(C37,ГОЛОВНА!K:L,2,0)), "-") -> 1278.12
A38: 96106573 | B38: =VLOOKUP(A38,'DATA (2)'!A:F,2,FALSE) -> Насос для стічн.вод SLV 65.65.11.2.1.5 | C38: =VLOOKUP(A38,'DATA (2)'!A:F,4,FALSE) -> CW | F38: =VLOOKUP(A38,'DATA (2)'!A:F,5,FALSE) -> 1273.85 | G38: =IFERROR(F38*(1-VLOOKUP(C38,ГОЛОВНА!K:L,2,0)), "-") -> 1273.85
A39: 96106577 | B39: =VLOOKUP(A39,'DATA (2)'!A:F,2,FALSE) -> Насос для стічн.вод SLV 65.65.11.2.50B | C39: =VLOOKUP(A39,'DATA (2)'!A:F,4,FALSE) -> CW | F39: =VLOOKUP(A39,'DATA (2)'!A:F,5,FALSE) -> 1235.65 | G39: =IFERROR(F39*(1-VLOOKUP(C39,ГОЛОВНА!K:L,2,0)), "-") -> 1235.65
A40: 96106575 | B40: =VLOOKUP(A40,'DATA (2)'!A:F,2,FALSE) -> Насос для стічн вод SLV.65.65.11.A.2.1.502 | C40: =VLOOKUP(A40,'DATA (2)'!A:F,4,FALSE) -> CW | F40: =VLOOKUP(A40,'DATA (2)'!A:F,5,FALSE) -> 1584.41 | G40: =IFERROR(F40*(1-VLOOKUP(C40,ГОЛОВНА!K:L,2,0)), "-") -> 1584.41
A41: 96106579 | B41: =VLOOKUP(A41,'DATA (2)'!A:F,2,FALSE) -> Насос для стічн вод SLV.65.65.11.A.2.50B | C41: =VLOOKUP(A41,'DATA (2)'!A:F,4,FALSE) -> CW | F41: =VLOOKUP(A41,'DATA (2)'!A:F,5,FALSE) -> 1584.41 | G41: =IFERROR(F41*(1-VLOOKUP(C41,ГОЛОВНА!K:L,2,0)), "-") -> 1584.41
A42: 96882685 | B42: =VLOOKUP(A42,'DATA (2)'!A:F,2,FALSE) -> Насос для стічн.вод SLV.65.65.11.E.2.1.5 | C42: =VLOOKUP(A42,'DATA (2)'!A:F,4,FALSE) -> CW | F42: =VLOOKUP(A42,'DATA (2)'!A:F,5,FALSE) -> 1883.6 | G42: =IFERROR(F42*(1-VLOOKUP(C42,ГОЛОВНА!K:L,2,0)), "-") -> 1883.6
A43: 96882686 | B43: =VLOOKUP(A43,'DATA (2)'!A:F,2,FALSE) -> Насос для стічн.вод SLV65.65.11.E.2.50 | C43: =VLOOKUP(A43,'DATA (2)'!A:F,4,FALSE) -> CW | F43: =VLOOKUP(A43,'DATA (2)'!A:F,5,FALSE) -> 1883.6 | G43: =IFERROR(F43*(1-VLOOKUP(C43,ГОЛОВНА!K:L,2,0)), "-") -> 1883.6
A44: 96878480 | B44: =VLOOKUP(A44,'DATA (2)'!A:F,2,FALSE) -> Насос для стічн.вод SLV65.65.11.E.EX.2 | C44: =VLOOKUP(A44,'DATA (2)'!A:F,4,FALSE) -> CW | F44: =VLOOKUP(A44,'DATA (2)'!A:F,5,FALSE) -> 2062.71 | G44: =IFERROR(F44*(1-VLOOKUP(C44,ГОЛОВНА!K:L,2,0)), "-") -> 2062.71
A45: 96878481 | B45: =VLOOKUP(A45,'DATA (2)'!A:F,2,FALSE) -> Насос для стічн.вод SLV65.65.11.E.EX.2 | C45: =VLOOKUP(A45,'DATA (2)'!A:F,4,FALSE) -> CW | F45: =VLOOKUP(A45,'DATA (2)'!A:F,5,FALSE) -> 2062.71 | G45: =IFERROR(F45*(1-VLOOKUP(C45,ГОЛОВНА!K:L,2,0)), "-") -> 2062.71
A46: 96106574 | B46: =VLOOKUP(A46,'DATA (2)'!A:F,2,FALSE) -> Насос для стічн.вод SLV 65.65.11.EX.2. | C46: =VLOOKUP(A46,'DATA (2)'!A:F,4,FALSE) -> CW | F46: =VLOOKUP(A46,'DATA (2)'!A:F,5,FALSE) -> 1417.21 | G46: =IFERROR(F46*(1-VLOOKUP(C46,ГОЛОВНА!K:L,2,0)), "-") -> 1417.21
A47: 96106578 | B47: =VLOOKUP(A47,'DATA (2)'!A:F,2,FALSE) -> Насос для стічн.вод SLV 65.65.11.EX.2. | C47: =VLOOKUP(A47,'DATA (2)'!A:F,4,FALSE) -> CW | F47: =VLOOKUP(A47,'DATA (2)'!A:F,5,FALSE) -> 1417.21 | G47: =IFERROR(F47*(1-VLOOKUP(C47,ГОЛОВНА!K:L,2,0)), "-") -> 1417.21
A48: 96104192 | B48: =VLOOKUP(A48,'DATA (2)'!A:F,2,FALSE) -> Насос для стічн.вод SLV 65.65.15.2.50B | C48: =VLOOKUP(A48,'DATA (2)'!A:F,4,FALSE) -> CW | F48: =VLOOKUP(A48,'DATA (2)'!A:F,5,FALSE) -> 1569 | G48: =IFERROR(F48*(1-VLOOKUP(C48,ГОЛОВНА!K:L,2,0)), "-") -> 1569
A49: 96104194 | B49: =VLOOKUP(A49,'DATA (2)'!A:F,2,FALSE) -> Насос для стічн вод SLV.65.65.15.A.2.50B | C49: =VLOOKUP(A49,'DATA (2)'!A:F,4,FALSE) -> CW | F49: =VLOOKUP(A49,'DATA (2)'!A:F,5,FALSE) -> 1879.54 | G49: =IFERROR(F49*(1-VLOOKUP(C49,ГОЛОВНА!K:L,2,0)), "-") -> 1879.54
A50: 96878503 | B50: =VLOOKUP(A50,'DATA (2)'!A:F,2,FALSE) -> Насос для стічн.вод SLV65.65.15.E.2.50 | C50: =VLOOKUP(A50,'DATA (2)'!A:F,4,FALSE) -> CW | F50: =VLOOKUP(A50,'DATA (2)'!A:F,5,FALSE) -> 2153.23 | G50: =IFERROR(F50*(1-VLOOKUP(C50,ГОЛОВНА!K:L,2,0)), "-") -> 2153.23
A51: 96878504 | B51: =VLOOKUP(A51,'DATA (2)'!A:F,2,FALSE) -> Насос для стічн.вод SLV65.65.15.E.EX.2 | C51: =VLOOKUP(A51,'DATA (2)'!A:F,4,FALSE) -> CW | F51: =VLOOKUP(A51,'DATA (2)'!A:F,5,FALSE) -> 2332.24 | G51: =IFERROR(F51*(1-VLOOKUP(C51,ГОЛОВНА!K:L,2,0)), "-") -> 2332.24
A52: 96104193 | B52: =VLOOKUP(A52,'DATA (2)'!A:F,2,FALSE) -> Насос для стічн.вод SLV 65.65.15.EX.2. | C52: =VLOOKUP(A52,'DATA (2)'!A:F,4,FALSE) -> CW | F52: =VLOOKUP(A52,'DATA (2)'!A:F,5,FALSE) -> 1712.28 | G52: =IFERROR(F52*(1-VLOOKUP(C52,ГОЛОВНА!K:L,2,0)), "-") -> 1712.28
A53: 96106562 | B53: =VLOOKUP(A53,'DATA (2)'!A:F,2,FALSE) -> Насос для стічн.вод SL1.50.65.09.2.1.5 | C53: =VLOOKUP(A53,'DATA (2)'!A:F,4,FALSE) -> CW | F53: =VLOOKUP(A53,'DATA (2)'!A:F,5,FALSE) -> 1149.73 | G53: =IFERROR(F53*(1-VLOOKUP(C53,ГОЛОВНА!K:L,2,0)), "-") -> 1149.73
A54: 96106566 | B54: =VLOOKUP(A54,'DATA (2)'!A:F,2,FALSE) -> Насос для стічн вод SL1.50.65.09.2.50B | C54: =VLOOKUP(A54,'DATA (2)'!A:F,4,FALSE) -> CW | F54: =VLOOKUP(A54,'DATA (2)'!A:F,5,FALSE) -> 1149.73 | G54: =IFERROR(F54*(1-VLOOKUP(C54,ГОЛОВНА!K:L,2,0)), "-") -> 1149.73
A55: 96106564 | B55: =VLOOKUP(A55,'DATA (2)'!A:F,2,FALSE) -> Насос для стічн.вод SL1.50.65.09.A.2.1.502 | C55: =VLOOKUP(A55,'DATA (2)'!A:F,4,FALSE) -> CW | F55: =VLOOKUP(A55,'DATA (2)'!A:F,5,FALSE) -> 1601.82 | G55: =IFERROR(F55*(1-VLOOKUP(C55,ГОЛОВНА!K:L,2,0)), "-") -> 1601.82
A56: 96106570 | B56: =VLOOKUP(A56,'DATA (2)'!A:F,2,FALSE) -> Насос для стічн вод SL1.50.65.09.A.2.50B | C56: =VLOOKUP(A56,'DATA (2)'!A:F,4,FALSE) -> CW | F56: =VLOOKUP(A56,'DATA (2)'!A:F,5,FALSE) -> 1460.26 | G56: =IFERROR(F56*(1-VLOOKUP(C56,ГОЛОВНА!K:L,2,0)), "-") -> 1460.26
A57: 96878450 | B57: =VLOOKUP(A57,'DATA (2)'!A:F,2,FALSE) -> Насос для стічн.вод SL1.50.65.09.E.2.1. | C57: =VLOOKUP(A57,'DATA (2)'!A:F,4,FALSE) -> CW | F57: =VLOOKUP(A57,'DATA (2)'!A:F,5,FALSE) -> 1770.24 | G57: =IFERROR(F57*(1-VLOOKUP(C57,ГОЛОВНА!K:L,2,0)), "-") -> 1770.24
A58: 96047509 | B58: =VLOOKUP(A58,'DATA (2)'!A:F,2,FALSE) -> Насос для стічн.вод SE1.50.65.22.2.50D | C58: =VLOOKUP(A58,'DATA (2)'!A:F,4,FALSE) -> WW | F58: =VLOOKUP(A58,'DATA (2)'!A:F,5,FALSE) -> 2900.8 | G58: =IFERROR(F58*(1-VLOOKUP(C58,ГОЛОВНА!K:L,2,0)), "-") -> 2900.8
A59: 96047517 | B59: =VLOOKUP(A59,'DATA (2)'!A:F,2,FALSE) -> Насос для стічн.вод SE1.50.65.30.2.50D | C59: =VLOOKUP(A59,'DATA (2)'!A:F,4,FALSE) -> WW | F59: =VLOOKUP(A59,'DATA (2)'!A:F,5,FALSE) -> 3138.54 | G59: =IFERROR(F59*(1-VLOOKUP(C59,ГОЛОВНА!K:L,2,0)), "-") -> 3138.54
A60: 96047981 | B60: =VLOOKUP(A60,'DATA (2)'!A:F,2,FALSE) -> Насос для стічн.вод SE1.50.80.22.2.50D | C60: =VLOOKUP(A60,'DATA (2)'!A:F,4,FALSE) -> WW | F60: =VLOOKUP(A60,'DATA (2)'!A:F,5,FALSE) -> 2949.99 | G60: =IFERROR(F60*(1-VLOOKUP(C60,ГОЛОВНА!K:L,2,0)), "-") -> 2949.99
A61: 96047989 | B61: =VLOOKUP(A61,'DATA (2)'!A:F,2,FALSE) -> Насос для стічн.вод SE1.50.80.30.2.50D | C61: =VLOOKUP(A61,'DATA (2)'!A:F,4,FALSE) -> WW | F61: =VLOOKUP(A61,'DATA (2)'!A:F,5,FALSE) -> 3186.74 | G61: =IFERROR(F61*(1-VLOOKUP(C61,ГОЛОВНА!K:L,2,0)), "-") -> 3186.74
A62: 96048005 | B62: =VLOOKUP(A62,'DATA (2)'!A:F,2,FALSE) -> Насос для стічн.вод SE1.80.100.15.4.50 | C62: =VLOOKUP(A62,'DATA (2)'!A:F,4,FALSE) -> WW | F62: =VLOOKUP(A62,'DATA (2)'!A:F,5,FALSE) -> 2949.12 | G62: =IFERROR(F62*(1-VLOOKUP(C62,ГОЛОВНА!K:L,2,0)), "-") -> 2949.12
A63: 96048021 | B63: =VLOOKUP(A63,'DATA (2)'!A:F,2,FALSE) -> Насос для стічн.вод SE1.80.100.22.4.50 | C63: =VLOOKUP(A63,'DATA (2)'!A:F,4,FALSE) -> WW | F63: =VLOOKUP(A63,'DATA (2)'!A:F,5,FALSE) -> 3187.22 | G63: =IFERROR(F63*(1-VLOOKUP(C63,ГОЛОВНА!K:L,2,0)), "-") -> 3187.22
A64: 96047533 | B64: =VLOOKUP(A64,'DATA (2)'!A:F,2,FALSE) -> Насос для стічн.вод SE1.80.80.15.4.50D | C64: =VLOOKUP(A64,'DATA (2)'!A:F,4,FALSE) -> WW | F64: =VLOOKUP(A64,'DATA (2)'!A:F,5,FALSE) -> 3209.68 | G64: =IFERROR(F64*(1-VLOOKUP(C64,ГОЛОВНА!K:L,2,0)), "-") -> 3209.68
A65: 96047697 | B65: =VLOOKUP(A65,'DATA (2)'!A:F,2,FALSE) -> Насос для стічних вод SEV.65.65.22.2.50D | C65: =VLOOKUP(A65,'DATA (2)'!A:F,4,FALSE) -> WW | F65: =VLOOKUP(A65,'DATA (2)'!A:F,5,FALSE) -> 2853.5 | G65: =IFERROR(F65*(1-VLOOKUP(C65,ГОЛОВНА!K:L,2,0)), "-") -> 2853.5
A66: 96047713 | B66: =VLOOKUP(A66,'DATA (2)'!A:F,2,FALSE) -> Помпа для сточних вод SEV.65.65.30.2.50D | C66: =VLOOKUP(A66,'DATA (2)'!A:F,4,FALSE) -> WW | F66: =VLOOKUP(A66,'DATA (2)'!A:F,5,FALSE) -> 3091.2 | G66: =IFERROR(F66*(1-VLOOKUP(C66,ГОЛОВНА!K:L,2,0)), "-") -> 3091.2
A67: 96048169 | B67: =VLOOKUP(A67,'DATA (2)'!A:F,2,FALSE) -> Насос для стічних вод SEV.65.80.22.2.50D | C67: =VLOOKUP(A67,'DATA (2)'!A:F,4,FALSE) -> WW | F67: =VLOOKUP(A67,'DATA (2)'!A:F,5,FALSE) -> 2901.59 | G67: =IFERROR(F67*(1-VLOOKUP(C67,ГОЛОВНА!K:L,2,0)), "-") -> 2901.59
A68: 96048185 | B68: =VLOOKUP(A68,'DATA (2)'!A:F,2,FALSE) -> Насос для стічних вод SEV.65.80.30.2.50D | C68: =VLOOKUP(A68,'DATA (2)'!A:F,4,FALSE) -> WW | F68: =VLOOKUP(A68,'DATA (2)'!A:F,5,FALSE) -> 3138.82 | G68: =IFERROR(F68*(1-VLOOKUP(C68,ГОЛОВНА!K:L,2,0)), "-") -> 3138.82
A69: 96047745 | B69: =VLOOKUP(A69,'DATA (2)'!A:F,2,FALSE) -> Насос для стічних вод SEV.80.80.11.4.50D | C69: =VLOOKUP(A69,'DATA (2)'!A:F,4,FALSE) -> WW | F69: =VLOOKUP(A69,'DATA (2)'!A:F,5,FALSE) -> 2933.81 | G69: =IFERROR(F69*(1-VLOOKUP(C69,ГОЛОВНА!K:L,2,0)), "-") -> 2933.81
A70: 96047757 | B70: =VLOOKUP(A70,'DATA (2)'!A:F,2,FALSE) -> Помпа для сточних вод SEV80.80.13.4.50D | C70: =VLOOKUP(A70,'DATA (2)'!A:F,4,FALSE) -> WW | F70: =VLOOKUP(A70,'DATA (2)'!A:F,5,FALSE) -> 2983.65 | G70: =IFERROR(F70*(1-VLOOKUP(C70,ГОЛОВНА!K:L,2,0)), "-") -> 2983.65
A71: 96047769 | B71: =VLOOKUP(A71,'DATA (2)'!A:F,2,FALSE) -> Помпа для сточних вод SEV.80.80.15.4.50D | C71: =VLOOKUP(A71,'DATA (2)'!A:F,4,FALSE) -> WW | F71: =VLOOKUP(A71,'DATA (2)'!A:F,5,FALSE) -> 3022.91 | G71: =IFERROR(F71*(1-VLOOKUP(C71,ГОЛОВНА!K:L,2,0)), "-") -> 3022.91
A72: 96047781 | B72: =VLOOKUP(A72,'DATA (2)'!A:F,2,FALSE) -> Насос для стічних вод SEV.80.80.22.4.50D | C72: =VLOOKUP(A72,'DATA (2)'!A:F,4,FALSE) -> WW | F72: =VLOOKUP(A72,'DATA (2)'!A:F,5,FALSE) -> 3077.95 | G72: =IFERROR(F72*(1-VLOOKUP(C72,ГОЛОВНА!K:L,2,0)), "-") -> 3077.95
A73: 98624257 | B73: =VLOOKUP(A73,'DATA (2)'!A:F,2,FALSE) -> Насос для стічн вод SL1.50.65.22.2.50D.C | C73: =VLOOKUP(A73,'DATA (2)'!A:F,4,FALSE) -> CW | F73: =VLOOKUP(A73,'DATA (2)'!A:F,5,FALSE) -> 2033.6 | G73: =IFERROR(F73*(1-VLOOKUP(C73,ГОЛОВНА!K:L,2,0)), "-") -> 2033.6
A74: 98626085 | B74: =VLOOKUP(A74,'DATA (2)'!A:F,2,FALSE) -> Насос для стічн вод SL1.50.65.22.2.51D.C | C74: =VLOOKUP(A74,'DATA (2)'!A:F,4,FALSE) -> CW | F74: =VLOOKUP(A74,'DATA (2)'!A:F,5,FALSE) -> 2033.6 | G74: =IFERROR(F74*(1-VLOOKUP(C74,ГОЛОВНА!K:L,2,0)), "-") -> 2033.6
A75: 98626303 | B75: =VLOOKUP(A75,'DATA (2)'!A:F,2,FALSE) -> Насос для стічн вод SL1.50.65.22.A.2.50D | C75: =VLOOKUP(A75,'DATA (2)'!A:F,4,FALSE) -> CW | F75: =VLOOKUP(A75,'DATA (2)'!A:F,5,FALSE) -> 2970.5 | G75: =IFERROR(F75*(1-VLOOKUP(C75,ГОЛОВНА!K:L,2,0)), "-") -> 2970.5
A76: 98626314 | B76: =VLOOKUP(A76,'DATA (2)'!A:F,2,FALSE) -> Насос для стічн вод SL1.50.65.22.A.2.51D | C76: =VLOOKUP(A76,'DATA (2)'!A:F,4,FALSE) -> CW | F76: =VLOOKUP(A76,'DATA (2)'!A:F,5,FALSE) -> 2970.5 | G76: =IFERROR(F76*(1-VLOOKUP(C76,ГОЛОВНА!K:L,2,0)), "-") -> 2970.5
A77: 98626482 | B77: =VLOOKUP(A77,'DATA (2)'!A:F,2,FALSE) -> Насос для стічн вод SL1.50.65.22.A.EX.2. | C77: =VLOOKUP(A77,'DATA (2)'!A:F,4,FALSE) -> CW | F77: =VLOOKUP(A77,'DATA (2)'!A:F,5,FALSE) -> 3079.46 | G77: =IFERROR(F77*(1-VLOOKUP(C77,ГОЛОВНА!K:L,2,0)), "-") -> 3079.46
A78: 98626487 | B78: =VLOOKUP(A78,'DATA (2)'!A:F,2,FALSE) -> Насос для стічн вод SL1.50.65.22.A.EX.2. | C78: =VLOOKUP(A78,'DATA (2)'!A:F,4,FALSE) -> CW | F78: =VLOOKUP(A78,'DATA (2)'!A:F,5,FALSE) -> 2824.42 | G78: =IFERROR(F78*(1-VLOOKUP(C78,ГОЛОВНА!K:L,2,0)), "-") -> 2824.42
A79: 98626698 | B79: =VLOOKUP(A79,'DATA (2)'!A:F,2,FALSE) -> Насос для стічн вод SL1.50.65.22.EX.2.50 | C79: =VLOOKUP(A79,'DATA (2)'!A:F,4,FALSE) -> CW | F79: =VLOOKUP(A79,'DATA (2)'!A:F,5,FALSE) -> 2142.57 | G79: =IFERROR(F79*(1-VLOOKUP(C79,ГОЛОВНА!K:L,2,0)), "-") -> 2142.57
A80: 98626703 | B80: =VLOOKUP(A80,'DATA (2)'!A:F,2,FALSE) -> Насос для стічн вод SL1.50.65.22.EX.2.51 | C80: =VLOOKUP(A80,'DATA (2)'!A:F,4,FALSE) -> CW | F80: =VLOOKUP(A80,'DATA (2)'!A:F,5,FALSE) -> 2172.98 | G80: =IFERROR(F80*(1-VLOOKUP(C80,ГОЛОВНА!K:L,2,0)), "-") -> 2172.98
A81: 98624258 | B81: =VLOOKUP(A81,'DATA (2)'!A:F,2,FALSE) -> Насос для стічн вод SL1.50.65.30.2.50D.C | C81: =VLOOKUP(A81,'DATA (2)'!A:F,4,FALSE) -> CW | F81: =VLOOKUP(A81,'DATA (2)'!A:F,5,FALSE) -> 2331.46 | G81: =IFERROR(F81*(1-VLOOKUP(C81,ГОЛОВНА!K:L,2,0)), "-") -> 2331.46
A82: 98626086 | B82: =VLOOKUP(A82,'DATA (2)'!A:F,2,FALSE) -> Насос для стічн вод SL1.50.65.30.2.51D.C | C82: =VLOOKUP(A82,'DATA (2)'!A:F,4,FALSE) -> CW | F82: =VLOOKUP(A82,'DATA (2)'!A:F,5,FALSE) -> 2331.46 | G82: =IFERROR(F82*(1-VLOOKUP(C82,ГОЛОВНА!K:L,2,0)), "-") -> 2331.46
A83: 98626304 | B83: =VLOOKUP(A83,'DATA (2)'!A:F,2,FALSE) -> Насос для стічн вод SL1.50.65.30.A.2.50D | C83: =VLOOKUP(A83,'DATA (2)'!A:F,4,FALSE) -> CW | F83: =VLOOKUP(A83,'DATA (2)'!A:F,5,FALSE) -> 3268.35 | G83: =IFERROR(F83*(1-VLOOKUP(C83,ГОЛОВНА!K:L,2,0)), "-") -> 3268.35
A84: 98626315 | B84: =VLOOKUP(A84,'DATA (2)'!A:F,2,FALSE) -> Насос для стічн вод SL1.50.65.30.A.2.51D | C84: =VLOOKUP(A84,'DATA (2)'!A:F,4,FALSE) -> CW | F84: =VLOOKUP(A84,'DATA (2)'!A:F,5,FALSE) -> 3268.35 | G84: =IFERROR(F84*(1-VLOOKUP(C84,ГОЛОВНА!K:L,2,0)), "-") -> 3268.35
A85: 98626483 | B85: =VLOOKUP(A85,'DATA (2)'!A:F,2,FALSE) -> Насос для стічн вод SL1.50.65.30.A.EX.2. | C85: =VLOOKUP(A85,'DATA (2)'!A:F,4,FALSE) -> CW | F85: =VLOOKUP(A85,'DATA (2)'!A:F,5,FALSE) -> 3377.29 | G85: =IFERROR(F85*(1-VLOOKUP(C85,ГОЛОВНА!K:L,2,0)), "-") -> 3377.29
A86: 98626488 | B86: =VLOOKUP(A86,'DATA (2)'!A:F,2,FALSE) -> Насос для стічн вод SL1.50.65.30.A.EX.2. | C86: =VLOOKUP(A86,'DATA (2)'!A:F,4,FALSE) -> CW | F86: =VLOOKUP(A86,'DATA (2)'!A:F,5,FALSE) -> 3377.29 | G86: =IFERROR(F86*(1-VLOOKUP(C86,ГОЛОВНА!K:L,2,0)), "-") -> 3377.29
A87: 98626699 | B87: =VLOOKUP(A87,'DATA (2)'!A:F,2,FALSE) -> Насос для стічн вод SL1.50.65.30.EX.2.50 | C87: =VLOOKUP(A87,'DATA (2)'!A:F,4,FALSE) -> CW | F87: =VLOOKUP(A87,'DATA (2)'!A:F,5,FALSE) -> 2440.41 | G87: =IFERROR(F87*(1-VLOOKUP(C87,ГОЛОВНА!K:L,2,0)), "-") -> 2440.41
A88: 98626704 | B88: =VLOOKUP(A88,'DATA (2)'!A:F,2,FALSE) -> Насос для стічн вод SL1.50.65.30.EX.2.51 | C88: =VLOOKUP(A88,'DATA (2)'!A:F,4,FALSE) -> CW | F88: =VLOOKUP(A88,'DATA (2)'!A:F,5,FALSE) -> 2437.66 | G88: =IFERROR(F88*(1-VLOOKUP(C88,ГОЛОВНА!K:L,2,0)), "-") -> 2437.66
A89: 98626080 | B89: =VLOOKUP(A89,'DATA (2)'!A:F,2,FALSE) -> Насос для стічн вод SL1.50.65.40.2.50D.C | C89: =VLOOKUP(A89,'DATA (2)'!A:F,4,FALSE) -> CW | F89: =VLOOKUP(A89,'DATA (2)'!A:F,5,FALSE) -> 2659.57 | G89: =IFERROR(F89*(1-VLOOKUP(C89,ГОЛОВНА!K:L,2,0)), "-") -> 2659.57
A90: 98624259 | B90: =VLOOKUP(A90,'DATA (2)'!A:F,2,FALSE) -> Насос для стічн вод SL1.50.65.40.2.51D.C | C90: =VLOOKUP(A90,'DATA (2)'!A:F,4,FALSE) -> CW | F90: =VLOOKUP(A90,'DATA (2)'!A:F,5,FALSE) -> 2627.95 | G90: =IFERROR(F90*(1-VLOOKUP(C90,ГОЛОВНА!K:L,2,0)), "-") -> 2627.95
A91: 98626701 | B91: =VLOOKUP(A91,'DATA (2)'!A:F,2,FALSE) -> Насос для стічн вод SL1.50.65.40.EX.2.50 | C91: =VLOOKUP(A91,'DATA (2)'!A:F,4,FALSE) -> CW | F91: =VLOOKUP(A91,'DATA (2)'!A:F,5,FALSE) -> 2748.65 | G91: =IFERROR(F91*(1-VLOOKUP(C91,ГОЛОВНА!K:L,2,0)), "-") -> 2748.65
A92: 98626705 | B92: =VLOOKUP(A92,'DATA (2)'!A:F,2,FALSE) -> Насос для стічн вод SL1.50.65.40.EX.2.51 | C92: =VLOOKUP(A92,'DATA (2)'!A:F,4,FALSE) -> CW | F92: =VLOOKUP(A92,'DATA (2)'!A:F,5,FALSE) -> 2627.95 | G92: =IFERROR(F92*(1-VLOOKUP(C92,ГОЛОВНА!K:L,2,0)), "-") -> 2627.95
A93: 98617678 | B93: =VLOOKUP(A93,'DATA (2)'!A:F,2,FALSE) -> Насос для стічн вод SL1.50.80.22.2.50D.C | C93: =VLOOKUP(A93,'DATA (2)'!A:F,4,FALSE) -> CW | F93: =VLOOKUP(A93,'DATA (2)'!A:F,5,FALSE) -> 2072.22 | G93: =IFERROR(F93*(1-VLOOKUP(C93,ГОЛОВНА!K:L,2,0)), "-") -> 2072.22
A94: 98626087 | B94: =VLOOKUP(A94,'DATA (2)'!A:F,2,FALSE) -> Насос для стічн вод SL1.50.80.22.2.51D.C | C94: =VLOOKUP(A94,'DATA (2)'!A:F,4,FALSE) -> CW | F94: =VLOOKUP(A94,'DATA (2)'!A:F,5,FALSE) -> 2072.22 | G94: =IFERROR(F94*(1-VLOOKUP(C94,ГОЛОВНА!K:L,2,0)), "-") -> 2072.22
A95: 98617680 | B95: =VLOOKUP(A95,'DATA (2)'!A:F,2,FALSE) -> Насос для стічн вод SL1.50.80.22.A.2.50D | C95: =VLOOKUP(A95,'DATA (2)'!A:F,4,FALSE) -> CW | F95: =VLOOKUP(A95,'DATA (2)'!A:F,5,FALSE) -> 3009.12 | G95: =IFERROR(F95*(1-VLOOKUP(C95,ГОЛОВНА!K:L,2,0)), "-") -> 3009.12
A96: 98626317 | B96: =VLOOKUP(A96,'DATA (2)'!A:F,2,FALSE) -> Насос для стічн вод SL1.50.80.22.A.2.51D | C96: =VLOOKUP(A96,'DATA (2)'!A:F,4,FALSE) -> CW | F96: =VLOOKUP(A96,'DATA (2)'!A:F,5,FALSE) -> 3009.12 | G96: =IFERROR(F96*(1-VLOOKUP(C96,ГОЛОВНА!K:L,2,0)), "-") -> 3009.12
A97: 98617691 | B97: =VLOOKUP(A97,'DATA (2)'!A:F,2,FALSE) -> Насос для стічн вод SL1.50.80.22.A.EX.2. | C97: =VLOOKUP(A97,'DATA (2)'!A:F,4,FALSE) -> CW | F97: =VLOOKUP(A97,'DATA (2)'!A:F,5,FALSE) -> 3118.06 | G97: =IFERROR(F97*(1-VLOOKUP(C97,ГОЛОВНА!K:L,2,0)), "-") -> 3118.06
A98: 98626490 | B98: =VLOOKUP(A98,'DATA (2)'!A:F,2,FALSE) -> Насос для стічн вод SL1.50.80.22.A.EX.2. | C98: =VLOOKUP(A98,'DATA (2)'!A:F,4,FALSE) -> CW | F98: =VLOOKUP(A98,'DATA (2)'!A:F,5,FALSE) -> 3118.06 | G98: =IFERROR(F98*(1-VLOOKUP(C98,ГОЛОВНА!K:L,2,0)), "-") -> 3118.06
A99: 98617679 | B99: =VLOOKUP(A99,'DATA (2)'!A:F,2,FALSE) -> Насос для стічн вод SL1.50.80.22.EX.2.50 | C99: =VLOOKUP(A99,'DATA (2)'!A:F,4,FALSE) -> CW | F99: =VLOOKUP(A99,'DATA (2)'!A:F,5,FALSE) -> 2181.17 | G99: =IFERROR(F99*(1-VLOOKUP(C99,ГОЛОВНА!K:L,2,0)), "-") -> 2181.17
A100: 98626706 | B100: =VLOOKUP(A100,'DATA (2)'!A:F,2,FALSE) -> Насос для стічн вод SL1.50.80.22.EX.2.51 | C100: =VLOOKUP(A100,'DATA (2)'!A:F,4,FALSE) -> CW | F100: =VLOOKUP(A100,'DATA (2)'!A:F,5,FALSE) -> 2214.51 | G100: =IFERROR(F100*(1-VLOOKUP(C100,ГОЛОВНА!K:L,2,0)), "-") -> 2214.51
A101: 98626076 | B101: =VLOOKUP(A101,'DATA (2)'!A:F,2,FALSE) -> Насос для стічн вод SL1.50.80.30.2.50D.C | C101: =VLOOKUP(A101,'DATA (2)'!A:F,4,FALSE) -> CW | F101: =VLOOKUP(A101,'DATA (2)'!A:F,5,FALSE) -> 2369.42 | G101: =IFERROR(F101*(1-VLOOKUP(C101,ГОЛОВНА!K:L,2,0)), "-") -> 2369.42
A102: 98626088 | B102: =VLOOKUP(A102,'DATA (2)'!A:F,2,FALSE) -> Насос для стічн вод SL1.50.80.30.2.51D.C | C102: =VLOOKUP(A102,'DATA (2)'!A:F,4,FALSE) -> CW | F102: =VLOOKUP(A102,'DATA (2)'!A:F,5,FALSE) -> 2369.42 | G102: =IFERROR(F102*(1-VLOOKUP(C102,ГОЛОВНА!K:L,2,0)), "-") -> 2369.42
A103: 98626306 | B103: =VLOOKUP(A103,'DATA (2)'!A:F,2,FALSE) -> Насос для стічн вод SL1.50.80.30.A.2.50D | C103: =VLOOKUP(A103,'DATA (2)'!A:F,4,FALSE) -> CW | F103: =VLOOKUP(A103,'DATA (2)'!A:F,5,FALSE) -> 3306.31 | G103: =IFERROR(F103*(1-VLOOKUP(C103,ГОЛОВНА!K:L,2,0)), "-") -> 3306.31
A104: 98626318 | B104: =VLOOKUP(A104,'DATA (2)'!A:F,2,FALSE) -> Насос для стічн вод SL1.50.80.30.A.2.51D | C104: =VLOOKUP(A104,'DATA (2)'!A:F,4,FALSE) -> CW | F104: =VLOOKUP(A104,'DATA (2)'!A:F,5,FALSE) -> 3306.31 | G104: =IFERROR(F104*(1-VLOOKUP(C104,ГОЛОВНА!K:L,2,0)), "-") -> 3306.31
A105: 98626484 | B105: =VLOOKUP(A105,'DATA (2)'!A:F,2,FALSE) -> Насос для стічн вод SL1.50.80.30.A.EX.2. | C105: =VLOOKUP(A105,'DATA (2)'!A:F,4,FALSE) -> CW | F105: =VLOOKUP(A105,'DATA (2)'!A:F,5,FALSE) -> 3415.26 | G105: =IFERROR(F105*(1-VLOOKUP(C105,ГОЛОВНА!K:L,2,0)), "-") -> 3415.26
A106: 98626491 | B106: =VLOOKUP(A106,'DATA (2)'!A:F,2,FALSE) -> Насос для стічн вод SL1.50.80.30.A.EX.2. | C106: =VLOOKUP(A106,'DATA (2)'!A:F,4,FALSE) -> CW | F106: =VLOOKUP(A106,'DATA (2)'!A:F,5,FALSE) -> 3158.95 | G106: =IFERROR(F106*(1-VLOOKUP(C106,ГОЛОВНА!K:L,2,0)), "-") -> 3158.95
A107: 98626700 | B107: =VLOOKUP(A107,'DATA (2)'!A:F,2,FALSE) -> Насос для стічн вод SL1.50.80.30.EX.2.50 | C107: =VLOOKUP(A107,'DATA (2)'!A:F,4,FALSE) -> CW | F107: =VLOOKUP(A107,'DATA (2)'!A:F,5,FALSE) -> 2478.34 | G107: =IFERROR(F107*(1-VLOOKUP(C107,ГОЛОВНА!K:L,2,0)), "-") -> 2478.34
A108: 98626707 | B108: =VLOOKUP(A108,'DATA (2)'!A:F,2,FALSE) -> Насос для стічн вод SL1.50.80.30.EX.2.51 | C108: =VLOOKUP(A108,'DATA (2)'!A:F,4,FALSE) -> CW | F108: =VLOOKUP(A108,'DATA (2)'!A:F,5,FALSE) -> 2474.38 | G108: =IFERROR(F108*(1-VLOOKUP(C108,ГОЛОВНА!K:L,2,0)), "-") -> 2474.38
A109: 98626084 | B109: =VLOOKUP(A109,'DATA (2)'!A:F,2,FALSE) -> Насос для стічн вод SL1.50.80.40.2.50D.C | C109: =VLOOKUP(A109,'DATA (2)'!A:F,4,FALSE) -> CW | F109: =VLOOKUP(A109,'DATA (2)'!A:F,5,FALSE) -> 2738.11 | G109: =IFERROR(F109*(1-VLOOKUP(C109,ГОЛОВНА!K:L,2,0)), "-") -> 2738.11
A110: 98624260 | B110: =VLOOKUP(A110,'DATA (2)'!A:F,2,FALSE) -> Насос для стічн вод SL1.50.80.40.2.51D.C | C110: =VLOOKUP(A110,'DATA (2)'!A:F,4,FALSE) -> CW | F110: =VLOOKUP(A110,'DATA (2)'!A:F,5,FALSE) -> 2665.94 | G110: =IFERROR(F110*(1-VLOOKUP(C110,ГОЛОВНА!K:L,2,0)), "-") -> 2665.94
A111: 98626702 | B111: =VLOOKUP(A111,'DATA (2)'!A:F,2,FALSE) -> Насос для стічн вод SL1.50.80.40.EX.2.50 | C111: =VLOOKUP(A111,'DATA (2)'!A:F,4,FALSE) -> CW | F111: =VLOOKUP(A111,'DATA (2)'!A:F,5,FALSE) -> 2788.52 | G111: =IFERROR(F111*(1-VLOOKUP(C111,ГОЛОВНА!K:L,2,0)), "-") -> 2788.52
A112: 98626708 | B112: =VLOOKUP(A112,'DATA (2)'!A:F,2,FALSE) -> Насос для стічн вод SL1.50.80.40.EX.2.51 | C112: =VLOOKUP(A112,'DATA (2)'!A:F,4,FALSE) -> CW | F112: =VLOOKUP(A112,'DATA (2)'!A:F,5,FALSE) -> 2665.94 | G112: =IFERROR(F112*(1-VLOOKUP(C112,ГОЛОВНА!K:L,2,0)), "-") -> 2665.94
A113: 98625977 | B113: =VLOOKUP(A113,'DATA (2)'!A:F,2,FALSE) -> Насос для стіч вод SL1.80.100.15.4.50D.C | C113: =VLOOKUP(A113,'DATA (2)'!A:F,4,FALSE) -> CW | F113: =VLOOKUP(A113,'DATA (2)'!A:F,5,FALSE) -> 2257.59 | G113: =IFERROR(F113*(1-VLOOKUP(C113,ГОЛОВНА!K:L,2,0)), "-") -> 2257.59
A114: 98626190 | B114: =VLOOKUP(A114,'DATA (2)'!A:F,2,FALSE) -> Насос для стічн вод SL1.80.100.15.A.4.50 | C114: =VLOOKUP(A114,'DATA (2)'!A:F,4,FALSE) -> CW | F114: =VLOOKUP(A114,'DATA (2)'!A:F,5,FALSE) -> 3194.49 | G114: =IFERROR(F114*(1-VLOOKUP(C114,ГОЛОВНА!K:L,2,0)), "-") -> 3194.49
A115: 98626400 | B115: =VLOOKUP(A115,'DATA (2)'!A:F,2,FALSE) -> Насос для стічн вод SL1.80.100.15.A.EX.4 | C115: =VLOOKUP(A115,'DATA (2)'!A:F,4,FALSE) -> CW | F115: =VLOOKUP(A115,'DATA (2)'!A:F,5,FALSE) -> 3303.45 | G115: =IFERROR(F115*(1-VLOOKUP(C115,ГОЛОВНА!K:L,2,0)), "-") -> 3303.45
A116: 98626616 | B116: =VLOOKUP(A116,'DATA (2)'!A:F,2,FALSE) -> Насос для стічн вод SL1.80.100.15.EX.4.5 | C116: =VLOOKUP(A116,'DATA (2)'!A:F,4,FALSE) -> CW | F116: =VLOOKUP(A116,'DATA (2)'!A:F,5,FALSE) -> 2366.55 | G116: =IFERROR(F116*(1-VLOOKUP(C116,ГОЛОВНА!K:L,2,0)), "-") -> 2366.55
A117: 98624695 | B117: =VLOOKUP(A117,'DATA (2)'!A:F,2,FALSE) -> Насос для стічн вод SL1.80.100.22.4.50D. | C117: =VLOOKUP(A117,'DATA (2)'!A:F,4,FALSE) -> CW | F117: =VLOOKUP(A117,'DATA (2)'!A:F,5,FALSE) -> 2775.4 | G117: =IFERROR(F117*(1-VLOOKUP(C117,ГОЛОВНА!K:L,2,0)), "-") -> 2775.4
A118: 98626058 | B118: =VLOOKUP(A118,'DATA (2)'!A:F,2,FALSE) -> Насос для стічн. вод SL1.80.100.22.4.51 | C118: =VLOOKUP(A118,'DATA (2)'!A:F,4,FALSE) -> CW | F118: =VLOOKUP(A118,'DATA (2)'!A:F,5,FALSE) -> 2775.4 | G118: =IFERROR(F118*(1-VLOOKUP(C118,ГОЛОВНА!K:L,2,0)), "-") -> 2775.4
A119: 98626620 | B119: =VLOOKUP(A119,'DATA (2)'!A:F,2,FALSE) -> Насос для стічн вод SL1.80.100.22.EX.4.5 | C119: =VLOOKUP(A119,'DATA (2)'!A:F,4,FALSE) -> CW | F119: =VLOOKUP(A119,'DATA (2)'!A:F,5,FALSE) -> 2884.36 | G119: =IFERROR(F119*(1-VLOOKUP(C119,ГОЛОВНА!K:L,2,0)), "-") -> 2884.36
A120: 98626684 | B120: =VLOOKUP(A120,'DATA (2)'!A:F,2,FALSE) -> Насос для стічн вод SL1.80.100.22.EX.4.5 | C120: =VLOOKUP(A120,'DATA (2)'!A:F,4,FALSE) -> CW | F120: =VLOOKUP(A120,'DATA (2)'!A:F,5,FALSE) -> 2624.73 | G120: =IFERROR(F120*(1-VLOOKUP(C120,ГОЛОВНА!K:L,2,0)), "-") -> 2624.73
A121: 98625966 | B121: =VLOOKUP(A121,'DATA (2)'!A:F,2,FALSE) -> Насос для стічн вод SL1.80.100.30.4.50D. | C121: =VLOOKUP(A121,'DATA (2)'!A:F,4,FALSE) -> CW | F121: =VLOOKUP(A121,'DATA (2)'!A:F,5,FALSE) -> 3293.24 | G121: =IFERROR(F121*(1-VLOOKUP(C121,ГОЛОВНА!K:L,2,0)), "-") -> 3293.24
A122: 98626050 | B122: =VLOOKUP(A122,'DATA (2)'!A:F,2,FALSE) -> Насос для стічн вод SL1.80.100.30.4.51D. | C122: =VLOOKUP(A122,'DATA (2)'!A:F,4,FALSE) -> CW | F122: =VLOOKUP(A122,'DATA (2)'!A:F,5,FALSE) -> 3293.24 | G122: =IFERROR(F122*(1-VLOOKUP(C122,ГОЛОВНА!K:L,2,0)), "-") -> 3293.24
A123: 98624693 | B123: =VLOOKUP(A123,'DATA (2)'!A:F,2,FALSE) -> Насос для стічн вод SL1.80.80.15.4.50D.C | C123: =VLOOKUP(A123,'DATA (2)'!A:F,4,FALSE) -> CW | F123: =VLOOKUP(A123,'DATA (2)'!A:F,5,FALSE) -> 2250.28 | G123: =IFERROR(F123*(1-VLOOKUP(C123,ГОЛОВНА!K:L,2,0)), "-") -> 2250.28
A124: 98625875 | B124: =VLOOKUP(A124,'DATA (2)'!A:F,2,FALSE) -> Насос для стічн вод SL1.80.80.15.4.50E.C | C124: =VLOOKUP(A124,'DATA (2)'!A:F,4,FALSE) -> CW | F124: =VLOOKUP(A124,'DATA (2)'!A:F,5,FALSE) -> 2327.87 | G124: =IFERROR(F124*(1-VLOOKUP(C124,ГОЛОВНА!K:L,2,0)), "-") -> 2327.87
A125: 98626189 | B125: =VLOOKUP(A125,'DATA (2)'!A:F,2,FALSE) -> Насос для стічн вод SL1.80.80.15.A.4.50D | C125: =VLOOKUP(A125,'DATA (2)'!A:F,4,FALSE) -> CW | F125: =VLOOKUP(A125,'DATA (2)'!A:F,5,FALSE) -> 3187.17 | G125: =IFERROR(F125*(1-VLOOKUP(C125,ГОЛОВНА!K:L,2,0)), "-") -> 3187.17
A126: 98626399 | B126: =VLOOKUP(A126,'DATA (2)'!A:F,2,FALSE) -> Насос для стічн вод SL1.80.80.15.A.EX.4. | C126: =VLOOKUP(A126,'DATA (2)'!A:F,4,FALSE) -> CW | F126: =VLOOKUP(A126,'DATA (2)'!A:F,5,FALSE) -> 3296.12 | G126: =IFERROR(F126*(1-VLOOKUP(C126,ГОЛОВНА!K:L,2,0)), "-") -> 3296.12
A127: 98626615 | B127: =VLOOKUP(A127,'DATA (2)'!A:F,2,FALSE) -> Насос для стічн вод SL1.80.80.15.EX.4.50 | C127: =VLOOKUP(A127,'DATA (2)'!A:F,4,FALSE) -> CW | F127: =VLOOKUP(A127,'DATA (2)'!A:F,5,FALSE) -> 2359.23 | G127: =IFERROR(F127*(1-VLOOKUP(C127,ГОЛОВНА!K:L,2,0)), "-") -> 2359.23
A128: 98624251 | B128: =VLOOKUP(A128,'DATA (2)'!A:F,2,FALSE) -> Насос для стічн. водSL1.80.80.22.4.50D.C | C128: =VLOOKUP(A128,'DATA (2)'!A:F,4,FALSE) -> CW | F128: =VLOOKUP(A128,'DATA (2)'!A:F,5,FALSE) -> 2761.51 | G128: =IFERROR(F128*(1-VLOOKUP(C128,ГОЛОВНА!K:L,2,0)), "-") -> 2761.51
A129: 98626057 | B129: =VLOOKUP(A129,'DATA (2)'!A:F,2,FALSE) -> Насос для стічн вод SL1.80.80.22.4.51D.C | C129: =VLOOKUP(A129,'DATA (2)'!A:F,4,FALSE) -> CW | F129: =VLOOKUP(A129,'DATA (2)'!A:F,5,FALSE) -> 2761.51 | G129: =IFERROR(F129*(1-VLOOKUP(C129,ГОЛОВНА!K:L,2,0)), "-") -> 2761.51
A130: 98626619 | B130: =VLOOKUP(A130,'DATA (2)'!A:F,2,FALSE) -> Насос для стічн вод SL1.80.80.22.EX.4.50 | C130: =VLOOKUP(A130,'DATA (2)'!A:F,4,FALSE) -> CW | F130: =VLOOKUP(A130,'DATA (2)'!A:F,5,FALSE) -> 2870.43 | G130: =IFERROR(F130*(1-VLOOKUP(C130,ГОЛОВНА!K:L,2,0)), "-") -> 2870.43
A131: 98626683 | B131: =VLOOKUP(A131,'DATA (2)'!A:F,2,FALSE) -> Насос для стічн вод SL1.80.80.22.EX.4.51 | C131: =VLOOKUP(A131,'DATA (2)'!A:F,4,FALSE) -> CW | F131: =VLOOKUP(A131,'DATA (2)'!A:F,5,FALSE) -> 2588.63 | G131: =IFERROR(F131*(1-VLOOKUP(C131,ГОЛОВНА!K:L,2,0)), "-") -> 2588.63
A132: 98624669 | B132: =VLOOKUP(A132,'DATA (2)'!A:F,2,FALSE) -> Насос для стічн вод SL1.80.80.30.4.50D.C | C132: =VLOOKUP(A132,'DATA (2)'!A:F,4,FALSE) -> CW | F132: =VLOOKUP(A132,'DATA (2)'!A:F,5,FALSE) -> 3272.73 | G132: =IFERROR(F132*(1-VLOOKUP(C132,ГОЛОВНА!K:L,2,0)), "-") -> 3272.73
A133: 98626049 | B133: =VLOOKUP(A133,'DATA (2)'!A:F,2,FALSE) -> Насос для стічн вод SL1.80.80.30.4.51D.C | C133: =VLOOKUP(A133,'DATA (2)'!A:F,4,FALSE) -> CW | F133: =VLOOKUP(A133,'DATA (2)'!A:F,5,FALSE) -> 3272.73 | G133: =IFERROR(F133*(1-VLOOKUP(C133,ГОЛОВНА!K:L,2,0)), "-") -> 3272.73
A134: 98625967 | B134: =VLOOKUP(A134,'DATA (2)'!A:F,2,FALSE) -> Насос для стічн вод SLV.100.100.30.4.50D | C134: =VLOOKUP(A134,'DATA (2)'!A:F,4,FALSE) -> CW | F134: =VLOOKUP(A134,'DATA (2)'!A:F,5,FALSE) -> 2762.2 | G134: =IFERROR(F134*(1-VLOOKUP(C134,ГОЛОВНА!K:L,2,0)), "-") -> 2762.2
A135: 98626809 | B135: =VLOOKUP(A135,'DATA (2)'!A:F,2,FALSE) -> Насос для стічн вод SLV.100.100.30.4.50D | C135: =VLOOKUP(A135,'DATA (2)'!A:F,4,FALSE) -> CW | F135: =VLOOKUP(A135,'DATA (2)'!A:F,5,FALSE) -> 3035.4 | G135: =IFERROR(F135*(1-VLOOKUP(C135,ГОЛОВНА!K:L,2,0)), "-") -> 3035.4
A136: 98626051 | B136: =VLOOKUP(A136,'DATA (2)'!A:F,2,FALSE) -> Насос для стічн вод SLV.100.100.30.4.51D | C136: =VLOOKUP(A136,'DATA (2)'!A:F,4,FALSE) -> CW | F136: =VLOOKUP(A136,'DATA (2)'!A:F,5,FALSE) -> 2762.2 | G136: =IFERROR(F136*(1-VLOOKUP(C136,ГОЛОВНА!K:L,2,0)), "-") -> 2762.2
A137: 98626869 | B137: =VLOOKUP(A137,'DATA (2)'!A:F,2,FALSE) -> Насос для стічн вод SLV.100.100.30.4.51D | C137: =VLOOKUP(A137,'DATA (2)'!A:F,4,FALSE) -> CW | F137: =VLOOKUP(A137,'DATA (2)'!A:F,5,FALSE) -> 3119.36 | G137: =IFERROR(F137*(1-VLOOKUP(C137,ГОЛОВНА!K:L,2,0)), "-") -> 3119.36
A138: 98626610 | B138: =VLOOKUP(A138,'DATA (2)'!A:F,2,FALSE) -> Насос для стічн вод SLV.100.100.30.EX.4. | C138: =VLOOKUP(A138,'DATA (2)'!A:F,4,FALSE) -> CW | F138: =VLOOKUP(A138,'DATA (2)'!A:F,5,FALSE) -> 2966.93 | G138: =IFERROR(F138*(1-VLOOKUP(C138,ГОЛОВНА!K:L,2,0)), "-") -> 2966.93
A139: 98627025 | B139: =VLOOKUP(A139,'DATA (2)'!A:F,2,FALSE) -> Насос для стічн вод SLV.100.100.30.EX.4. | C139: =VLOOKUP(A139,'DATA (2)'!A:F,4,FALSE) -> CW | F139: =VLOOKUP(A139,'DATA (2)'!A:F,5,FALSE) -> 3251.08 | G139: =IFERROR(F139*(1-VLOOKUP(C139,ГОЛОВНА!K:L,2,0)), "-") -> 3251.08
A140: 98627068 | B140: =VLOOKUP(A140,'DATA (2)'!A:F,2,FALSE) -> Насос для стічн вод SLV.100.100.30.EX.4. | C140: =VLOOKUP(A140,'DATA (2)'!A:F,4,FALSE) -> CW | F140: =VLOOKUP(A140,'DATA (2)'!A:F,5,FALSE) -> 3336.64 | G140: =IFERROR(F140*(1-VLOOKUP(C140,ГОЛОВНА!K:L,2,0)), "-") -> 3336.64
A141: 98626015 | B141: =VLOOKUP(A141,'DATA (2)'!A:F,2,FALSE) -> Насос для стічн вод SLV.100.100.40.4.50D | C141: =VLOOKUP(A141,'DATA (2)'!A:F,4,FALSE) -> CW | F141: =VLOOKUP(A141,'DATA (2)'!A:F,5,FALSE) -> 3064.02 | G141: =IFERROR(F141*(1-VLOOKUP(C141,ГОЛОВНА!K:L,2,0)), "-") -> 3064.02
A142: 98626056 | B142: =VLOOKUP(A142,'DATA (2)'!A:F,2,FALSE) -> Насос для стічн вод SLV.100.100.40.4.51D | C142: =VLOOKUP(A142,'DATA (2)'!A:F,4,FALSE) -> CW | F142: =VLOOKUP(A142,'DATA (2)'!A:F,5,FALSE) -> 3204.32 | G142: =IFERROR(F142*(1-VLOOKUP(C142,ГОЛОВНА!K:L,2,0)), "-") -> 3204.32
A143: 98626872 | B143: =VLOOKUP(A143,'DATA (2)'!A:F,2,FALSE) -> Насос для стічн вод SLV.100.100.40.4.51D | C143: =VLOOKUP(A143,'DATA (2)'!A:F,4,FALSE) -> CW | F143: =VLOOKUP(A143,'DATA (2)'!A:F,5,FALSE) -> 3500.78 | G143: =IFERROR(F143*(1-VLOOKUP(C143,ГОЛОВНА!K:L,2,0)), "-") -> 3500.78
A144: 98624199 | B144: =VLOOKUP(A144,'DATA (2)'!A:F,2,FALSE) -> Насос для стічн вод SLV.65.65.22.2.50D.C | C144: =VLOOKUP(A144,'DATA (2)'!A:F,4,FALSE) -> CW | F144: =VLOOKUP(A144,'DATA (2)'!A:F,5,FALSE) -> 2204.06 | G144: =IFERROR(F144*(1-VLOOKUP(C144,ГОЛОВНА!K:L,2,0)), "-") -> 2204.06
A145: 98626803 | B145: =VLOOKUP(A145,'DATA (2)'!A:F,2,FALSE) -> Насос для стічн вод SLV.65.65.22.2.50D.C | C145: =VLOOKUP(A145,'DATA (2)'!A:F,4,FALSE) -> CW | F145: =VLOOKUP(A145,'DATA (2)'!A:F,5,FALSE) -> 2310.37 | G145: =IFERROR(F145*(1-VLOOKUP(C145,ГОЛОВНА!K:L,2,0)), "-") -> 2310.37
A146: 98626044 | B146: =VLOOKUP(A146,'DATA (2)'!A:F,2,FALSE) -> Насос для стічн вод SLV.65.65.22.2.51D.C | C146: =VLOOKUP(A146,'DATA (2)'!A:F,4,FALSE) -> CW | F146: =VLOOKUP(A146,'DATA (2)'!A:F,5,FALSE) -> 2204.06 | G146: =IFERROR(F146*(1-VLOOKUP(C146,ГОЛОВНА!K:L,2,0)), "-") -> 2204.06
A147: 98626863 | B147: =VLOOKUP(A147,'DATA (2)'!A:F,2,FALSE) -> Насос для стічн вод SLV.65.65.22.2.51D.C | C147: =VLOOKUP(A147,'DATA (2)'!A:F,4,FALSE) -> CW | F147: =VLOOKUP(A147,'DATA (2)'!A:F,5,FALSE) -> 2375.33 | G147: =IFERROR(F147*(1-VLOOKUP(C147,ГОЛОВНА!K:L,2,0)), "-") -> 2375.33
A148: 98626169 | B148: =VLOOKUP(A148,'DATA (2)'!A:F,2,FALSE) -> Насос для стічн вод SLV.65.65.22.A.2.50D | C148: =VLOOKUP(A148,'DATA (2)'!A:F,4,FALSE) -> CW | F148: =VLOOKUP(A148,'DATA (2)'!A:F,5,FALSE) -> 3112.83 | G148: =IFERROR(F148*(1-VLOOKUP(C148,ГОЛОВНА!K:L,2,0)), "-") -> 3112.83
A149: 98626917 | B149: =VLOOKUP(A149,'DATA (2)'!A:F,2,FALSE) -> Насос для стічн вод SLV.65.65.22.A.2.50D | C149: =VLOOKUP(A149,'DATA (2)'!A:F,4,FALSE) -> CW | F149: =VLOOKUP(A149,'DATA (2)'!A:F,5,FALSE) -> 3247.3 | G149: =IFERROR(F149*(1-VLOOKUP(C149,ГОЛОВНА!K:L,2,0)), "-") -> 3247.3
A150: 98626267 | B150: =VLOOKUP(A150,'DATA (2)'!A:F,2,FALSE) -> Насос для стічн вод SLV.65.65.22.A.2.51D | C150: =VLOOKUP(A150,'DATA (2)'!A:F,4,FALSE) -> CW | F150: =VLOOKUP(A150,'DATA (2)'!A:F,5,FALSE) -> 3112.83 | G150: =IFERROR(F150*(1-VLOOKUP(C150,ГОЛОВНА!K:L,2,0)), "-") -> 3112.83
A151: 98626977 | B151: =VLOOKUP(A151,'DATA (2)'!A:F,2,FALSE) -> Насос для стічн вод SLV.65.65.22.A.2.51D | C151: =VLOOKUP(A151,'DATA (2)'!A:F,4,FALSE) -> CW | F151: =VLOOKUP(A151,'DATA (2)'!A:F,5,FALSE) -> 2892.56 | G151: =IFERROR(F151*(1-VLOOKUP(C151,ГОЛОВНА!K:L,2,0)), "-") -> 2892.56
A152: 98626390 | B152: =VLOOKUP(A152,'DATA (2)'!A:F,2,FALSE) -> Насос для стічн вод SLV.65.65.22.A.EX.2. | C152: =VLOOKUP(A152,'DATA (2)'!A:F,4,FALSE) -> CW | F152: =VLOOKUP(A152,'DATA (2)'!A:F,5,FALSE) -> 3218.52 | G152: =IFERROR(F152*(1-VLOOKUP(C152,ГОЛОВНА!K:L,2,0)), "-") -> 3218.52
A153: 98626606 | B153: =VLOOKUP(A153,'DATA (2)'!A:F,2,FALSE) -> Насос для стічн вод SLV.65.65.22.EX.2.50 | C153: =VLOOKUP(A153,'DATA (2)'!A:F,4,FALSE) -> CW | F153: =VLOOKUP(A153,'DATA (2)'!A:F,5,FALSE) -> 2309.72 | G153: =IFERROR(F153*(1-VLOOKUP(C153,ГОЛОВНА!K:L,2,0)), "-") -> 2309.72
A154: 98627023 | B154: =VLOOKUP(A154,'DATA (2)'!A:F,2,FALSE) -> Насос для стічн вод SLV.65.65.22.EX.2.50 | C154: =VLOOKUP(A154,'DATA (2)'!A:F,4,FALSE) -> CW | F154: =VLOOKUP(A154,'DATA (2)'!A:F,5,FALSE) -> 2419.34 | G154: =IFERROR(F154*(1-VLOOKUP(C154,ГОЛОВНА!K:L,2,0)), "-") -> 2419.34
A155: 98624165 | B155: =VLOOKUP(A155,'DATA (2)'!A:F,2,FALSE) -> Насос для стічн вод SLV.65.65.30.2.50D.C | C155: =VLOOKUP(A155,'DATA (2)'!A:F,4,FALSE) -> CW | F155: =VLOOKUP(A155,'DATA (2)'!A:F,5,FALSE) -> 2448.4 | G155: =IFERROR(F155*(1-VLOOKUP(C155,ГОЛОВНА!K:L,2,0)), "-") -> 2448.4
A156: 98626793 | B156: =VLOOKUP(A156,'DATA (2)'!A:F,2,FALSE) -> Насос для стічн вод SLV.65.65.30.2.50D.C | C156: =VLOOKUP(A156,'DATA (2)'!A:F,4,FALSE) -> CW | F156: =VLOOKUP(A156,'DATA (2)'!A:F,5,FALSE) -> 2393.59 | G156: =IFERROR(F156*(1-VLOOKUP(C156,ГОЛОВНА!K:L,2,0)), "-") -> 2393.59
A157: 98626037 | B157: =VLOOKUP(A157,'DATA (2)'!A:F,2,FALSE) -> Насос для стічн вод SLV.65.65.30.2.51D.C | C157: =VLOOKUP(A157,'DATA (2)'!A:F,4,FALSE) -> CW | F157: =VLOOKUP(A157,'DATA (2)'!A:F,5,FALSE) -> 2448.4 | G157: =IFERROR(F157*(1-VLOOKUP(C157,ГОЛОВНА!K:L,2,0)), "-") -> 2448.4
A158: 98626853 | B158: =VLOOKUP(A158,'DATA (2)'!A:F,2,FALSE) -> Насос для стічн вод SLV.65.65.30.2.51D.C | C158: =VLOOKUP(A158,'DATA (2)'!A:F,4,FALSE) -> CW | F158: =VLOOKUP(A158,'DATA (2)'!A:F,5,FALSE) -> 2460.92 | G158: =IFERROR(F158*(1-VLOOKUP(C158,ГОЛОВНА!K:L,2,0)), "-") -> 2460.92
A159: 98626159 | B159: =VLOOKUP(A159,'DATA (2)'!A:F,2,FALSE) -> Насос для стічн вод SLV.65.65.30.A.2.50D | C159: =VLOOKUP(A159,'DATA (2)'!A:F,4,FALSE) -> CW | F159: =VLOOKUP(A159,'DATA (2)'!A:F,5,FALSE) -> 3357.19 | G159: =IFERROR(F159*(1-VLOOKUP(C159,ГОЛОВНА!K:L,2,0)), "-") -> 3357.19
A160: 98626257 | B160: =VLOOKUP(A160,'DATA (2)'!A:F,2,FALSE) -> Насос для стічн вод SLV.65.65.30.A.2.51D | C160: =VLOOKUP(A160,'DATA (2)'!A:F,4,FALSE) -> CW | F160: =VLOOKUP(A160,'DATA (2)'!A:F,5,FALSE) -> 3357.19 | G160: =IFERROR(F160*(1-VLOOKUP(C160,ГОЛОВНА!K:L,2,0)), "-") -> 3357.19
A161: 98626604 | B161: =VLOOKUP(A161,'DATA (2)'!A:F,2,FALSE) -> Насос для стічн вод SLV.65.65.30.EX.2.50 | C161: =VLOOKUP(A161,'DATA (2)'!A:F,4,FALSE) -> CW | F161: =VLOOKUP(A161,'DATA (2)'!A:F,5,FALSE) -> 2554.07 | G161: =IFERROR(F161*(1-VLOOKUP(C161,ГОЛОВНА!K:L,2,0)), "-") -> 2554.07
A162: 98627021 | B162: =VLOOKUP(A162,'DATA (2)'!A:F,2,FALSE) -> Насос для стічн вод SLV.65.65.30.EX.2.50 | C162: =VLOOKUP(A162,'DATA (2)'!A:F,4,FALSE) -> CW | F162: =VLOOKUP(A162,'DATA (2)'!A:F,5,FALSE) -> 2502.57 | G162: =IFERROR(F162*(1-VLOOKUP(C162,ГОЛОВНА!K:L,2,0)), "-") -> 2502.57
A163: 98626657 | B163: =VLOOKUP(A163,'DATA (2)'!A:F,2,FALSE) -> Насос для стічн вод SLV.65.65.30.EX.2.51 | C163: =VLOOKUP(A163,'DATA (2)'!A:F,4,FALSE) -> CW | F163: =VLOOKUP(A163,'DATA (2)'!A:F,5,FALSE) -> 2554.07 | G163: =IFERROR(F163*(1-VLOOKUP(C163,ГОЛОВНА!K:L,2,0)), "-") -> 2554.07
A164: 98627052 | B164: =VLOOKUP(A164,'DATA (2)'!A:F,2,FALSE) -> Насос для стічн вод SLV.65.65.30.EX.2.51 | C164: =VLOOKUP(A164,'DATA (2)'!A:F,4,FALSE) -> CW | F164: =VLOOKUP(A164,'DATA (2)'!A:F,5,FALSE) -> 2570.76 | G164: =IFERROR(F164*(1-VLOOKUP(C164,ГОЛОВНА!K:L,2,0)), "-") -> 2570.76
A165: 98625992 | B165: =VLOOKUP(A165,'DATA (2)'!A:F,2,FALSE) -> Насос для стічн вод SLV.65.65.40.2.50D.C | C165: =VLOOKUP(A165,'DATA (2)'!A:F,4,FALSE) -> CW | F165: =VLOOKUP(A165,'DATA (2)'!A:F,5,FALSE) -> 2750.63 | G165: =IFERROR(F165*(1-VLOOKUP(C165,ГОЛОВНА!K:L,2,0)), "-") -> 2750.63
A166: 98626825 | B166: =VLOOKUP(A166,'DATA (2)'!A:F,2,FALSE) -> Насос для стічн вод SLV.65.65.40.2.50D.C | C166: =VLOOKUP(A166,'DATA (2)'!A:F,4,FALSE) -> CW | F166: =VLOOKUP(A166,'DATA (2)'!A:F,5,FALSE) -> 2792.97 | G166: =IFERROR(F166*(1-VLOOKUP(C166,ГОЛОВНА!K:L,2,0)), "-") -> 2792.97
